Workbook

Sheet Intro_SR_2024_InflV2_SM_Nonlife
A1: =list_of_sheets!B5 -> 1 | B1: =_SST_template_name -> SST-Template für die Schadenversicherung | E1: 2024
B3: Version | C3: Schattenrechnung Inflation Variante 2 | F3: 2024-07-16
B6: Sprache auswählen; Choisir la langue; Select language | E6: DE
B8: =_VU_name -> Name der Versicherungsgesellschaft | E8: Mustergesellschaft
B10: =_GrossNet -> Brutto- oder Nettomodellierung | E10: Netto | F10: =IF(LEFT($E$10,1)="n",1,0) -> 1
B12: =_SST_currency -> SST-Währung | E12: CHF
B14: =VLOOKUP("T.01.26",Translation,IF(Language="DE",2,IF(Language="FR",3,4)),FALSE) -> Elementarschadenversicherung (ES-Pool Mitglied / übrige ES-AVO-Versicherer) | E14: ES-Pool | F14: =IF($E$14="ES-Pool",1,0) -> 1
B16: =VLOOKUP("T.01.27",Translation,IF(Language="DE",2,IF(Language="FR",3,4)),FALSE) -> Mietkautionsmonoliner | E16: nein | F16: =IF(LEFT($E$16,1)="n",0,1) -> 0
B20: =_comment -> Bemerkungen
B21: =VLOOKUP("T.01.21",Translation,IF(Language="DE",2,IF(Language="FR",3,4)),FALSE) -> Dieses SST-Template enthält Tabellenblätter mit verschiedenen Registerfarben. Es wird die folgende Farbenkonvention verwendet:
B23: =_data -> Angaben | C23: =VLOOKUP("T.01.22",Translation,IF(Language="DE",2,IF(Language="FR",3,4)),FALSE) -> Tabellenblätter, die vom Versicherungsunternehmen auszufüllen sind.
B24: =_parameters -> Parameter | C24: =VLOOKUP("T.01.23",Translation,IF(Language="DE",2,IF(Language="FR",3,4)),FALSE) -> Tabellenblätter mit Informationen, Parametern oder Berechnungen. Diese Tabellenblätter sind in der Regel nicht zu ändern.
B26: =_input -> Eingabe | C26: =VLOOKUP("T.01.24",Translation,IF(Language="DE",2,IF(Language="FR",3,4)),FALSE) -> Eingabefelder: In diesen Feldern werden versicherungsspezifische Angaben erwartet.
C28: =VLOOKUP("T.01.25",Translation,IF(Language="DE",2,IF(Language="FR",3,4)),FALSE) -> In diesen Feldern werden direkte versicherungsspezifische Eingaben für weitere Berechnungen verlinkt.
B30: =VLOOKUP("T.01.29",Translation,IF(Language="DE",2,IF(Language="FR",3,4)),FALSE) -> Vor dem Hochladen auf die EHP muss diese Datei als Exceldatei ohne Makros abgespeichert werden.

Sheet Update
A1: =list_of_sheets!B6 -> 2 | B1: =_Update -> Aktualisierungsliste
B4: =_number -> Nr. | C4: =VLOOKUP("T.02.01",Translation,IF(Language="DE",2,IF(Language="FR",3,4)),FALSE) -> Datum | D4: =_sheet -> Tabellenblatt | E4: =VLOOKUP("T.02.02",Translation,IF(Language="DE",2,IF(Language="FR",3,4)),FALSE) -> Zelle/Bereich | F4: =VLOOKUP("T.02.03",Translation,IF(Language="DE",2,IF(Language="FR",3,4)),FALSE) -> Bemerkung
B5: 1 | C5: 31.10.2021 | D5: NL_Input_SST_Template | E5: E91:E95 | F5: Korrektur Verlinkung der diskontierten Werte statt der undiskontierten Werte
B6: 2 | C6: 31.10.2021 | D6: NL_Input_SST_Template | E6: E99 | F6: Korrektur, dass in dieser Zelle ein Wert angezeigt wird, auch wenn das Blatt NL_Distributitons leer ist.
B7: 3 | C7: 31.10.2021 | D7: Intro_SR_2020_SM_Nonlife | E7: Zeile 18 | F7: Löschen der Inputs für die Option Overdispersion des SST 2021
B8: 4 | C8: 31.10.2021 | D8: NL_Default_Parameter | E8: Block Elementarschadenversicherung | F8: Löschen der Poissonparameter
B9: 5 | C9: 31.10.2021 | D9: NL_Insurance_Risk_default | E9: I69:K70 | F9: Anpassen der Formeln durch Wegfall der Poisson-option für die Elementarschadenversicherung des SST 2021
B10: 6 | C10: 31.10.2021 | D10: NL_Distributions | E10: C5 | F10: Anpassen der Überschrift für die Grossschadenverteilung
B11: 7 | C11: 31.10.2021 | D11: NL_MVM | E11: K8:N12 | F11: Löschung dieser Informationszellen ohne Auswirkung auf Berechnungen
B12: 8 | C12: 31.10.2022 | D12: NL_Input_SST_Template | F12: Einführung benannter Bereiche für Eingabebereiche
B13: 9 | C13: 31.10.2022 | D13: NL_Distributions | F13: Einführung benannter Bereiche für Eingabebereiche
B14: 10 | C14: 31.10.2022 | D14: NL_MVM | F14: Einführung benannter Bereiche für Eingabebereiche
B15: 11 | C15: 31.10.2022 | D15: NL_ExpecdtRes | F15: Einführung benannter Bereiche für Eingabebereiche
B16: 12 | C16: 31.10.2022 | D16: NL_UVG | F16: Einführung benannter Bereiche für Eingabebereiche
B17: 13 | C17: 31.10.2022 | D17: Names | F17: Einfügen eines neuen Tabellenblatts mit der Übersicht aller im Tool verwendeten Bereichsnamen
B18: 14 | C18: 31.1.2023 | D18: Inputparam | F18: Update Phi 10/10 - Zinskurve
B19: 15 | C19: 16.2.2023 | D19: Inputparam | F19: UVG Sensitivitäten aktualisiert
B20: 16 | C20: 31.10.2023 | D20: NL_Default_Correlations | E20: PY_CY_URR_Correlation | F20: Neue Korrelationsmatrix
B21: 17 | C21: 14.06.2024 | D21: NL_Default_Parameter | E21: B111:BE150 | F21: Angabe der g-Faktoren und Berechnung des angepassten Inflationsimpaktfaktoren pro LOB
B22: 18 | C22: 14.06.2024 | D22: NL_Default_Parameter | E22: B23:AZ26 | F22: Eingabebereich für Delta Inflationparameter
B23: 19 | C23: 14.06.2024 | D23: NL_Segments_Non-CH_direct | E23: Block PY-Inputs, Spalten N:P | F23: Eingabe des Segementes für g-Faktoren und Währung für Discounting
B24: 20 | C24: 14.06.2024 | D24: NL_Segments_active_RI | E24: Block PY-Inputs, Spalten O:Q | F24: Eingabe des Segementes für g-Faktoren und Währung für Discounting
B25: 21 | C25: 14.06.2024 | D25: NL_Segments_CH_direct | E25: Block PY-Paymentpattern Spalten BG:BH | F25: Berechnung des Inflationseffektes pro Segment/LOB
B26: 22 | C26: 14.06.2024 | D26: NL_Segments_CH_direct | E26: Block CY-, URR-Paymentpattern Spalten BF:BG | F26: Berechnung des Inflationseffektes pro Segment/LOB
B27: 23 | C27: 14.06.2024 | D27: NL_Segments_Non-CH_direct | E27: Block PY-, CY-, URR-Paymentpattern Spalten BF:BH | F27: Berechnung des Inflationseffektes pro Segment/LOB
B28: 24 | C28: 14.06.2024 | D28: NL_Segments_active_RI | E28: Block PY-, CY-, URR-Paymentpattern Spalten BG:BI | F28: Berechnung des Inflationseffektes pro Segment/LOB
B29: 25 | C29: 14.06.2024 | D29: NL_Insurance_Risk | E29: Spalten T:AB | F29: neue Berechnung der Normalschäden inklusive Infaltionsschock für Schweizer Direktgeschäft
B30: 26 | C30: 14.06.2024 | D30: NL_Insurance_Risk | F30: neue Berechnung der Normalschäden inklusive Infaltionsschock für Nicht-Schweizer Direktgeschäft
B31: 27 | C31: 14.06.2024 | D31: NL_Insurance_Risk | F31: neue Berechnung der Normalschäden inklusive Infaltionsschock für aktive Rückversicherung
B32: 28 | C32: 14.06.2024 | D32: NL_Insurance_Risk_default | E32: T8:AB60 | F32: neue Berechnung der Normalschäden inklusive Infaltionsschock
B33: 29 | C33: 14.06.2024 | D33: NL_Input_SST_Template | E33: S97:V108 | F33: neue Tabelle für Ergebnisse inklusie Inflationsschock
B34: 30 | C34: 14.06.2024 | D34: NL_Input_SST_Template | E34: E98:E108 | F34: Formelbezug auf die Ergebnisse inklusive Inflationsschock geändert
B35: 31 | C35: 16.07.2024 | D35: NL_Input_SST_Template | E35: E106 | F35: Korrektur des Formelbezuges auf die korrekte Verteilung

Sheet list_of_sheets
A1: 3 | B1: =_list_of_sheets -> Liste der Arbeitsblätter
B3: =_number -> Nr. | C3: =_sheet -> Tabellenblatt | D3: =_titel -> Titel
B5: 1 | C5: Intro_SM_Nonlife | D5: =_SST_template_name -> SST-Template für die Schadenversicherung
B6: 2 | C6: Update | D6: =_Update -> Aktualisierungsliste
B7: 3 | C7: list_of_sheets | D7: =_list_of_sheets -> Liste der Arbeitsblätter
B8: 4 | C8: Glossary | D8: =_Glossary -> Glossar: Deutsch - Französisch - Englisch
B9: 5 | C9: Inputparam | D9: =_Inputparameter -> Finanzvariablen und SST-Parameter
B10: 6 | C10: NL_LOB | D10: =_NL_LOB -> Schadenversicherung: SST-Standardversicherungsbranchen
B11: 7 | C11: NL_SST_Default_Payment_Pattern | D11: =_NL_SST_Default_Runoff_Pattern -> Schadenversicherung: Default-Zahlungsmuster
B12: 8 | C12: NL_Default_Parameter | D12: =_NL_Default_Parameter -> Schadenversicherung: Default-Parameter
B13: 9 | C13: NL_Default_Correlations | D13: =_NL_DefaultCorr -> Schadenversicherung: Default-Korrelationsmatrix
B14: 10 | C14: NL_Segments_CH_direct | D14: =_NL_Segments_CH_direct -> Schadenversicherung: Schweizer Direktgeschäft (inklusive Geschäft, das innerhalb des Direktversicherungsabkommen und Elementarschadensversicherungsabkommen in Liechtenstein geschrieben wird)
B15: 11 | C15: NL_Segments_Non-CH_direct | D15: =_NL_Segments_Non_CH_direct -> Schadenversicherung: Ausländisches Direktgeschäft
B16: 12 | C16: NL_Segments_active_RI | D16: =_NL_Segments_active_RI -> Schadenversicherung: Aktive Rückversicherung
B17: 13 | C17: NL_UVG | D17: =_NL_UVG -> Schadenversicherung: UVG
B18: 14 | C18: NL_Insurance_Risk | D18: =_NL_IR -> Schadenversicherung: Berechnung des Versicherungsrisikos für PY-Schäden, CY-Normalschäden und URR-Schäden
B19: 15 | C19: NL_Insurance_Risk_default | D19: =_NL_IR_default -> Schadenversicherung: Versicherungsrisiko Default
B20: 16 | C20: NL_MVM | D20: =_NL_MVM -> Schadenversicherung: Mindestbetrag
B21: 17 | C21: NL_ExpecdtRes | D21: =_NL_Result -> Schadenversicherung: Erwartetes versicherungstechnisches Ergebnis
B22: 18 | C22: NL_Distributions | D22: =_NL_Distr -> Schadenversicherung: Verteilungen
B23: 19 | C23: NL_Input_SST_Template | D23: =_Input_Market_risk -> Schadenversicherung: Eingaben für das Marktrisikostandardmodell und die Aggregation
B24: 20 | C24: NL_Tests | D24: Hilfsblatt: Checks
C25: ValuesCH | D25: =_ValuesCH -> Hilfsblatt: Sicherung der Eingabewerte aus NL_CH_Direct
C26: ValuesNonCH | D26: =_ValuesNonCH -> Hilfsblatt: Sicherung der Eingabewerte aus NL_Non_CH_Direct
C27: ValuesRI | D27: =_ValuesRI -> Hilfsblatt: Sicherung der Eingabewerte aus NL_Active_RI
C28: Names | D28: Angabe aller benannten Bereiche / Zellen im Template

Sheet Glossary
A1: =list_of_sheets!B8 -> 4 | B1: =_Glossary -> Glossar: Deutsch - Französisch - Englisch
B4: Label | C4: Value | D4: Label | E4: Deutsch | F4: Français | G4: English
B6: ="_" & $D6 -> _SST_template_name | C6: =IF(Language="EN",$G6,IF(Language="DE",$E6,$F6)) -> SST-Template für die Schadenversicherung | D6: SST_template_name | E6: SST-Template für die Schadenversicherung | F6: Template SST pour l'assurance dommages | G6: SST template for non-life insurance
B7: _explanation | C7: Erklärungen | D7: explanation | E7: Erklärungen | F7: Explications | G7: Explanations
B8: _comment | C8: Bemerkungen | D8: comment | E8: Bemerkungen | F8: Remarques | G8: Comment
B9: _data | C9: Angaben | D9: data | E9: Angaben | F9: données | G9: Data
B10: _parameters | C10: Parameter | D10: parameters | E10: Parameter | F10: paramètres | G10: Parameters
B11: _input | C11: Eingabe | D11: input | E11: Eingabe | F11: entrée | G11: Input
B12: ="_" & $D12 -> _GrossNet | C12: =IF(Language="EN",$G12,IF(Language="DE",$E12,$F12)) -> Brutto- oder Nettomodellierung | D12: GrossNet | E12: Brutto- oder Nettomodellierung | F12: modélisation brutte ou nette | G12: Gross or net modelling
E13: Beschreibung | F13: description | G13: Description
E14: Wert | F14: valeur | G14: Value
E15: Exponierung | F15: exposition | G15: Exposure
B16: ="_" & $D16 -> _million | C16: =IF(Language="EN",$G16,IF(Language="DE",$E16,$F16)) -> in Mio. | D16: million | E16: in Mio. | F16: en mio. | G16: in million
E17: Schaden | F17: Dommages | G17: Non-life
E18: Kranken | F18: Maladie | G18: Health
B19: =_SST_currency -> SST-Währung | C19: =IF(Language="EN",$G19,IF(Language="DE",$E19,$F19)) -> SST-Währung | D19: SST_currency | E19: SST-Währung | F19: Monnaie du SST | G19: SST currency
E20: Erwartetes versicherungstechnisches Ergebnis | F20: Résultat d'assurance attendu | G20: Expected insurance result
B21: ="_" & $D21 -> _VU_name | C21: =IF(Language="EN",$G21,IF(Language="DE",$E21,$F21)) -> Name der Versicherungsgesellschaft | D21: VU_name | E21: Name der Versicherungsgesellschaft | F21: Nom de la société d'assurance | G21: Name of the insurance company
D22: T.01.21 | E22: Dieses SST-Template enthält Tabellenblätter mit verschiedenen Registerfarben. Es wird die folgende Farbenkonvention verwendet: | F22: Ce template SST contient des feuilles avec des onglets de différentes couleurs. La convention suivante s'applique: | G22: This SST template includes worksheets with different tab colors. The following color convention is used.
D23: T.01.22 | E23: Tabellenblätter, die vom Versicherungsunternehmen auszufüllen sind. | F23: Feuilles que la société d'assurance doit compléter. | G23: Worksheets that are to be completed by the insurance company.
D24: T.01.23 | E24: Tabellenblätter mit Informationen, Parametern oder Berechnungen. Diese Tabellenblätter sind in der Regel nicht zu ändern. | F24: Feuilles avec informations, paramètres ou calculs. En principe ces feuilles ne doivent pas être modifiées. | G24: Worksheets with information, parameters or calculations. Normally, these worksheets are not to be modified.
D25: T.01.24 | E25: Eingabefelder: In diesen Feldern werden versicherungsspezifische Angaben erwartet. | F25: Champs d'entrée: dans ces cellules les données spécifiques à la société d'assurance doivent être entrées. | G25: Input fields: These cells ask for insurance company specific information.
D26: T.01.25 | E26: In diesen Feldern werden direkte versicherungsspezifische Eingaben für weitere Berechnungen verlinkt. | F26: Champs reliés aux informations spécifiques à la société d'assurance pour emploi dans d'autres calculs. | G26: In these cells information will be linked from direct inputs for further calculations.
D27: T.01.26 | E27: Elementarschadenversicherung (ES-Pool Mitglied / übrige ES-AVO-Versicherer) | F27: Dommages dus à des événements naturels (pool DN / autres assureurs DN-OS) | G27: Swiss natural perils insurance (ES-Pool Member / other ES-AVO-Insurer)
D28: T.01.27 | E28: Mietkautionsmonoliner | F28: Monoliner en garantie de loyer | G28: Monoliner for surety insurance of rent deposits
D29: T.01.28 | E29: Modellierung der Overdispersion | F29: Modélisation de la overdispersion | G29: Modelling of overdispersion
D30: T.01.29 | E30: Vor dem Hochladen auf die EHP muss diese Datei als Exceldatei ohne Makros abgespeichert werden. | F30: Avant d'être téléchargé sur l'EHP, ce fichier doit être sauvegardé sous forme de fichier Excel sans macros. | G30: Before uploading to the EHP, this file must be saved as an Excel file without macros.
B31: ="_" & $D31 -> _MarketRisk | C31: Marktrisiko | D31: MarketRisk | E31: Marktrisiko | F31: Risques de marché | G31: Market risk
B32: ="_" & $D32 -> _CreditRisk | C32: Kreditrisiko | D32: CreditRisk | E32: Kreditrisiko | F32: Risques de crédit | G32: Credit risk
E33: Versicherungsrisiko - Leben | F33: Risques d'assurance - vie | G33: Insurance risk - life
E34: Versicherungsrisiko - Schaden | F34: Risques d'assurance - dommage | G34: Insurance risk - non-life
E35: Versicherungsrisiko - Kranken | F35: Risques d'assurance - maladie | G35: Insurance risk - health
E36: Versicherungsrisiko - Rückversicherung | F36: Risques d'assurance - réassurance | G36: Insurance risk - reinsurance
E37: Versicherungsrisiko - Rückversicherungscaptives | F37: Risques d'assurance - captives de réassurance | G37: Insurance risk - reinsurance captives
E38: Versicherungsrisiko - Naturkatastrophenrisiken | F38: Risques d'assurance - risques de catastrophes naturelles | G38: Insurance risk - natural catastrophe risks
B39: ="_" & $D39 -> _URR_Option | C39: URR-Modellierung: | D39: URR_Option | E39: URR-Modellierung: | F39: modélisation URR: | G39: URR modelling:
B41: ="_" & $D41 -> _Update | C41: Aktualisierungsliste | D41: Update | E41: Aktualisierungsliste | F41: Liste des mises-à-jour | G41: Update list
D42: T.02.01 | E42: Datum | F42: Date | G42: Date
D43: T.02.02 | E43: Zelle/Bereich | F43: Cellule/plage | G43: Cell/range
D44: T.02.03 | E44: Bemerkung | F44: Remarque | G44: Comment
B46: ="_" & $D46 -> _list_of_sheets | C46: Liste der Arbeitsblätter | D46: list_of_sheets | E46: Liste der Arbeitsblätter | F46: Liste des feuilles de calculs | G46: List of worksheets
B47: _sheet | C47: Tabellenblatt | D47: sheet | E47: Tabellenblatt | F47: Feuille de calcul | G47: Worksheet
B48: _number | C48: Nr. | D48: number | E48: Nr. | F48: n° | G48: No.
B49: _titel | C49: Titel | D49: titel | E49: Titel | F49: Titre | G49: Title
B50: _ValuesCH | C50: =IF(Language="EN",$G50,IF(Language="DE",$E50,$F50)) -> Hilfsblatt: Sicherung der Eingabewerte aus NL_CH_Direct | D50: ValuesCH | E50: Hilfsblatt: Sicherung der Eingabewerte aus NL_CH_Direct | F50: Feuille auxiliaire: préservation des valeurs en entrée de NL_CH_Direct | G50: Auxiliary Sheet: Preservation of inputvalues from NL_CH_Direct
B51: _ValuesNonCH | C51: =IF(Language="EN",$G51,IF(Language="DE",$E51,$F51)) -> Hilfsblatt: Sicherung der Eingabewerte aus NL_Non_CH_Direct | D51: ValuesNonCH | E51: Hilfsblatt: Sicherung der Eingabewerte aus NL_Non_CH_Direct | F51: Feuille auxiliaire: préservation des valeurs en entrée de NL_Non_CH_Direct | G51: Auxiliary Sheet: Preservation of inputvalues from NL_Non_CH_Direct
B52: _ValuesRI | C52: =IF(Language="EN",$G52,IF(Language="DE",$E52,$F52)) -> Hilfsblatt: Sicherung der Eingabewerte aus NL_Active_RI | D52: ValuesRI | E52: Hilfsblatt: Sicherung der Eingabewerte aus NL_Active_RI | F52: Feuille auxiliaire: préservation des valeurs en entrée de NL_Active_RI | G52: Auxiliary Sheet: Preservation of inputvalues from ActiveRI
B54: ="_" & $D54 -> _Glossary | C54: Glossar: Deutsch - Französisch - Englisch | D54: Glossary | E54: Glossar: Deutsch - Französisch - Englisch | F54: Glossaire : allemand - français - anglais | G54: Glossary: German - French - English
B57: ="_" & $D57 -> _Inputparameter | C57: Finanzvariablen und SST-Parameter | D57: Inputparameter | E57: Finanzvariablen und SST-Parameter | F57: Variables financières et paramètres SST | G57: Financial variables and SST parameters
B58: _RiskfreeRates | C58: Risikolose Zinskurven r(t) per 31.12.2023 | D58: RiskfreeRates | E58: ="Risikolose Zinskurven r(t) per 31.12."& current_year-1 -> Risikolose Zinskurven r(t) per 31.12.2023 | F58: ="Taux d'interêt sans risque r(t) au 31.12." & current_year-1 -> Taux d'interêt sans risque r(t) au 31.12.2023 | G58: ="Risk-free interest rates r(t) as of 31.12." & current_year-1 -> Risk-free interest rates r(t) as of 31.12.2023
B59: _Diskontfaktoren | C59: Diskontfaktoren auf Basis der risikolose Zinskurven r(t); Diskontfunktion n(t) = (1+r(t))^(-t) | D59: Diskontfaktoren | E59: Diskontfaktoren auf Basis der risikolose Zinskurven r(t); Diskontfunktion n(t) = (1+r(t))^(-t) | F59: Facteurs d'actualisation basés sur les taux d'interêts sans risque r(t); fonction d'actualisation n(t) = (1+r(t))^(-t) | G59: Discount factors based on the risk-free interest rates r(t); discount function n(t) = (1+r(t))^(-t)
B60: _ExchangeRates | C60: =IF(Language="EN",$G60,IF(Language="DE",$E60,$F60)) -> Wechselkurse per 31.12.2023 | D60: ExchangeRates | E60: ="Wechselkurse per 31.12."& current_year-1 -> Wechselkurse per 31.12.2023 | F60: ="Taux de change au 31.12."& current_year-1 -> Taux de change au 31.12.2023 | G60: ="Foreign exchange rates as of 31.12."& current_year-1 -> Foreign exchange rates as of 31.12.2023
B61: _YieldCurve | C61: Zinskurve | D61: YieldCurve | E61: Zinskurve | F61: courbe de taux | G61: yield curve
B62: ="_" & $D62 -> _CPI_CH | C62: =IF(Language="EN",$G62,IF(Language="DE",$E62,$F62)) -> Verbraucherpreisinflation CHF | D62: CPI_CH | E62: Verbraucherpreisinflation CHF | F62: Inflation de l'indice des prix à la consommation CHF | G62: Consumer price inflation CHF
B63: ="_" & $D63 -> _CHF_TrueInterest | C63: =IF(Language="EN",$G63,IF(Language="DE",$E63,$F63)) -> CHF-Kurve der realen Zinssätze | D63: CHF_TrueInterest | E63: CHF-Kurve der realen Zinssätze | F63: courbe de taux d'intérêt réels CHF | G63: CHF real yield curve
B64: ="_" & $D64 -> _CHF_TrueInterest_Diskont | C64: =IF(Language="EN",$G64,IF(Language="DE",$E64,$F64)) -> Diskontfaktoren CHF-Realzinskurve | D64: CHF_TrueInterest_Diskont | E64: Diskontfaktoren CHF-Realzinskurve | F64: facteurs d'actualisation basés sur les taux d'interêt réels CHF | G64: Discount factor of CHF real yield curve
B65: ="_" & $D65 -> _Currency | C65: =IF(Language="EN",$G65,IF(Language="DE",$E65,$F65)) -> Währung | D65: Currency | E65: Währung | F65: monnaie | G65: Currency
B66: ="_" & $D66 -> _ConvidenceLevel | C66: =IF(Language="EN",$G66,IF(Language="DE",$E66,$F66)) -> Konfidenzniveau | D66: ConvidenceLevel | E66: Konfidenzniveau | F66: Niveau de confiance | G66: Confidence level
D67: T.05.01 | E67: UVG: phi(10/10) - Zinskurve und reale Zinskurve i(t) mit entsprechenden Diskontfaktoren | F67: LAA: courbe de taux phi(10/10) et courbe de taux d'interêt réels i(t) avec facteurs d'actualisation correspondants | G67: UVG: phi(10/10) - yield curve and real yield curve i(t) with corresponding discount factors
D68: T.05.02 | E68: UVG: Differenz zwischen den Diskontfaktoren bezüglich risikoloser Zinskurve r(t) und den Diskontfaktoren bezüglich phi(10/10) - Zinskurve (pro Laufzeit) für ausgelenkte risikolose Zinsen r(t) | F68: LAA: Différence entre facteurs d'actualisation relatifs aux taux sans risque et ceux relatifs aux courbes de taux phi(10/10), par échéance, pour les taux sans risque déviés r(t) | G68: UVG: Difference between discount factors with risk-free rates and discount factors with phi(10/10) yield curve w.r.t deflected risk-free rates r(t)
D69: T.05.03 | E69: Quelle: Technische Beschreibung zum SST-Standardmodell Schadenversicherung, Anhang UVG | F69: Source: Décrit dans la description technique du modèle standard SST dommages, annexe LAA | G69: Source: Technical description of the SST standard model for non-life insurance: appendix UVG.
D70: T.05.04 | E70: Kapitalkosten (CoC, über der risikofreien Rate für ein Jahr) zur Berechnung des Mindestbetrags | F70: Coûts du capital (CoC, excédant le taux sans risque pour une année) pour le calcul de montant minimum | G70: Cost of capital (CoC, over risk-free interest rate for one year) for the calculation of the market value margin
D71: T.05.05 | E71: Quelle: Für CHF: FINMA-Berechnungen basieren auf SNB Daten. Alle anderen Währungen: FINMA-Berechnungen basierend auf Bloomberg Daten. | F71: Source: Pour les CHF: les calculs de la FINMA sont basés sur les données de la BNS. Pour les autres devises: les calculs de la FINMA sont basés sur les données de Bloomberg. | G71: Source: for CHF: FINMA calculations based on SNB data. All other currencies: FINMA calculations based on Bloomberg data.
B73: ="_" & $D73 -> _NL_LOB | C73: =IF(Language="EN",$G73,IF(Language="DE",$E73,$F73)) -> Schadenversicherung: SST-Standardversicherungsbranchen | D73: NL_LOB | E73: Schadenversicherung: SST-Standardversicherungsbranchen | F73: Assurance dommages: branches standard SST | G73: Non-life: SST lines of business
B74: ="_" & $D74 -> _MTPL | C74: MFH | D74: MTPL | E74: MFH | F74: responsabilité civile véhicules à moteur | G74: Motor liability
B75: _MOD | C75: MFK | D75: MOD | E75: MFK | F75: casco véhicules à moteur | G75: Motor hull
B76: _Fire | C76: Sach | D76: Fire | E76: Sach | F76: biens (choses) | G76: Property
B77: _Fire_with_Elementar | C77: Sach inkl. Elementarschadenpool | D77: Fire_with_Elementar | E77: Sach inkl. Elementarschadenpool | F77: biens incluant le pool des dommages dus à des événements naturels | G77: Property including natural perils pool
B78: _Fire_no_Elementar | C78: Sach ohne Elementarschadenpool | D78: Fire_no_Elementar | E78: Sach ohne Elementarschadenpool | F78: biens excluant le pool des dommages dus à des événements naturels | G78: Property excluding natural perils pool
B79: _GL | C79: Haftpflicht | D79: GL | E79: Haftpflicht | F79: responsabilité civile | G79: General liability
B80: _AccMandatory | C80: UVG | D80: AccMandatory | E80: UVG | F80: LAA | G80: Accident, mandatory
B81: _AccMandatory_Annuities | C81: UVG-Renten | D81: AccMandatory_Annuities | E81: UVG-Renten | F81: LAA, rentes | G81: Accident, mandatory, annuities
B82: _AccMandatory_noAnnuities | C82: UVG, nicht verrentete Fälle | D82: AccMandatory_noAnnuities | E82: UVG, nicht verrentete Fälle | F82: LAA, cas sans rentes | G82: Accident, mandatory, no annuities
B83: _AccOptional | C83: Unfall ohne UVG | D83: AccOptional | E83: Unfall ohne UVG | F83: accidents sans LAA | G83: Accident, optional
B84: _Health_Collective | C84: Kollektivtaggeld | D84: Health_Collective | E84: Kollektivtaggeld | F84: collective indemnités journalières | G84: Collective workers compensation
B85: _Health_Individual | C85: Einzelkranken | D85: Health_Individual | E85: Einzelkranken | F85: maladie individuelle | G85: Individual health
B86: _Marine | C86: Transport | D86: Marine | E86: Transport | F86: transports | G86: Transport
B87: _Aviation | C87: Luftfahrt | D87: Aviation | E87: Luftfahrt | F87: aviation | G87: Aviation
B88: _CreditSurety | C88: Finanz und Kaution | D88: CreditSurety | E88: Finanz und Kaution | F88: financement et caution | G88: Credit & Surety
B89: _CautionMonoliner | C89: Mietkautionsmonoliner | D89: CautionMonoliner | E89: Mietkautionsmonoliner | F89: Monoliner en garantie de loyer | G89: Monoliner for surety insurance of rent deposits
B90: _Legal | C90: Rechtsschutz | D90: Legal | E90: Rechtsschutz | F90: protection juridique | G90: Legal
B91: _Others | C91: Andere | D91: Others | E91: Andere | F91: autres | G91: Others
B92: _Description | C92: Erläuterung | D92: Description | E92: Erläuterung | F92: Explication | G92: Description
B94: ="_" & $D94 -> _NL_SST_Default_Runoff_Pattern | C94: =IF(Language="EN",$G94,IF(Language="DE",$E94,$F94)) -> Schadenversicherung: Default-Zahlungsmuster | D94: NL_SST_Default_Runoff_Pattern | E94: Schadenversicherung: Default-Zahlungsmuster | F94: Assurance dommages: cadences de liquidation par défaut | G94: Non-life: Standard payment patterns
B95: ="_" & $D95 -> _DevYr | C95: Abwicklungsjahr | D95: DevYr | E95: Abwicklungsjahr | F95: année de liquidation | G95: Development year
B96: _IncPP | C96: Inkrementelle Zahlungsmuster | D96: IncPP | E96: Inkrementelle Zahlungsmuster | F96: Cadence de paiements incrémentielle | G96: Incremental payment pattern for claims
B97: _CumPP | C97: Kumulative Zahlungsmuster | D97: CumPP | E97: Kumulative Zahlungsmuster | F97: Cadence de paiements cumulative | G97: Cumulative payment pattern for claims
B98: _ResPP | C98: Standardauszahlungsmuster der Rückstellungen | D98: ResPP | E98: Standardauszahlungsmuster der Rückstellungen | F98: Cadence de liquidation par défaut des provisions pour sinistres | G98: Default payment pattern of year end provisions for claims
B99: _ForOneAccYr_ex5b | C99: für ein Schadenjahr (ausser 5b) | D99: ForOneAccYr_ex5b | E99: für ein Schadenjahr (ausser 5b) | F99: pour une année d'occurence (sauf 5b) | G99: of one accident year (except for 5b)
B100: _KurzFrist | C100: Kurzfristleistungen | D100: KurzFrist | E100: Kurzfristleistungen | F100: prestations à court terme | G100: short-term benefits
B101: _LangFrist | C101: Langfristleistungen | D101: LangFrist | E101: Langfristleistungen | F101: prestations à long terme | G101: long-term benefits
B102: _PV_Factor | C102: Barwertfaktor | D102: PV_Factor | E102: Barwertfaktor | F102: facteur d'actualisation | G102: Present value factor
B103: _payments_in | C103: falls Zahlungen in | D103: payments_in | E103: falls Zahlungen in | F103: si les paiements sont en | G103: if all payments are in
D104: T.07.01 | E104: Für ausgewählte SST-Standardversicherungsbranchen werden Default-Auszahlungsmuster zur Verfügung gestellt. | F104: Des cadences de liquidation par défault sont mises à disposition pour les branches standard SST sélectionnées. | G104: Default payment pattern are provided for specific SST lines of business.
D105: T.07.02 | E105: Deren Verwendung ist zulässig im Fall, dass die unternehmenseigene Datenbasis zur Berechnung von Abwicklungsmustern nicht ausreichend ist. | F105: Leur emploi peut être admis si les propres données de la société d'assurance sont insuffisantes pour en tirer des cadences de liquidation. | G105: These can be utilized in case the company's data history is insufficient.
D106: T.07.03 | E106: Standardabwicklungsmuster der Rückstellungen für ein Schadenjahr (ausser 5b) | F106: Cadence de liquidation par défaut des provisions pour sinistres pour une année d'occurence (sauf 5b) | G106: Default development pattern of year end provisions for claims for a single accident year (except for 5b)
B108: ="_" & $D108 -> _NL_Default_Parameter | C108: =IF(Language="EN",$G108,IF(Language="DE",$E108,$F108)) -> Schadenversicherung: Default-Parameter | D108: NL_Default_Parameter | E108: Schadenversicherung: Default-Parameter | F108: Assurance dommages: valeurs par défaut des paramètres | G108: Non-life: Default parameters
B109: _NL_LOB_default | C109: SST-Standardversicherungsbranche | D109: NL_LOB_default | E109: SST-Standardversicherungsbranche | F109: branche standard SST | G109: SST line of business
B110: _Model_risk | C110: Modellrisiko | D110: Model_risk | E110: Modellrisiko | F110: risque de modèle | G110: Model risk
B111: _Parameter_risk | C111: Parameterrisiko | D111: Parameter_risk | E111: Parameterrisiko | F111: risque de paramètre | G111: Parameter risk
B112: _Estimation_Risk | C112: Zufallsrisiko | D112: Estimation_Risk | E112: Zufallsrisiko | F112: risque aléatoire | G112: Estimation risk
B113: _CV | C113: Variationskoeffizient | D113: CV | E113: Variationskoeffizient | F113: coefficient de variation | G113: Coefficient of variation
B114: _Attritional | C114: Normalschäden | D114: Attritional | E114: Normalschäden | F114: sinistres ordinaires | G114: Attritional claims
B115: _Large | C115: Grossschäden | D115: Large | E115: Grossschäden | F115: grand sinistres | G115: Large claims
B116: _Event | C116: Kumulschäden | D116: Event | E116: Kumulschäden | F116: sinistres événementiels | G116: Event claims
B117: _ES_AVO_param | C117: Parameter für Elementarschadenversicherung | D117: ES_AVO_param | E117: Parameter für Elementarschadenversicherung | F117: paramètres pour dommages dus à des événements naturels | G117: Parameter for Swiss natural perils
B118: _ESV | C118: Elementarschadenversicherung ES-AVO | D118: ESV | E118: Elementarschadenversicherung ES-AVO | F118: dommages dus à des événements naturels DN-OS | G118: Swiss natural perils insurance ES-AVO
B119: _ESP | C119: Elementarschadenpool | D119: ESP | E119: Elementarschadenpool | F119: pool des dommages dus à des événements naturels | G119: Swiss natural perils pool
B120: _ESP_in_Parenthesis | C120: (Elementarschadenpool) | D120: ESP_in_Parenthesis | E120: (Elementarschadenpool) | F120: (pool des dommages dus à des événements naturels) | G120: (Swiss natural perils pool)
B121: _Claims | C121: Schäden | D121: Claims | E121: Schäden | F121: sinistres | G121: Claims
B122: _for_single_risks | C122: für Einzelschäden kleiner als | D122: for_single_risks | E122: für Einzelschäden kleiner als | F122: pour sinistres individuels inférieurs à | G122: for single risks less than
B123: _risk | C123: Risiko | D123: risk | E123: Risiko | F123: risque | G123: Risk
B124: _CY_EL_No_market | C124: Erwartete Anzahl der Ereignisse (Marktgrossschäden) | D124: CY_EL_No_market | E124: Erwartete Anzahl der Ereignisse (Marktgrossschäden) | F124: nombre attendu d'événements (sinistres touchant au marché) | G124: Expected number of events (market loss)
B125: _ScaleParameter | C125: Skalierungsparameter | D125: ScaleParameter | E125: Skalierungsparameter | F125: paramètre d'échelle | G125: Scale parameter
B126: _CY_EL_lwrBd | C126: Marktgrossschadengrenze (untere Grenze der Paretoverteilung) | D126: CY_EL_lwrBd | E126: Marktgrossschadengrenze (untere Grenze der Paretoverteilung) | F126: seuil des sinistres touchant au marché (limite inférieure de la distribution de Pareto) | G126: Market loss threshold (lower bound of Pareto distribution)
B127: _CY_EL_uprBd | C127: Obere Grenze der Paretoverteilung | D127: CY_EL_uprBd | E127: Obere Grenze der Paretoverteilung | F127: limite supérieure de la distribution de Pareto | G127: Upper bound of Pareto distribution
D128: T.08.01 | E128: Anteil der Anzahl Grossschäden bezüglich der Anzahl der Normalschäden bei einer Grossschadengrenze von | F128: Quotient du nombre de grands sinistres rapportés au nombre de sinistres ordinaires, pour un seuil de grands sinsitres de | G128: Portion of number of large losses to number of normal losses at large loss threshold of
D129: T.08.02 | E129: Einzelschadenverteilung: Pareto - a bei einer Grossschadengrenze von | F129: Distribution des sinistres individuels: Pareto-alpha pour un seuil de grands sinsitres de | G129: Single risk dsitribution: Pareto-alpha at a large loss threshold of
D130: T.08.03 | E130: unlimitiert, (nicht UVG: 20-50 Mio. CHF) | F130: illimité (non LAA: 10-50 mio. CHF) | G130: unlimited (Non-UVG: 10-50 million CHF)
D131: T.08.04 | E131: Übrige Elementarschäden | F131: autres dommages naturels | G131: Other natural perils
D132: T.08.05 | E132: Zielgruppe | F132: groupe cible | G132: Target group
D133: T.08.06 | E133: ESP - Mitglied | F133: membre du pool DN | G133: ESP - member
D134: T.08.07 | E134: übrige ES-AVO Versicherer | F134: autres assureurs DN-OS | G134: other ES-AVO insurer
D135: T.08.08 | E135: Alle | F135: tous | G135: All
D136: T.08.09 | E136: g-Faktoren und kumulative Inflationsfaktoren pro Auszahlungsjahr | F136: facteurs g et facteurs d'inflation cumulés par année de paiement | G136: g - factors and cumulative inflation factors per payment year
D137: T.08.10 | E137: g-Faktoren Schweizer Direktgeschäft | F137: facteurs g affaires suisses directes | G137: g - factors Swiss insurance business
D138: T.08.11 | E138: g-Faktoren Ausländisches Direktgeschäft | F138: facteurs g affaires directes étrangères | G138: g - factors Non-Swiss insurance business
D139: T.08.12 | E139: g-Faktoren Aktive Rückversicherung (prop) | F139: facteurs g réassurance active (prop) | G139: g - factors Active Reinsurance (prop)
D140: T.08.13 | E140: g-Faktoren Aktive Rückversicherung (non-prop) | F140: facteurs g réassurance active (non-prop) | G140: g - factors Active Reinsurance (non-prop)
B142: ="_" & $D142 -> _NL_DefaultCorr | C142: =IF(Language="EN",$G142,IF(Language="DE",$E142,$F142)) -> Schadenversicherung: Default-Korrelationsmatrix | D142: NL_DefaultCorr | E142: Schadenversicherung: Default-Korrelationsmatrix | F142: Assurance dommages: matrice de corrélations | G142: Non-life: Default correlation matrix
B145: ="_" & $D145 -> _NL_Segments_CH_direct | C145: =IF(Language="EN",$G145,IF(Language="DE",$E145,$F145)) -> Schadenversicherung: Schweizer Direktgeschäft (inklusive Geschäft, das innerhalb des Direktversicherungsabkommen und Elementarschadensversicherungsabkommen in Liechtenstein geschrieben wird) | D145: NL_Segments_CH_direct | E145: Schadenversicherung: Schweizer Direktgeschäft (inklusive Geschäft, das innerhalb des Direktversicherungsabkommen und Elementarschadensversicherungsabkommen in Liechtenstein geschrieben wird) | F145: Assurance dommages: Affaires suisses directes (y compris affaires souscrites au Liechtenstein sous l'accord sur l'assurance directe et l'accord sur l'assurance des dommages dus à des événements naturels ) | G145: Non-life: Swiss insurance business (inclusive business, which is written in Liechtenstein according to the International agreement with the Principality of Liechtenstein on direct insurance and the International agreement with the Principality of Liechtenstein on insurance against natural disasters)
B146: _gross | C146: brutto | D146: gross | E146: brutto | F146: brut | G146: gross
B147: _net | C147: netto | D147: net | E147: netto | F147: net | G147: net
B148: _All_LOBs | C148: Alle Branchen | D148: All_LOBs | E148: Alle Branchen | F148: toutes les branches | G148: All LOBs
B149: _NoSegments | C149: Anzahl Segmente | D149: NoSegments | E149: Anzahl Segmente | F149: nombre de segments | G149: Number of segments
B150: _Own_segments | C150: Eigene Untersegmente | D150: Own_segments | E150: Eigene Untersegmente | F150: propre sous-segments | G150: Own sub segmentation
B151: _segment | C151: Segment | D151: segment | E151: Segment | F151: segment | G151: Segment
B152: _nominal | C152: nominal | D152: nominal | E152: nominal | F152: nominal | G152: nominal
B153: _undisc | C153: nicht diskontiert | D153: undisc | E153: nicht diskontiert | F153: non actualisé | G153: undiscounted
B154: _disc | C154: diskontiert | D154: disc | E154: diskontiert | F154: actualisé | G154: discounted
B155: ="_" & $D155 -> _PY_risk_used | C155: für SST-Risikomessung benutzt, nicht diskontiert | D155: PY_risk_used | E155: für SST-Risikomessung benutzt, nicht diskontiert | F155: retenu pour la mesure du risque SST, non actualisé | G155: used for SST risk calculation, undiscounted
B156: ="_" & $D156 -> _PY_risk_used_disc | C156: für SST-Risikomessung benutzt, diskontiert | D156: PY_risk_used_disc | E156: für SST-Risikomessung benutzt, diskontiert | F156: retenu pour la mesure du risque SST, actualisé | G156: used for SST risk calculation, discounted
B157: _PY_distr | C157: PY-Schadenverteilung mit Diskonteffekt | D157: PY_distr | E157: PY-Schadenverteilung mit Diskonteffekt | F157: Distribution PY avec actualisation | G157: PY-distribution with discounting effect
B158: _WP | C158: Geschriebene Prämie | D158: WP | E158: Geschriebene Prämie | F158: prime souscrite | G158: Written premium
B159: _EPI | C159: Verdiente Prämie | D159: EPI | E159: Verdiente Prämie | F159: prime acquise | G159: Earned premium
B160: _UnearnedPrem | C160: Unverdiente Prämie | D160: UnearnedPrem | E160: Unverdiente Prämie | F160: prime non acquise | G160: Unearned premium
B161: _Costs | C161: Betriebs- und Verwaltungskosten | D161: Costs | E161: Betriebs- und Verwaltungskosten | F161: frais d'exploitation et administratifs | G161: Management and administrative costs
B162: _CostsUPR | C162: Betriebs- und Verwaltungskosten bezüglich unverdienter Prämie | D162: CostsUPR | E162: Betriebs- und Verwaltungskosten bezüglich unverdienter Prämie | F162: frais d'exploitation et administratifs relatifs aux primes non acquises | G162: Management and administrative costs (UPR)
B163: _ExpectedIncWP | C163: Erwarteter aggregierter Schadenaufwand bezüglich geschriebener Prämie | D163: ExpectedIncWP | E163: Erwarteter aggregierter Schadenaufwand bezüglich geschriebener Prämie | F163: charge agrégée des sinistres attendue relative aux primes souscrites | G163: Expected annual incurred loss w.r.t written premium
B164: _ExpectedInc | C164: Erwarteter aggregierter Schadenaufwand bezüglich verdienter Prämie | D164: ExpectedInc | E164: Erwarteter aggregierter Schadenaufwand bezüglich verdienter Prämie | F164: charge agrégée des sinistres attendue relative aux primes acquises | G164: Expected annual incurred loss w.r.t earned premium
B165: _Res_in | C165: Eingangsschadenrückstellung (1.1.2024) | D165: Res_in | E165: ="Eingangsschadenrückstellung (1.1."&current_year & ")" -> Eingangsschadenrückstellung (1.1.2024) | F165: ="Provisions pour sinistres initiales au 1.1."&current_year -> Provisions pour sinistres initiales au 1.1.2024 | G165: ="Opening reserves as at 1.1."& current_year -> Opening reserves as at 1.1.2024
B166: _EX | C166: Erwartungswert | D166: EX | E166: Erwartungswert | F166: valeur attendue | G166: Expectation
B167: _EX_LN | C167: Erwartungswert der Lognormalverteilung | D167: EX_LN | E167: Erwartungswert der Lognormalverteilung | F167: valeur attendue de la distribution lognormale | G167: Expectation of the lognormal distribution
B168: _ES | C168: Risiko (Expected Shortfall) | D168: ES | E168: Risiko (Expected Shortfall) | F168: risque (expected shortfall) | G168: Expected shortfall
B169: _ES_centred | C169: Zentriertes Risiko (Expected Shortfall) | D169: ES_centred | E169: Zentriertes Risiko (Expected Shortfall) | F169: risque centré (expected shortfall) | G169: Centred expected shortfall
B170: _TotalLoss | C170: Gesamtschadenaufwand | D170: TotalLoss | E170: Gesamtschadenaufwand | F170: charge agrégée des sinistres totale | G170: Total aggregated losses
B171: _TotalLossURR | C171: Erwarteter aggregierter Schadenaufwand bezüglich unverdienter Prämie | D171: TotalLossURR | E171: Erwarteter aggregierter Schadenaufwand bezüglich unverdienter Prämie | F171: charge agrégée des sinistres attendue relative aux primes non acquises | G171: Total aggregated losses w.r.t. UPR
B172: _CY_Attr | C172: CY-Normalschäden | D172: CY_Attr | E172: CY-Normalschäden | F172: sinistres ordinaires CY | G172: CY - attritional losses
B173: _CY_Attr_No | C173: CY: Erwartete Anzahl der Normalschäden | D173: CY_Attr_No | E173: CY: Erwartete Anzahl der Normalschäden | F173: nombre attendu de sinistres ordinaires CY | G173: CY: Expected number of attritional losses
B174: ="_" & $D174 -> _CY_Attr_distr | C174: =IF(Language="EN",$G174,IF(Language="DE",$E174,$F174)) -> Normalschadenverteilung | D174: CY_Attr_distr | E174: Normalschadenverteilung | F174: Distribution annuelle des sinistres ordinaires | G174: Distribution of attritional losses
B175: _CY_Attr_disc_distr | C175: Normalschadenverteilung mit Diskonteffekt | D175: CY_Attr_disc_distr | E175: Normalschadenverteilung mit Diskonteffekt | F175: Distribution annuelle des sinistres ordinaires actualisés | G175: Distribution of discounted attritional losses
B176: _CY_LargeLosses | C176: CY-Grossschäden | D176: CY_LargeLosses | E176: CY-Grossschäden | F176: grands sinistres CY | G176: CY - large losses
B177: _CY_LL_No_default | C177: Erwartungswert der Anzahl Grossschäden (SST-Defaultwert) | D177: CY_LL_No_default | E177: Erwartungswert der Anzahl Grossschäden (SST-Defaultwert) | F177: nombre attendu de grands sinistres (valeur SST par défaut) | G177: Expected number of large losses
B178: _CY_LL_No | C178: Erwartungswert der Anzahl Grossschäden | D178: CY_LL_No | E178: Erwartungswert der Anzahl Grossschäden | F178: nombre attendu de grands sinistres | G178: Expected number of large losses
B179: _proposal | C179: Vorschlag | D179: proposal | E179: Vorschlag | F179: proposition | G179: proposal
B180: _CY_LL_Threshold_CH_Direct | C180: CY: benutzte Grenze zwischen Gross- und Normalschäden (0.5, 1, 2 oder 5 Mio. CHF) | D180: CY_LL_Threshold_CH_Direct | E180: CY: benutzte Grenze zwischen Gross- und Normalschäden (0.5, 1, 2 oder 5 Mio. CHF) | F180: seuil retenu des grands sinistres CY (0.5, 1, 2 ou 5 mio. CHF) | G180: CY: Selected threshold of large claims (0.5, 1, 2 or 5 m CHF)
B181: _CY_LL_PML | C181: grösster möglicher Grossschaden (Einzel- bzw. Ereignisschaden PML) | D181: CY_LL_PML | E181: grösster möglicher Grossschaden (Einzel- bzw. Ereignisschaden PML) | F181: sinistre maximal probable (PML) (individuel ou PML par événement) | G181: Probable maximum loss (single loss or event PML)
B183: _CY_LL_distr | C183: Jahresgrossschadenverteilung | D183: CY_LL_distr | E183: Jahresgrossschadenverteilung | F183: Distribution annuelle des grands sinistres | G183: Distribution of large losses
B184: _CY_LL_disc_distr | C184: Jahresgrossschadenverteilung mit Diskonteffekt | D184: CY_LL_disc_distr | E184: Jahresgrossschadenverteilung mit Diskonteffekt | F184: Distribution annuelle des grands sinistres actualisés | G184: Distribution of discounted large losses
B185: _CY_LL_alpha_default | C185: Einzelschadenverteilung: Paretoparameter (SST-Defaultwert) | D185: CY_LL_alpha_default | E185: Einzelschadenverteilung: Paretoparameter (SST-Defaultwert) | F185: distribution des sinistres individuels: paramètre de Pareto (valeur SST par défaut) | G185: Distribution of single losses: Pareto parameter
B186: _CY_LL_alpha | C186: Einzelschadenverteilung: Paretoparameter | D186: CY_LL_alpha | E186: Einzelschadenverteilung: Paretoparameter | F186: distribution des sinistres individuels: paramètre de Pareto | G186: Distribution of single losses: Pareto parameter
B187: _MarketEvent | C187: CY - marktweite Kumulschäden | D187: MarketEvent | E187: CY - marktweite Kumulschäden | F187: sinistres événementiels CY touchant au marché | G187: CY market event losses
B188: _MarketShare | C188: Marktanteil oder Poolanteil | D188: MarketShare | E188: Marktanteil oder Poolanteil | F188: part de marché ou part du pool | G188: market share or pool participation
B189: _Market | C189: Branche / Mitgliedschaft | D189: Market | E189: Branche / Mitgliedschaft | F189: branche / affiliation | G189: LOB / Affiliation
B190: _CY_EL_disc_distr | C190: eigene Jahreskumulschadenverteilung | D190: CY_EL_disc_distr | E190: eigene Jahreskumulschadenverteilung | F190: propre distribution sur l'année des sinistres événementiels touchant au marché | G190: own distribution of annual aggregated event losses
B191: _URR_disc_distr | C191: URR-Schadenverteilung, Risiko mit Diskonteffekt | D191: URR_disc_distr | E191: URR-Schadenverteilung, Risiko mit Diskonteffekt | F191: Distribution des sinistres URR, avec actualisation | G191: Distribution of URR, discounted
B192: _IncPP_PY | C192: Benutzte inkrementelle Zahlungsmuster der vorjährigen Anfalljahre (PY = prior (accident) years, d.h. vor 2024) | D192: IncPP_PY | E192: ="Benutzte inkrementelle Zahlungsmuster der vorjährigen Anfalljahre (PY = prior (accident) years, d.h. vor " & current_year & ")" -> Benutzte inkrementelle Zahlungsmuster der vorjährigen Anfalljahre (PY = prior (accident) years, d.h. vor 2024) | F192: ="cadence de paiements incrémentielle sélectionnée pour les années d'occurrence précédentes (PY = prior years, i.e. avant " & current_year & ")" -> cadence de paiements incrémentielle sélectionnée pour les années d'occurrence précédentes (PY = prior years, i.e. avant 2024) | G192: ="Applied incremental payment pattern for prior (accident) years (PY-claims, i.e. before " & current_year & ")" -> Applied incremental payment pattern for prior (accident) years (PY-claims, i.e. before 2024)
B193: _IncPP_CY | C193: Benutzte inkrementelle Abwicklungsmuster des aktuellen Anfalljahres (CY = current (accident) year, d.h. 2024) | D193: IncPP_CY | E193: ="Benutzte inkrementelle Abwicklungsmuster des aktuellen Anfalljahres (CY = current (accident) year, d.h. " & current_year & ")" -> Benutzte inkrementelle Abwicklungsmuster des aktuellen Anfalljahres (CY = current (accident) year, d.h. 2024) | F193: ="cadence de liquidation incrémentielle sélectionnée pour l'année d'occurrence courante (CY = current year, i.e. " & current_year & ")" -> cadence de liquidation incrémentielle sélectionnée pour l'année d'occurrence courante (CY = current year, i.e. 2024) | G193: ="Applied incremental payment pattern for current (accident) years (CY-claims, i.e. equals " & current_year & ")" -> Applied incremental payment pattern for current (accident) years (CY-claims, i.e. equals 2024)
B194: _IncPP_URR_1yr | C194: Benutzte inkrementelle Abwicklungsmuster für ein zukünftiges Anfalljahr (URR = claims for unexpired risks in one future (accident) year, d.h. nach 2024) | D194: IncPP_URR_1yr | E194: ="Benutzte inkrementelle Abwicklungsmuster für ein zukünftiges Anfalljahr (URR = claims for unexpired risks in one future (accident) year, d.h. nach " & current_year & ")" -> Benutzte inkrementelle Abwicklungsmuster für ein zukünftiges Anfalljahr (URR = claims for unexpired risks in one future (accident) year, d.h. nach 2024) | F194: ="cadence de liquidation incrémentielle sélectionnée pour une année d'occurrence future (sinistres URR, i.e. après " & current_year & ")" -> cadence de liquidation incrémentielle sélectionnée pour une année d'occurrence future (sinistres URR, i.e. après 2024) | G194: ="Applied incremental payment pattern for one future accident year (URR-claims, i.e. after " & current_year & ")" -> Applied incremental payment pattern for one future accident year (URR-claims, i.e. after 2024)
B195: _IncEP_URR | C195: Benutzte inkrementelle Earning Muster der zukünftgen Anfalljahre (URR = claims for unexpired risks in future (accident) years, d.h. nach 2024) | D195: IncEP_URR | E195: ="Benutzte inkrementelle Earning Muster der zukünftgen Anfalljahre (URR = claims for unexpired risks in future (accident) years, d.h. nach " & current_year & ")" -> Benutzte inkrementelle Earning Muster der zukünftgen Anfalljahre (URR = claims for unexpired risks in future (accident) years, d.h. nach 2024) | F195: ="cadence d'acquisition (earning pattern) incrémentielle sélectionnée pour une année d'occurrence future (sinitres URR, i.e. après " & current_year & ")" -> cadence d'acquisition (earning pattern) incrémentielle sélectionnée pour une année d'occurrence future (sinitres URR, i.e. après 2024) | G195: ="Applied incremental earning pattern for future accident years (URR-claims, i.e. after " & current_year & ")" -> Applied incremental earning pattern for future accident years (URR-claims, i.e. after 2024)
B196: _IncPP_URR | C196: Benutzte inkrementelle Abwicklungsmuster der zukünftgen Anfalljahre (URR = claims for unexpired risks in future (accident) years, d.h. nach 2024) | D196: IncPP_URR | E196: ="Benutzte inkrementelle Abwicklungsmuster der zukünftgen Anfalljahre (URR = claims for unexpired risks in future (accident) years, d.h. nach " & current_year & ")" -> Benutzte inkrementelle Abwicklungsmuster der zukünftgen Anfalljahre (URR = claims for unexpired risks in future (accident) years, d.h. nach 2024) | F196: ="cadence de paiements incrémentielle sélectionnée pour les années d'occurrence futures (URR = claims for unexpired risks in future (accident) years, i.e. après " & current_year & ")" -> cadence de paiements incrémentielle sélectionnée pour les années d'occurrence futures (URR = claims for unexpired risks in future (accident) years, i.e. après 2024) | G196: ="Applied incremental payment pattern for future accident years (URR-claims, i.e. after " & current_year & ")" -> Applied incremental payment pattern for future accident years (URR-claims, i.e. after 2024)
B197: _VU_CorrMatrix | C197: Unternehmensindividuelle Korrelationsmatrix | D197: VU_CorrMatrix | E197: Unternehmensindividuelle Korrelationsmatrix | F197: matrice de corrélations propre à l'entreprise | G197: Company specific correlation matrix
B198: _BE | C198: Best Estimate | D198: BE | E198: Best Estimate | F198: best estimate (estimation la meilleure possible) | G198: Best estimate
B199: _optional | C199: Optionale Eingabe | D199: optional | E199: Optionale Eingabe | F199: entrée facultative | G199: optional input
B200: _mandatory | C200: Erforderliche Eingabe | D200: mandatory | E200: Erforderliche Eingabe | F200: entrée obligatoire | G200: mandatory input
B201: ="_" & $D201 -> _Agg_claims | C201: =IF(Language="EN",$G201,IF(Language="DE",$E201,$F201)) -> Für aggregierte Schäden | D201: Agg_claims | E201: Für aggregierte Schäden | F201: pour des sinistres agrégés | G201: for aggregated losses
D202: T.10.01 | E202: ="Unverdiente Prämie per 31.12." & current_year-1 & " (betrifft Policen, deren Deckungsperiode bis zum 31.12." & current_year-1 & " begonnen hat, enthält auch noch nicht einbezahlte Prämien)" -> Unverdiente Prämie per 31.12.2023 (betrifft Policen, deren Deckungsperiode bis zum 31.12.2023 begonnen hat, enthält auch noch nicht einbezahlte Prämien) | F202: ="Primes non acquises au 31.12." & current_year-1 &" (concerne les polices dont la période de couverture a commencé avant ou le 31.12." & current_year-1 & ", y compris les primes non encore payées)" -> Primes non acquises au 31.12.2023 (concerne les polices dont la période de couverture a commencé avant ou le 31.12.2023, y compris les primes non encore payées) | G202: ="Unearned premium as of 31/12/" & current_year-1 & " (concerns policies which have incepted until the 31/12/" & current_year-1 & " , including as yet unpaid premiums)" -> Unearned premium as of 31/12/2023 (concerns policies which have incepted until the 31/12/2023 , including as yet unpaid premiums)
D203: T.10.02 | E203: ="Geschriebene Prämie (betrifft Policen, deren Deckungsperiode zwischen dem 1.1." & current_year & " dem 31.12." & current_year & " beginnt, enthält auch noch nicht einbezahlte Prämien)" -> Geschriebene Prämie (betrifft Policen, deren Deckungsperiode zwischen dem 1.1.2024 dem 31.12.2024 beginnt, enthält auch noch nicht einbezahlte Prämien) | F203: ="Primes souscrites (pour les polices dont la période de couverture commence entre le 1.1." & current_year & " et le 31.12." & current_year & ", y compris les primes non encore payées)" -> Primes souscrites (pour les polices dont la période de couverture commence entre le 1.1.2024 et le 31.12.2024, y compris les primes non encore payées) | G203: ="Written premium (for policies which incept between the 1/1/" & current_year & " and the 31/12/" & current_year & " , including also not yet paid in premiums)" -> Written premium (for policies which incept between the 1/1/2024 and the 31/12/2024 , including also not yet paid in premiums)
D204: T.10.03 | E204: ="Unverdiente Prämie per 31.12." & current_year & " (betrifft Policen, deren Deckungsperiode bis zum 31.12." & current_year & " begonnen hat, enthält auch noch nicht einbezahlte Prämien)" -> Unverdiente Prämie per 31.12.2024 (betrifft Policen, deren Deckungsperiode bis zum 31.12.2024 begonnen hat, enthält auch noch nicht einbezahlte Prämien) | F204: ="Primes non acquises au 31.12." & current_year & " (concerne les polices dont la période de couverture a commencé avant ou le 31.12." & current_year & ", y compris les primes non encore payées)" -> Primes non acquises au 31.12.2024 (concerne les polices dont la période de couverture a commencé avant ou le 31.12.2024, y compris les primes non encore payées) | G204: ="Unearned premium as of 31/12/" & current_year & " (concerns policies which have incepted until the 31/12/" & current_year & " , including as yet unpaid premiums)" -> Unearned premium as of 31/12/2024 (concerns policies which have incepted until the 31/12/2024 , including as yet unpaid premiums)
D205: T.10.04 | E205: ="Verdiente Prämie per 31.12." & current_year -> Verdiente Prämie per 31.12.2024 | F205: ="Primes acquises au 31.12." & current_year -> Primes acquises au 31.12.2024 | G205: ="Earned premium as of 31/12/" & current_year -> Earned premium as of 31/12/2024
D206: T.10.05 | E206: ="Betriebs- und Verwaltungskosten bezüglich der geschriebenen Prämie" -> Betriebs- und Verwaltungskosten bezüglich der geschriebenen Prämie | F206: Coûts d'exploitation et administratifs relatifs aux primes souscrites | G206: Management and administrative costs with respect to written premium
B207: ="_" & $D207 -> _Inflation_Factor | C207: =IF(Language="EN",$G207,IF(Language="DE",$E207,$F207)) -> Inflationsfaktor (Gesamteffekt) | D207: Inflation_Factor | E207: Inflationsfaktor (Gesamteffekt) | F207: facteur d'inflation (effet total) | G207: Inflation factor (total effect)
B209: _NL_Segments_Non_CH_direct | C209: =IF(Language="EN",$G209,IF(Language="DE",$E209,$F209)) -> Schadenversicherung: Ausländisches Direktgeschäft | D209: NL_Segments_Non_CH_direct | E209: Schadenversicherung: Ausländisches Direktgeschäft | F209: Assurance dommages: affaires directes étrangères | G209: Non-Life: Non-Swiss insurance business
B210: _CY_LL_Threshold | C210: =IF(Language="EN",$G210,IF(Language="DE",$E210,$F210)) -> CY: benutzte Grenze zwischen Gross- und Normalschäden | D210: CY_LL_Threshold | E210: CY: benutzte Grenze zwischen Gross- und Normalschäden | F210: CY: seuil retenu entre les grands sinistres et les sinistres ordinaires | G210: CY: applied threshold of large claims
B211: ="_" & $D211 -> _Seg_no_infl | C211: =IF(Language="EN",$G211,IF(Language="DE",$E211,$F211)) -> Segmentnummer für den Inflationsschock | D211: Seg_no_infl | E211: Segmentnummer für den Inflationsschock | F211: No du segment pour le choc d'inflation | G211: Segment number for inflation shock
B212: _Seg_no_range_NCH | C212: Gültige Eingaben {1,2,3,4,5,6,7} | D212: Seg_no_range_NCH | E212: Gültige Eingaben {1,2,3,4,5,6,7} | F212: Entrées valides {1,2,3,4,5,6,7} | G212: Valid entries {1,2,3,4,5,6,7}
B213: _Seg_name | C213: Segment für den Inflationsschock | D213: Seg_name | E213: Segment für den Inflationsschock | F213: Segment pour le choc d'inflation | G213: Segment for inflation shock
B214: _Disc_curr | C214: Währung für die Diskontierung (Default SST-Währung) | D214: Disc_curr | E214: ="Währung für die Diskontierung (Default " & _SST_currency & ")" -> Währung für die Diskontierung (Default SST-Währung) | F214: ="Monnaie pour l'actualisation (par défaut " & _SST_currency & ")" -> Monnaie pour l'actualisation (par défaut SST-Währung) | G214: ="Currency for present value (default " & _SST_currency & ")" -> Currency for present value (default SST-Währung)
B216: ="_" & $D216 -> _NL_Segments_active_RI | C216: =IF(Language="EN",$G216,IF(Language="DE",$E216,$F216)) -> Schadenversicherung: Aktive Rückversicherung | D216: NL_Segments_active_RI | E216: Schadenversicherung: Aktive Rückversicherung | F216: Assurance dommages: réassurance active | G216: Non-Life: Segmentation active reinsurance business
B217: ="_" & $D217 -> _region | C217: =IF(Language="EN",$G217,IF(Language="DE",$E217,$F217)) -> Region | D217: region | E217: Region | F217: région | G217: Region
... 225 more rows

Sheet Inputparam
A1: 5 | B1: =_Inputparameter -> Finanzvariablen und SST-Parameter
B4: =_RiskfreeRates -> Risikolose Zinskurven r(t) per 31.12.2023
B5: =VLOOKUP("T.05.05",Translation,IF(Language="DE",2,IF(Language="FR",3,4)),FALSE) -> Quelle: Für CHF: FINMA-Berechnungen basieren auf SNB Daten. Alle anderen Währungen: FINMA-Berechnungen basierend auf Bloomberg Daten.
B7: =_maturity -> Fälligkeit (in Jahren) | C7: 1 | D7: 2 | E7: 3 | F7: 4 | G7: 5 | H7: 6 | I7: 7 | J7: 8 | K7: 9 | L7: 10 | M7: 11 | N7: 12 | O7: 13 | P7: 14 | Q7: 15 | R7: 16 | S7: 17 | T7: 18 | U7: 19 | V7: 20 | W7: 21 | X7: 22 | Y7: 23 | Z7: 24 | AA7: 25 | AB7: 26 | AC7: 27 | AD7: 28 | AE7: 29 | AF7: 30 | AG7: 31 | AH7: 32 | AI7: 33 | AJ7: 34 | AK7: 35 | AL7: 36 | AM7: 37 | AN7: 38 | AO7: 39 | AP7: 40 | AQ7: 41 | AR7: 42 | AS7: 43 | AT7: 44 | AU7: 45 | AV7: 46 | AW7: 47 | AX7: 48 | AY7: 49 | AZ7: 50
B8: CHF | C8: 0.01255290667 | D8: 0.009924402445 | E8: 0.008429421456 | F8: 0.007601194003 | G8: 0.007144809452 | H8: 0.006891551085 | I8: 0.006747664123 | J8: 0.006661146459 | K8: 0.006602931569 | L8: 0.006556662059 | M8: 0.006488133172 | N8: 0.006411186898 | O8: 0.006345323754 | P8: 0.006303983997 | Q8: 0.006296739371 | R8: 0.006327701678 | S8: 0.006388972425 | T8: 0.006472155159 | U8: 0.006570978263 | V8: 0.006680720555 | W8: 0.006797807167 | X8: 0.00691952048 | Y8: 0.007043790281 | Z8: 0.007169039431 | AA8: 0.007294069044 | AB8: 0.007417972158 | AC8: 0.007540068234 | AD8: 0.007659853042 | AE8: 0.007776960041 | AF8: 0.007891130419 | AG8: 0.008002189712 | AH8: 0.008110029473 | AI8: 0.008214592836 | AJ8: 0.008315863099 | AK8: 0.008413854671 | AL8: 0.008508605877 | AM8: 0.008600173225 | AN8: 0.008688626841 | AO8: 0.008774046818 | AP8: 0.008856520314 | AQ8: 0.008936139239 | AR8: 0.00901299841 | AS8: 0.009087194102 | AT8: 0.009158822897 | AU8: 0.009227980786 | AV8: 0.009294762471 | AW8: 0.009359260836 | AX8: 0.009421566539 | AY8: 0.00948176772 | AZ8: 0.009539949792
B9: EUR | C9: 0.03164 | D9: 0.02501 | E9: 0.02245 | F9: 0.02151 | G9: 0.02124 | H9: 0.02123 | I9: 0.02132 | J9: 0.0215 | K9: 0.02169 | L9: 0.02193 | M9: 0.02216618962 | N9: 0.0223712829 | O9: 0.02253495142 | P9: 0.0226497405 | Q9: 0.02271 | R9: 0.02271275936 | S9: 0.02266115263 | T9: 0.02255865303 | U9: 0.02240770741 | V9: 0.02221 | W9: 0.02196988506 | X9: 0.02170288602 | Y9: 0.02142410694 | Z9: 0.02114546883 | AA9: 0.02087639366 | AB9: 0.02062435055 | AC9: 0.02039529566 | AD9: 0.02019402972 | AE9: 0.02002449124 | AF9: 0.01989 | AG9: 0.01979184938 | AH9: 0.01972511448 | AI9: 0.01968429296 | AJ9: 0.01966483545 | AK9: 0.01966296877 | AL9: 0.01967555503 | AM9: 0.01969997863 | AN9: 0.019734055 | AO9: 0.01977595666 | AP9: 0.01982415295 | AQ9: 0.01987736066 | AR9: 0.01993450346 | AS9: 0.01999467839 | AT9: 0.02005712816 | AU9: 0.02012121805 | AV9: 0.02018641669 | AW9: 0.02025228001 | AX9: 0.0203184377 | AY9: 0.02038458196 | AZ9: 0.02045045785
B10: USD | C10: 0.047559 | D10: 0.04051764513 | E10: 0.03727719323 | F10: 0.03577894161 | G10: 0.03506057394 | H10: 0.03473988959 | I10: 0.03457266092 | J10: 0.03451431908 | K10: 0.03453550412 | L10: 0.03459324885 | M10: 0.03468418037 | N10: 0.0347891891 | O10: 0.03488871049 | P10: 0.03496818803 | Q10: 0.03501623822 | R10: 0.03502592109 | S10: 0.03500027147 | T10: 0.03494338844 | U10: 0.03485816162 | V10: 0.03474655925 | W10: 0.0346099615 | X10: 0.03444965324 | Y10: 0.03426649542 | Z10: 0.034060895 | AA10: 0.03383288925 | AB10: 0.03358221242 | AC10: 0.03330834998 | AD10: 0.03301058432 | AE10: 0.03268803459 | AF10: 0.03233969312 | AG10: 0.0319661827 | AH10: 0.03157445774 | AI10: 0.03117187586 | AJ10: 0.03076454825 | AK10: 0.03035752369 | AL10: 0.02995495011 | AM10: 0.02956021593 | AN10: 0.02917607326 | AO10: 0.0288047451 | AP10: 0.02844801819 | AQ10: 0.02810732341 | AR10: 0.02778380523 | AS10: 0.02747838174 | AT10: 0.02719179659 | AU10: 0.02692466422 | AV10: 0.02667750926 | AW10: 0.0264508015 | AX10: 0.02624498708 | AY10: 0.026060517 | AZ10: 0.0258978738
B11: GBP | C11: 0.047265 | D11: 0.04013520657 | E11: 0.03667658126 | F11: 0.03469754514 | G11: 0.03348479942 | H11: 0.03279745351 | I11: 0.0324867879 | J11: 0.03242079205 | K11: 0.0325191444 | L11: 0.03272866084 | M11: 0.03297475747 | N11: 0.03322357141 | O11: 0.03345794722 | P11: 0.03366539875 | Q11: 0.03383637518 | R11: 0.03396599645 | S11: 0.03406062471 | T11: 0.03412751334 | U11: 0.03417225739 | V11: 0.03419921383 | W11: 0.03421107451 | X11: 0.03420713127 | Y11: 0.03418593741 | Z11: 0.03414606711 | AA11: 0.03408608993 | AB11: 0.03400455289 | AC11: 0.03389996916 | AD11: 0.0337708121 | AE11: 0.03361551451 | AF11: 0.03343247259 | AG11: 0.03322163349 | AH11: 0.03298882532 | AI11: 0.0327403789 | AJ11: 0.03248161009 | AK11: 0.0322169715 | AL11: 0.03195018353 | AM11: 0.03168434763 | AN11: 0.03142204414 | AO11: 0.03116541686 | AP11: 0.03091624606 | AQ11: 0.03067601163 | AR11: 0.03044594765 | AS11: 0.03022708973 | AT11: 0.03002031607 | AU11: 0.02982638336 | AV11: 0.0296459583 | AW11: 0.02947964557 | AX11: 0.02932801289 | AY11: 0.02919161395 | AZ11: 0.02907100972
B12: =IF(ISNUMBER(MATCH(sst_curr,$B$8:$B$11,0)),"",sst_curr) -> 
B14: =_Diskontfaktoren -> Diskontfaktoren auf Basis der risikolose Zinskurven r(t); Diskontfunktion n(t) = (1+r(t))^(-t)
B16: =_maturity -> Fälligkeit (in Jahren) | C16: 1 | D16: =1+C16 -> 2 | E16: 3 | F16: 4 | G16: 5 | H16: 6 | I16: 7 | J16: 8 | K16: 9 | L16: 10 | M16: 11 | N16: 12 | O16: 13 | P16: 14 | Q16: 15 | R16: 16 | S16: 17 | T16: 18 | U16: 19 | V16: 20 | W16: 21 | X16: 22 | Y16: 23 | Z16: 24 | AA16: 25 | AB16: 26 | AC16: 27 | AD16: 28 | AE16: 29 | AF16: 30 | AG16: 31 | AH16: 32 | AI16: 33 | AJ16: 34 | AK16: 35 | AL16: 36 | AM16: 37 | AN16: 38 | AO16: 39 | AP16: 40 | AQ16: 41 | AR16: 42 | AS16: 43 | AT16: 44 | AU16: 45 | AV16: 46 | AW16: 47 | AX16: 48 | AY16: 49 | AZ16: 50
B17: CHF | C17: =(1+C8)^(-C$16) -> 0.9876027153 | D17: =(1+D8)^(-D$16) -> 0.9804428144 | E17: 0.9751321518 | F17: 0.9701643373 | G17: 0.9650290918 | H17: 0.9596300078 | I17: 0.9540158402 | J17: 0.9482733519 | K17: 0.9424889826 | L17: 0.9367371056 | M17: 0.9313324892 | N17: 0.926178154 | O17: 0.9210613797 | P17: 0.9157803295 | Q17: 0.9101417103 | R17: 0.9040015055 | S17: 0.8973879253 | T17: 0.8903653343 | U17: 0.8829910747 | V17: 0.8753162155 | W17: 0.8673862225 | X17: 0.8592415562 | Y17: 0.8509182067 | Z17: 0.842448171 | AA17: 0.8338598808 | AB17: 0.8251785828 | AC17: 0.8164266803 | AD17: 0.8076240374 | AE17: 0.7987882512 | AF17: 0.7899348949 | AG17: 0.7810777351 | AH17: 0.7722289255 | AI17: 0.7633991811 | AJ17: 0.7545979323 | AK17: 0.7458334639 | AL17: 0.7371130386 | AM17: 0.7284430075 | AN17: 0.7198289087 | AO17: 0.7112755557 | AP17: 0.7027871162 | AQ17: 0.6943671823 | AR17: 0.6860188334 | AS17: 0.6777446925 | AT17: 0.6695469764 | AU17: 0.6614275403 | AV17: 0.6533879179 | AW17: 0.6454293573 | AX17: 0.6375528528 | AY17: 0.6297591733 | AZ17: 0.6220488879
B18: EUR | C18: =(1+C9)^(-C$16) -> 0.9693303866 | D18: =(1+D9)^(-D$16) -> 0.9517958245 | E18: 0.9355645604 | F18: 0.9183949988 | G18: 0.900245409 | H18: 0.8815736773 | I18: 0.8627145926 | J18: 0.8435154318 | K18: 0.8243805109 | L18: 0.8049863463 | M18: 0.7857119749 | N18: 0.7668250533 | O18: 0.7484863748 | P18: 0.7308415419 | Q18: 0.7140234298 | R18: 0.698137895 | S18: 0.6832192566 | T18: 0.669286236 | U18: 0.6563595669 | V18: 0.6444622683 | W18: 0.6335777738 | X18: 0.6235314404 | Y18: 0.6141290175 | Z18: 0.605197674 | AA18: 0.5965831227 | AB18: 0.5881470609 | AC18: 0.5797648906 | AD18: 0.5713236805 | AE18: 0.5627203419 | AF18: 0.5538599897 | AG18: 0.5446811756 | AH18: 0.5352298214 | AI18: 0.5255704323 | AJ18: 0.5157591735 | AK18: 0.5058448653 | AL18: 0.4958698617 | AM18: 0.4858708258 | AN18: 0.4758794132 | AO18: 0.4659228761 | AP18: 0.4560245949 | AQ18: 0.4462045489 | AR18: 0.4364797295 | AS18: 0.4268645066 | AT18: 0.4173709501 | AU18: 0.4080091144 | AV18: 0.398787289 | AW18: 0.3897122189 | AX18: 0.3807893 | AY18: 0.3720227498 | AZ18: 0.3634157593
B19: USD | C19: =(1+C10)^(-C$16) -> 0.9546001705 | D19: =(1+D10)^(-D$16) -> 0.9236365304 | E19: 0.8960154798 | F19: 0.8688237644 | G19: 0.8417268254 | H19: 0.8147283906 | I19: 0.7882664008 | J19: 0.7622684588 | K19: 0.7367012421 | L19: 0.7117108697 | M19: 0.6872489742 | N19: 0.6634029622 | O19: 0.6402986102 | P19: 0.6180476873 | Q19: 0.5967501661 | R19: 0.5764748676 | S19: 0.5572012949 | T19: 0.538891458 | U19: 0.5215119277 | V19: 0.5050334931 | W19: 0.4894296013 | X19: 0.4746725484 | Y19: 0.460737444 | Z19: 0.447603265 | AA19: 0.4352526202 | AB19: 0.423671555 | AC19: 0.4128493933 | AD19: 0.4027786129 | AE19: 0.3934547513 | AF19: 0.3848763416 | AG19: 0.3770253575 | AH19: 0.3698123679 | AI19: 0.3631407899 | AJ19: 0.356925776 | AK19: 0.3510927541 | AL19: 0.3455761388 | AM19: 0.3403181918 | AN19: 0.3352680145 | AO19: 0.3303806569 | AP19: 0.3256163282 | AQ19: 0.320939697 | AR19: 0.3163192703 | AS19: 0.3117268416 | AT19: 0.3071369989 | AU19: 0.3025266858 | AV19: 0.297874809 | AW19: 0.2931618853 | AX19: 0.2883697236 | AY19: 0.2834811371 | AZ19: 0.2784796814
B20: GBP | C20: =(1+C11)^(-C$16) -> 0.9548681566 | D20: =(1+D11)^(-D$16) -> 0.9243158636 | E20: 0.8975737366 | F20: 0.8724616078 | G20: 0.8481634104 | H20: 0.8239655406 | I20: 0.7994816116 | J20: 0.7747223085 | K20: 0.7497508803 | L20: 0.7246656911 | M20: 0.6998632706 | N20: 0.6755668575 | O20: 0.6519187605 | P20: 0.6290429462 | Q20: 0.607047774 | R20: 0.5860030752 | S20: 0.5658717054 | T20: 0.5465958485 | U20: 0.5281231662 | V20: 0.5104061916 | W20: 0.4934090794 | X20: 0.4771274271 | Y20: 0.461563603 | Z20: 0.4467193536 | AA20: 0.4325960945 | AB20: 0.419195173 | AC20: 0.4065181083 | AD20: 0.3945668123 | AE20: 0.3833437936 | AF20: 0.3728523497 | AG20: 0.363079547 | AH20: 0.3539484789 | AI20: 0.345375713 | AJ20: 0.3372880459 | AK20: 0.3296212196 | AL20: 0.3223187912 | AM20: 0.3153311394 | AN20: 0.3086145887 | AO20: 0.3021306388 | AP20: 0.2958452859 | AQ20: 0.2897284234 | AR20: 0.2837533137 | AS20: 0.2778961221 | AT20: 0.2721355038 | AU20: 0.2664522387 | AV20: 0.2608289073 | AW20: 0.255249603 | AX20: 0.2496996749 | AY20: 0.2441654987 | AZ20: 0.2386342707
B21: =B12 ->  | C21: =(1+C12)^(-C$16) -> 1 | D21: 1 | E21: 1 | F21: 1 | G21: 1 | H21: 1 | I21: 1 | J21: 1 | K21: 1 | L21: 1 | M21: 1 | N21: 1 | O21: 1 | P21: 1 | Q21: 1 | R21: 1 | S21: 1 | T21: 1 | U21: 1 | V21: 1 | W21: 1 | X21: 1 | Y21: 1 | Z21: 1 | AA21: 1 | AB21: 1 | AC21: 1 | AD21: 1 | AE21: 1 | AF21: 1 | AG21: 1 | AH21: 1 | AI21: 1 | AJ21: 1 | AK21: 1 | AL21: 1 | AM21: 1 | AN21: 1 | AO21: 1 | AP21: 1 | AQ21: 1 | AR21: 1 | AS21: 1 | AT21: 1 | AU21: 1 | AV21: 1 | AW21: 1 | AX21: 1 | AY21: 1 | AZ21: 1
B23: Delta Inflation
C25: 0 | D25: 1 | E25: 2 | F25: 3 | G25: 4 | H25: 5 | I25: 6 | J25: 7 | K25: 8 | L25: 9 | M25: 10 | N25: 11 | O25: 12 | P25: 13 | Q25: 14 | R25: 15 | S25: 16 | T25: 17 | U25: 18 | V25: 19 | W25: 20 | X25: 21 | Y25: 22 | Z25: 23 | AA25: 24 | AB25: 25 | AC25: 26 | AD25: 27 | AE25: 28 | AF25: 29 | AG25: 30 | AH25: 31 | AI25: 32 | AJ25: 33 | AK25: 34 | AL25: 35 | AM25: 36 | AN25: 37 | AO25: 38 | AP25: 39 | AQ25: 40 | AR25: 41 | AS25: 42 | AT25: 43 | AU25: 44 | AV25: 45 | AW25: 46 | AX25: 47 | AY25: 48 | AZ25: 49
C26: 0.045 | D26: 0.01 | E26: 0 | F26: 0 | G26: 0 | H26: 0 | I26: 0 | J26: 0 | K26: 0 | L26: 0 | M26: 0 | N26: 0 | O26: 0 | P26: 0 | Q26: 0 | R26: 0 | S26: 0 | T26: 0 | U26: 0 | V26: 0 | W26: 0 | X26: 0 | Y26: 0 | Z26: 0 | AA26: 0 | AB26: 0 | AC26: 0 | AD26: 0 | AE26: 0 | AF26: 0 | AG26: 0 | AH26: 0 | AI26: 0 | AJ26: 0 | AK26: 0 | AL26: 0 | AM26: 0 | AN26: 0 | AO26: 0 | AP26: 0 | AQ26: 0 | AR26: 0 | AS26: 0 | AT26: 0 | AU26: 0 | AV26: 0 | AW26: 0 | AX26: 0 | AY26: 0 | AZ26: 0
B28: =VLOOKUP("T.05.01",Translation,IF(Language="DE",2,IF(Language="FR",3,4)),FALSE) -> UVG: phi(10/10) - Zinskurve und reale Zinskurve i(t) mit entsprechenden Diskontfaktoren
B29: =VLOOKUP("T.05.03",Translation,IF(Language="DE",2,IF(Language="FR",3,4)),FALSE) -> Quelle: Technische Beschreibung zum SST-Standardmodell Schadenversicherung, Anhang UVG
B31: =_maturity -> Fälligkeit (in Jahren) | C31: 1 | D31: =C31+1 -> 2 | E31: =D31+1 -> 3 | F31: 4 | G31: 5 | H31: 6 | I31: 7 | J31: 8 | K31: 9 | L31: 10 | M31: 11 | N31: 12 | O31: 13 | P31: 14 | Q31: 15 | R31: 16 | S31: 17 | T31: 18 | U31: 19 | V31: 20 | W31: 21 | X31: 22 | Y31: 23 | Z31: 24 | AA31: 25 | AB31: 26 | AC31: 27 | AD31: 28 | AE31: 29 | AF31: 30 | AG31: 31 | AH31: 32 | AI31: 33 | AJ31: 34 | AK31: 35 | AL31: 36 | AM31: 37 | AN31: 38 | AO31: 39 | AP31: 40 | AQ31: 41 | AR31: 42 | AS31: 43 | AT31: 44 | AU31: 45 | AV31: 46 | AW31: 47 | AX31: 48 | AY31: 49 | AZ31: 50
B33: j10/10-Zinskurve | C33: 0.0008775146543 | D33: 0.0008403470671 | E33: 0.00104737075 | F33: 0.00138070806 | G33: 0.001710885996 | H33: 0.002020083326 | I33: 0.002392055676 | J33: 0.002808384435 | K33: 0.003229095769 | L33: 0.003550730172 | M33: 0.003777865873 | N33: 0.003969248353 | O33: 0.00414084974 | P33: 0.00430093308 | Q33: 0.004454539581 | R33: 0.004605153793 | S33: 0.004755199062 | T33: 0.004906189722 | U33: 0.005058954982 | V33: 0.005213816825 | W33: 0.005370710823 | X33: 0.005529274322 | Y33: 0.005688794292 | Z33: 0.005848347588 | AA33: 0.006006956258 | AB33: 0.00616370216 | AC33: 0.006317812681 | AD33: 0.006468709014 | AE33: 0.006615978409 | AF33: 0.006759337229 | AG33: 0.006898602266 | AH33: 0.007033668359 | AI33: 0.007164490846 | AJ33: 0.007291071768 | AK33: 0.007413448978 | AL33: 0.007531687531 | AM33: 0.007645872861 | AN33: 0.00775610537 | AO33: 0.007862496146 | AP33: 0.007965163555 | AQ33: 0.008064230563 | AR33: 0.008159822608 | AS33: 0.008250976954 | AT33: 0.008337995609 | AU33: 0.008421153785 | AV33: 0.008500702805 | AW33: 0.008576872641 | AX33: 0.008649874132 | AY33: 0.008719900936 | AZ33: 0.008787131241
B34: Diskontfaktoren j10/10-Zinskurve | C34: =(1+C33)^(-C31) -> 0.9991232547 | D34: 0.998321422 | E34: 0.9968644582 | F34: 0.9944961788 | G34: 0.9914893023 | H34: 0.987964736 | I34: 0.9834146814 | J34: 0.9778142198 | K34: 0.9714018536 | L34: 0.9651763848 | M34: 0.9593702261 | N34: 0.9535754762 | O34: 0.9476975192 | P34: 0.9416854786 | Q34: 0.9355041358 | R34: 0.9291237696 | S34: 0.9225194771 | T34: 0.9156734397 | U34: 0.9085750119 | V34: 0.9012203958 | W34: 0.8936124135 | X34: 0.8857602457 | Y34: 0.8776815006 | Z34: 0.8694004026 | AA34: 0.8609449959 | AB34: 0.8523445859 | AC34: 0.8436273992 | AD34: 0.83481883 | AE34: 0.8259413792 | AF34: 0.817014971 | AG34: 0.8080572336 | AH34: 0.7990837502 | AI34: =(1+AI33)^(-AI31) -> 0.7901082815 | AJ34: 0.7811429639 | AK34: 0.7721984866 | AL34: 0.7632842492 | AM34: 0.7544085013 | AN34: 0.7455784688 | AO34: 0.7368004643 | AP34: 0.7280799878 | AQ34: 0.7194218145 | AR34: 0.7108300746 | AS34: 0.7023409421 | AT34: 0.6939531915 | AU34: 0.6856656122 | AV34: 0.6774770079 | AW34: 0.6693861965 | AX34: 0.66139201 | AY34: 0.6534932947 | AZ34: 0.6456889103
B36: =_CPI_CH -> Verbraucherpreisinflation CHF | C36: 0.01938902543 | D36: 0.0160607351 | E36: 0.01382931558 | F36: 0.01239178236 | G36: 0.01151213816 | H36: 0.01101357461 | I36: 0.01076731044 | J36: 0.0106816851 | K36: 0.01069283265 | L36: 0.0107572253 | M36: 0.01084594585 | N36: 0.01094040407 | O36: 0.01102919408 | P36: 0.01110582328 | Q36: 0.01116709215 | R36: 0.01121195182 | S36: 0.01124070823 | T36: 0.01125447496 | U36: 0.01125480287 | V36: 0.01124343437 | W36: 0.01122214476 | X36: 0.01119264373 | Y36: 0.01115651805 | Z36: 0.01111520181 | AA36: 0.01106996503 | AB36: 0.01102191385 | AC36: 0.01097199791 | AD36: 0.01092102191 | AE36: 0.01086965908 | AF36: 0.01081846546 | AG36: 0.01076789391 | AH36: 0.01071830744 | AI36: 0.01066999162 | AJ36: 0.01062316577 | AK36: 0.01057799295 | AL36: 0.01053458894 | AM36: 0.01049302992 | AN36: 0.01045335934 | AO36: 0.01041559369 | AP36: 0.01037972762 | AQ36: 0.01034573815 | AR36: 0.01031358839 | AS36: 0.01028323061 | AT36: 0.01025460881 | AU36: 0.01022766095 | AV36: 0.01020232074 | AW36: 0.01017851912 | AX36: 0.0101561855 | AY36: 0.0101352488 | AZ36: 0.01011563822
B37: =_CHF_TrueInterest -> CHF-Kurve der realen Zinssätze | C37: =C8-C36 -> -0.006836118752 | D37: -0.006136332657 | E37: -0.005399894121 | F37: -0.004790588355 | G37: -0.004367328709 | H37: -0.004122023527 | I37: -0.00401964632 | J37: -0.004020538637 | K37: -0.004089901083 | L37: -0.00420056324 | M37: -0.004357812677 | N37: -0.004529217175 | O37: -0.004683870323 | P37: -0.004801839284 | Q37: -0.004870352779 | R37: -0.00488425014 | S37: -0.004851735802 | T37: -0.004782319801 | U37: -0.004683824607 | V37: -0.004562713817 | W37: -0.004424337591 | X37: -0.004273123252 | Y37: -0.004112727767 | Z37: -0.003946162381 | AA37: -0.003775895989 | AB37: -0.003603941687 | AC37: -0.003431929675 | AD37: -0.003261168865 | AE37: -0.003092699042 | AF37: -0.002927335046 | AG37: -0.002765704195 | AH37: -0.002608277966 | AI37: =AI8-AI36 -> -0.002455398788 | AJ37: -0.002307302667 | AK37: -0.002164138283 | AL37: -0.002025983061 | AM37: -0.001892856697 | AN37: -0.001764732495 | AO37: -0.001641546875 | AP37: -0.001523207305 | AQ37: -0.001409598913 | AR37: -0.001300589984 | AS37: -0.001196036505 | AT37: -0.001095785912 | AU37: -0.0009996801686 | AV37: -0.0009075582699 | AW37: -0.00081925828 | AX37: -0.000734618963 | AY37: -0.0006534810835 | AZ37: -0.000575688426
B38: =_CHF_TrueInterest_Diskont -> Diskontfaktoren CHF-Realzinskurve | C38: =(1+C37)^(-C31) -> 1.006883173 | D38: 1.01238656 | E38: 1.016376223 | F38: 1.019394068 | G38: 1.022125688 | H38: 1.025092913 | I38: 1.028595447 | J38: 1.032754125 | K38: 1.037573266 | L38: 1.042992624 | M38: 1.049213349 | N38: 1.055985086 | O38: 1.062934375 | P38: 1.069710095 | Q38: 1.075982044 | R38: 1.081489733 | S38: 1.086194434 | T38: 1.090120511 | U38: 1.09330119 | V38: 1.095776337 | W38: 1.097590401 | X38: 1.098790623 | Y38: 1.099425522 | Z38: 1.099543679 | AA38: 1.099192772 | AB38: 1.098418853 | AC38: 1.097265824 | AD38: 1.095775077 | AE38: 1.09398528 | AF38: 1.09193226 | AG38: 1.089648983 | AH38: 1.087165591 | AI38: =(1+AI37)^(-AI31) -> 1.08450949 | AJ38: 1.081705467 | AK38: 1.078775843 | AL38: 1.07574062 | AM38: 1.072617653 | AN38: 1.069422813 | AO38: 1.066170154 | AP38: 1.062872068 | AQ38: 1.059539444 | AR38: 1.056181803 | AS38: 1.052807442 | AT38: 1.049423553 | AU38: 1.046036341 | AV38: 1.042651133 | AW38: 1.03927247 | AX38: 1.0359042 | AY38: 1.032549555 | AZ38: 1.029211227
B40: =VLOOKUP("T.05.02",Translation,IF(Language="DE",2,IF(Language="FR",3,4)),FALSE) -> UVG: Differenz zwischen den Diskontfaktoren bezüglich risikoloser Zinskurve r(t) und den Diskontfaktoren bezüglich phi(10/10) - Zinskurve (pro Laufzeit) für ausgelenkte risikolose Zinsen r(t)
B41: =VLOOKUP("T.05.03",Translation,IF(Language="DE",2,IF(Language="FR",3,4)),FALSE) -> Quelle: Technische Beschreibung zum SST-Standardmodell Schadenversicherung, Anhang UVG
B43: CHF Zeros 1-5 Y
B44: =_down -> nach unten | C44: -0.00166966064 | D44: 0.001829790212 | E44: 0.007961532857 | F44: 0.01555380651 | G44: 0.02389935794 | H44: -0.02636275744 | I44: -0.02596633716 | J44: -0.02467044822 | K44: -0.02262990391 | L44: -0.0207632786 | M44: -0.01898480251 | N44: -0.01698670486 | O44: -0.0149810907 | P44: -0.01321047686 | Q44: -0.01192191539 | R44: -0.01131604922 | S44: -0.01142347274 | T44: -0.01170175433 | U44: -0.01208306441 | V44: -0.0125125926 | W44: -0.01294765328 | X44: -0.01335683024 | Y44: -0.0137214799 | Z44: -0.01403346965 | AA44: -0.01429199541 | AB44: -0.01450068031 | AC44: -0.01466492816 | AD44: -0.01478989181 | AE44: -0.01488014079 | AF44: -0.01493972983 | AG44: -0.01497225888 | AH44: -0.01498092556 | AI44: -0.01496857126 | AJ44: -0.01493772162 | AK44: -0.01489062227 | AL44: -0.01482927024 | AM44: -0.01475544177 | AN44: -0.01467071693 | AO44: -0.01457650127 | AP44: -0.01447404521 | AQ44: -0.01436446102 | AR44: -0.01424873805 | AS44: -0.01415988975 | AT44: -0.01409449221 | AU44: -0.01404949744 | AV44: -0.01402219315 | AW44: -0.01401016684 | AX44: -0.01401127371 | AY44: -0.01402360799 | AZ44: -0.01404547731
B45: =_up -> nach oben | C45: -0.02117874594 | D45: -0.03701015044 | E45: -0.05027413025 | F45: -0.06230143074 | G45: -0.07395403995 | H45: -0.03028771467 | I45: -0.03280277123 | J45: -0.03437759373 | K45: -0.03516141546 | L45: -0.03608440108 | M45: -0.0370675274 | N45: -0.0377966577 | O45: -0.03829425256 | P45: -0.03861734765 | Q45: -0.03883230376 | R45: -0.03896449632 | S45: -0.03887539228 | T45: -0.03894995258 | U45: -0.03912003083 | V45: -0.03933070366 | W45: -0.03953936943 | X45: -0.03971488511 | Y45: -0.03983913111 | Z45: -0.03990469567 | AA45: -0.03991160924 | AB45: -0.03986436701 | AC45: -0.03976921274 | AD45: -0.03963205496 | AE45: -0.03945813275 | AF45: -0.03925209375 | AG45: -0.03901806248 | AH45: -0.03875970028 | AI45: -0.03848025801 | AJ45: -0.03818262249 | AK45: -0.03786935741 | AL45: -0.03754273951 | AM45: -0.03720479054 | AN45: -0.03685730555 | AO45: -0.03650187799 | AP45: -0.03613992191 | AQ45: -0.03577269169 | AR45: -0.0354012996 | AS45: -0.03505983551 | AT45: -0.03474483907 | AU45: -0.03445322624 | AV45: -0.03418224915 | AW45: -0.03392946011 | AX45: -0.03369267957 | AY45: -0.03346996744 | AZ45: -0.0332595974
B47: CHF Zeros 6-19 Y
B48: =_down -> nach unten | C48: -0.01152053942 | D48: -0.01887712563 | E48: -0.02482500588 | F48: -0.03070899459 | G48: -0.03740937378 | H48: 0.01398202202 | I48: 0.01531063807 | J48: 0.0165741667 | K48: 0.01763311266 | L48: 0.01752124754 | M48: 0.01632394375 | N48: 0.01746481061 | O48: 0.02103433607 | P48: 0.02706506853 | Q48: 0.03555190603 | R48: 0.04650490378 | S48: 0.0600935142 | T48: 0.07590364796 | U48: 0.09398178148 | V48: -0.07910825182 | W48: -0.06537011276 | X48: -0.05292616322 | Y48: -0.04178979471 | Z48: -0.03198047216 | AA48: -0.02352125301 | AB48: -0.0164368682 | AC48: -0.01075225491 | AD48: -0.006491826126 | AE48: -0.003680492732 | AF48: -0.002345073461 | AG48: -0.002515690096 | AH48: -0.002662687093 | AI48: -0.002788693709 | AJ48: -0.002896048512 | AK48: -0.002986832334 | AL48: -0.003062897315 | AM48: -0.003125892532 | AN48: -0.003177286639 | AO48: -0.003218387905 | AP48: -0.003250361941 | AQ48: -0.003274247422 | AR48: -0.003290970025 | AS48: -0.003332985552 | AT48: -0.003396888994 | AU48: -0.003479651019 | AV48: -0.003578577778 | AW48: -0.003691274995 | AX48: -0.003815615874 | AY48: -0.003949712432 | AZ48: -0.004091889879
B49: =_up -> nach oben | C49: -0.01152053942 | D49: -0.01688208317 | E49: -0.01865344741 | F49: -0.0180068465 | G49: -0.01565549833 | H49: -0.06700498634 | I49: -0.06950142327 | J49: -0.0700997419 | K49: -0.0690136879 | L49: -0.06718186844 | M49: -0.06458146983 | N49: -0.06356739943 | O49: -0.06433799528 | P49: -0.06712176055 | Q49: -0.07215506244 | R49: -0.07964111505 | S49: -0.08965148329 | T49: -0.1017402112 | U49: -0.1159163733 | V49: 0.02479598096 | W49: 0.01186922228 | X49: -0.0001418783075 | Y49: -0.01111164416 | Z49: -0.02092959932 | AA49: -0.02949876638 | AB49: -0.03673401857 | AC49: -0.04256050521 | AD49: -0.0469125702 | AE49: -0.04973433194 | AF49: -0.05098064691 | AG49: -0.050618024 | AH49: -0.05023084411 | AI49: -0.04982255566 | AJ49: -0.04939621968 | AK49: -0.0489545533 | AL49: -0.04849996822 | AM49: -0.04803460459 | AN49: -0.04756036121 | AO49: -0.04707892214 | AP49: -0.04659178037 | AQ49: -0.04610025887 | AR49: -0.04560552916 | AS49: -0.04514220042 | AT49: -0.04470679471 | AU49: -0.0442962106 | AV49: -0.04390768305 | AW49: -0.04353874742 | AX49: -0.04318720737 | AY49: -0.04285110624 | AZ49: -0.04252870136
B51: CHF Zeros 20-50 Y
B52: =_down -> nach unten | C52: -0.01152053942 | D52: -0.01787860768 | E52: -0.02173230637 | F52: -0.02433184152 | G52: -0.0264602105 | H52: -0.02833472814 | I52: -0.02939884126 | J52: -0.02954086789 | K52: -0.02891287103 | L52: -0.02843927928 | M52: -0.02803773691 | N52: -0.02928751025 | O52: -0.03238031343 | P52: -0.0375502386 | Q52: -0.04504909919 | R52: -0.05509680309 | S52: -0.06775929897 | T52: -0.08308904327 | U52: -0.1011709551 | V52: 0.07131584064 | W52: 0.05618025392 | X52: 0.04182842264 | Y52: 0.02844428587 | Z52: 0.01619965568 | AA52: 0.005255554164 | AB52: -0.004236414971 | AC52: -0.01213268591 | AD52: -0.01829688291 | AE52: -0.02260106078 | AF52: -0.02492750929 | AG52: -0.02517058528 | AH52: -0.02538274497 | AI52: -0.02556708529 | AJ52: -0.02572638885 | AK52: -0.02586315698 | AL52: -0.02597963907 | AM52: -0.02607785861 | AN52: -0.0261596365 | AO52: -0.02622661176 | AP52: -0.0262802601 | AQ52: -0.02632191047 | AR52: -0.02635275993 | AS52: -0.02642390948 | AT52: -0.0265312149 | AU52: -0.02667093673 | AV52: -0.02683970082 | AW52: -0.02703446268 | AX52: -0.02725247539 | AY52: -0.02749126056 | AZ52: -0.02774858219
B53: =_up -> nach oben | C53: -0.01152053942 | D53: -0.01787860768 | E53: -0.02173230637 | F53: -0.02433184152 | G53: -0.0264602105 | H53: -0.02833472814 | I53: -0.02939884126 | J53: -0.02954086789 | K53: -0.02891287103 | L53: -0.02843927928 | M53: -0.02803773691 | N53: -0.02549583996 | O53: -0.02088725138 | P53: -0.01433613054 | Q53: -0.005993356594 | R53: 0.004012662046 | S53: 0.01569833363 | T53: 0.02908592805 | U53: 0.0441603275 | V53: -0.09614155236 | W53: -0.0834412119 | X53: -0.07204496699 | Y53: -0.06193040649 | Z53: -0.05308011061 | AA53: -0.0454794274 | AB53: -0.03911481779 | AC53: -0.03397264831 | AD53: -0.03003862719 | AE53: -0.02729862866 | AF53: -0.02573976614 | AG53: -0.02535138997 | AH53: -0.02495068046 | AI53: -0.02454035569 | AJ53: -0.02412278431 | AK53: -0.02370002811 | AL53: -0.02327387948 | AM53: -0.02284589406 | AN53: -0.02241741957 | AO53: -0.02198962095 | AP53: -0.02156350257 | AQ53: -0.02113992767 | AR53: -0.02071963552 | AS53: -0.02032458806 | AT53: -0.01995192904 | AU53: -0.01959913991 | AV53: -0.01926400057 | AW53: -0.01894455457 | AX53: -0.0186390784 | AY53: -0.01834605427 | AZ53: -0.0180641461
B55: =_ExchangeRates -> Wechselkurse per 31.12.2023
B57: =_Currency -> Währung | C57: =_Currency & " / CHF" -> Währung / CHF
B58: CHF | C58: 1
B59: EUR | C59: 0.92887
B60: USD | C60: 0.8414
B61: GBP | C61: 1.0716
B62: JPY | C62: 0.005965
B65: =VLOOKUP("T.05.04",Translation,IF(Language="DE",2,IF(Language="FR",3,4)),FALSE) -> Kapitalkosten (CoC, über der risikofreien Rate für ein Jahr) zur Berechnung des Mindestbetrags
B67: CoC | C67: 0.06
B70: =_ConvidenceLevel -> Konfidenzniveau
B72: Alpha | C72: 0.01
B73: =_ConvidenceLevel -> Konfidenzniveau | C73: =1-C72 -> 0.99

Sheet NL_LOB
A1: 6 | B1: =_NL_LOB -> Schadenversicherung: SST-Standardversicherungsbranchen
A4: =_number -> Nr. | B4: =_NL_LOB -> Schadenversicherung: SST-Standardversicherungsbranchen | C4: Erläuterung | D4: Explication | E4: Description
A6: 1 | B6: =_MTPL -> MFH | C6: Motorfahrzeughaftpflichtversicherung | D6: Assurance responsabilité civile véhicules à moteur | E6: Motor vehicle liability insurance
A7: 2 | B7: =_MOD -> MFK | C7: Motorfahrzeugkaskoversicherung | D7: Assurance casco véhicules à moteur | E7: Fully comprehensive motor vehicle insurance
A8: 3 | B8: =_Fire -> Sach | C8: Feuerversicherung | D8: Assurance incendie | E8: Fire insurance
C9: Elementarschadenversicherung | D9: Assurance des dommages dus à des événements naturels | E9: Insurance against natural hazards
C10: Bauwesenversicherung | D10: Assurance construction | E10: Contractors' all risk insurance
C11: Unternehmenssachversicherung | D11: Assurance de dommages aux biens des entreprises | E11: Corporate property insurance
C12: Engineering, Maschinenversicherung | D12: Engineering, assurance machines | E12: Engineering, machine insurance
C13: Diebstahlversicherung | D13: Assurance contre le vol | E13: Theft insurance
C14: Hausratversicherung (falls trennbar von Privathaftpflicht) | D14: Assurance ménage (si séparable de la responsabilité civile privée) | E14: Household contents insurance (if distinguishable from personal liability)
C15: Übrige Versicherungen gegen Sachschäden | D15: Autres assurances contre les dommages aux biens | E15: Other insurance types against property damage
A16: 4 | B16: =_GL -> Haftpflicht | C16: Gebäudehaftpflichtversicherung | D16: Assurance responsabilité civile des bâtiments | E16: Building liability insurance
C17: Privathaftpflichtversicherung | D17: Assurance responsabilité civile privée | E17: Personal liability insurance
C18: Unternehmenshaftpflichtverischerung | D18: Assurance responsabilité civile entreprise | E18: Company liability insurance
C19: Bauherrenhaftpflichtversicherung | D19: Assurance responsabilité civile du maître d’œuvre | E19: Builder's risk insurance
C20: Allgemeine Haftpflichtversicherungen | D20: Assurances responsabilité civile générales | E20: General liability insurance
A21: 5 | B21: =_AccMandatory -> UVG | C21: Obligatorische Berufsunfallversicherung | D21: Assurance accidents professionnels obligatoire | E21: Obligatory occupational accident insurance
C22: Obligatorische Nichtberufsunfallversicherung | D22: Assurance accidents non professionnels obligatoire | E22: Obligatory non-occupational accident insurance
C23: Freiwillige Versicherung nach UVG | D23: Assurance facultative selon la LAA | E23: Voluntary accident (UVG) cover
A24: 6 | B24: =_AccOptional -> Unfall ohne UVG | C24: Einzelunfallversicherung | D24: Assurance accidents individuelle | E24: Individual accident insurance
C25: UVG Zusatzversicherung | D25: Assurance complémentaire à la LAA | E25: Supplementary accident insurance (UVG)
C26: Motorfahrzeuginsassen-Unfallversicherung | D26: Assurance-accidents des occupants | E26: Motor vehicle passenger accident insurance
C27: Übrige Kollektivunfallversicherungen | D27: Autres assurances collectives contre les accidents | E27: Other group accident insurance
A28: 7 | B28: =_Health_Collective -> Kollektivtaggeld | C28: Kollektiv Taggeldversicherung | D28: Assurance collective d’indemnités journalières | E28: Group daily benefits insurance
A29: 8 | B29: =_Health_Individual -> Einzelkranken | C29: Übrige Krankenversicherung | D29: Autres assurances maladie | E29: Other health insurance
A30: 9 | B30: =_Marine -> Transport | C30: Transportgüterversicherung | D30: Assurance transports | E30: Transport insurance
C31: Schienenfahrzeugkaskoversicherung | D31: Assurance casco des véhicules ferroviaires | E31: Fully comprehensive railway vehicle insurance
C32: Wasserfahrzeugkaskoversicherung | D32: Assurance casco des embarcations | E32: Fully comprehensive watercraft insurance
C33: Wasserfahrzeughaftpflichtversicherung | D33: Assurance responsabilité civile des embarcations | E33: Watercraft liability insurance
A34: 10 | B34: =_Aviation -> Luftfahrt | C34: Luftfahrzeugkaskoversicherung | D34: Assurance casco des aéronefs | E34: Fully comprehensive aircraft insurance
C35: Luftfahrzeughaftpflichtversicherung | D35: Assurance responsabilité civile des aéronefs | E35: Aircraft liability insurance
A36: 11 | B36: =_CreditSurety -> Finanz und Kaution | C36: Kreditversicherung | D36: Assurance de crédit | E36: Credit insurance
C37: Kautionsversicherung | D37: Assurance de cautionnement | E37: Surety insurance
C38: Baugarantieversicherung | D38: Assurance de garantie de l’entrepreneur | E38: Building guarantee insurance
C39: Versicherungen gegen finanzielle Verluste | D39: Assurance contre les pertes pécuniaires | E39: Insurance against financial losses
A40: 12 | B40: =_Legal -> Rechtsschutz | C40: Rechtsschutzversicherung | D40: Assurance de protection juridique | E40: Legal expenses insurance
A41: 13 | B41: =_Others -> Andere | C41: Reise-, Touristen-, Verkehrsserviceversicherung | D41: Assurance touristique et de voyage, assurance de service de transport | E41: Travel, tourist, roadside assistance insurance
C42: Epidemieversicherung, etc. | D42: Assurance contre les épidémies, etc. | E42: Epidemic insurance, etc.

Sheet NL_SST_Default_Payment_Pattern
A1: 7 | B1: =_NL_SST_Default_Runoff_Pattern -> Schadenversicherung: Default-Zahlungsmuster
B3: =VLOOKUP("T.07.01",Translation,IF(Language="DE",2,IF(Language="FR",3,4)),FALSE) -> Für ausgewählte SST-Standardversicherungsbranchen werden Default-Auszahlungsmuster zur Verfügung gestellt.
B4: =VLOOKUP("T.07.02",Translation,IF(Language="DE",2,IF(Language="FR",3,4)),FALSE) -> Deren Verwendung ist zulässig im Fall, dass die unternehmenseigene Datenbasis zur Berechnung von Abwicklungsmustern nicht ausreichend ist.
A6: =_IncPP & " " & _ForOneAccYr_ex5b -> Inkrementelle Zahlungsmuster für ein Schadenjahr (ausser 5b)
C9: =_PV_Factor -> Barwertfaktor | D9: Duration [yr] | F9: =_DevYr -> Abwicklungsjahr
A10: =_number -> Nr. | B10: =_NL_LOB_default -> SST-Standardversicherungsbranche | C10: =_payments_in & "CHF" -> falls Zahlungen in CHF | F10: 0 | G10: 1 | H10: 2 | I10: 3 | J10: 4 | K10: 5 | L10: 6 | M10: 7 | N10: 8 | O10: 9 | P10: 10 | Q10: 11 | R10: 12 | S10: 13 | T10: 14 | U10: 15 | V10: 16 | W10: 17 | X10: 18 | Y10: 19 | Z10: 20 | AA10: 21 | AB10: 22 | AC10: 23 | AD10: 24 | AE10: 25 | AF10: 26 | AG10: 27 | AH10: 28 | AI10: 29 | AJ10: 30 | AK10: 31 | AL10: 32 | AM10: 33 | AN10: 34 | AO10: 35 | AP10: 36 | AQ10: 37 | AR10: 38 | AS10: 39 | AT10: 40 | AU10: 41 | AV10: 42 | AW10: 43 | AX10: 44 | AY10: 45 | AZ10: 46 | BA10: 47 | BB10: 48 | BC10: 49
A12: 1 | B12: =_MTPL -> MFH | C12: =SUMPRODUCT($F12:$BC12,Inputparam!$C$17:$AZ$17) -> 0.9651490315 | D12: =SUMPRODUCT(F12:BC12,$F$10:$BC$10+1) -> 4.6255 | F12: 0.4535 | G12: 0.2092 | H12: 0.0568 | I12: 0.0349 | J12: 0.0266 | K12: 0.0231 | L12: 0.0218 | M12: 0.018 | N12: 0.0159 | O12: 0.0133 | P12: 0.0129 | Q12: 0.0111 | R12: 0.0077 | S12: 0.008 | T12: 0.0074 | U12: 0.0067 | V12: 0.0061 | W12: 0.0056 | X12: 0.0052 | Y12: 0.0047 | Z12: 0.0044 | AA12: 0.004 | AB12: 0.0037 | AC12: 0.0035 | AD12: 0.0032 | AE12: 0.003 | AF12: 0.0028 | AG12: 0.0026 | AH12: 0.0025 | AI12: 0.0023 | AJ12: 0.0022 | AK12: 0.0021 | AL12: 0.0019 | AM12: 0.0018 | AN12: 0.0017 | AO12: 0.0016 | AP12: 0.0015 | AQ12: 0.0015 | AR12: 0.0014 | AS12: 0.0013 | AT12: 0.0013 | AU12: 0.0012
A13: 2 | B13: =_MOD -> MFK | C13: =SUMPRODUCT($F13:$BC13,Inputparam!$C$17:$AZ$17) -> 0.9864252606 | D13: =SUMPRODUCT(F13:BC13,$F$10:$BC$10+1) -> 1.1657 | F13: 0.839 | G13: 0.1573 | H13: 0.0031 | I13: 0.0003 | J13: 0.0002 | K13: 0.0001
A14: 3 | B14: =_Fire -> Sach | C14: =SUMPRODUCT($F14:$BC14,Inputparam!$C$17:$AZ$17) -> 0.9841918002 | D14: 1.50391 | F14: 0.59968 | G14: 0.33211 | H14: 0.04899 | I14: 0.01209 | J14: 0.00378 | K14: 0.00127 | L14: 0.00059 | M14: 0.0004 | N14: 0.00047 | O14: 0.00041 | P14: 0.00013 | Q14: 3e-05 | R14: 2e-05 | S14: 1e-05 | T14: 1e-05 | U14: 1e-05
A15: 4 | B15: =_GL -> Haftpflicht | C15: =SUMPRODUCT($F15:$BC15,Inputparam!$C$17:$AZ$17) -> 0.9692151535 | D15: 4.08714 | F15: 0.29263 | G15: 0.26364 | H15: 0.10904 | I15: 0.06717 | J15: 0.0504 | K15: 0.0378 | L15: 0.03699 | M15: 0.02404 | N15: 0.01571 | O15: 0.01848 | P15: 0.01405 | Q15: 0.01073 | R15: 0.00817 | S15: 0.00748 | T15: 0.00626 | U15: 0.00527 | V15: 0.00446 | W15: 0.00379 | X15: 0.00323 | Y15: 0.00277 | Z15: 0.00238 | AA15: 0.00205 | AB15: 0.00178 | AC15: 0.00154 | AD15: 0.00134 | AE15: 0.00117 | AF15: 0.00103 | AG15: 0.0009 | AH15: 0.00079 | AI15: 0.0007 | AJ15: 0.00062 | AK15: 0.00055 | AL15: 0.00048 | AM15: 0.00043 | AN15: 0.00038 | AO15: 0.00034 | AP15: 0.0003 | AQ15: 0.00027 | AR15: 0.00024 | AS15: 0.00022 | AT15: 0.0002 | AU15: 0.00018
A16: 5a | B16: =_AccMandatory_noAnnuities -> UVG, nicht verrentete Fälle | C16: =SUMPRODUCT($F16:$BC16,Inputparam!$C$17:$AZ$17) -> 0.9773881407 | D16: 2.6658 | F16: 0.48727 | G16: 0.27562 | H16: 0.06077 | I16: 0.03786 | J16: 0.03331 | K16: 0.02416 | L16: 0.02013 | M16: 0.01239 | N16: 0.0089 | O16: 0.00829 | P16: 0.00703 | Q16: 0.00324 | R16: 0.0027 | S16: 0.00244 | T16: 0.00176 | U16: 0.00146 | V16: 0.00122 | W16: 0.00104 | X16: 0.00091 | Y16: 0.00079 | Z16: 0.0007 | AA16: 0.00063 | AB16: 0.00057 | AC16: 0.0005 | AD16: 0.00046 | AE16: 0.00043 | AF16: 0.0004 | AG16: 0.00037 | AH16: 0.00035 | AI16: 0.00033 | AJ16: 0.00031 | AK16: 0.00029 | AL16: 0.00028 | AM16: 0.00026 | AN16: 0.00025 | AO16: 0.00024 | AP16: 0.00023 | AQ16: 0.00022 | AR16: 0.00021 | AS16: 0.0002 | AT16: 0.00019 | AU16: 0.00018 | AV16: 0.00018 | AW16: 0.00017 | AX16: 0.00016 | AY16: 0.00016 | AZ16: 0.00015 | BA16: 0.00015 | BB16: 0.00014
A17: 5a_1 | B17: =_AccMandatory & " " & _KurzFrist -> UVG Kurzfristleistungen | C17: =SUMPRODUCT($F17:$BC17,Inputparam!$C$17:$AZ$17) -> 0.9828434406 | D17: 1.74826 | F17: 0.57739 | G17: 0.3124 | H17: 0.04925 | I17: 0.0209 | J17: 0.01158 | K17: 0.00683 | L17: 0.00493 | M17: 0.0038 | N17: 0.00276 | O17: 0.00263 | P17: 0.00255 | Q17: 0.0011 | R17: 0.00112 | S17: 0.00103 | T17: 0.00051 | U17: 0.00037 | V17: 0.00026 | W17: 0.00019 | X17: 0.00014 | Y17: 0.0001 | Z17: 7e-05 | AA17: 5e-05 | AB17: 4e-05
A18: 5a_2 | B18: =_AccMandatory & " " & _LangFrist -> UVG Langfristleistungen | C18: =SUMPRODUCT($F18:$BC18,Inputparam!$C$17:$AZ$17) -> 0.9524990275 | D18: 6.851399 | F18: 0.076301 | G18: 0.107911 | H18: 0.113328 | I18: 0.115176 | J18: 0.132398 | K18: 0.103195 | L18: 0.089432 | M18: 0.051589 | N18: 0.036876 | O18: 0.034086 | P18: 0.027451 | Q18: 0.012976 | R18: 0.009902 | S18: 0.008873 | T18: 0.007479 | U18: 0.006422 | V18: 0.005596 | W18: 0.004937 | X18: 0.004399 | Y18: 0.003955 | Z18: 0.003582 | AA18: 0.003265 | AB18: 0.002993 | AC18: 0.002758 | AD18: 0.002553 | AE18: 0.002372 | AF18: 0.002212 | AG18: 0.00207 | AH18: 0.001943 | AI18: 0.001828 | AJ18: 0.001724 | AK18: 0.001631 | AL18: 0.001545 | AM18: 0.001467 | AN18: 0.001395 | AO18: 0.00133 | AP18: 0.001269 | AQ18: 0.001213 | AR18: 0.001161 | AS18: 0.001112 | AT18: 0.001067 | AU18: 0.001025 | AV18: 0.000986 | AW18: 0.000949 | AX18: 0.000915 | AY18: 0.000882 | AZ18: 0.000852 | BA18: 0.000823 | BB18: 0.000796
A19: 5b | B19: =_AccMandatory_Annuities -> UVG-Renten | C19: =SUMPRODUCT($F19:$BC19,Inputparam!$C$17:$AZ$17) -> 0.8915527483 | D19: 16.116 | F19: 0.042 | G19: 0.041 | H19: 0.04 | I19: 0.039 | J19: 0.039 | K19: 0.038 | L19: 0.037 | M19: 0.036 | N19: 0.035 | O19: 0.034 | P19: 0.033 | Q19: 0.032 | R19: 0.032 | S19: 0.031 | T19: 0.03 | U19: 0.029 | V19: 0.028 | W19: 0.027 | X19: 0.026 | Y19: 0.025 | Z19: 0.024 | AA19: 0.024 | AB19: 0.023 | AC19: 0.022 | AD19: 0.021 | AE19: 0.02 | AF19: 0.019 | AG19: 0.018 | AH19: 0.016 | AI19: 0.015 | AJ19: 0.014 | AK19: 0.013 | AL19: 0.012 | AM19: 0.011 | AN19: 0.01 | AO19: 0.009 | AP19: 0.008 | AQ19: 0.007 | AR19: 0.007 | AS19: 0.006 | AT19: 0.005 | AU19: 0.005 | AV19: 0.004 | AW19: 0.003 | AX19: 0.002 | AY19: 0.002 | AZ19: 0.002 | BA19: 0.002 | BB19: 0.001 | BC19: 0.001
A20: 6 | B20: =_AccOptional -> Unfall ohne UVG | C20: =SUMPRODUCT($F20:$BC20,Inputparam!$C$17:$AZ$17) -> 0.9801666379 | D20: 2.20999 | F20: 0.46574 | G20: 0.31448 | H20: 0.08318 | I20: 0.04731 | J20: 0.02907 | K20: 0.01841 | L20: 0.01079 | M20: 0.00798 | N20: 0.00626 | O20: 0.00411 | P20: 0.00321 | Q20: 0.00195 | R20: 0.00184 | S20: 0.00125 | T20: 0.00095 | U20: 0.00073 | V20: 0.00056 | W20: 0.00044 | X20: 0.00034 | Y20: 0.00027 | Z20: 0.00022 | AA20: 0.00017 | AB20: 0.00014 | AC20: 0.00011 | AD20: 9e-05 | AE20: 7e-05 | AF20: 6e-05 | AG20: 5e-05 | AH20: 4e-05 | AI20: 3e-05 | AJ20: 3e-05 | AK20: 2e-05 | AL20: 2e-05 | AM20: 2e-05 | AN20: 1e-05 | AO20: 1e-05 | AP20: 1e-05 | AQ20: 1e-05 | AR20: 1e-05 | AS20: 1e-05
A21: 7 | B21: =_Health_Collective -> Kollektivtaggeld | C21: =SUMPRODUCT($F21:$BC21,Inputparam!$C$17:$AZ$17) -> 0.9830745751 | D21: 1.658 | F21: 0.441 | G21: 0.46 | H21: 0.099
A22: 8 | B22: =_Health_Individual -> Einzelkranken | C22: =SUMPRODUCT($F22:$BC22,Inputparam!$C$17:$AZ$17) -> 0.9834420204 | D22: 1.61 | F22: 0.5 | G22: 0.4 | H22: 0.09 | I22: 0.01
A23: 9 | B23: =_Marine -> Transport | C23: =SUMPRODUCT($F23:$BC23,Inputparam!$C$17:$AZ$17) -> 0.9827056763 | D23: 1.7341 | F23: 0.456 | G23: 0.4295 | H23: 0.0835 | I23: 0.0141 | J23: 0.0065 | K23: 0.0059 | L23: 0.0009 | M23: 0.0007 | N23: 0.0006 | O23: 0.0006 | P23: 0.0005 | Q23: 0.0005 | R23: 0.0004 | S23: 0.0002 | T23: 0.0001
A24: 10 | B24: =_Aviation -> Luftfahrt | C24: =SUMPRODUCT($F24:$BC24,Inputparam!$C$17:$AZ$17) -> 0.9813316281 | D24: =SUMPRODUCT(F24:BC24,$F$10:$BC$10+1) -> 2.0379 | F24: 0.5875 | G24: 0.2346 | H24: 0.0443 | I24: 0.0316 | J24: 0.0265 | K24: 0.0238 | L24: 0.0176 | M24: 0.0065 | N24: 0.0054 | O24: 0.0214 | P24: 0.0008
A25: 11 | B25: =_CreditSurety -> Finanz und Kaution | C25: =SUMPRODUCT($F25:$BC25,Inputparam!$C$17:$AZ$17) -> 0.9799764352 | D25: 2.1759 | F25: 0.2515 | G25: 0.4922 | H25: 0.1994 | I25: 0.0305 | J25: 0.0052 | K25: 0.004 | L25: 0.0033 | M25: 0.0028 | N25: 0.0024 | O25: 0.0021 | P25: 0.0019 | Q25: 0.0017 | R25: 0.0016 | S25: 0.0014
A26: 12 | B26: =_Legal -> Rechtsschutz | C26: =SUMPRODUCT($F26:$BC26,Inputparam!$C$17:$AZ$17) -> 0.9775687813 | D26: 2.6685 | F26: 0.3606 | G26: 0.3012 | H26: 0.1317 | I26: 0.0689 | J26: 0.0422 | K26: 0.0265 | L26: 0.0174 | M26: 0.0131 | N26: 0.0095 | O26: 0.0077 | P26: 0.0054 | Q26: 0.005 | R26: 0.0029 | S26: 0.0031 | T26: 0.0035 | U26: 0.0005 | V26: 0.0003 | W26: 0.0002 | X26: 0.0001 | Y26: 0.0001 | Z26: 0.0001 | AA26: 0
A27: 13 | B27: =_Others -> Andere | C27: =SUMPRODUCT($F27:$BC27,Inputparam!$C$17:$AZ$17) -> 0.9865457324 | D27: =SUMPRODUCT(F27:BC27,$F$10:$BC$10+1) -> 1.1499 | F27: 0.8584 | G27: 0.1366 | H27: 0.0027 | I27: 0.0014 | J27: 0.0008 | K27: 0.0001

Sheet NL_Default_Parameter
A1: 8 | B1: =_NL_Default_Parameter -> Schadenversicherung: Default-Parameter
B3: ="PY - " & _Claims -> PY - Schäden
B5: =_risk -> Risiko | C5: =_number -> Nr. | D5: =_NL_LOB_default -> SST-Standardversicherungsbranche | E5: =_CV & CHAR(10) & _Model_risk -> Variationskoeffizient Modellrisiko | F5: =_CV & CHAR(10) & _Parameter_risk -> Variationskoeffizient Parameterrisiko | G5: =_CV & CHAR(10) & _Model_risk & ": " & _CautionMonoliner -> Variationskoeffizient Modellrisiko: Mietkautionsmonoliner | H5: =_CV & CHAR(10) & _Parameter_risk & ": " & _CautionMonoliner -> Variationskoeffizient Parameterrisiko: Mietkautionsmonoliner
B6: PY | C6: 1 | D6: =_MTPL -> MFH | E6: 0.028 | F6: 0.035
B7: PY | C7: 2 | D7: =_MOD -> MFK | E7: 0.036 | F7: 0.045
B8: PY | C8: 3 | D8: =_Fire -> Sach | E8: 0.028 | F8: 0.035
B9: PY | C9: 4 | D9: =_GL -> Haftpflicht | E9: 0.036 | F9: 0.045
B10: PY | C10: 5a | D10: =_AccMandatory_noAnnuities -> UVG, nicht verrentete Fälle | E10: 0.04 | F10: 0.05
B11: PY | C11: 5b | D11: =_AccMandatory_Annuities -> UVG-Renten | E11: 0.016 | F11: 0.02
B12: PY | C12: 6 | D12: =_AccOptional -> Unfall ohne UVG | E12: 0.04 | F12: 0.05
B13: PY | C13: 7 | D13: =_Health_Collective -> Kollektivtaggeld | E13: 0.024 | F13: 0.03
B14: PY | C14: 8 | D14: =_Health_Individual -> Einzelkranken | E14: 0.04 | F14: 0.05
B15: PY | C15: 9 | D15: =_Marine -> Transport | E15: 0.052 | F15: 0.065
B16: PY | C16: 10 | D16: =_Aviation -> Luftfahrt | E16: 0.04 | F16: 0.05
B17: PY | C17: 11 | D17: =_CreditSurety -> Finanz und Kaution | E17: 0.08 | F17: 0.1 | G17: 0.04 | H17: 0.05
B18: PY | C18: 12 | D18: =_Legal -> Rechtsschutz | E18: 0.028 | F18: 0.035
B19: PY | C19: 13 | D19: =_Others -> Andere | E19: 0.04 | F19: 0.05
B21: ="CY - " &_Attritional -> CY - Normalschäden
B23: =_risk -> Risiko | C23: =_number -> Nr. | D23: =_NL_LOB_default -> SST-Standardversicherungsbranche | E23: =_CV & CHAR(10) & _Parameter_risk & " " & _for_single_risks -> Variationskoeffizient Parameterrisiko für Einzelschäden kleiner als
E24: ="CHF 0.5" & MID(_million,3,LEN(_million)-2) -> CHF 0.5 Mio. | F24: ="CHF 1" & MID(_million,3,LEN(_million)-2) -> CHF 1 Mio. | G24: ="CHF 2" & MID(_million,3,LEN(_million)-2) -> CHF 2 Mio. | H24: ="CHF 5" & MID(_million,3,LEN(_million)-2) -> CHF 5 Mio.
B25: CY | C25: 1 | D25: =_MTPL -> MFH | E25: 0.067 | F25: 0.072 | G25: 0.082 | H25: 0.084
B26: CY | C26: 2 | D26: =_MOD -> MFK | E26: 0.07 | F26: 0.07 | G26: 0.07 | H26: 0.07
B27: CY | C27: 3a | D27: =_Fire_no_Elementar -> Sach ohne Elementarschadenpool | E27: 0.069 | F27: 0.07 | G27: 0.071 | H27: 0.073
B28: CY | C28: 4 | D28: =_GL -> Haftpflicht | E28: 0.08 | F28: 0.08 | G28: 0.08 | H28: 0.08
B29: CY | C29: 5a | D29: =_AccMandatory -> UVG | E29: 0.08 | F29: 0.08 | G29: 0.08 | H29: 0.08
B30: CY | C30: 6 | D30: =_AccOptional -> Unfall ohne UVG | E30: 0.06 | F30: 0.06 | G30: 0.06 | H30: 0.06
B31: CY | C31: 7 | D31: =_Health_Collective -> Kollektivtaggeld | E31: 0.078 | F31: 0.078 | G31: 0.078 | H31: 0.078
B32: CY | C32: 8 | D32: =_Health_Individual -> Einzelkranken | E32: 0.16 | F32: 0.16 | G32: 0.16 | H32: 0.16
B33: CY | C33: 9 | D33: =_Marine -> Transport | E33: 0.08 | F33: 0.08 | G33: 0.08 | H33: 0.09
B34: CY | C34: 10 | D34: =_Aviation -> Luftfahrt | E34: 0.12 | F34: 0.12 | G34: 0.12 | H34: 0.12
B35: CY | C35: 11 | D35: =_CreditSurety -> Finanz und Kaution | E35: 0.1 | F35: 0.1 | G35: 0.1 | H35: 0.1
B36: CY | C36: 12 | D36: =_Legal -> Rechtsschutz | E36: 0.075 | F36: 0.075 | G36: 0.075 | H36: 0.075
B37: CY | C37: 13 | D37: =_Others -> Andere | E37: 0.09 | F37: 0.09 | G37: 0.09 | H37: 0.09
B39: =_risk -> Risiko | C39: =_number -> Nr. | D39: =_NL_LOB_default -> SST-Standardversicherungsbranche | E39: =_CV & CHAR(10) & _Estimation_Risk & " " & _for_single_risks -> Variationskoeffizient Zufallsrisiko für Einzelschäden kleiner als | I39: =_CV & CHAR(10) & _Estimation_Risk -> Variationskoeffizient Zufallsrisiko
E40: ="CHF 0.5" & MID(_million,3,LEN(_million)-2) -> CHF 0.5 Mio. | F40: ="CHF 1" & MID(_million,3,LEN(_million)-2) -> CHF 1 Mio. | G40: ="CHF 2" & MID(_million,3,LEN(_million)-2) -> CHF 2 Mio. | H40: ="CHF 5" & MID(_million,3,LEN(_million)-2) -> CHF 5 Mio. | I40: =_CautionMonoliner -> Mietkautionsmonoliner
B41: CY | C41: 1 | D41: =_MTPL -> MFH | E41: 3.5 | F41: 5 | G41: 6.5 | H41: 8
B42: CY | C42: 2 | D42: =_MOD -> MFK | E42: 2.5 | F42: 2.5 | G42: 2.5 | H42: 2.5
B43: CY | C43: 3a | D43: =_Fire_no_Elementar -> Sach ohne Elementarschadenpool | E43: 4 | F43: 4.5 | G43: 6 | H43: 7.5
B44: CY | C44: 4 | D44: =_GL -> Haftpflicht | E44: 5 | F44: 6.5 | G44: 8 | H44: 10
B45: CY | C45: 5a | D45: =_AccMandatory -> UVG | E45: 4 | F45: 6 | G45: 7 | H45: 9.5
B46: CY | C46: 6 | D46: =_AccOptional -> Unfall ohne UVG | E46: 3.5 | F46: 4.5 | G46: 4.8 | H46: 5.5
B47: CY | C47: 7 | D47: =_Health_Collective -> Kollektivtaggeld | E47: 2 | F47: 2 | G47: 2 | H47: 2
B48: CY | C48: 8 | D48: =_Health_Individual -> Einzelkranken | E48: 2.3 | F48: 2.3 | G48: 2.3 | H48: 2.3
B49: CY | C49: 9 | D49: =_Marine -> Transport | E49: 3.5 | F49: 4.5 | G49: 5 | H49: 6
B50: CY | C50: 10 | D50: =_Aviation -> Luftfahrt | E50: 1.5 | F50: 2 | G50: 2.5 | H50: 3.5
B51: CY | C51: 11 | D51: =_CreditSurety -> Finanz und Kaution | E51: 3 | F51: 3.5 | G51: 4 | H51: 5 | I51: 1.7
B52: CY | C52: 12 | D52: =_Legal -> Rechtsschutz | E52: 3 | F52: 3 | G52: 3 | H52: 3
B53: CY | C53: 13 | D53: =_Others -> Andere | E53: 5 | F53: 5 | G53: 5 | H53: 5
B55: ="CY - " &_Large -> CY - Grossschäden
B57: =_risk -> Risiko | C57: =_number -> Nr. | D57: =_NL_LOB_default -> SST-Standardversicherungsbranche | E57: =VLOOKUP("T.08.01",Translation,IF(Language="DE",2,IF(Language="FR",3,4)),FALSE) -> Anteil der Anzahl Grossschäden bezüglich der Anzahl der Normalschäden bei einer Grossschadengrenze von | F57: =VLOOKUP("T.08.02",Translation,IF(Language="DE",2,IF(Language="FR",3,4)),FALSE) -> Einzelschadenverteilung: Pareto - a bei einer Grossschadengrenze von
E58: ="CHF 0.5" & MID(_million,3,LEN(_million)-2) -> CHF 0.5 Mio. | F58: ="CHF 0.5" & MID(_million,3,LEN(_million)-2) -> CHF 0.5 Mio. | G58: ="CHF 1" & MID(_million,3,LEN(_million)-2) -> CHF 1 Mio. | H58: ="CHF 2" & MID(_million,3,LEN(_million)-2) -> CHF 2 Mio. | I58: ="CHF 5" & MID(_million,3,LEN(_million)-2) -> CHF 5 Mio.
B59: CY | C59: 1 | D59: =_MTPL -> MFH | E59: 0.0009 | F59: 1.5 | G59: 1.8 | H59: 2 | I59: 2.3
B60: CY | C60: 2 | D60: =_MOD -> MFK
B61: CY | C61: 3a | D61: =_Fire_no_Elementar -> Sach ohne Elementarschadenpool | E61: 0.000264 | F61: 1.4 | G61: 1.4 | H61: 1.5 | I61: 1.5
B62: CY | C62: 4 | D62: =_GL -> Haftpflicht | E62: 0.000728 | F62: 1.5 | G62: 1.6 | H62: 1.8 | I62: 1.9
B63: CY | C63: 5a | D63: =_AccMandatory -> UVG | E63: 0.000448 | F63: 1.5 | G63: 2.1 | H63: 2.7 | I63: 2.8
B64: CY | C64: 6 | D64: =_AccOptional -> Unfall ohne UVG | E64: 0.000607 | F64: 2.5 | G64: 2.5 | H64: 2.5 | I64: 2.5
B65: CY | C65: 7 | D65: =_Health_Collective -> Kollektivtaggeld
B66: CY | C66: 8 | D66: =_Health_Individual -> Einzelkranken
B67: CY | C67: 9 | D67: =_Marine -> Transport | E67: 0.000805 | F67: 1.6 | G67: 1.9 | H67: 1.9 | I67: 1.9
B68: CY | C68: 10 | D68: =_Aviation -> Luftfahrt | E68: 0.000264 | F68: 1 | G68: 1.1 | H68: 1.5 | I68: 2.5
B69: CY | C69: 11 | D69: =_CreditSurety -> Finanz und Kaution | E69: 0.00595 | F69: 1.1 | G69: 1.2 | H69: 1.2 | I69: 1.2
B70: CY | C70: 12 | D70: =_Legal -> Rechtsschutz
B71: CY | C71: 13 | D71: =_Others -> Andere
B73: ="CY - " & _Event -> CY - Kumulschäden
B75: =_risk -> Risiko | C75: =_number -> Nr. | D75: =_NL_LOB_default -> SST-Standardversicherungsbranche | E75: =_CY_EL_No_market -> Erwartete Anzahl der Ereignisse (Marktgrossschäden) | F75: Pareto | G75: =_CY_EL_lwrBd -> Marktgrossschadengrenze (untere Grenze der Paretoverteilung) | H75: =_CY_EL_uprBd -> Obere Grenze der Paretoverteilung
F76: a | H76: g
G77: =_million & " CHF" -> in Mio. CHF | H77: =_million & " CHF" -> in Mio. CHF
B78: CY | C78: 2 | D78: MFK (Hagel) | E78: 0.9 | F78: 1.85 | G78: 45 | H78: 1500
B80: =_ES_AVO_param -> Parameter für Elementarschadenversicherung
B82: =_risk -> Risiko | C82: =_number -> Nr. | D82: =_NL_LOB_default -> SST-Standardversicherungsbranche | E82: =VLOOKUP("T.08.05",Translation,IF(Language="DE",2,IF(Language="FR",3,4)),FALSE) -> Zielgruppe | F82: =_EX & " " & _million & " CHF" -> Erwartungswert in Mio. CHF | G82: =_SD & " " & _million & " CHF" -> Standardabweichung in Mio. CHF | H82: =_CV -> Variationskoeffizient
B83: CY | C83: 3_ES1 | D83: =_ESV & CHAR(10) & _Attritional -> Elementarschadenversicherung ES-AVO Normalschäden | E83: =VLOOKUP("T.08.06",Translation,IF(Language="DE",2,IF(Language="FR",3,4)),FALSE) -> ESP - Mitglied | F83: 100.944 | G83: 31.354 | H83: 0.3106
B84: CY | C84: 3_ES1 | D84: =_ESV & CHAR(10) & _Attritional -> Elementarschadenversicherung ES-AVO Normalschäden | E84: =VLOOKUP("T.08.07",Translation,IF(Language="DE",2,IF(Language="FR",3,4)),FALSE) -> übrige ES-AVO Versicherer | F84: 112.16 | G84: 34.838 | H84: 0.3106
B86: =_risk -> Risiko | C86: =_number -> Nr. | D86: =_NL_LOB_default -> SST-Standardversicherungsbranche | E86: =VLOOKUP("T.08.05",Translation,IF(Language="DE",2,IF(Language="FR",3,4)),FALSE) -> Zielgruppe | F86: =_CY_EL_No_market -> Erwartete Anzahl der Ereignisse (Marktgrossschäden) | H86: Pareto | I86: =_ScaleParameter -> Skalierungsparameter | J86: =_CY_EL_lwrBd -> Marktgrossschadengrenze (untere Grenze der Paretoverteilung) | K86: =_CY_EL_uprBd -> Obere Grenze der Paretoverteilung
F87: n | G87: p | H87: a | I87: b | K87: g
F88: NegBin (Opt-in Version Overdispersion) | I88: =_million & " CHF" -> in Mio. CHF | J88: =_million & " CHF" -> in Mio. CHF | K88: =_million & " CHF" -> in Mio. CHF
B89: CY | C89: 3_ES1 | D89: =_ESV & CHAR(10) & _Large -> Elementarschadenversicherung ES-AVO Grossschäden | E89: =VLOOKUP("T.08.06",Translation,IF(Language="DE",2,IF(Language="FR",3,4)),FALSE) -> ESP - Mitglied | F89: 3.4524 | G89: 0.1667 | H89: 1.1491 | I89: 1.0395 | J89: 50 | K89: 1800
B90: CY | C90: 3_ES1 | D90: =_ESV & CHAR(10) & _Large -> Elementarschadenversicherung ES-AVO Grossschäden | E90: =VLOOKUP("T.08.07",Translation,IF(Language="DE",2,IF(Language="FR",3,4)),FALSE) -> übrige ES-AVO Versicherer | F90: 3.4524 | G90: 0.1667 | H90: 1.1491 | I90: 1.155 | J90: 55.6 | K90: 2000
B91: CY | C91: 3_ES2 | D91: =VLOOKUP("T.08.04",Translation,IF(Language="DE",2,IF(Language="FR",3,4)),FALSE) -> Übrige Elementarschäden | E91: =VLOOKUP("T.08.08",Translation,IF(Language="DE",2,IF(Language="FR",3,4)),FALSE) -> Alle | F91: 3.4524 | G91: 0.1667 | H91: 1.1491 | I91: =I90*0.2 -> 0.231 | J91: 11.12 | K91: 1000
B93: ="URR - " &_Claims -> URR - Schäden
B95: =_risk -> Risiko | C95: =_number -> Nr. | D95: =_NL_LOB_default -> SST-Standardversicherungsbranche | E95: =_CV & " " & _Parameter_risk -> Variationskoeffizient Parameterrisiko
E96: ="CHF 0.5" & MID(_million,3,LEN(_million)-2) -> CHF 0.5 Mio. | F96: ="CHF 1" & MID(_million,3,LEN(_million)-2) -> CHF 1 Mio. | G96: ="CHF 2" & MID(_million,3,LEN(_million)-2) -> CHF 2 Mio. | H96: ="CHF 5" & MID(_million,3,LEN(_million)-2) -> CHF 5 Mio.
B97: URR | C97: 1 | D97: =_MTPL -> MFH | E97: =E25 -> 0.067 | F97: 0.072 | G97: 0.082 | H97: 0.084
B98: URR | C98: 2 | D98: =_MOD -> MFK | E98: 0.07 | F98: 0.07 | G98: 0.07 | H98: 0.07
B99: URR | C99: 3a | D99: =_Fire_no_Elementar -> Sach ohne Elementarschadenpool | E99: 0.069 | F99: 0.07 | G99: 0.071 | H99: 0.073
B100: URR | C100: 4 | D100: =_GL -> Haftpflicht | E100: 0.08 | F100: 0.08 | G100: 0.08 | H100: 0.08
B101: URR | C101: 5a | D101: =_AccMandatory -> UVG | E101: 0.08 | F101: 0.08 | G101: 0.08 | H101: 0.08
B102: URR | C102: 6 | D102: =_AccOptional -> Unfall ohne UVG | E102: 0.06 | F102: 0.06 | G102: 0.06 | H102: 0.06
B103: URR | C103: 7 | D103: =_Health_Collective -> Kollektivtaggeld | E103: 0.078 | F103: 0.078 | G103: 0.078 | H103: 0.078
B104: URR | C104: 8 | D104: =_Health_Individual -> Einzelkranken | E104: 0.16 | F104: 0.16 | G104: 0.16 | H104: 0.16
B105: URR | C105: 9 | D105: =_Marine -> Transport | E105: 0.08 | F105: 0.08 | G105: 0.08 | H105: 0.09
B106: URR | C106: 10 | D106: =_Aviation -> Luftfahrt | E106: 0.12 | F106: 0.12 | G106: 0.12 | H106: 0.12
B107: URR | C107: 11 | D107: =_CreditSurety -> Finanz und Kaution | E107: 0.1 | F107: 0.1 | G107: 0.1 | H107: 0.1
B108: URR | C108: 12 | D108: =_Legal -> Rechtsschutz | E108: 0.075 | F108: 0.075 | G108: 0.075 | H108: 0.075
B109: URR | C109: 13 | D109: =_Others -> Andere | E109: 0.09 | F109: 0.09 | G109: 0.09 | H109: 0.09
B111: =VLOOKUP("T.08.09",Translation,IF(Language="DE",2,IF(Language="FR",3,4)),FALSE) -> g-Faktoren und kumulative Inflationsfaktoren pro Auszahlungsjahr
B113: NL_Segment | C113: =_number -> Nr. | D113: =_NL_LOB_default & " / " & _segment -> SST-Standardversicherungsbranche / Segment | E113: proportional = "p" non-proportional = "n" | F113: =VLOOKUP("T.08.09",Translation,IF(Language="DE",2,IF(Language="FR",3,4)),FALSE) -> g-Faktoren und kumulative Inflationsfaktoren pro Auszahlungsjahr | G113: Match Case | H113: 0 | I113: 1 | J113: 2 | K113: 3 | L113: 4 | M113: 5 | N113: 6 | O113: 7 | P113: 8 | Q113: 9 | R113: 10 | S113: 11 | T113: 12 | U113: 13 | V113: 14 | W113: 15 | X113: 16 | Y113: 17 | Z113: 18 | AA113: 19 | AB113: 20 | AC113: 21 | AD113: 22 | AE113: 23 | AF113: 24 | AG113: 25 | AH113: 26 | AI113: 27 | AJ113: 28 | AK113: 29 | AL113: 30 | AM113: 31 | AN113: 32 | AO113: 33 | AP113: 34 | AQ113: 35 | AR113: 36 | AS113: 37 | AT113: 38 | AU113: 39 | AV113: 40 | AW113: 41 | AX113: 42 | AY113: 43 | AZ113: 44 | BA113: 45 | BB113: 46 | BC113: 47 | BD113: 48 | BE113: 49
B114: CH_direct | C114: 1 | D114: =_MTPL -> MFH | E114: p | F114: 0.8 | G114: =$B114&"-"&$E114&"-"&$C114 -> CH_direct-p-1 | H114: =1+$F114*OFFSET(Delta_Inflation,0,H$113,1,1) -> 1.036 | I114: =PRODUCT(H114,1+$F114*OFFSET(Delta_Inflation,0,I$113,1,1)) -> 1.044288 | J114: =PRODUCT(I114,1+$F114*OFFSET(Delta_Inflation,0,J$113,1,1)) -> 1.044288 | K114: =PRODUCT(J114,1+$F114*OFFSET(Delta_Inflation,0,K$113,1,1)) -> 1.044288 | L114: =PRODUCT(K114,1+$F114*OFFSET(Delta_Inflation,0,L$113,1,1)) -> 1.044288 | M114: 1.044288 | N114: 1.044288 | O114: 1.044288 | P114: 1.044288 | Q114: 1.044288 | R114: 1.044288 | S114: 1.044288 | T114: 1.044288 | U114: 1.044288 | V114: 1.044288 | W114: 1.044288 | X114: 1.044288 | Y114: 1.044288 | Z114: 1.044288 | AA114: 1.044288 | AB114: 1.044288 | AC114: 1.044288 | AD114: 1.044288 | AE114: 1.044288 | AF114: 1.044288 | AG114: 1.044288 | AH114: 1.044288 | AI114: 1.044288 | AJ114: 1.044288 | AK114: 1.044288 | AL114: 1.044288 | AM114: 1.044288 | AN114: =PRODUCT(AM114,1+$F114*OFFSET(Delta_Inflation,0,AN$113,1,1)) -> 1.044288 | AO114: 1.044288 | AP114: 1.044288 | AQ114: 1.044288 | AR114: 1.044288 | AS114: 1.044288 | AT114: 1.044288 | AU114: 1.044288 | AV114: 1.044288 | AW114: 1.044288 | AX114: 1.044288 | AY114: 1.044288 | AZ114: 1.044288 | BA114: 1.044288 | BB114: 1.044288 | BC114: 1.044288 | BD114: 1.044288 | BE114: 1.044288
B115: CH_direct | C115: 2 | D115: =_MOD -> MFK | E115: p | F115: 1.3 | G115: =$B115&"-"&$E115&"-"&$C115 -> CH_direct-p-2 | H115: 1.0585 | I115: =PRODUCT(H115,1+$F115*OFFSET(Delta_Inflation,0,I$113,1,1)) -> 1.0722605 | J115: 1.0722605 | K115: 1.0722605 | L115: 1.0722605 | M115: 1.0722605 | N115: 1.0722605 | O115: 1.0722605 | P115: 1.0722605 | Q115: 1.0722605 | R115: 1.0722605 | S115: 1.0722605 | T115: 1.0722605 | U115: 1.0722605 | V115: 1.0722605 | W115: 1.0722605 | X115: 1.0722605 | Y115: 1.0722605 | Z115: 1.0722605 | AA115: 1.0722605 | AB115: 1.0722605 | AC115: 1.0722605 | AD115: 1.0722605 | AE115: 1.0722605 | AF115: 1.0722605 | AG115: 1.0722605 | AH115: 1.0722605 | AI115: 1.0722605 | AJ115: 1.0722605 | AK115: 1.0722605 | AL115: 1.0722605 | AM115: 1.0722605 | AN115: =PRODUCT(AM115,1+$F115*OFFSET(Delta_Inflation,0,AN$113,1,1)) -> 1.0722605 | AO115: 1.0722605 | AP115: 1.0722605 | AQ115: 1.0722605 | AR115: 1.0722605 | AS115: 1.0722605 | AT115: 1.0722605 | AU115: 1.0722605 | AV115: 1.0722605 | AW115: 1.0722605 | AX115: 1.0722605 | AY115: 1.0722605 | AZ115: 1.0722605 | BA115: 1.0722605 | BB115: 1.0722605 | BC115: 1.0722605 | BD115: 1.0722605 | BE115: 1.0722605
B116: CH_direct | C116: 3 | D116: =_Fire_with_Elementar -> Sach inkl. Elementarschadenpool | E116: p | F116: 1.5 | G116: CH_direct-p-3 | H116: 1.0675 | I116: =PRODUCT(H116,1+$F116*OFFSET(Delta_Inflation,0,I$113,1,1)) -> 1.0835125 | J116: 1.0835125 | K116: 1.0835125 | L116: 1.0835125 | M116: 1.0835125 | N116: 1.0835125 | O116: 1.0835125 | P116: 1.0835125 | Q116: 1.0835125 | R116: 1.0835125 | S116: 1.0835125 | T116: 1.0835125 | U116: 1.0835125 | V116: 1.0835125 | W116: 1.0835125 | X116: 1.0835125 | Y116: 1.0835125 | Z116: 1.0835125 | AA116: 1.0835125 | AB116: 1.0835125 | AC116: 1.0835125 | AD116: 1.0835125 | AE116: 1.0835125 | AF116: 1.0835125 | AG116: 1.0835125 | AH116: 1.0835125 | AI116: 1.0835125 | AJ116: 1.0835125 | AK116: 1.0835125 | AL116: 1.0835125 | AM116: 1.0835125 | AN116: =PRODUCT(AM116,1+$F116*OFFSET(Delta_Inflation,0,AN$113,1,1)) -> 1.0835125 | AO116: 1.0835125 | AP116: 1.0835125 | AQ116: 1.0835125 | AR116: 1.0835125 | AS116: 1.0835125 | AT116: 1.0835125 | AU116: 1.0835125 | AV116: 1.0835125 | AW116: 1.0835125 | AX116: 1.0835125 | AY116: 1.0835125 | AZ116: 1.0835125 | BA116: 1.0835125 | BB116: 1.0835125 | BC116: 1.0835125 | BD116: 1.0835125 | BE116: 1.0835125
B117: CH_direct | C117: 3a | D117: =_Fire_no_Elementar -> Sach ohne Elementarschadenpool | E117: p | F117: 1.5 | G117: CH_direct-p-3a | H117: 1.0675 | I117: =PRODUCT(H117,1+$F117*OFFSET(Delta_Inflation,0,I$113,1,1)) -> 1.0835125 | J117: 1.0835125 | K117: 1.0835125 | L117: 1.0835125 | M117: 1.0835125 | N117: 1.0835125 | O117: 1.0835125 | P117: 1.0835125 | Q117: 1.0835125 | R117: 1.0835125 | S117: 1.0835125 | T117: 1.0835125 | U117: 1.0835125 | V117: 1.0835125 | W117: 1.0835125 | X117: 1.0835125 | Y117: 1.0835125 | Z117: 1.0835125 | AA117: 1.0835125 | AB117: 1.0835125 | AC117: 1.0835125 | AD117: 1.0835125 | AE117: 1.0835125 | AF117: 1.0835125 | AG117: 1.0835125 | AH117: 1.0835125 | AI117: 1.0835125 | AJ117: 1.0835125 | AK117: 1.0835125 | AL117: 1.0835125 | AM117: 1.0835125 | AN117: =PRODUCT(AM117,1+$F117*OFFSET(Delta_Inflation,0,AN$113,1,1)) -> 1.0835125 | AO117: 1.0835125 | AP117: 1.0835125 | AQ117: 1.0835125 | AR117: 1.0835125 | AS117: 1.0835125 | AT117: 1.0835125 | AU117: 1.0835125 | AV117: 1.0835125 | AW117: 1.0835125 | AX117: 1.0835125 | AY117: 1.0835125 | AZ117: 1.0835125 | BA117: 1.0835125 | BB117: 1.0835125 | BC117: 1.0835125 | BD117: 1.0835125 | BE117: 1.0835125
B118: CH_direct | C118: 3b | D118: =_ESP -> Elementarschadenpool | E118: p | F118: 1.5 | G118: CH_direct-p-3b | H118: 1.0675 | I118: =PRODUCT(H118,1+$F118*OFFSET(Delta_Inflation,0,I$113,1,1)) -> 1.0835125 | J118: 1.0835125 | K118: 1.0835125 | L118: 1.0835125 | M118: 1.0835125 | N118: 1.0835125 | O118: 1.0835125 | P118: 1.0835125 | Q118: 1.0835125 | R118: 1.0835125 | S118: 1.0835125 | T118: 1.0835125 | U118: 1.0835125 | V118: 1.0835125 | W118: 1.0835125 | X118: 1.0835125 | Y118: 1.0835125 | Z118: 1.0835125 | AA118: 1.0835125 | AB118: 1.0835125 | AC118: 1.0835125 | AD118: 1.0835125 | AE118: 1.0835125 | AF118: 1.0835125 | AG118: 1.0835125 | AH118: 1.0835125 | AI118: 1.0835125 | AJ118: 1.0835125 | AK118: 1.0835125 | AL118: 1.0835125 | AM118: 1.0835125 | AN118: =PRODUCT(AM118,1+$F118*OFFSET(Delta_Inflation,0,AN$113,1,1)) -> 1.0835125 | AO118: 1.0835125 | AP118: 1.0835125 | AQ118: 1.0835125 | AR118: 1.0835125 | AS118: 1.0835125 | AT118: 1.0835125 | AU118: 1.0835125 | AV118: 1.0835125 | AW118: 1.0835125 | AX118: 1.0835125 | AY118: 1.0835125 | AZ118: 1.0835125 | BA118: 1.0835125 | BB118: 1.0835125 | BC118: 1.0835125 | BD118: 1.0835125 | BE118: 1.0835125
B119: CH_direct | C119: 4 | D119: =_GL -> Haftpflicht | E119: p | F119: 1.15 | G119: CH_direct-p-4 | H119: 1.05175 | I119: =PRODUCT(H119,1+$F119*OFFSET(Delta_Inflation,0,I$113,1,1)) -> 1.063845125 | J119: 1.063845125 | K119: 1.063845125 | L119: 1.063845125 | M119: 1.063845125 | N119: 1.063845125 | O119: 1.063845125 | P119: 1.063845125 | Q119: 1.063845125 | R119: 1.063845125 | S119: 1.063845125 | T119: 1.063845125 | U119: 1.063845125 | V119: 1.063845125 | W119: 1.063845125 | X119: 1.063845125 | Y119: 1.063845125 | Z119: 1.063845125 | AA119: 1.063845125 | AB119: 1.063845125 | AC119: 1.063845125 | AD119: 1.063845125 | AE119: 1.063845125 | AF119: 1.063845125 | AG119: 1.063845125 | AH119: 1.063845125 | AI119: 1.063845125 | AJ119: 1.063845125 | AK119: 1.063845125 | AL119: 1.063845125 | AM119: 1.063845125 | AN119: =PRODUCT(AM119,1+$F119*OFFSET(Delta_Inflation,0,AN$113,1,1)) -> 1.063845125 | AO119: 1.063845125 | AP119: 1.063845125 | AQ119: 1.063845125 | AR119: 1.063845125 | AS119: 1.063845125 | AT119: 1.063845125 | AU119: 1.063845125 | AV119: 1.063845125 | AW119: 1.063845125 | AX119: 1.063845125 | AY119: 1.063845125 | AZ119: 1.063845125 | BA119: 1.063845125 | BB119: 1.063845125 | BC119: 1.063845125 | BD119: 1.063845125 | BE119: 1.063845125
B120: CH_direct | C120: 5a | D120: =_AccMandatory_noAnnuities -> UVG, nicht verrentete Fälle | E120: p | F120: 0.7 | G120: CH_direct-p-5a | H120: 1.0315 | I120: =PRODUCT(H120,1+$F120*OFFSET(Delta_Inflation,0,I$113,1,1)) -> 1.0387205 | J120: 1.0387205 | K120: 1.0387205 | L120: 1.0387205 | M120: 1.0387205 | N120: 1.0387205 | O120: 1.0387205 | P120: 1.0387205 | Q120: 1.0387205 | R120: 1.0387205 | S120: 1.0387205 | T120: 1.0387205 | U120: 1.0387205 | V120: 1.0387205 | W120: 1.0387205 | X120: 1.0387205 | Y120: 1.0387205 | Z120: 1.0387205 | AA120: 1.0387205 | AB120: 1.0387205 | AC120: 1.0387205 | AD120: 1.0387205 | AE120: 1.0387205 | AF120: 1.0387205 | AG120: 1.0387205 | AH120: 1.0387205 | AI120: 1.0387205 | AJ120: 1.0387205 | AK120: 1.0387205 | AL120: 1.0387205 | AM120: 1.0387205 | AN120: =PRODUCT(AM120,1+$F120*OFFSET(Delta_Inflation,0,AN$113,1,1)) -> 1.0387205 | AO120: 1.0387205 | AP120: 1.0387205 | AQ120: 1.0387205 | AR120: 1.0387205 | AS120: 1.0387205 | AT120: 1.0387205 | AU120: 1.0387205 | AV120: 1.0387205 | AW120: 1.0387205 | AX120: 1.0387205 | AY120: 1.0387205 | AZ120: 1.0387205 | BA120: 1.0387205 | BB120: 1.0387205 | BC120: 1.0387205 | BD120: 1.0387205 | BE120: 1.0387205
B121: CH_direct | C121: 5b | D121: =_AccMandatory_Annuities -> UVG-Renten | E121: p | F121: 0 | G121: CH_direct-p-5b | H121: 1 | I121: =PRODUCT(H121,1+$F121*OFFSET(Delta_Inflation,0,I$113,1,1)) -> 1 | J121: 1 | K121: 1 | L121: 1 | M121: 1 | N121: 1 | O121: 1 | P121: 1 | Q121: 1 | R121: 1 | S121: 1 | T121: 1 | U121: 1 | V121: 1 | W121: 1 | X121: 1 | Y121: 1 | Z121: 1 | AA121: 1 | AB121: 1 | AC121: 1 | AD121: 1 | AE121: 1 | AF121: 1 | AG121: 1 | AH121: 1 | AI121: 1 | AJ121: 1 | AK121: 1 | AL121: 1 | AM121: 1 | AN121: =PRODUCT(AM121,1+$F121*OFFSET(Delta_Inflation,0,AN$113,1,1)) -> 1 | AO121: 1 | AP121: 1 | AQ121: 1 | AR121: 1 | AS121: 1 | AT121: 1 | AU121: 1 | AV121: 1 | AW121: 1 | AX121: 1 | AY121: 1 | AZ121: 1 | BA121: 1 | BB121: 1 | BC121: 1 | BD121: 1 | BE121: 1
B122: CH_direct | C122: 6 | D122: =_AccOptional -> Unfall ohne UVG | E122: p | F122: 1.3 | G122: CH_direct-p-6 | H122: 1.0585 | I122: =PRODUCT(H122,1+$F122*OFFSET(Delta_Inflation,0,I$113,1,1)) -> 1.0722605 | J122: 1.0722605 | K122: 1.0722605 | L122: 1.0722605 | M122: 1.0722605 | N122: 1.0722605 | O122: 1.0722605 | P122: 1.0722605 | Q122: 1.0722605 | R122: 1.0722605 | S122: 1.0722605 | T122: 1.0722605 | U122: 1.0722605 | V122: 1.0722605 | W122: 1.0722605 | X122: 1.0722605 | Y122: 1.0722605 | Z122: 1.0722605 | AA122: 1.0722605 | AB122: 1.0722605 | AC122: 1.0722605 | AD122: 1.0722605 | AE122: 1.0722605 | AF122: 1.0722605 | AG122: 1.0722605 | AH122: 1.0722605 | AI122: 1.0722605 | AJ122: 1.0722605 | AK122: 1.0722605 | AL122: 1.0722605 | AM122: 1.0722605 | AN122: =PRODUCT(AM122,1+$F122*OFFSET(Delta_Inflation,0,AN$113,1,1)) -> 1.0722605 | AO122: 1.0722605 | AP122: 1.0722605 | AQ122: 1.0722605 | AR122: 1.0722605 | AS122: 1.0722605 | AT122: 1.0722605 | AU122: 1.0722605 | AV122: 1.0722605 | AW122: 1.0722605 | AX122: 1.0722605 | AY122: 1.0722605 | AZ122: 1.0722605 | BA122: 1.0722605 | BB122: 1.0722605 | BC122: 1.0722605 | BD122: 1.0722605 | BE122: 1.0722605
B123: CH_direct | C123: 7 | D123: =_Health_Collective -> Kollektivtaggeld | E123: p | F123: 0 | G123: CH_direct-p-7 | H123: 1 | I123: =PRODUCT(H123,1+$F123*OFFSET(Delta_Inflation,0,I$113,1,1)) -> 1 | J123: 1 | K123: 1 | L123: 1 | M123: 1 | N123: 1 | O123: 1 | P123: 1 | Q123: 1 | R123: 1 | S123: 1 | T123: 1 | U123: 1 | V123: 1 | W123: 1 | X123: 1 | Y123: 1 | Z123: 1 | AA123: 1 | AB123: 1 | AC123: 1 | AD123: 1 | AE123: 1 | AF123: 1 | AG123: 1 | AH123: 1 | AI123: 1 | AJ123: 1 | AK123: 1 | AL123: 1 | AM123: 1 | AN123: =PRODUCT(AM123,1+$F123*OFFSET(Delta_Inflation,0,AN$113,1,1)) -> 1 | AO123: 1 | AP123: 1 | AQ123: 1 | AR123: 1 | AS123: 1 | AT123: 1 | AU123: 1 | AV123: 1 | AW123: 1 | AX123: 1 | AY123: 1 | AZ123: 1 | BA123: 1 | BB123: 1 | BC123: 1 | BD123: 1 | BE123: 1
B124: CH_direct | C124: 8 | D124: =_Health_Individual -> Einzelkranken | E124: p | F124: 1.3 | G124: CH_direct-p-8 | H124: 1.0585 | I124: =PRODUCT(H124,1+$F124*OFFSET(Delta_Inflation,0,I$113,1,1)) -> 1.0722605 | J124: 1.0722605 | K124: 1.0722605 | L124: 1.0722605 | M124: 1.0722605 | N124: 1.0722605 | O124: 1.0722605 | P124: 1.0722605 | Q124: 1.0722605 | R124: 1.0722605 | S124: 1.0722605 | T124: 1.0722605 | U124: 1.0722605 | V124: 1.0722605 | W124: 1.0722605 | X124: 1.0722605 | Y124: 1.0722605 | Z124: 1.0722605 | AA124: 1.0722605 | AB124: 1.0722605 | AC124: 1.0722605 | AD124: 1.0722605 | AE124: 1.0722605 | AF124: 1.0722605 | AG124: 1.0722605 | AH124: 1.0722605 | AI124: 1.0722605 | AJ124: 1.0722605 | AK124: 1.0722605 | AL124: 1.0722605 | AM124: 1.0722605 | AN124: =PRODUCT(AM124,1+$F124*OFFSET(Delta_Inflation,0,AN$113,1,1)) -> 1.0722605 | AO124: 1.0722605 | AP124: 1.0722605 | AQ124: 1.0722605 | AR124: 1.0722605 | AS124: 1.0722605 | AT124: 1.0722605 | AU124: 1.0722605 | AV124: 1.0722605 | AW124: 1.0722605 | AX124: 1.0722605 | AY124: 1.0722605 | AZ124: 1.0722605 | BA124: 1.0722605 | BB124: 1.0722605 | BC124: 1.0722605 | BD124: 1.0722605 | BE124: 1.0722605
B125: CH_direct | C125: 9 | D125: =_Marine -> Transport | E125: p | F125: 1 | G125: CH_direct-p-9 | H125: 1.045 | I125: =PRODUCT(H125,1+$F125*OFFSET(Delta_Inflation,0,I$113,1,1)) -> 1.05545 | J125: 1.05545 | K125: 1.05545 | L125: 1.05545 | M125: 1.05545 | N125: 1.05545 | O125: 1.05545 | P125: 1.05545 | Q125: 1.05545 | R125: 1.05545 | S125: 1.05545 | T125: 1.05545 | U125: 1.05545 | V125: 1.05545 | W125: 1.05545 | X125: 1.05545 | Y125: 1.05545 | Z125: 1.05545 | AA125: 1.05545 | AB125: 1.05545 | AC125: 1.05545 | AD125: 1.05545 | AE125: 1.05545 | AF125: 1.05545 | AG125: 1.05545 | AH125: 1.05545 | AI125: 1.05545 | AJ125: 1.05545 | AK125: 1.05545 | AL125: 1.05545 | AM125: 1.05545 | AN125: =PRODUCT(AM125,1+$F125*OFFSET(Delta_Inflation,0,AN$113,1,1)) -> 1.05545 | AO125: 1.05545 | AP125: 1.05545 | AQ125: 1.05545 | AR125: 1.05545 | AS125: 1.05545 | AT125: 1.05545 | AU125: 1.05545 | AV125: 1.05545 | AW125: 1.05545 | AX125: 1.05545 | AY125: 1.05545 | AZ125: 1.05545 | BA125: 1.05545 | BB125: 1.05545 | BC125: 1.05545 | BD125: 1.05545 | BE125: 1.05545
B126: CH_direct | C126: 10 | D126: =_Aviation -> Luftfahrt | E126: p | F126: 1 | G126: CH_direct-p-10 | H126: 1.045 | I126: =PRODUCT(H126,1+$F126*OFFSET(Delta_Inflation,0,I$113,1,1)) -> 1.05545 | J126: 1.05545 | K126: 1.05545 | L126: 1.05545 | M126: 1.05545 | N126: 1.05545 | O126: 1.05545 | P126: 1.05545 | Q126: 1.05545 | R126: 1.05545 | S126: 1.05545 | T126: 1.05545 | U126: 1.05545 | V126: 1.05545 | W126: 1.05545 | X126: 1.05545 | Y126: 1.05545 | Z126: 1.05545 | AA126: 1.05545 | AB126: 1.05545 | AC126: 1.05545 | AD126: 1.05545 | AE126: 1.05545 | AF126: 1.05545 | AG126: 1.05545 | AH126: 1.05545 | AI126: 1.05545 | AJ126: 1.05545 | AK126: 1.05545 | AL126: 1.05545 | AM126: 1.05545 | AN126: =PRODUCT(AM126,1+$F126*OFFSET(Delta_Inflation,0,AN$113,1,1)) -> 1.05545 | AO126: 1.05545 | AP126: 1.05545 | AQ126: 1.05545 | AR126: 1.05545 | AS126: 1.05545 | AT126: 1.05545 | AU126: 1.05545 | AV126: 1.05545 | AW126: 1.05545 | AX126: 1.05545 | AY126: 1.05545 | AZ126: 1.05545 | BA126: 1.05545 | BB126: 1.05545 | BC126: 1.05545 | BD126: 1.05545 | BE126: 1.05545
B127: CH_direct | C127: 11 | D127: =_CreditSurety -> Finanz und Kaution | E127: p | F127: 0.8 | G127: CH_direct-p-11 | H127: 1.036 | I127: =PRODUCT(H127,1+$F127*OFFSET(Delta_Inflation,0,I$113,1,1)) -> 1.044288 | J127: 1.044288 | K127: 1.044288 | L127: 1.044288 | M127: 1.044288 | N127: 1.044288 | O127: 1.044288 | P127: 1.044288 | Q127: 1.044288 | R127: 1.044288 | S127: 1.044288 | T127: 1.044288 | U127: 1.044288 | V127: 1.044288 | W127: 1.044288 | X127: 1.044288 | Y127: 1.044288 | Z127: 1.044288 | AA127: 1.044288 | AB127: 1.044288 | AC127: 1.044288 | AD127: 1.044288 | AE127: 1.044288 | AF127: 1.044288 | AG127: 1.044288 | AH127: 1.044288 | AI127: 1.044288 | AJ127: 1.044288 | AK127: 1.044288 | AL127: 1.044288 | AM127: 1.044288 | AN127: =PRODUCT(AM127,1+$F127*OFFSET(Delta_Inflation,0,AN$113,1,1)) -> 1.044288 | AO127: 1.044288 | AP127: 1.044288 | AQ127: 1.044288 | AR127: 1.044288 | AS127: 1.044288 | AT127: 1.044288 | AU127: 1.044288 | AV127: 1.044288 | AW127: 1.044288 | AX127: 1.044288 | AY127: 1.044288 | AZ127: 1.044288 | BA127: 1.044288 | BB127: 1.044288 | BC127: 1.044288 | BD127: 1.044288 | BE127: 1.044288
B128: CH_direct | C128: 12 | D128: =_Legal -> Rechtsschutz | E128: p | F128: 0.5 | G128: CH_direct-p-12 | H128: 1.0225 | I128: =PRODUCT(H128,1+$F128*OFFSET(Delta_Inflation,0,I$113,1,1)) -> 1.0276125 | J128: 1.0276125 | K128: 1.0276125 | L128: 1.0276125 | M128: 1.0276125 | N128: 1.0276125 | O128: 1.0276125 | P128: 1.0276125 | Q128: 1.0276125 | R128: 1.0276125 | S128: 1.0276125 | T128: 1.0276125 | U128: 1.0276125 | V128: 1.0276125 | W128: 1.0276125 | X128: 1.0276125 | Y128: 1.0276125 | Z128: 1.0276125 | AA128: 1.0276125 | AB128: 1.0276125 | AC128: 1.0276125 | AD128: 1.0276125 | AE128: 1.0276125 | AF128: 1.0276125 | AG128: 1.0276125 | AH128: 1.0276125 | AI128: 1.0276125 | AJ128: 1.0276125 | AK128: 1.0276125 | AL128: 1.0276125 | AM128: 1.0276125 | AN128: =PRODUCT(AM128,1+$F128*OFFSET(Delta_Inflation,0,AN$113,1,1)) -> 1.0276125 | AO128: 1.0276125 | AP128: 1.0276125 | AQ128: 1.0276125 | AR128: 1.0276125 | AS128: 1.0276125 | AT128: 1.0276125 | AU128: 1.0276125 | AV128: 1.0276125 | AW128: 1.0276125 | AX128: 1.0276125 | AY128: 1.0276125 | AZ128: 1.0276125 | BA128: 1.0276125 | BB128: 1.0276125 | BC128: 1.0276125 | BD128: 1.0276125 | BE128: 1.0276125
B129: CH_direct | C129: 13 | D129: =_Others -> Andere | E129: p | F129: 1 | G129: CH_direct-p-13 | H129: 1.045 | I129: =PRODUCT(H129,1+$F129*OFFSET(Delta_Inflation,0,I$113,1,1)) -> 1.05545 | J129: 1.05545 | K129: 1.05545 | L129: 1.05545 | M129: 1.05545 | N129: 1.05545 | O129: 1.05545 | P129: 1.05545 | Q129: 1.05545 | R129: 1.05545 | S129: 1.05545 | T129: 1.05545 | U129: 1.05545 | V129: 1.05545 | W129: 1.05545 | X129: 1.05545 | Y129: 1.05545 | Z129: 1.05545 | AA129: 1.05545 | AB129: 1.05545 | AC129: 1.05545 | AD129: 1.05545 | AE129: 1.05545 | AF129: 1.05545 | AG129: 1.05545 | AH129: 1.05545 | AI129: 1.05545 | AJ129: 1.05545 | AK129: 1.05545 | AL129: 1.05545 | AM129: 1.05545 | AN129: =PRODUCT(AM129,1+$F129*OFFSET(Delta_Inflation,0,AN$113,1,1)) -> 1.05545 | AO129: 1.05545 | AP129: 1.05545 | AQ129: 1.05545 | AR129: 1.05545 | AS129: 1.05545 | AT129: 1.05545 | AU129: 1.05545 | AV129: 1.05545 | AW129: 1.05545 | AX129: 1.05545 | AY129: 1.05545 | AZ129: 1.05545 | BA129: 1.05545 | BB129: 1.05545 | BC129: 1.05545 | BD129: 1.05545 | BE129: 1.05545
B130: Non-CH_direct | C130: 1 | D130: Accident and Health | E130: p | F130: 1.3 | G130: Non-CH_direct-p-1 | H130: 1.0585 | I130: =PRODUCT(H130,1+$F130*OFFSET(Delta_Inflation,0,I$113,1,1)) -> 1.0722605 | J130: 1.0722605 | K130: 1.0722605 | L130: 1.0722605 | M130: 1.0722605 | N130: 1.0722605 | O130: 1.0722605 | P130: 1.0722605 | Q130: 1.0722605 | R130: 1.0722605 | S130: 1.0722605 | T130: 1.0722605 | U130: 1.0722605 | V130: 1.0722605 | W130: 1.0722605 | X130: 1.0722605 | Y130: 1.0722605 | Z130: 1.0722605 | AA130: 1.0722605 | AB130: 1.0722605 | AC130: 1.0722605 | AD130: 1.0722605 | AE130: 1.0722605 | AF130: 1.0722605 | AG130: 1.0722605 | AH130: 1.0722605 | AI130: 1.0722605 | AJ130: 1.0722605 | AK130: 1.0722605 | AL130: 1.0722605 | AM130: 1.0722605 | AN130: =PRODUCT(AM130,1+$F130*OFFSET(Delta_Inflation,0,AN$113,1,1)) -> 1.0722605 | AO130: 1.0722605 | AP130: 1.0722605 | AQ130: 1.0722605 | AR130: 1.0722605 | AS130: 1.0722605 | AT130: 1.0722605 | AU130: 1.0722605 | AV130: 1.0722605 | AW130: 1.0722605 | AX130: 1.0722605 | AY130: 1.0722605 | AZ130: 1.0722605 | BA130: 1.0722605 | BB130: 1.0722605 | BC130: 1.0722605 | BD130: 1.0722605 | BE130: 1.0722605
B131: Non-CH_direct | C131: 2 | D131: Motor | E131: p | F131: 1.2 | G131: Non-CH_direct-p-2 | H131: 1.054 | I131: =PRODUCT(H131,1+$F131*OFFSET(Delta_Inflation,0,I$113,1,1)) -> 1.066648 | J131: 1.066648 | K131: 1.066648 | L131: 1.066648 | M131: 1.066648 | N131: 1.066648 | O131: 1.066648 | P131: 1.066648 | Q131: 1.066648 | R131: 1.066648 | S131: 1.066648 | T131: 1.066648 | U131: 1.066648 | V131: 1.066648 | W131: 1.066648 | X131: 1.066648 | Y131: 1.066648 | Z131: 1.066648 | AA131: 1.066648 | AB131: 1.066648 | AC131: 1.066648 | AD131: 1.066648 | AE131: 1.066648 | AF131: 1.066648 | AG131: 1.066648 | AH131: 1.066648 | AI131: 1.066648 | AJ131: 1.066648 | AK131: 1.066648 | AL131: 1.066648 | AM131: 1.066648 | AN131: =PRODUCT(AM131,1+$F131*OFFSET(Delta_Inflation,0,AN$113,1,1)) -> 1.066648 | AO131: 1.066648 | AP131: 1.066648 | AQ131: 1.066648 | AR131: 1.066648 | AS131: 1.066648 | AT131: 1.066648 | AU131: 1.066648 | AV131: 1.066648 | AW131: 1.066648 | AX131: 1.066648 | AY131: 1.066648 | AZ131: 1.066648 | BA131: 1.066648 | BB131: 1.066648 | BC131: 1.066648 | BD131: 1.066648 | BE131: 1.066648
B132: Non-CH_direct | C132: 3 | D132: Marine, Aviation and Other Transport | E132: p | F132: 1 | G132: Non-CH_direct-p-3 | H132: 1.045 | I132: =PRODUCT(H132,1+$F132*OFFSET(Delta_Inflation,0,I$113,1,1)) -> 1.05545 | J132: 1.05545 | K132: 1.05545 | L132: 1.05545 | M132: 1.05545 | N132: 1.05545 | O132: 1.05545 | P132: 1.05545 | Q132: 1.05545 | R132: 1.05545 | S132: 1.05545 | T132: 1.05545 | U132: 1.05545 | V132: 1.05545 | W132: 1.05545 | X132: 1.05545 | Y132: 1.05545 | Z132: 1.05545 | AA132: 1.05545 | AB132: 1.05545 | AC132: 1.05545 | AD132: 1.05545 | AE132: 1.05545 | AF132: 1.05545 | AG132: 1.05545 | AH132: 1.05545 | AI132: 1.05545 | AJ132: 1.05545 | AK132: 1.05545 | AL132: 1.05545 | AM132: 1.05545 | AN132: =PRODUCT(AM132,1+$F132*OFFSET(Delta_Inflation,0,AN$113,1,1)) -> 1.05545 | AO132: 1.05545 | AP132: 1.05545 | AQ132: 1.05545 | AR132: 1.05545 | AS132: 1.05545 | AT132: 1.05545 | AU132: 1.05545 | AV132: 1.05545 | AW132: 1.05545 | AX132: 1.05545 | AY132: 1.05545 | AZ132: 1.05545 | BA132: 1.05545 | BB132: 1.05545 | BC132: 1.05545 | BD132: 1.05545 | BE132: 1.05545
B133: Non-CH_direct | C133: 4 | D133: Property | E133: p | F133: 1.1 | G133: Non-CH_direct-p-4 | H133: 1.0495 | I133: =PRODUCT(H133,1+$F133*OFFSET(Delta_Inflation,0,I$113,1,1)) -> 1.0610445 | J133: 1.0610445 | K133: 1.0610445 | L133: 1.0610445 | M133: 1.0610445 | N133: 1.0610445 | O133: 1.0610445 | P133: 1.0610445 | Q133: 1.0610445 | R133: 1.0610445 | S133: 1.0610445 | T133: 1.0610445 | U133: 1.0610445 | V133: 1.0610445 | W133: 1.0610445 | X133: 1.0610445 | Y133: 1.0610445 | Z133: 1.0610445 | AA133: 1.0610445 | AB133: 1.0610445 | AC133: 1.0610445 | AD133: 1.0610445 | AE133: 1.0610445 | AF133: 1.0610445 | AG133: 1.0610445 | AH133: 1.0610445 | AI133: 1.0610445 | AJ133: 1.0610445 | AK133: 1.0610445 | AL133: 1.0610445 | AM133: 1.0610445 | AN133: =PRODUCT(AM133,1+$F133*OFFSET(Delta_Inflation,0,AN$113,1,1)) -> 1.0610445 | AO133: 1.0610445 | AP133: 1.0610445 | AQ133: 1.0610445 | AR133: 1.0610445 | AS133: 1.0610445 | AT133: 1.0610445 | AU133: 1.0610445 | AV133: 1.0610445 | AW133: 1.0610445 | AX133: 1.0610445 | AY133: 1.0610445 | AZ133: 1.0610445 | BA133: 1.0610445 | BB133: 1.0610445 | BC133: 1.0610445 | BD133: 1.0610445 | BE133: 1.0610445
B134: Non-CH_direct | C134: 5 | D134: Financial Losses | E134: p | F134: 0.8 | G134: Non-CH_direct-p-5 | H134: 1.036 | I134: =PRODUCT(H134,1+$F134*OFFSET(Delta_Inflation,0,I$113,1,1)) -> 1.044288 | J134: 1.044288 | K134: 1.044288 | L134: 1.044288 | M134: 1.044288 | N134: 1.044288 | O134: 1.044288 | P134: 1.044288 | Q134: 1.044288 | R134: 1.044288 | S134: 1.044288 | T134: 1.044288 | U134: 1.044288 | V134: 1.044288 | W134: 1.044288 | X134: 1.044288 | Y134: 1.044288 | Z134: 1.044288 | AA134: 1.044288 | AB134: 1.044288 | AC134: 1.044288 | AD134: 1.044288 | AE134: 1.044288 | AF134: 1.044288 | AG134: 1.044288 | AH134: 1.044288 | AI134: 1.044288 | AJ134: 1.044288 | AK134: 1.044288 | AL134: 1.044288 | AM134: 1.044288 | AN134: =PRODUCT(AM134,1+$F134*OFFSET(Delta_Inflation,0,AN$113,1,1)) -> 1.044288 | AO134: 1.044288 | AP134: 1.044288 | AQ134: 1.044288 | AR134: 1.044288 | AS134: 1.044288 | AT134: 1.044288 | AU134: 1.044288 | AV134: 1.044288 | AW134: 1.044288 | AX134: 1.044288 | AY134: 1.044288 | AZ134: 1.044288 | BA134: 1.044288 | BB134: 1.044288 | BC134: 1.044288 | BD134: 1.044288 | BE134: 1.044288
B135: Non-CH_direct | C135: 6 | D135: General Liability | E135: p | F135: 1.15 | G135: Non-CH_direct-p-6 | H135: 1.05175 | I135: =PRODUCT(H135,1+$F135*OFFSET(Delta_Inflation,0,I$113,1,1)) -> 1.063845125 | J135: 1.063845125 | K135: 1.063845125 | L135: 1.063845125 | M135: 1.063845125 | N135: 1.063845125 | O135: 1.063845125 | P135: 1.063845125 | Q135: 1.063845125 | R135: 1.063845125 | S135: 1.063845125 | T135: 1.063845125 | U135: 1.063845125 | V135: 1.063845125 | W135: 1.063845125 | X135: 1.063845125 | Y135: 1.063845125 | Z135: 1.063845125 | AA135: 1.063845125 | AB135: 1.063845125 | AC135: 1.063845125 | AD135: 1.063845125 | AE135: 1.063845125 | AF135: 1.063845125 | AG135: 1.063845125 | AH135: 1.063845125 | AI135: 1.063845125 | AJ135: 1.063845125 | AK135: 1.063845125 | AL135: 1.063845125 | AM135: 1.063845125 | AN135: =PRODUCT(AM135,1+$F135*OFFSET(Delta_Inflation,0,AN$113,1,1)) -> 1.063845125 | AO135: 1.063845125 | AP135: 1.063845125 | AQ135: 1.063845125 | AR135: 1.063845125 | AS135: 1.063845125 | AT135: 1.063845125 | AU135: 1.063845125 | AV135: 1.063845125 | AW135: 1.063845125 | AX135: 1.063845125 | AY135: 1.063845125 | AZ135: 1.063845125 | BA135: 1.063845125 | BB135: 1.063845125 | BC135: 1.063845125 | BD135: 1.063845125 | BE135: 1.063845125
B136: Non-CH_direct | C136: 7 | D136: Other Non-Life | E136: p | F136: 1 | G136: Non-CH_direct-p-7 | H136: 1.045 | I136: =PRODUCT(H136,1+$F136*OFFSET(Delta_Inflation,0,I$113,1,1)) -> 1.05545 | J136: 1.05545 | K136: 1.05545 | L136: 1.05545 | M136: 1.05545 | N136: 1.05545 | O136: 1.05545 | P136: 1.05545 | Q136: 1.05545 | R136: 1.05545 | S136: 1.05545 | T136: 1.05545 | U136: 1.05545 | V136: 1.05545 | W136: 1.05545 | X136: 1.05545 | Y136: 1.05545 | Z136: 1.05545 | AA136: 1.05545 | AB136: 1.05545 | AC136: 1.05545 | AD136: 1.05545 | AE136: 1.05545 | AF136: 1.05545 | AG136: 1.05545 | AH136: 1.05545 | AI136: 1.05545 | AJ136: 1.05545 | AK136: 1.05545 | AL136: 1.05545 | AM136: 1.05545 | AN136: =PRODUCT(AM136,1+$F136*OFFSET(Delta_Inflation,0,AN$113,1,1)) -> 1.05545 | AO136: 1.05545 | AP136: 1.05545 | AQ136: 1.05545 | AR136: 1.05545 | AS136: 1.05545 | AT136: 1.05545 | AU136: 1.05545 | AV136: 1.05545 | AW136: 1.05545 | AX136: 1.05545 | AY136: 1.05545 | AZ136: 1.05545 | BA136: 1.05545 | BB136: 1.05545 | BC136: 1.05545 | BD136: 1.05545 | BE136: 1.05545
B137: Active_RI | C137: 1 | D137: Accident and Health proportional | E137: p | F137: 1.3 | G137: Active_RI-p-1 | H137: 1.0585 | I137: =PRODUCT(H137,1+$F137*OFFSET(Delta_Inflation,0,I$113,1,1)) -> 1.0722605 | J137: 1.0722605 | K137: 1.0722605 | L137: 1.0722605 | M137: 1.0722605 | N137: 1.0722605 | O137: 1.0722605 | P137: 1.0722605 | Q137: 1.0722605 | R137: 1.0722605 | S137: 1.0722605 | T137: 1.0722605 | U137: 1.0722605 | V137: 1.0722605 | W137: 1.0722605 | X137: 1.0722605 | Y137: 1.0722605 | Z137: 1.0722605 | AA137: 1.0722605 | AB137: 1.0722605 | AC137: 1.0722605 | AD137: 1.0722605 | AE137: 1.0722605 | AF137: 1.0722605 | AG137: 1.0722605 | AH137: 1.0722605 | AI137: 1.0722605 | AJ137: 1.0722605 | AK137: 1.0722605 | AL137: 1.0722605 | AM137: 1.0722605 | AN137: =PRODUCT(AM137,1+$F137*OFFSET(Delta_Inflation,0,AN$113,1,1)) -> 1.0722605 | AO137: 1.0722605 | AP137: 1.0722605 | AQ137: 1.0722605 | AR137: 1.0722605 | AS137: 1.0722605 | AT137: 1.0722605 | AU137: 1.0722605 | AV137: 1.0722605 | AW137: 1.0722605 | AX137: 1.0722605 | AY137: 1.0722605 | AZ137: 1.0722605 | BA137: 1.0722605 | BB137: 1.0722605 | BC137: 1.0722605 | BD137: 1.0722605 | BE137: 1.0722605
B138: Active_RI | C138: 2 | D138: Motor proportional | E138: p | F138: 1.2 | G138: Active_RI-p-2 | H138: 1.054 | I138: =PRODUCT(H138,1+$F138*OFFSET(Delta_Inflation,0,I$113,1,1)) -> 1.066648 | J138: 1.066648 | K138: 1.066648 | L138: 1.066648 | M138: 1.066648 | N138: 1.066648 | O138: 1.066648 | P138: 1.066648 | Q138: 1.066648 | R138: 1.066648 | S138: 1.066648 | T138: 1.066648 | U138: 1.066648 | V138: 1.066648 | W138: 1.066648 | X138: 1.066648 | Y138: 1.066648 | Z138: 1.066648 | AA138: 1.066648 | AB138: 1.066648 | AC138: 1.066648 | AD138: 1.066648 | AE138: 1.066648 | AF138: 1.066648 | AG138: 1.066648 | AH138: 1.066648 | AI138: 1.066648 | AJ138: 1.066648 | AK138: 1.066648 | AL138: 1.066648 | AM138: 1.066648 | AN138: =PRODUCT(AM138,1+$F138*OFFSET(Delta_Inflation,0,AN$113,1,1)) -> 1.066648 | AO138: 1.066648 | AP138: 1.066648 | AQ138: 1.066648 | AR138: 1.066648 | AS138: 1.066648 | AT138: 1.066648 | AU138: 1.066648 | AV138: 1.066648 | AW138: 1.066648 | AX138: 1.066648 | AY138: 1.066648 | AZ138: 1.066648 | BA138: 1.066648 | BB138: 1.066648 | BC138: 1.066648 | BD138: 1.066648 | BE138: 1.066648
B139: Active_RI | C139: 3 | D139: Marine, Aviation and Other Transport proportional | E139: p | F139: 1 | G139: Active_RI-p-3 | H139: 1.045 | I139: =PRODUCT(H139,1+$F139*OFFSET(Delta_Inflation,0,I$113,1,1)) -> 1.05545 | J139: 1.05545 | K139: 1.05545 | L139: 1.05545 | M139: 1.05545 | N139: 1.05545 | O139: 1.05545 | P139: 1.05545 | Q139: 1.05545 | R139: 1.05545 | S139: 1.05545 | T139: 1.05545 | U139: 1.05545 | V139: 1.05545 | W139: 1.05545 | X139: 1.05545 | Y139: 1.05545 | Z139: 1.05545 | AA139: 1.05545 | AB139: 1.05545 | AC139: 1.05545 | AD139: 1.05545 | AE139: 1.05545 | AF139: 1.05545 | AG139: 1.05545 | AH139: 1.05545 | AI139: 1.05545 | AJ139: 1.05545 | AK139: 1.05545 | AL139: 1.05545 | AM139: 1.05545 | AN139: =PRODUCT(AM139,1+$F139*OFFSET(Delta_Inflation,0,AN$113,1,1)) -> 1.05545 | AO139: 1.05545 | AP139: 1.05545 | AQ139: 1.05545 | AR139: 1.05545 | AS139: 1.05545 | AT139: 1.05545 | AU139: 1.05545 | AV139: 1.05545 | AW139: 1.05545 | AX139: 1.05545 | AY139: 1.05545 | AZ139: 1.05545 | BA139: 1.05545 | BB139: 1.05545 | BC139: 1.05545 | BD139: 1.05545 | BE139: 1.05545
B140: Active_RI | C140: 4 | D140: Property proportional | E140: p | F140: 1.1 | G140: Active_RI-p-4 | H140: 1.0495 | I140: =PRODUCT(H140,1+$F140*OFFSET(Delta_Inflation,0,I$113,1,1)) -> 1.0610445 | J140: 1.0610445 | K140: 1.0610445 | L140: 1.0610445 | M140: 1.0610445 | N140: 1.0610445 | O140: 1.0610445 | P140: 1.0610445 | Q140: 1.0610445 | R140: 1.0610445 | S140: 1.0610445 | T140: 1.0610445 | U140: 1.0610445 | V140: 1.0610445 | W140: 1.0610445 | X140: 1.0610445 | Y140: 1.0610445 | Z140: 1.0610445 | AA140: 1.0610445 | AB140: 1.0610445 | AC140: 1.0610445 | AD140: 1.0610445 | AE140: 1.0610445 | AF140: 1.0610445 | AG140: 1.0610445 | AH140: 1.0610445 | AI140: 1.0610445 | AJ140: 1.0610445 | AK140: 1.0610445 | AL140: 1.0610445 | AM140: 1.0610445 | AN140: =PRODUCT(AM140,1+$F140*OFFSET(Delta_Inflation,0,AN$113,1,1)) -> 1.0610445 | AO140: 1.0610445 | AP140: 1.0610445 | AQ140: 1.0610445 | AR140: 1.0610445 | AS140: 1.0610445 | AT140: 1.0610445 | AU140: 1.0610445 | AV140: 1.0610445 | AW140: 1.0610445 | AX140: 1.0610445 | AY140: 1.0610445 | AZ140: 1.0610445 | BA140: 1.0610445 | BB140: 1.0610445 | BC140: 1.0610445 | BD140: 1.0610445 | BE140: 1.0610445
B141: Active_RI | C141: 5 | D141: Financial Losses proportional | E141: p | F141: 0.8 | G141: Active_RI-p-5 | H141: 1.036 | I141: =PRODUCT(H141,1+$F141*OFFSET(Delta_Inflation,0,I$113,1,1)) -> 1.044288 | J141: 1.044288 | K141: 1.044288 | L141: 1.044288 | M141: 1.044288 | N141: 1.044288 | O141: 1.044288 | P141: 1.044288 | Q141: 1.044288 | R141: 1.044288 | S141: 1.044288 | T141: 1.044288 | U141: 1.044288 | V141: 1.044288 | W141: 1.044288 | X141: 1.044288 | Y141: 1.044288 | Z141: 1.044288 | AA141: 1.044288 | AB141: 1.044288 | AC141: 1.044288 | AD141: 1.044288 | AE141: 1.044288 | AF141: 1.044288 | AG141: 1.044288 | AH141: 1.044288 | AI141: 1.044288 | AJ141: 1.044288 | AK141: 1.044288 | AL141: 1.044288 | AM141: 1.044288 | AN141: =PRODUCT(AM141,1+$F141*OFFSET(Delta_Inflation,0,AN$113,1,1)) -> 1.044288 | AO141: 1.044288 | AP141: 1.044288 | AQ141: 1.044288 | AR141: 1.044288 | AS141: 1.044288 | AT141: 1.044288 | AU141: 1.044288 | AV141: 1.044288 | AW141: 1.044288 | AX141: 1.044288 | AY141: 1.044288 | AZ141: 1.044288 | BA141: 1.044288 | BB141: 1.044288 | BC141: 1.044288 | BD141: 1.044288 | BE141: 1.044288
B142: Active_RI | C142: 6 | D142: General Liability proportional | E142: p | F142: 1.15 | G142: Active_RI-p-6 | H142: 1.05175 | I142: =PRODUCT(H142,1+$F142*OFFSET(Delta_Inflation,0,I$113,1,1)) -> 1.063845125 | J142: 1.063845125 | K142: 1.063845125 | L142: 1.063845125 | M142: 1.063845125 | N142: 1.063845125 | O142: 1.063845125 | P142: 1.063845125 | Q142: 1.063845125 | R142: 1.063845125 | S142: 1.063845125 | T142: 1.063845125 | U142: 1.063845125 | V142: 1.063845125 | W142: 1.063845125 | X142: 1.063845125 | Y142: 1.063845125 | Z142: 1.063845125 | AA142: 1.063845125 | AB142: 1.063845125 | AC142: 1.063845125 | AD142: 1.063845125 | AE142: 1.063845125 | AF142: 1.063845125 | AG142: 1.063845125 | AH142: 1.063845125 | AI142: 1.063845125 | AJ142: 1.063845125 | AK142: 1.063845125 | AL142: 1.063845125 | AM142: 1.063845125 | AN142: =PRODUCT(AM142,1+$F142*OFFSET(Delta_Inflation,0,AN$113,1,1)) -> 1.063845125 | AO142: 1.063845125 | AP142: 1.063845125 | AQ142: 1.063845125 | AR142: 1.063845125 | AS142: 1.063845125 | AT142: 1.063845125 | AU142: 1.063845125 | AV142: 1.063845125 | AW142: 1.063845125 | AX142: 1.063845125 | AY142: 1.063845125 | AZ142: 1.063845125 | BA142: 1.063845125 | BB142: 1.063845125 | BC142: 1.063845125 | BD142: 1.063845125 | BE142: 1.063845125
B143: Active_RI | C143: 7 | D143: Other Non-Life proportional | E143: p | F143: 1 | G143: Active_RI-p-7 | H143: 1.045 | I143: =PRODUCT(H143,1+$F143*OFFSET(Delta_Inflation,0,I$113,1,1)) -> 1.05545 | J143: 1.05545 | K143: 1.05545 | L143: 1.05545 | M143: 1.05545 | N143: 1.05545 | O143: 1.05545 | P143: 1.05545 | Q143: 1.05545 | R143: 1.05545 | S143: 1.05545 | T143: 1.05545 | U143: 1.05545 | V143: 1.05545 | W143: 1.05545 | X143: 1.05545 | Y143: 1.05545 | Z143: 1.05545 | AA143: 1.05545 | AB143: 1.05545 | AC143: 1.05545 | AD143: 1.05545 | AE143: 1.05545 | AF143: 1.05545 | AG143: 1.05545 | AH143: 1.05545 | AI143: 1.05545 | AJ143: 1.05545 | AK143: 1.05545 | AL143: 1.05545 | AM143: 1.05545 | AN143: =PRODUCT(AM143,1+$F143*OFFSET(Delta_Inflation,0,AN$113,1,1)) -> 1.05545 | AO143: 1.05545 | AP143: 1.05545 | AQ143: 1.05545 | AR143: 1.05545 | AS143: 1.05545 | AT143: 1.05545 | AU143: 1.05545 | AV143: 1.05545 | AW143: 1.05545 | AX143: 1.05545 | AY143: 1.05545 | AZ143: 1.05545 | BA143: 1.05545 | BB143: 1.05545 | BC143: 1.05545 | BD143: 1.05545 | BE143: 1.05545
B144: Active_RI | C144: 1 | D144: Accident and Health non-prop. | E144: n | F144: 1.5 | G144: Active_RI-n-1 | H144: 1.0675 | I144: =PRODUCT(H144,1+$F144*OFFSET(Delta_Inflation,0,I$113,1,1)) -> 1.0835125 | J144: 1.0835125 | K144: 1.0835125 | L144: 1.0835125 | M144: 1.0835125 | N144: 1.0835125 | O144: 1.0835125 | P144: 1.0835125 | Q144: 1.0835125 | R144: 1.0835125 | S144: 1.0835125 | T144: 1.0835125 | U144: 1.0835125 | V144: 1.0835125 | W144: 1.0835125 | X144: 1.0835125 | Y144: 1.0835125 | Z144: 1.0835125 | AA144: 1.0835125 | AB144: 1.0835125 | AC144: 1.0835125 | AD144: 1.0835125 | AE144: 1.0835125 | AF144: 1.0835125 | AG144: 1.0835125 | AH144: 1.0835125 | AI144: 1.0835125 | AJ144: 1.0835125 | AK144: 1.0835125 | AL144: 1.0835125 | AM144: 1.0835125 | AN144: =PRODUCT(AM144,1+$F144*OFFSET(Delta_Inflation,0,AN$113,1,1)) -> 1.0835125 | AO144: 1.0835125 | AP144: 1.0835125 | AQ144: 1.0835125 | AR144: 1.0835125 | AS144: 1.0835125 | AT144: 1.0835125 | AU144: 1.0835125 | AV144: 1.0835125 | AW144: 1.0835125 | AX144: 1.0835125 | AY144: 1.0835125 | AZ144: 1.0835125 | BA144: 1.0835125 | BB144: 1.0835125 | BC144: 1.0835125 | BD144: 1.0835125 | BE144: 1.0835125
B145: Active_RI | C145: 2 | D145: Motor non-prop. | E145: n | F145: 1.8 | G145: Active_RI-n-2 | H145: 1.081 | I145: =PRODUCT(H145,1+$F145*OFFSET(Delta_Inflation,0,I$113,1,1)) -> 1.100458 | J145: 1.100458 | K145: 1.100458 | L145: 1.100458 | M145: 1.100458 | N145: 1.100458 | O145: 1.100458 | P145: 1.100458 | Q145: 1.100458 | R145: 1.100458 | S145: 1.100458 | T145: 1.100458 | U145: 1.100458 | V145: 1.100458 | W145: 1.100458 | X145: 1.100458 | Y145: 1.100458 | Z145: 1.100458 | AA145: 1.100458 | AB145: 1.100458 | AC145: 1.100458 | AD145: 1.100458 | AE145: 1.100458 | AF145: 1.100458 | AG145: 1.100458 | AH145: 1.100458 | AI145: 1.100458 | AJ145: 1.100458 | AK145: 1.100458 | AL145: 1.100458 | AM145: 1.100458 | AN145: =PRODUCT(AM145,1+$F145*OFFSET(Delta_Inflation,0,AN$113,1,1)) -> 1.100458 | AO145: 1.100458 | AP145: 1.100458 | AQ145: 1.100458 | AR145: 1.100458 | AS145: 1.100458 | AT145: 1.100458 | AU145: 1.100458 | AV145: 1.100458 | AW145: 1.100458 | AX145: 1.100458 | AY145: 1.100458 | AZ145: 1.100458 | BA145: 1.100458 | BB145: 1.100458 | BC145: 1.100458 | BD145: 1.100458 | BE145: 1.100458
B146: Active_RI | C146: 3 | D146: Marine, Aviation and Other Transport non-prop. | E146: n | F146: 1.1 | G146: Active_RI-n-3 | H146: 1.0495 | I146: =PRODUCT(H146,1+$F146*OFFSET(Delta_Inflation,0,I$113,1,1)) -> 1.0610445 | J146: 1.0610445 | K146: 1.0610445 | L146: 1.0610445 | M146: 1.0610445 | N146: 1.0610445 | O146: 1.0610445 | P146: 1.0610445 | Q146: 1.0610445 | R146: 1.0610445 | S146: 1.0610445 | T146: 1.0610445 | U146: 1.0610445 | V146: 1.0610445 | W146: 1.0610445 | X146: 1.0610445 | Y146: 1.0610445 | Z146: 1.0610445 | AA146: 1.0610445 | AB146: 1.0610445 | AC146: 1.0610445 | AD146: 1.0610445 | AE146: 1.0610445 | AF146: 1.0610445 | AG146: 1.0610445 | AH146: 1.0610445 | AI146: 1.0610445 | AJ146: 1.0610445 | AK146: 1.0610445 | AL146: 1.0610445 | AM146: 1.0610445 | AN146: =PRODUCT(AM146,1+$F146*OFFSET(Delta_Inflation,0,AN$113,1,1)) -> 1.0610445 | AO146: 1.0610445 | AP146: 1.0610445 | AQ146: 1.0610445 | AR146: 1.0610445 | AS146: 1.0610445 | AT146: 1.0610445 | AU146: 1.0610445 | AV146: 1.0610445 | AW146: 1.0610445 | AX146: 1.0610445 | AY146: 1.0610445 | AZ146: 1.0610445 | BA146: 1.0610445 | BB146: 1.0610445 | BC146: 1.0610445 | BD146: 1.0610445 | BE146: 1.0610445
B147: Active_RI | C147: 4 | D147: Property non-prop. | E147: n | F147: 1.2 | G147: Active_RI-n-4 | H147: 1.054 | I147: =PRODUCT(H147,1+$F147*OFFSET(Delta_Inflation,0,I$113,1,1)) -> 1.066648 | J147: 1.066648 | K147: 1.066648 | L147: 1.066648 | M147: 1.066648 | N147: 1.066648 | O147: 1.066648 | P147: 1.066648 | Q147: 1.066648 | R147: 1.066648 | S147: 1.066648 | T147: 1.066648 | U147: 1.066648 | V147: 1.066648 | W147: 1.066648 | X147: 1.066648 | Y147: 1.066648 | Z147: 1.066648 | AA147: 1.066648 | AB147: 1.066648 | AC147: 1.066648 | AD147: 1.066648 | AE147: 1.066648 | AF147: 1.066648 | AG147: 1.066648 | AH147: 1.066648 | AI147: 1.066648 | AJ147: 1.066648 | AK147: 1.066648 | AL147: 1.066648 | AM147: 1.066648 | AN147: =PRODUCT(AM147,1+$F147*OFFSET(Delta_Inflation,0,AN$113,1,1)) -> 1.066648 | AO147: 1.066648 | AP147: 1.066648 | AQ147: 1.066648 | AR147: 1.066648 | AS147: 1.066648 | AT147: 1.066648 | AU147: 1.066648 | AV147: 1.066648 | AW147: 1.066648 | AX147: 1.066648 | AY147: 1.066648 | AZ147: 1.066648 | BA147: 1.066648 | BB147: 1.066648 | BC147: 1.066648 | BD147: 1.066648 | BE147: 1.066648
B148: Active_RI | C148: 5 | D148: Financial Losses non-prop. | E148: n | F148: 1.2 | G148: Active_RI-n-5 | H148: 1.054 | I148: =PRODUCT(H148,1+$F148*OFFSET(Delta_Inflation,0,I$113,1,1)) -> 1.066648 | J148: 1.066648 | K148: 1.066648 | L148: 1.066648 | M148: 1.066648 | N148: 1.066648 | O148: 1.066648 | P148: 1.066648 | Q148: 1.066648 | R148: 1.066648 | S148: 1.066648 | T148: 1.066648 | U148: 1.066648 | V148: 1.066648 | W148: 1.066648 | X148: 1.066648 | Y148: 1.066648 | Z148: 1.066648 | AA148: 1.066648 | AB148: 1.066648 | AC148: 1.066648 | AD148: 1.066648 | AE148: 1.066648 | AF148: 1.066648 | AG148: 1.066648 | AH148: 1.066648 | AI148: 1.066648 | AJ148: 1.066648 | AK148: 1.066648 | AL148: 1.066648 | AM148: 1.066648 | AN148: =PRODUCT(AM148,1+$F148*OFFSET(Delta_Inflation,0,AN$113,1,1)) -> 1.066648 | AO148: 1.066648 | AP148: 1.066648 | AQ148: 1.066648 | AR148: 1.066648 | AS148: 1.066648 | AT148: 1.066648 | AU148: 1.066648 | AV148: 1.066648 | AW148: 1.066648 | AX148: 1.066648 | AY148: 1.066648 | AZ148: 1.066648 | BA148: 1.066648 | BB148: 1.066648 | BC148: 1.066648 | BD148: 1.066648 | BE148: 1.066648
B149: Active_RI | C149: 6 | D149: General Liability non-prop. | E149: n | F149: 1.5 | G149: Active_RI-n-6 | H149: 1.0675 | I149: =PRODUCT(H149,1+$F149*OFFSET(Delta_Inflation,0,I$113,1,1)) -> 1.0835125 | J149: 1.0835125 | K149: 1.0835125 | L149: 1.0835125 | M149: 1.0835125 | N149: 1.0835125 | O149: 1.0835125 | P149: 1.0835125 | Q149: 1.0835125 | R149: 1.0835125 | S149: 1.0835125 | T149: 1.0835125 | U149: 1.0835125 | V149: 1.0835125 | W149: 1.0835125 | X149: 1.0835125 | Y149: 1.0835125 | Z149: 1.0835125 | AA149: 1.0835125 | AB149: 1.0835125 | AC149: 1.0835125 | AD149: 1.0835125 | AE149: 1.0835125 | AF149: 1.0835125 | AG149: 1.0835125 | AH149: 1.0835125 | AI149: 1.0835125 | AJ149: 1.0835125 | AK149: 1.0835125 | AL149: 1.0835125 | AM149: 1.0835125 | AN149: =PRODUCT(AM149,1+$F149*OFFSET(Delta_Inflation,0,AN$113,1,1)) -> 1.0835125 | AO149: 1.0835125 | AP149: 1.0835125 | AQ149: 1.0835125 | AR149: 1.0835125 | AS149: 1.0835125 | AT149: 1.0835125 | AU149: 1.0835125 | AV149: 1.0835125 | AW149: 1.0835125 | AX149: 1.0835125 | AY149: 1.0835125 | AZ149: 1.0835125 | BA149: 1.0835125 | BB149: 1.0835125 | BC149: 1.0835125 | BD149: 1.0835125 | BE149: 1.0835125
B150: Active_RI | C150: 7 | D150: Other Non-Life non-prop. | E150: n | F150: 1.5 | G150: Active_RI-n-7 | H150: 1.0675 | I150: =PRODUCT(H150,1+$F150*OFFSET(Delta_Inflation,0,I$113,1,1)) -> 1.0835125 | J150: 1.0835125 | K150: 1.0835125 | L150: 1.0835125 | M150: 1.0835125 | N150: 1.0835125 | O150: 1.0835125 | P150: 1.0835125 | Q150: 1.0835125 | R150: 1.0835125 | S150: 1.0835125 | T150: 1.0835125 | U150: 1.0835125 | V150: 1.0835125 | W150: 1.0835125 | X150: 1.0835125 | Y150: 1.0835125 | Z150: 1.0835125 | AA150: 1.0835125 | AB150: 1.0835125 | AC150: 1.0835125 | AD150: 1.0835125 | AE150: 1.0835125 | AF150: 1.0835125 | AG150: 1.0835125 | AH150: 1.0835125 | AI150: 1.0835125 | AJ150: 1.0835125 | AK150: 1.0835125 | AL150: 1.0835125 | AM150: 1.0835125 | AN150: =PRODUCT(AM150,1+$F150*OFFSET(Delta_Inflation,0,AN$113,1,1)) -> 1.0835125 | AO150: 1.0835125 | AP150: 1.0835125 | AQ150: 1.0835125 | AR150: 1.0835125 | AS150: 1.0835125 | AT150: 1.0835125 | AU150: 1.0835125 | AV150: 1.0835125 | AW150: 1.0835125 | AX150: 1.0835125 | AY150: 1.0835125 | AZ150: 1.0835125 | BA150: 1.0835125 | BB150: 1.0835125 | BC150: 1.0835125 | BD150: 1.0835125 | BE150: 1.0835125

Sheet NL_Default_Correlations
A1: 9 | B1: =_NL_DefaultCorr -> Schadenversicherung: Default-Korrelationsmatrix
B3: =_risk -> Risiko | E3: PY | T3: CY | AI3: URR
C4: =_number -> Nr. | D4: =_NL_LOB_default -> SST-Standardversicherungsbranche | E4: =TRANSPOSE(D5:D19) -> MFH | F4: MFK | G4: Sach | H4: (Elementarschadenpool) | I4: Haftpflicht | J4: UVG, nicht verrentete Fälle | K4: UVG-Renten | L4: Unfall ohne UVG | M4: Kollektivtaggeld | N4: Einzelkranken | O4: Transport | P4: Luftfahrt | Q4: Finanz und Kaution | R4: Rechtsschutz | S4: Andere | T4: =TRANSPOSE(D20:D34) -> MFH | U4: MFK | V4: Sach ohne Elementarschadenpool | W4: Elementarschadenpool | X4: Haftpflicht | Y4: UVG, nicht verrentete Fälle | Z4: UVG-Renten | AA4: Unfall ohne UVG | AB4: Kollektivtaggeld | AC4: Einzelkranken | AD4: Transport | AE4: Luftfahrt | AF4: Finanz und Kaution | AG4: Rechtsschutz | AH4: Andere | AI4: =TRANSPOSE(D35:D49) -> MFH | AJ4: MFK | AK4: Sach ohne Elementarschadenpool | AL4: Elementarschadenpool | AM4: Haftpflicht | AN4: UVG, nicht verrentete Fälle | AO4: UVG-Renten | AP4: Unfall ohne UVG | AQ4: Kollektivtaggeld | AR4: Einzelkranken | AS4: Transport | AT4: Luftfahrt | AU4: Finanz und Kaution | AV4: Rechtsschutz | AW4: Andere
B5: PY | C5: 1 | D5: =_MTPL -> MFH | E5: 1 | F5: 0.15 | G5: 0.15 | H5: 0.15 | I5: 0.5 | J5: 0.5 | K5: 0 | L5: 0.5 | M5: 0.25 | N5: 0.15 | O5: 0.15 | P5: 0.15 | Q5: 0.25 | R5: 0.25 | S5: 0.25 | T5: 0.5 | U5: 0.5 | V5: 0.15 | W5: 0.15 | X5: 0.25 | Y5: 0.25 | Z5: 0 | AA5: 0.25 | AB5: 0.25 | AC5: 0.15 | AD5: 0.15 | AE5: 0.25 | AF5: 0.25 | AG5: 0.25 | AH5: 0.25 | AI5: 0.25 | AJ5: 0 | AK5: 0 | AL5: 0 | AM5: 0.075 | AN5: 0.075 | AO5: 0 | AP5: 0 | AQ5: 0 | AR5: 0 | AS5: 0 | AT5: 0 | AU5: 0 | AV5: 0 | AW5: 0
C6: 2 | D6: =_MOD -> MFK | E6: 0.15 | F6: 1 | G6: 0.15 | H6: 0.15 | I6: 0.15 | J6: 0.15 | K6: 0 | L6: 0.15 | M6: 0.15 | N6: 0.15 | O6: 0.15 | P6: 0.15 | Q6: 0.15 | R6: 0.15 | S6: 0.25 | T6: 0.5 | U6: 0.5 | V6: 0.25 | W6: 0.25 | X6: 0.15 | Y6: 0.25 | Z6: 0 | AA6: 0.25 | AB6: 0.15 | AC6: 0.15 | AD6: 0.15 | AE6: 0.15 | AF6: 0.15 | AG6: 0.15 | AH6: 0.25 | AI6: 0 | AJ6: 0.25 | AK6: 0 | AL6: 0 | AM6: 0 | AN6: 0 | AO6: 0 | AP6: 0 | AQ6: 0 | AR6: 0 | AS6: 0 | AT6: 0 | AU6: 0 | AV6: 0 | AW6: 0
C7: 3 | D7: =_Fire -> Sach | E7: 0.15 | F7: 0.15 | G7: 1 | H7: 0.15 | I7: 0.15 | J7: 0.15 | K7: 0 | L7: 0.15 | M7: 0.15 | N7: 0.15 | O7: 0.15 | P7: 0.15 | Q7: 0.15 | R7: 0.15 | S7: 0.25 | T7: 0.15 | U7: 0.25 | V7: 0.5 | W7: 0.25 | X7: 0.25 | Y7: 0.15 | Z7: 0 | AA7: 0.15 | AB7: 0.15 | AC7: 0.15 | AD7: 0.15 | AE7: 0.15 | AF7: 0.15 | AG7: 0.15 | AH7: 0.25 | AI7: 0 | AJ7: 0 | AK7: 0.25 | AL7: 0 | AM7: 0 | AN7: 0 | AO7: 0 | AP7: 0 | AQ7: 0 | AR7: 0 | AS7: 0 | AT7: 0 | AU7: 0 | AV7: 0 | AW7: 0
C8: 3b | D8: =_ESP_in_Parenthesis -> (Elementarschadenpool) | E8: 0.15 | F8: 0.15 | G8: 0.15 | H8: 1 | I8: 0.15 | J8: 0.15 | K8: 0 | L8: 0.15 | M8: 0.15 | N8: 0.15 | O8: 0.15 | P8: 0.15 | Q8: 0.15 | R8: 0.15 | S8: 0.25 | T8: 0.15 | U8: 0.25 | V8: 0.25 | W8: 0.5 | X8: 0.15 | Y8: 0.15 | Z8: 0 | AA8: 0.15 | AB8: 0.15 | AC8: 0.15 | AD8: 0.15 | AE8: 0.15 | AF8: 0.15 | AG8: 0.15 | AH8: 0.25 | AI8: 0 | AJ8: 0 | AK8: 0 | AL8: 0.25 | AM8: 0 | AN8: 0 | AO8: 0 | AP8: 0 | AQ8: 0 | AR8: 0 | AS8: 0 | AT8: 0 | AU8: 0 | AV8: 0 | AW8: 0
C9: 4 | D9: =_GL -> Haftpflicht | E9: 0.5 | F9: 0.15 | G9: 0.15 | H9: 0.15 | I9: 1 | J9: 0.5 | K9: 0 | L9: 0.25 | M9: 0.15 | N9: 0.15 | O9: 0.15 | P9: 0.15 | Q9: 0.15 | R9: 0.15 | S9: 0.25 | T9: 0.25 | U9: 0.15 | V9: 0.25 | W9: 0.15 | X9: 0.5 | Y9: 0.25 | Z9: 0 | AA9: 0.15 | AB9: 0.15 | AC9: 0.15 | AD9: 0.15 | AE9: 0.25 | AF9: 0.15 | AG9: 0.15 | AH9: 0.25 | AI9: 0.075 | AJ9: 0 | AK9: 0 | AL9: 0 | AM9: 0.25 | AN9: 0.075 | AO9: 0 | AP9: 0 | AQ9: 0 | AR9: 0 | AS9: 0 | AT9: 0 | AU9: 0 | AV9: 0 | AW9: 0
C10: 5a | D10: =_AccMandatory_noAnnuities -> UVG, nicht verrentete Fälle | E10: 0.5 | F10: 0.15 | G10: 0.15 | H10: 0.15 | I10: 0.5 | J10: 1 | K10: 0 | L10: 0.5 | M10: 0.25 | N10: 0.15 | O10: 0.15 | P10: 0.25 | Q10: 0.25 | R10: 0.25 | S10: 0.25 | T10: 0.25 | U10: 0.25 | V10: 0.15 | W10: 0.15 | X10: 0.25 | Y10: 0.5 | Z10: 0 | AA10: 0.5 | AB10: 0.25 | AC10: 0.15 | AD10: 0.15 | AE10: 0.25 | AF10: 0.25 | AG10: 0.25 | AH10: 0.25 | AI10: 0.075 | AJ10: 0 | AK10: 0 | AL10: 0 | AM10: 0.075 | AN10: 0.25 | AO10: 0 | AP10: 0 | AQ10: 0 | AR10: 0 | AS10: 0 | AT10: 0 | AU10: 0 | AV10: 0 | AW10: 0
C11: 5b | D11: =_AccMandatory_Annuities -> UVG-Renten | E11: 0 | F11: 0 | G11: 0 | H11: 0 | I11: 0 | J11: 0 | K11: 1 | L11: 0 | M11: 0 | N11: 0 | O11: 0 | P11: 0 | Q11: 0 | R11: 0 | S11: 0 | T11: 0 | U11: 0 | V11: 0 | W11: 0 | X11: 0 | Y11: 0 | Z11: 0.5 | AA11: 0 | AB11: 0 | AC11: 0 | AD11: 0 | AE11: 0 | AF11: 0 | AG11: 0 | AH11: 0 | AI11: 0 | AJ11: 0 | AK11: 0 | AL11: 0 | AM11: 0 | AN11: 0 | AO11: 0.25 | AP11: 0 | AQ11: 0 | AR11: 0 | AS11: 0 | AT11: 0 | AU11: 0 | AV11: 0 | AW11: 0
C12: 6 | D12: =_AccOptional -> Unfall ohne UVG | E12: 0.5 | F12: 0.15 | G12: 0.15 | H12: 0.15 | I12: 0.25 | J12: 0.5 | K12: 0 | L12: 1 | M12: 0.25 | N12: 0.15 | O12: 0.15 | P12: 0.25 | Q12: 0.25 | R12: 0.25 | S12: 0.25 | T12: 0.25 | U12: 0.25 | V12: 0.15 | W12: 0.15 | X12: 0.15 | Y12: 0.5 | Z12: 0 | AA12: 0.5 | AB12: 0.25 | AC12: 0.15 | AD12: 0.15 | AE12: 0.25 | AF12: 0.25 | AG12: 0.25 | AH12: 0.25 | AI12: 0 | AJ12: 0 | AK12: 0 | AL12: 0 | AM12: 0 | AN12: 0 | AO12: 0 | AP12: 0.25 | AQ12: 0 | AR12: 0 | AS12: 0 | AT12: 0 | AU12: 0 | AV12: 0 | AW12: 0
C13: 7 | D13: =_Health_Collective -> Kollektivtaggeld | E13: 0.25 | F13: 0.15 | G13: 0.15 | H13: 0.15 | I13: 0.15 | J13: 0.25 | K13: 0 | L13: 0.25 | M13: 1 | N13: 0.15 | O13: 0.15 | P13: 0.15 | Q13: 0.25 | R13: 0.25 | S13: 0.25 | T13: 0.25 | U13: 0.15 | V13: 0.15 | W13: 0.15 | X13: 0.15 | Y13: 0.25 | Z13: 0 | AA13: 0.25 | AB13: 0.5 | AC13: 0.25 | AD13: 0.15 | AE13: 0.15 | AF13: 0.25 | AG13: 0.25 | AH13: 0.25 | AI13: 0 | AJ13: 0 | AK13: 0 | AL13: 0 | AM13: 0 | AN13: 0 | AO13: 0 | AP13: 0 | AQ13: 0.25 | AR13: 0 | AS13: 0 | AT13: 0 | AU13: 0 | AV13: 0 | AW13: 0
C14: 8 | D14: =_Health_Individual -> Einzelkranken | E14: 0.15 | F14: 0.15 | G14: 0.15 | H14: 0.15 | I14: 0.15 | J14: 0.15 | K14: 0 | L14: 0.15 | M14: 0.15 | N14: 1 | O14: 0.15 | P14: 0.15 | Q14: 0.15 | R14: 0.15 | S14: 0.25 | T14: 0.15 | U14: 0.15 | V14: 0.15 | W14: 0.15 | X14: 0.15 | Y14: 0.15 | Z14: 0 | AA14: 0.15 | AB14: 0.25 | AC14: 0.5 | AD14: 0.15 | AE14: 0.15 | AF14: 0.15 | AG14: 0.15 | AH14: 0.25 | AI14: 0 | AJ14: 0 | AK14: 0 | AL14: 0 | AM14: 0 | AN14: 0 | AO14: 0 | AP14: 0 | AQ14: 0 | AR14: 0.25 | AS14: 0 | AT14: 0 | AU14: 0 | AV14: 0 | AW14: 0
C15: 9 | D15: =_Marine -> Transport | E15: 0.15 | F15: 0.15 | G15: 0.15 | H15: 0.15 | I15: 0.15 | J15: 0.15 | K15: 0 | L15: 0.15 | M15: 0.15 | N15: 0.15 | O15: 1 | P15: 0.15 | Q15: 0.15 | R15: 0.15 | S15: 0.25 | T15: 0.15 | U15: 0.15 | V15: 0.15 | W15: 0.15 | X15: 0.15 | Y15: 0.15 | Z15: 0 | AA15: 0.15 | AB15: 0.15 | AC15: 0.15 | AD15: 0.5 | AE15: 0.15 | AF15: 0.15 | AG15: 0.15 | AH15: 0.25 | AI15: 0 | AJ15: 0 | AK15: 0 | AL15: 0 | AM15: 0 | AN15: 0 | AO15: 0 | AP15: 0 | AQ15: 0 | AR15: 0 | AS15: 0.25 | AT15: 0 | AU15: 0 | AV15: 0 | AW15: 0
C16: 10 | D16: =_Aviation -> Luftfahrt | E16: 0.15 | F16: 0.15 | G16: 0.15 | H16: 0.15 | I16: 0.15 | J16: 0.25 | K16: 0 | L16: 0.25 | M16: 0.15 | N16: 0.15 | O16: 0.15 | P16: 1 | Q16: 0.15 | R16: 0.15 | S16: 0.25 | T16: 0.25 | U16: 0.15 | V16: 0.15 | W16: 0.15 | X16: 0.25 | Y16: 0.25 | Z16: 0 | AA16: 0.25 | AB16: 0.15 | AC16: 0.15 | AD16: 0.15 | AE16: 0.5 | AF16: 0.15 | AG16: 0.15 | AH16: 0.25 | AI16: 0 | AJ16: 0 | AK16: 0 | AL16: 0 | AM16: 0 | AN16: 0 | AO16: 0 | AP16: 0 | AQ16: 0 | AR16: 0 | AS16: 0 | AT16: 0.25 | AU16: 0 | AV16: 0 | AW16: 0
C17: 11 | D17: =_CreditSurety -> Finanz und Kaution | E17: 0.25 | F17: 0.15 | G17: 0.15 | H17: 0.15 | I17: 0.15 | J17: 0.25 | K17: 0 | L17: 0.25 | M17: 0.25 | N17: 0.15 | O17: 0.15 | P17: 0.15 | Q17: 1 | R17: 0.15 | S17: 0.25 | T17: 0.25 | U17: 0.15 | V17: 0.15 | W17: 0.15 | X17: 0.15 | Y17: 0.25 | Z17: 0 | AA17: 0.25 | AB17: 0.25 | AC17: 0.15 | AD17: 0.15 | AE17: 0.15 | AF17: 0.5 | AG17: 0.15 | AH17: 0.25 | AI17: 0 | AJ17: 0 | AK17: 0 | AL17: 0 | AM17: 0 | AN17: 0 | AO17: 0 | AP17: 0 | AQ17: 0 | AR17: 0 | AS17: 0 | AT17: 0 | AU17: 0.25 | AV17: 0 | AW17: 0
C18: 12 | D18: =_Legal -> Rechtsschutz | E18: 0.25 | F18: 0.15 | G18: 0.15 | H18: 0.15 | I18: 0.15 | J18: 0.25 | K18: 0 | L18: 0.25 | M18: 0.25 | N18: 0.15 | O18: 0.15 | P18: 0.15 | Q18: 0.15 | R18: 1 | S18: 0.25 | T18: 0.25 | U18: 0.15 | V18: 0.15 | W18: 0.15 | X18: 0.15 | Y18: 0.25 | Z18: 0 | AA18: 0.25 | AB18: 0.25 | AC18: 0.15 | AD18: 0.15 | AE18: 0.15 | AF18: 0.15 | AG18: 0.5 | AH18: 0.25 | AI18: 0 | AJ18: 0 | AK18: 0 | AL18: 0 | AM18: 0 | AN18: 0 | AO18: 0 | AP18: 0 | AQ18: 0 | AR18: 0 | AS18: 0 | AT18: 0 | AU18: 0 | AV18: 0.25 | AW18: 0
C19: 13 | D19: =_Others -> Andere | E19: 0.25 | F19: 0.25 | G19: 0.25 | H19: 0.25 | I19: 0.25 | J19: 0.25 | K19: 0 | L19: 0.25 | M19: 0.25 | N19: 0.25 | O19: 0.25 | P19: 0.25 | Q19: 0.25 | R19: 0.25 | S19: 1 | T19: 0.25 | U19: 0.25 | V19: 0.25 | W19: 0.25 | X19: 0.25 | Y19: 0.25 | Z19: 0 | AA19: 0.25 | AB19: 0.25 | AC19: 0.25 | AD19: 0.25 | AE19: 0.25 | AF19: 0.25 | AG19: 0.25 | AH19: 0.5 | AI19: 0 | AJ19: 0 | AK19: 0 | AL19: 0 | AM19: 0 | AN19: 0 | AO19: 0 | AP19: 0 | AQ19: 0 | AR19: 0 | AS19: 0 | AT19: 0 | AU19: 0 | AV19: 0 | AW19: 0.25
B20: CY | C20: 1 | D20: =_MTPL -> MFH | E20: 0.5 | F20: 0.5 | G20: 0.15 | H20: 0.15 | I20: 0.25 | J20: 0.25 | K20: 0 | L20: 0.25 | M20: 0.25 | N20: 0.15 | O20: 0.15 | P20: 0.25 | Q20: 0.25 | R20: 0.25 | S20: 0.25 | T20: 1 | U20: 0.5 | V20: 0.15 | W20: 0.15 | X20: 0.5 | Y20: 0.5 | Z20: 0 | AA20: 0.25 | AB20: 0.15 | AC20: 0.15 | AD20: 0.15 | AE20: 0.15 | AF20: 0.15 | AG20: 0.15 | AH20: 0.25 | AI20: 0.5 | AJ20: 0.25 | AK20: 0.075 | AL20: 0.075 | AM20: 0.25 | AN20: 0.25 | AO20: 0 | AP20: 0.125 | AQ20: 0.075 | AR20: 0.075 | AS20: 0.075 | AT20: 0.125 | AU20: 0.075 | AV20: 0.075 | AW20: 0.125
C21: 2 | D21: =_MOD -> MFK | E21: 0.5 | F21: 0.5 | G21: 0.25 | H21: 0.25 | I21: 0.15 | J21: 0.25 | K21: 0 | L21: 0.25 | M21: 0.15 | N21: 0.15 | O21: 0.15 | P21: 0.15 | Q21: 0.15 | R21: 0.15 | S21: 0.25 | T21: 0.5 | U21: 1 | V21: 0.5 | W21: 0.25 | X21: 0.15 | Y21: 0.25 | Z21: 0 | AA21: 0.25 | AB21: 0.15 | AC21: 0.15 | AD21: 0.15 | AE21: 0.15 | AF21: 0.15 | AG21: 0.15 | AH21: 0.25 | AI21: 0.25 | AJ21: 0.5 | AK21: 0.25 | AL21: 0.125 | AM21: 0.075 | AN21: 0.125 | AO21: 0 | AP21: 0.125 | AQ21: 0.075 | AR21: 0.075 | AS21: 0.075 | AT21: 0.075 | AU21: 0.075 | AV21: 0.075 | AW21: 0.125
C22: 3a | D22: =_Fire_no_Elementar -> Sach ohne Elementarschadenpool | E22: 0.15 | F22: 0.25 | G22: 0.5 | H22: 0.25 | I22: 0.25 | J22: 0.15 | K22: 0 | L22: 0.15 | M22: 0.15 | N22: 0.15 | O22: 0.15 | P22: 0.15 | Q22: 0.15 | R22: 0.15 | S22: 0.25 | T22: 0.15 | U22: 0.5 | V22: 1 | W22: 0.25 | X22: 0.25 | Y22: 0.15 | Z22: 0 | AA22: 0.15 | AB22: 0.15 | AC22: 0.15 | AD22: 0.25 | AE22: 0.15 | AF22: 0.25 | AG22: 0.15 | AH22: 0.25 | AI22: 0.075 | AJ22: 0.25 | AK22: 0.5 | AL22: 0.125 | AM22: 0.125 | AN22: 0.075 | AO22: 0 | AP22: 0.075 | AQ22: 0.075 | AR22: 0.075 | AS22: 0.075 | AT22: 0.075 | AU22: 0.075 | AV22: 0.075 | AW22: 0.125
C23: 3b | D23: =_ESP -> Elementarschadenpool | E23: 0.15 | F23: 0.25 | G23: 0.25 | H23: 0.5 | I23: 0.15 | J23: 0.15 | K23: 0 | L23: 0.15 | M23: 0.15 | N23: 0.15 | O23: 0.15 | P23: 0.15 | Q23: 0.15 | R23: 0.15 | S23: 0.25 | T23: 0.15 | U23: 0.25 | V23: 0.25 | W23: 1 | X23: 0.15 | Y23: 0.15 | Z23: 0 | AA23: 0.15 | AB23: 0.15 | AC23: 0.15 | AD23: 0.15 | AE23: 0.15 | AF23: 0.15 | AG23: 0.15 | AH23: 0.25 | AI23: 0.075 | AJ23: 0.125 | AK23: 0.125 | AL23: 0.5 | AM23: 0.075 | AN23: 0.075 | AO23: 0 | AP23: 0.075 | AQ23: 0.075 | AR23: 0.075 | AS23: 0.075 | AT23: 0.075 | AU23: 0.075 | AV23: 0.075 | AW23: 0.125
C24: 4 | D24: =_GL -> Haftpflicht | E24: 0.25 | F24: 0.15 | G24: 0.25 | H24: 0.15 | I24: 0.5 | J24: 0.25 | K24: 0 | L24: 0.15 | M24: 0.15 | N24: 0.15 | O24: 0.15 | P24: 0.25 | Q24: 0.15 | R24: 0.15 | S24: 0.25 | T24: 0.5 | U24: 0.15 | V24: 0.25 | W24: 0.15 | X24: 1 | Y24: 0.4 | Z24: 0 | AA24: 0.15 | AB24: 0.15 | AC24: 0.15 | AD24: 0.15 | AE24: 0.15 | AF24: 0.15 | AG24: 0.15 | AH24: 0.25 | AI24: 0.25 | AJ24: 0.075 | AK24: 0.125 | AL24: 0.075 | AM24: 0.5 | AN24: 0.25 | AO24: 0 | AP24: 0.075 | AQ24: 0.075 | AR24: 0.075 | AS24: 0.075 | AT24: 0.125 | AU24: 0.075 | AV24: 0.075 | AW24: 0.125
C25: 5a | D25: =_AccMandatory_noAnnuities -> UVG, nicht verrentete Fälle | E25: 0.25 | F25: 0.25 | G25: 0.15 | H25: 0.15 | I25: 0.25 | J25: 0.5 | K25: 0 | L25: 0.5 | M25: 0.25 | N25: 0.15 | O25: 0.15 | P25: 0.25 | Q25: 0.25 | R25: 0.25 | S25: 0.25 | T25: 0.5 | U25: 0.25 | V25: 0.15 | W25: 0.15 | X25: 0.4 | Y25: 1 | Z25: 0 | AA25: 0.5 | AB25: 0.25 | AC25: 0.15 | AD25: 0.15 | AE25: 0.25 | AF25: 0.25 | AG25: 0.25 | AH25: 0.25 | AI25: 0.25 | AJ25: 0.125 | AK25: 0.075 | AL25: 0.075 | AM25: 0.25 | AN25: 0.5 | AO25: 0 | AP25: 0.25 | AQ25: 0.125 | AR25: 0.075 | AS25: 0.075 | AT25: 0.125 | AU25: 0.125 | AV25: 0.125 | AW25: 0.125
C26: 5b | D26: =_AccMandatory_Annuities -> UVG-Renten | E26: 0 | F26: 0 | G26: 0 | H26: 0 | I26: 0 | J26: 0 | K26: 0.5 | L26: 0 | M26: 0 | N26: 0 | O26: 0 | P26: 0 | Q26: 0 | R26: 0 | S26: 0 | T26: 0 | U26: 0 | V26: 0 | W26: 0 | X26: 0 | Y26: 0 | Z26: 1 | AA26: 0 | AB26: 0 | AC26: 0 | AD26: 0 | AE26: 0 | AF26: 0 | AG26: 0 | AH26: 0 | AI26: 0 | AJ26: 0 | AK26: 0 | AL26: 0 | AM26: 0 | AN26: 0 | AO26: 0.5 | AP26: 0 | AQ26: 0 | AR26: 0 | AS26: 0 | AT26: 0 | AU26: 0 | AV26: 0 | AW26: 0
C27: 6 | D27: =_AccOptional -> Unfall ohne UVG | E27: 0.25 | F27: 0.25 | G27: 0.15 | H27: 0.15 | I27: 0.15 | J27: 0.5 | K27: 0 | L27: 0.5 | M27: 0.25 | N27: 0.15 | O27: 0.15 | P27: 0.25 | Q27: 0.25 | R27: 0.25 | S27: 0.25 | T27: 0.25 | U27: 0.25 | V27: 0.15 | W27: 0.15 | X27: 0.15 | Y27: 0.5 | Z27: 0 | AA27: 1 | AB27: 0.25 | AC27: 0.15 | AD27: 0.15 | AE27: 0.25 | AF27: 0.25 | AG27: 0.25 | AH27: 0.25 | AI27: 0.125 | AJ27: 0.125 | AK27: 0.075 | AL27: 0.075 | AM27: 0.075 | AN27: 0.25 | AO27: 0 | AP27: 0.5 | AQ27: 0.125 | AR27: 0.075 | AS27: 0.075 | AT27: 0.125 | AU27: 0.125 | AV27: 0.125 | AW27: 0.125
C28: 7 | D28: =_Health_Collective -> Kollektivtaggeld | E28: 0.25 | F28: 0.15 | G28: 0.15 | H28: 0.15 | I28: 0.15 | J28: 0.25 | K28: 0 | L28: 0.25 | M28: 0.5 | N28: 0.25 | O28: 0.15 | P28: 0.15 | Q28: 0.25 | R28: 0.25 | S28: 0.25 | T28: 0.15 | U28: 0.15 | V28: 0.15 | W28: 0.15 | X28: 0.15 | Y28: 0.25 | Z28: 0 | AA28: 0.25 | AB28: 1 | AC28: 0.25 | AD28: 0.15 | AE28: 0.15 | AF28: 0.25 | AG28: 0.25 | AH28: 0.25 | AI28: 0.075 | AJ28: 0.075 | AK28: 0.075 | AL28: 0.075 | AM28: 0.075 | AN28: 0.125 | AO28: 0 | AP28: 0.125 | AQ28: 0.5 | AR28: 0.125 | AS28: 0.075 | AT28: 0.075 | AU28: 0.125 | AV28: 0.125 | AW28: 0.125
C29: 8 | D29: =_Health_Individual -> Einzelkranken | E29: 0.15 | F29: 0.15 | G29: 0.15 | H29: 0.15 | I29: 0.15 | J29: 0.15 | K29: 0 | L29: 0.15 | M29: 0.25 | N29: 0.5 | O29: 0.15 | P29: 0.15 | Q29: 0.15 | R29: 0.15 | S29: 0.25 | T29: 0.15 | U29: 0.15 | V29: 0.15 | W29: 0.15 | X29: 0.15 | Y29: 0.15 | Z29: 0 | AA29: 0.15 | AB29: 0.25 | AC29: 1 | AD29: 0.15 | AE29: 0.15 | AF29: 0.15 | AG29: 0.15 | AH29: 0.25 | AI29: 0.075 | AJ29: 0.075 | AK29: 0.075 | AL29: 0.075 | AM29: 0.075 | AN29: 0.075 | AO29: 0 | AP29: 0.075 | AQ29: 0.125 | AR29: 0.5 | AS29: 0.075 | AT29: 0.075 | AU29: 0.075 | AV29: 0.075 | AW29: 0.125
C30: 9 | D30: =_Marine -> Transport | E30: 0.15 | F30: 0.15 | G30: 0.15 | H30: 0.15 | I30: 0.15 | J30: 0.15 | K30: 0 | L30: 0.15 | M30: 0.15 | N30: 0.15 | O30: 0.5 | P30: 0.15 | Q30: 0.15 | R30: 0.15 | S30: 0.25 | T30: 0.15 | U30: 0.15 | V30: 0.25 | W30: 0.15 | X30: 0.15 | Y30: 0.15 | Z30: 0 | AA30: 0.15 | AB30: 0.15 | AC30: 0.15 | AD30: 1 | AE30: 0.15 | AF30: 0.15 | AG30: 0.15 | AH30: 0.25 | AI30: 0.075 | AJ30: 0.075 | AK30: 0.075 | AL30: 0.075 | AM30: 0.075 | AN30: 0.075 | AO30: 0 | AP30: 0.075 | AQ30: 0.075 | AR30: 0.075 | AS30: 0.5 | AT30: 0.075 | AU30: 0.075 | AV30: 0.075 | AW30: 0.125
C31: 10 | D31: =_Aviation -> Luftfahrt | E31: 0.25 | F31: 0.15 | G31: 0.15 | H31: 0.15 | I31: 0.25 | J31: 0.25 | K31: 0 | L31: 0.25 | M31: 0.15 | N31: 0.15 | O31: 0.15 | P31: 0.5 | Q31: 0.15 | R31: 0.15 | S31: 0.25 | T31: 0.15 | U31: 0.15 | V31: 0.15 | W31: 0.15 | X31: 0.15 | Y31: 0.25 | Z31: 0 | AA31: 0.25 | AB31: 0.15 | AC31: 0.15 | AD31: 0.15 | AE31: 1 | AF31: 0.15 | AG31: 0.15 | AH31: 0.25 | AI31: 0.125 | AJ31: 0.075 | AK31: 0.075 | AL31: 0.075 | AM31: 0.125 | AN31: 0.125 | AO31: 0 | AP31: 0.125 | AQ31: 0.075 | AR31: 0.075 | AS31: 0.075 | AT31: 0.5 | AU31: 0.075 | AV31: 0.075 | AW31: 0.125
C32: 11 | D32: =_CreditSurety -> Finanz und Kaution | E32: 0.25 | F32: 0.15 | G32: 0.15 | H32: 0.15 | I32: 0.15 | J32: 0.25 | K32: 0 | L32: 0.25 | M32: 0.25 | N32: 0.15 | O32: 0.15 | P32: 0.15 | Q32: 0.5 | R32: 0.15 | S32: 0.25 | T32: 0.15 | U32: 0.15 | V32: 0.25 | W32: 0.15 | X32: 0.15 | Y32: 0.25 | Z32: 0 | AA32: 0.25 | AB32: 0.25 | AC32: 0.15 | AD32: 0.15 | AE32: 0.15 | AF32: 1 | AG32: 0.15 | AH32: 0.25 | AI32: 0.075 | AJ32: 0.075 | AK32: 0.075 | AL32: 0.075 | AM32: 0.075 | AN32: 0.125 | AO32: 0 | AP32: 0.125 | AQ32: 0.125 | AR32: 0.075 | AS32: 0.075 | AT32: 0.075 | AU32: 0.5 | AV32: 0.075 | AW32: 0.125
C33: 12 | D33: =_Legal -> Rechtsschutz | E33: 0.25 | F33: 0.15 | G33: 0.15 | H33: 0.15 | I33: 0.15 | J33: 0.25 | K33: 0 | L33: 0.25 | M33: 0.25 | N33: 0.15 | O33: 0.15 | P33: 0.15 | Q33: 0.15 | R33: 0.5 | S33: 0.25 | T33: 0.15 | U33: 0.15 | V33: 0.15 | W33: 0.15 | X33: 0.15 | Y33: 0.25 | Z33: 0 | AA33: 0.25 | AB33: 0.25 | AC33: 0.15 | AD33: 0.15 | AE33: 0.15 | AF33: 0.15 | AG33: 1 | AH33: 0.25 | AI33: 0.075 | AJ33: 0.075 | AK33: 0.075 | AL33: 0.075 | AM33: 0.075 | AN33: 0.125 | AO33: 0 | AP33: 0.125 | AQ33: 0.125 | AR33: 0.075 | AS33: 0.075 | AT33: 0.075 | AU33: 0.075 | AV33: 0.5 | AW33: 0.125
C34: 13 | D34: =_Others -> Andere | E34: 0.25 | F34: 0.25 | G34: 0.25 | H34: 0.25 | I34: 0.25 | J34: 0.25 | K34: 0 | L34: 0.25 | M34: 0.25 | N34: 0.25 | O34: 0.25 | P34: 0.25 | Q34: 0.25 | R34: 0.25 | S34: 0.5 | T34: 0.25 | U34: 0.25 | V34: 0.25 | W34: 0.25 | X34: 0.25 | Y34: 0.25 | Z34: 0 | AA34: 0.25 | AB34: 0.25 | AC34: 0.25 | AD34: 0.25 | AE34: 0.25 | AF34: 0.25 | AG34: 0.25 | AH34: 1 | AI34: 0.125 | AJ34: 0.125 | AK34: 0.125 | AL34: 0.125 | AM34: 0.125 | AN34: 0.125 | AO34: 0 | AP34: 0.125 | AQ34: 0.125 | AR34: 0.125 | AS34: 0.125 | AT34: 0.125 | AU34: 0.125 | AV34: 0.125 | AW34: 0.5
B35: URR | C35: 1 | D35: =_MTPL -> MFH | E35: 0.25 | F35: 0 | G35: 0 | H35: 0 | I35: 0.075 | J35: 0.075 | K35: 0 | L35: 0 | M35: 0 | N35: 0 | O35: 0 | P35: 0 | Q35: 0 | R35: 0 | S35: 0 | T35: 0.5 | U35: 0.25 | V35: 0.075 | W35: 0.075 | X35: 0.25 | Y35: 0.25 | Z35: 0 | AA35: 0.125 | AB35: 0.075 | AC35: 0.075 | AD35: 0.075 | AE35: 0.125 | AF35: 0.075 | AG35: 0.075 | AH35: 0.125 | AI35: 1 | AJ35: 0.5 | AK35: 0.15 | AL35: 0.15 | AM35: 0.5 | AN35: 0.5 | AO35: 0 | AP35: 0.25 | AQ35: 0.15 | AR35: 0.15 | AS35: 0.15 | AT35: 0.15 | AU35: 0.15 | AV35: 0.15 | AW35: 0.25
C36: 2 | D36: =_MOD -> MFK | E36: 0 | F36: 0.25 | G36: 0 | H36: 0 | I36: 0 | J36: 0 | K36: 0 | L36: 0 | M36: 0 | N36: 0 | O36: 0 | P36: 0 | Q36: 0 | R36: 0 | S36: 0 | T36: 0.25 | U36: 0.5 | V36: 0.25 | W36: 0.125 | X36: 0.075 | Y36: 0.125 | Z36: 0 | AA36: 0.125 | AB36: 0.075 | AC36: 0.075 | AD36: 0.075 | AE36: 0.075 | AF36: 0.075 | AG36: 0.075 | AH36: 0.125 | AI36: 0.5 | AJ36: 1 | AK36: 0.5 | AL36: 0.25 | AM36: 0.15 | AN36: 0.25 | AO36: 0 | AP36: 0.25 | AQ36: 0.15 | AR36: 0.15 | AS36: 0.15 | AT36: 0.15 | AU36: 0.15 | AV36: 0.15 | AW36: 0.25
C37: 3a | D37: =_Fire_no_Elementar -> Sach ohne Elementarschadenpool | E37: 0 | F37: 0 | G37: 0.25 | H37: 0 | I37: 0 | J37: 0 | K37: 0 | L37: 0 | M37: 0 | N37: 0 | O37: 0 | P37: 0 | Q37: 0 | R37: 0 | S37: 0 | T37: 0.075 | U37: 0.25 | V37: 0.5 | W37: 0.125 | X37: 0.125 | Y37: 0.075 | Z37: 0 | AA37: 0.075 | AB37: 0.075 | AC37: 0.075 | AD37: 0.075 | AE37: 0.075 | AF37: 0.075 | AG37: 0.075 | AH37: 0.125 | AI37: 0.15 | AJ37: 0.5 | AK37: 1 | AL37: 0.25 | AM37: 0.25 | AN37: 0.15 | AO37: 0 | AP37: 0.15 | AQ37: 0.15 | AR37: 0.15 | AS37: 0.25 | AT37: 0.15 | AU37: 0.25 | AV37: 0.15 | AW37: 0.25
C38: 3b | D38: =_ESP -> Elementarschadenpool | E38: 0 | F38: 0 | G38: 0 | H38: 0.25 | I38: 0 | J38: 0 | K38: 0 | L38: 0 | M38: 0 | N38: 0 | O38: 0 | P38: 0 | Q38: 0 | R38: 0 | S38: 0 | T38: 0.075 | U38: 0.125 | V38: 0.125 | W38: 0.5 | X38: 0.075 | Y38: 0.075 | Z38: 0 | AA38: 0.075 | AB38: 0.075 | AC38: 0.075 | AD38: 0.075 | AE38: 0.075 | AF38: 0.075 | AG38: 0.075 | AH38: 0.125 | AI38: 0.15 | AJ38: 0.25 | AK38: 0.25 | AL38: 1 | AM38: 0.15 | AN38: 0.15 | AO38: 0 | AP38: 0.15 | AQ38: 0.15 | AR38: 0.15 | AS38: 0.15 | AT38: 0.15 | AU38: 0.15 | AV38: 0.15 | AW38: 0.25
C39: 4 | D39: =_GL -> Haftpflicht | E39: 0.075 | F39: 0 | G39: 0 | H39: 0 | I39: 0.25 | J39: 0.075 | K39: 0 | L39: 0 | M39: 0 | N39: 0 | O39: 0 | P39: 0 | Q39: 0 | R39: 0 | S39: 0 | T39: 0.25 | U39: 0.075 | V39: 0.125 | W39: 0.075 | X39: 0.5 | Y39: 0.25 | Z39: 0 | AA39: 0.075 | AB39: 0.075 | AC39: 0.075 | AD39: 0.075 | AE39: 0.125 | AF39: 0.075 | AG39: 0.075 | AH39: 0.125 | AI39: 0.5 | AJ39: 0.15 | AK39: 0.25 | AL39: 0.15 | AM39: 1 | AN39: 0.4 | AO39: 0 | AP39: 0.15 | AQ39: 0.15 | AR39: 0.15 | AS39: 0.15 | AT39: 0.15 | AU39: 0.15 | AV39: 0.15 | AW39: 0.25
C40: 5a | D40: =_AccMandatory_noAnnuities -> UVG, nicht verrentete Fälle | E40: 0.075 | F40: 0 | G40: 0 | H40: 0 | I40: 0.075 | J40: 0.25 | K40: 0 | L40: 0 | M40: 0 | N40: 0 | O40: 0 | P40: 0 | Q40: 0 | R40: 0 | S40: 0 | T40: 0.25 | U40: 0.125 | V40: 0.075 | W40: 0.075 | X40: 0.25 | Y40: 0.5 | Z40: 0 | AA40: 0.25 | AB40: 0.125 | AC40: 0.075 | AD40: 0.075 | AE40: 0.125 | AF40: 0.125 | AG40: 0.125 | AH40: 0.125 | AI40: 0.5 | AJ40: 0.25 | AK40: 0.15 | AL40: 0.15 | AM40: 0.4 | AN40: 1 | AO40: 0 | AP40: 0.5 | AQ40: 0.25 | AR40: 0.15 | AS40: 0.15 | AT40: 0.25 | AU40: 0.25 | AV40: 0.25 | AW40: 0.25
C41: 5b | D41: =_AccMandatory_Annuities -> UVG-Renten | E41: 0 | F41: 0 | G41: 0 | H41: 0 | I41: 0 | J41: 0 | K41: 0.25 | L41: 0 | M41: 0 | N41: 0 | O41: 0 | P41: 0 | Q41: 0 | R41: 0 | S41: 0 | T41: 0 | U41: 0 | V41: 0 | W41: 0 | X41: 0 | Y41: 0 | Z41: 0.5 | AA41: 0 | AB41: 0 | AC41: 0 | AD41: 0 | AE41: 0 | AF41: 0 | AG41: 0 | AH41: 0 | AI41: 0 | AJ41: 0 | AK41: 0 | AL41: 0 | AM41: 0 | AN41: 0 | AO41: 1 | AP41: 0 | AQ41: 0 | AR41: 0 | AS41: 0 | AT41: 0 | AU41: 0 | AV41: 0 | AW41: 0
C42: 6 | D42: =_AccOptional -> Unfall ohne UVG | E42: 0 | F42: 0 | G42: 0 | H42: 0 | I42: 0 | J42: 0 | K42: 0 | L42: 0.25 | M42: 0 | N42: 0 | O42: 0 | P42: 0 | Q42: 0 | R42: 0 | S42: 0 | T42: 0.125 | U42: 0.125 | V42: 0.075 | W42: 0.075 | X42: 0.075 | Y42: 0.25 | Z42: 0 | AA42: 0.5 | AB42: 0.125 | AC42: 0.075 | AD42: 0.075 | AE42: 0.125 | AF42: 0.125 | AG42: 0.125 | AH42: 0.125 | AI42: 0.25 | AJ42: 0.25 | AK42: 0.15 | AL42: 0.15 | AM42: 0.15 | AN42: 0.5 | AO42: 0 | AP42: 1 | AQ42: 0.25 | AR42: 0.15 | AS42: 0.15 | AT42: 0.25 | AU42: 0.25 | AV42: 0.25 | AW42: 0.25
C43: 7 | D43: =_Health_Collective -> Kollektivtaggeld | E43: 0 | F43: 0 | G43: 0 | H43: 0 | I43: 0 | J43: 0 | K43: 0 | L43: 0 | M43: 0.25 | N43: 0 | O43: 0 | P43: 0 | Q43: 0 | R43: 0 | S43: 0 | T43: 0.075 | U43: 0.075 | V43: 0.075 | W43: 0.075 | X43: 0.075 | Y43: 0.125 | Z43: 0 | AA43: 0.125 | AB43: 0.5 | AC43: 0.125 | AD43: 0.075 | AE43: 0.075 | AF43: 0.125 | AG43: 0.125 | AH43: 0.125 | AI43: 0.15 | AJ43: 0.15 | AK43: 0.15 | AL43: 0.15 | AM43: 0.15 | AN43: 0.25 | AO43: 0 | AP43: 0.25 | AQ43: 1 | AR43: 0.25 | AS43: 0.15 | AT43: 0.15 | AU43: 0.25 | AV43: 0.25 | AW43: 0.25
C44: 8 | D44: =_Health_Individual -> Einzelkranken | E44: 0 | F44: 0 | G44: 0 | H44: 0 | I44: 0 | J44: 0 | K44: 0 | L44: 0 | M44: 0 | N44: 0.25 | O44: 0 | P44: 0 | Q44: 0 | R44: 0 | S44: 0 | T44: 0.075 | U44: 0.075 | V44: 0.075 | W44: 0.075 | X44: 0.075 | Y44: 0.075 | Z44: 0 | AA44: 0.075 | AB44: 0.125 | AC44: 0.5 | AD44: 0.075 | AE44: 0.075 | AF44: 0.075 | AG44: 0.075 | AH44: 0.125 | AI44: 0.15 | AJ44: 0.15 | AK44: 0.15 | AL44: 0.15 | AM44: 0.15 | AN44: 0.15 | AO44: 0 | AP44: 0.15 | AQ44: 0.25 | AR44: 1 | AS44: 0.15 | AT44: 0.15 | AU44: 0.15 | AV44: 0.15 | AW44: 0.25
C45: 9 | D45: =_Marine -> Transport | E45: 0 | F45: 0 | G45: 0 | H45: 0 | I45: 0 | J45: 0 | K45: 0 | L45: 0 | M45: 0 | N45: 0 | O45: 0.25 | P45: 0 | Q45: 0 | R45: 0 | S45: 0 | T45: 0.075 | U45: 0.075 | V45: 0.075 | W45: 0.075 | X45: 0.075 | Y45: 0.075 | Z45: 0 | AA45: 0.075 | AB45: 0.075 | AC45: 0.075 | AD45: 0.5 | AE45: 0.075 | AF45: 0.075 | AG45: 0.075 | AH45: 0.125 | AI45: 0.15 | AJ45: 0.15 | AK45: 0.25 | AL45: 0.15 | AM45: 0.15 | AN45: 0.15 | AO45: 0 | AP45: 0.15 | AQ45: 0.15 | AR45: 0.15 | AS45: 1 | AT45: 0.15 | AU45: 0.15 | AV45: 0.15 | AW45: 0.25
C46: 10 | D46: =_Aviation -> Luftfahrt | E46: 0 | F46: 0 | G46: 0 | H46: 0 | I46: 0 | J46: 0 | K46: 0 | L46: 0 | M46: 0 | N46: 0 | O46: 0 | P46: 0.25 | Q46: 0 | R46: 0 | S46: 0 | T46: 0.125 | U46: 0.075 | V46: 0.075 | W46: 0.075 | X46: 0.125 | Y46: 0.125 | Z46: 0 | AA46: 0.125 | AB46: 0.075 | AC46: 0.075 | AD46: 0.075 | AE46: 0.5 | AF46: 0.075 | AG46: 0.075 | AH46: 0.125 | AI46: 0.15 | AJ46: 0.15 | AK46: 0.15 | AL46: 0.15 | AM46: 0.15 | AN46: 0.25 | AO46: 0 | AP46: 0.25 | AQ46: 0.15 | AR46: 0.15 | AS46: 0.15 | AT46: 1 | AU46: 0.15 | AV46: 0.15 | AW46: 0.25
C47: 11 | D47: =_CreditSurety -> Finanz und Kaution | E47: 0 | F47: 0 | G47: 0 | H47: 0 | I47: 0 | J47: 0 | K47: 0 | L47: 0 | M47: 0 | N47: 0 | O47: 0 | P47: 0 | Q47: 0.25 | R47: 0 | S47: 0 | T47: 0.075 | U47: 0.075 | V47: 0.075 | W47: 0.075 | X47: 0.075 | Y47: 0.125 | Z47: 0 | AA47: 0.125 | AB47: 0.125 | AC47: 0.075 | AD47: 0.075 | AE47: 0.075 | AF47: 0.5 | AG47: 0.075 | AH47: 0.125 | AI47: 0.15 | AJ47: 0.15 | AK47: 0.25 | AL47: 0.15 | AM47: 0.15 | AN47: 0.25 | AO47: 0 | AP47: 0.25 | AQ47: 0.25 | AR47: 0.15 | AS47: 0.15 | AT47: 0.15 | AU47: 1 | AV47: 0.15 | AW47: 0.25
C48: 12 | D48: =_Legal -> Rechtsschutz | E48: 0 | F48: 0 | G48: 0 | H48: 0 | I48: 0 | J48: 0 | K48: 0 | L48: 0 | M48: 0 | N48: 0 | O48: 0 | P48: 0 | Q48: 0 | R48: 0.25 | S48: 0 | T48: 0.075 | U48: 0.075 | V48: 0.075 | W48: 0.075 | X48: 0.075 | Y48: 0.125 | Z48: 0 | AA48: 0.125 | AB48: 0.125 | AC48: 0.075 | AD48: 0.075 | AE48: 0.075 | AF48: 0.075 | AG48: 0.5 | AH48: 0.125 | AI48: 0.15 | AJ48: 0.15 | AK48: 0.15 | AL48: 0.15 | AM48: 0.15 | AN48: 0.25 | AO48: 0 | AP48: 0.25 | AQ48: 0.25 | AR48: 0.15 | AS48: 0.15 | AT48: 0.15 | AU48: 0.15 | AV48: 1 | AW48: 0.25
C49: 13 | D49: =_Others -> Andere | E49: 0 | F49: 0 | G49: 0 | H49: 0 | I49: 0 | J49: 0 | K49: 0 | L49: 0 | M49: 0 | N49: 0 | O49: 0 | P49: 0 | Q49: 0 | R49: 0 | S49: 0.25 | T49: 0.125 | U49: 0.125 | V49: 0.125 | W49: 0.125 | X49: 0.125 | Y49: 0.125 | Z49: 0 | AA49: 0.125 | AB49: 0.125 | AC49: 0.125 | AD49: 0.125 | AE49: 0.125 | AF49: 0.125 | AG49: 0.125 | AH49: 0.5 | AI49: 0.25 | AJ49: 0.25 | AK49: 0.25 | AL49: 0.25 | AM49: 0.25 | AN49: 0.25 | AO49: 0 | AP49: 0.25 | AQ49: 0.25 | AR49: 0.25 | AS49: 0.25 | AT49: 0.25 | AU49: 0.25 | AV49: 0.25 | AW49: 1

Sheet NL_Segments_CH_direct
A1: 10 | B1: =_NL_Segments_CH_direct -> Schadenversicherung: Schweizer Direktgeschäft (inklusive Geschäft, das innerhalb des Direktversicherungsabkommen und Elementarschadensversicherungsabkommen in Liechtenstein geschrieben wird)
B2: =name_of_insurer -> Mustergesellschaft
B5: =_number -> Nr. | C5: =_NL_LOB_default -> SST-Standardversicherungsbranche | D5: =_NoSegments -> Anzahl Segmente | E5: =_Own_segments -> Eigene Untersegmente
B6: 1 | C6: =_MTPL -> MFH | D6: =COUNTA(E6:M6) -> 1 | E6: =_MTPL -> MFH
B7: 2 | C7: =_MOD -> MFK | D7: 1 | E7: =_MOD -> MFK
B8: 3 | C8: =_Fire -> Sach | D8: 1 | E8: =_Fire -> Sach
B9: 4 | C9: =_GL -> Haftpflicht | D9: 1 | E9: =_GL -> Haftpflicht
B10: 5 | C10: =_AccMandatory -> UVG | D10: 1 | E10: =_AccMandatory -> UVG
B11: 6 | C11: =_AccOptional -> Unfall ohne UVG | D11: 1 | E11: =_AccOptional -> Unfall ohne UVG
B12: 7 | C12: =_Health_Collective -> Kollektivtaggeld | D12: 1 | E12: =_Health_Collective -> Kollektivtaggeld
B13: 8 | C13: =_Health_Individual -> Einzelkranken | D13: 1 | E13: =_Health_Individual -> Einzelkranken
B14: 9 | C14: =_Marine -> Transport | D14: 1 | E14: =_Marine -> Transport
B15: 10 | C15: =_Aviation -> Luftfahrt | D15: 1 | E15: =_Aviation -> Luftfahrt
B16: 11 | C16: =_CreditSurety -> Finanz und Kaution | D16: 1 | E16: =_CreditSurety -> Finanz und Kaution
B17: 12 | C17: =_Legal -> Rechtsschutz | D17: 1 | E17: =_Legal -> Rechtsschutz
B18: 13 | C18: =_Others -> Andere | D18: 1 | E18: =_Others -> Andere
E20: =_Res_in -> Eingangsschadenrückstellung (1.1.2024) | I20: ="PY - " &_Claims -> PY - Schäden
B21: =_number -> Nr. | C21: =_NL_LOB_default -> SST-Standardversicherungsbranche | D21: =_segment -> Segment | E21: =_nominal&", "&_gross&", "&CHAR(10)&_undisc -> nominal, brutto, nicht diskontiert | F21: =_nominal & ", " & _net & ", " &CHAR(10)& _undisc -> nominal, netto, nicht diskontiert | G21: =_PY_risk_used -> für SST-Risikomessung benutzt, nicht diskontiert | H21: =_PY_risk_used_disc -> für SST-Risikomessung benutzt, diskontiert | I21: =_Model_risk & CHAR(10) & _CV -> Modellrisiko Variationskoeffizient | J21: =_Parameter_risk & CHAR(10) & _CV -> Parameterrisiko Variationskoeffizient | K21: =_Estimation_Risk & CHAR(10) & _CV -> Zufallsrisiko Variationskoeffizient | L21: =_PY_distr -> PY-Schadenverteilung mit Diskonteffekt
E22: =_million & " " & sst_curr -> in Mio. CHF | F22: =_million & " " & sst_curr -> in Mio. CHF | G22: =_million & " " & sst_curr -> in Mio. CHF | H22: =_million & " " & sst_curr -> in Mio. CHF | I22: =_Agg_claims & ", " &CHAR(10)& _optional -> Für aggregierte Schäden, Optionale Eingabe | J22: =_Agg_claims & ", " &CHAR(10)& _optional -> Für aggregierte Schäden, Optionale Eingabe | K22: =_Agg_claims & ", " &CHAR(10)& _mandatory -> Für aggregierte Schäden, Erforderliche Eingabe | L22: =_EX_LN & CHAR(10) & " " & _million & " " & sst_curr -> Erwartungswert der Lognormalverteilung in Mio. CHF | M22: =_ES_centred & CHAR(10) & " " & _million & " " & sst_curr -> Zentriertes Risiko (Expected Shortfall) in Mio. CHF
A23: PY | B23: 1 | C23: =_MTPL -> MFH | D23: =_MTPL -> MFH | G23: =IF(Net=1,F23,E23) -> 0 | H23: =G23*VLOOKUP($B23,NL_CH_Direct_PY_Pattern,56,FALSE) -> 0
A24: PY | B24: 2 | C24: =_MOD -> MFK | D24: =_MOD -> MFK | G24: =IF(Net=1,F24,E24) -> 0 | H24: =G24*VLOOKUP($B24,NL_CH_Direct_PY_Pattern,56,FALSE) -> 0
A25: PY | B25: 3 | C25: =_Fire -> Sach | D25: =IF(IFERROR(VLOOKUP("3b",NL_CH_Direct_PY_Inputs,4,FALSE),0)>0,_Fire_no_Elementar,_Fire_with_Elementar) -> Sach inkl. Elementarschadenpool | G25: =IF(Net=1,F25,E25) -> 0 | H25: =G25*VLOOKUP($B25,NL_CH_Direct_PY_Pattern,56,FALSE) -> 0
A26: PY | B26: 3b | C26: =IF(IFERROR(VLOOKUP($B26,NL_CH_Direct_PY_Inputs,4,FALSE),0)>0,_ESP,_ESP_in_Parenthesis) -> (Elementarschadenpool) | D26: =IF(IFERROR(VLOOKUP($B26,NL_CH_Direct_PY_Inputs,4,FALSE),0)>0,_ESP,_ESP_in_Parenthesis) -> (Elementarschadenpool) | G26: =IF(Net=1,F26,E26) -> 0 | H26: =G26*VLOOKUP($B26,NL_CH_Direct_PY_Pattern,56,FALSE) -> 0
A27: PY | B27: 4 | C27: =_GL -> Haftpflicht | D27: =_GL -> Haftpflicht | G27: =IF(Net=1,F27,E27) -> 0 | H27: =G27*VLOOKUP($B27,NL_CH_Direct_PY_Pattern,56,FALSE) -> 0
A28: PY | B28: 5a | C28: =_AccMandatory_noAnnuities -> UVG, nicht verrentete Fälle | D28: =_AccMandatory_noAnnuities -> UVG, nicht verrentete Fälle | E28: =G28 -> 0 | F28: =G28 -> 0 | G28: =VLOOKUP($B28,NL_UVG_Res,3,FALSE) -> 0 | H28: =VLOOKUP($B28,NL_UVG_Res,4,FALSE) -> 0
A29: PY | B29: 5b | C29: =_AccMandatory_Annuities -> UVG-Renten | D29: =_AccMandatory_Annuities -> UVG-Renten | E29: =G29 -> 0 | F29: =G29 -> 0 | G29: =VLOOKUP($B29,NL_UVG_Res,3,FALSE) -> 0 | H29: =VLOOKUP($B29,NL_UVG_Res,4,FALSE) -> 0
A30: PY | B30: 6 | C30: =_AccOptional -> Unfall ohne UVG | D30: =_AccOptional -> Unfall ohne UVG | G30: =IF(Net=1,F30,E30) -> 0 | H30: =G30*VLOOKUP($B30,NL_CH_Direct_PY_Pattern,56,FALSE) -> 0
A31: PY | B31: 7 | C31: =_Health_Collective -> Kollektivtaggeld | D31: =_Health_Collective -> Kollektivtaggeld | G31: 0 | H31: 0
A32: PY | B32: 8 | C32: =_Health_Individual -> Einzelkranken | D32: =_Health_Individual -> Einzelkranken | G32: 0 | H32: 0
A33: PY | B33: 9 | C33: =_Marine -> Transport | D33: =_Marine -> Transport | G33: 0 | H33: 0
A34: PY | B34: 10 | C34: =_Aviation -> Luftfahrt | D34: =_Aviation -> Luftfahrt | G34: 0 | H34: 0
A35: PY | B35: 11 | C35: =_CreditSurety -> Finanz und Kaution | D35: =_CreditSurety -> Finanz und Kaution | G35: 0 | H35: 0
A36: PY | B36: 12 | C36: =_Legal -> Rechtsschutz | D36: =_Legal -> Rechtsschutz | G36: 0 | H36: 0
A37: PY | B37: 13 | C37: =_Others -> Andere | D37: =_Others -> Andere | G37: 0 | H37: 0
A38: PY | B38: Total | C38: =_All_LOBs -> Alle Branchen | E38: =SUM(E$23:E$37) -> 0 | F38: =SUM(F$23:F$37) -> 0 | G38: =SUM(G$23:G$37) -> 0 | H38: =SUM(H$23:H$37) -> 0 | L38: =SUM(L$23:L$37) -> 0
E41: =_CY_Attr -> CY-Normalschäden | N41: =_CY_LargeLosses -> CY-Grossschäden
B42: =_number -> Nr. | C42: =_NL_LOB_default -> SST-Standardversicherungsbranche | D42: =_segment -> Segment | E42: =_Attritional & " " & _nominal & ", " & _gross & ", " & _undisc -> Normalschäden nominal, brutto, nicht diskontiert | F42: =_Attritional & " " & _nominal & ", " & _net & ", " & _undisc -> Normalschäden nominal, netto, nicht diskontiert | G42: =_CY_Attr_No -> CY: Erwartete Anzahl der Normalschäden | H42: =_CY_LL_Threshold_CH_Direct -> CY: benutzte Grenze zwischen Gross- und Normalschäden (0.5, 1, 2 oder 5 Mio. CHF) | I42: =_Parameter_risk & CHAR(10) & _CV -> Parameterrisiko Variationskoeffizient | J42: =_Estimation_Risk & CHAR(10) & _CV -> Zufallsrisiko Variationskoeffizient | K42: =_Estimation_Risk & CHAR(10) & _CV -> Zufallsrisiko Variationskoeffizient | L42: =_CY_Attr_disc_distr -> Normalschadenverteilung mit Diskonteffekt | N42: =_CY_LL_No -> Erwartungswert der Anzahl Grossschäden | O42: =_CY_LL_No -> Erwartungswert der Anzahl Grossschäden | P42: =_CY_LL_PML -> grösster möglicher Grossschaden (Einzel- bzw. Ereignisschaden PML) | Q42: =_CY_LL_alpha -> Einzelschadenverteilung: Paretoparameter | R42: =_CY_LL_alpha -> Einzelschadenverteilung: Paretoparameter | S42: =_CY_LL_disc_distr -> Jahresgrossschadenverteilung mit Diskonteffekt
E43: =_million & " " & sst_curr -> in Mio. CHF | F43: =_million & " " & sst_curr -> in Mio. CHF | I43: =_Agg_claims -> Für aggregierte Schäden | J43: =_Agg_claims -> Für aggregierte Schäden | K43: =_single_claims -> Einzelschäden | L43: =_EX & " " & _million & " " & sst_curr -> Erwartungswert in Mio. CHF | M43: =_ES_centred & " " & _million & " " & sst_curr -> Zentriertes Risiko (Expected Shortfall) in Mio. CHF | N43: ="E[N]" & CHAR(10)& _proposal -> E[N] Vorschlag | O43: E[N] | P43: =_million & " " & sst_curr -> in Mio. CHF | Q43: ="alpha" & CHAR(10)& _proposal -> alpha Vorschlag | R43: alpha | S43: =_EX & " " & _million & " " & sst_curr -> Erwartungswert in Mio. CHF | T43: =_ES & " " & _million & " " & sst_curr -> Risiko (Expected Shortfall) in Mio. CHF
A44: CY | B44: 1 | C44: =_MTPL -> MFH | D44: =_MTPL -> MFH | N44: =IFERROR(IF(AND(_caution,$B44=11)," ",VLOOKUP($B44,NL_Default_Parameter!$C$59:$G$71,3,FALSE)*G44*(0.5/H44)^VLOOKUP($B44,NL_Default_Parameter!$C$59:$G$71,4,FALSE))," ") ->  | Q44: =IFERROR(VLOOKUP($B44,NL_Default_Parameter!$C$59:$I$71,IF(H44=0.5,4,IF(H44=1,5,IF(H44=2,6,IF(H44=5,7)))),FALSE)," ") -> 
A45: CY | B45: 2 | C45: =_MOD -> MFK | D45: =_MOD -> MFK | N45: =IFERROR(IF(AND(_caution,$B45=11)," ",VLOOKUP($B45,NL_Default_Parameter!$C$59:$G$71,3,FALSE)*G45*(0.5/H45)^VLOOKUP($B45,NL_Default_Parameter!$C$59:$G$71,4,FALSE))," ") ->  | Q45: =IFERROR(VLOOKUP($B45,NL_Default_Parameter!$C$59:$I$71,IF(H45=0.5,4,IF(H45=1,5,IF(H45=2,6,IF(H45=5,7)))),FALSE)," ") -> 
A46: CY | B46: 3a | C46: =_Fire_no_Elementar -> Sach ohne Elementarschadenpool | D46: Sach | N46: =IFERROR(IF(AND(_caution,$B46=11)," ",VLOOKUP($B46,NL_Default_Parameter!$C$59:$G$71,3,FALSE)*G46*(0.5/H46)^VLOOKUP($B46,NL_Default_Parameter!$C$59:$G$71,4,FALSE))," ") ->  | Q46: =IFERROR(VLOOKUP($B46,NL_Default_Parameter!$C$59:$I$71,IF(H46=0.5,4,IF(H46=1,5,IF(H46=2,6,IF(H46=5,7)))),FALSE)," ") -> 
A47: CY | B47: 3b | C47: =_ESP -> Elementarschadenpool | D47: =_ESP -> Elementarschadenpool | N47: =IFERROR(IF(AND(_caution,$B47=11)," ",VLOOKUP($B47,NL_Default_Parameter!$C$59:$G$71,3,FALSE)*G47*(0.5/H47)^VLOOKUP($B47,NL_Default_Parameter!$C$59:$G$71,4,FALSE))," ") ->  | Q47: =IFERROR(VLOOKUP($B47,NL_Default_Parameter!$C$59:$I$71,IF(H47=0.5,4,IF(H47=1,5,IF(H47=2,6,IF(H47=5,7)))),FALSE)," ") -> 
A48: CY | B48: 4 | C48: =_GL -> Haftpflicht | D48: =_GL -> Haftpflicht | N48: =IFERROR(IF(AND(_caution,$B48=11)," ",VLOOKUP($B48,NL_Default_Parameter!$C$59:$G$71,3,FALSE)*G48*(0.5/H48)^VLOOKUP($B48,NL_Default_Parameter!$C$59:$G$71,4,FALSE))," ") ->  | Q48: =IFERROR(VLOOKUP($B48,NL_Default_Parameter!$C$59:$I$71,IF(H48=0.5,4,IF(H48=1,5,IF(H48=2,6,IF(H48=5,7)))),FALSE)," ") -> 
A49: CY | B49: 5a | C49: =_AccMandatory_noAnnuities -> UVG, nicht verrentete Fälle | D49: =_AccMandatory_noAnnuities -> UVG, nicht verrentete Fälle | N49: =IFERROR(IF(AND(_caution,$B49=11)," ",VLOOKUP($B49,NL_Default_Parameter!$C$59:$G$71,3,FALSE)*G49*(0.5/H49)^VLOOKUP($B49,NL_Default_Parameter!$C$59:$G$71,4,FALSE))," ") ->  | Q49: =IFERROR(VLOOKUP($B49,NL_Default_Parameter!$C$59:$I$71,IF(H49=0.5,4,IF(H49=1,5,IF(H49=2,6,IF(H49=5,7)))),FALSE)," ") -> 
A50: CY | B50: 5b | C50: =_AccMandatory_Annuities -> UVG-Renten | D50: =_AccMandatory_Annuities -> UVG-Renten | N50: =IFERROR(IF(AND(_caution,$B50=11)," ",VLOOKUP($B50,NL_Default_Parameter!$C$59:$G$71,3,FALSE)*G50*(0.5/H50)^VLOOKUP($B50,NL_Default_Parameter!$C$59:$G$71,4,FALSE))," ") ->  | Q50: =IFERROR(VLOOKUP($B50,NL_Default_Parameter!$C$59:$I$71,IF(H50=0.5,4,IF(H50=1,5,IF(H50=2,6,IF(H50=5,7)))),FALSE)," ") -> 
A51: CY | B51: 6 | C51: =_AccOptional -> Unfall ohne UVG | D51: =_AccOptional -> Unfall ohne UVG | N51: =IFERROR(IF(AND(_caution,$B51=11)," ",VLOOKUP($B51,NL_Default_Parameter!$C$59:$G$71,3,FALSE)*G51*(0.5/H51)^VLOOKUP($B51,NL_Default_Parameter!$C$59:$G$71,4,FALSE))," ") ->  | Q51: =IFERROR(VLOOKUP($B51,NL_Default_Parameter!$C$59:$I$71,IF(H51=0.5,4,IF(H51=1,5,IF(H51=2,6,IF(H51=5,7)))),FALSE)," ") -> 
A52: CY | B52: 7 | C52: =_Health_Collective -> Kollektivtaggeld | D52: =_Health_Collective -> Kollektivtaggeld | N52: =IFERROR(IF(AND(_caution,$B52=11)," ",VLOOKUP($B52,NL_Default_Parameter!$C$59:$G$71,3,FALSE)*G52*(0.5/H52)^VLOOKUP($B52,NL_Default_Parameter!$C$59:$G$71,4,FALSE))," ") ->  | Q52: =IFERROR(VLOOKUP($B52,NL_Default_Parameter!$C$59:$I$71,IF(H52=0.5,4,IF(H52=1,5,IF(H52=2,6,IF(H52=5,7)))),FALSE)," ") -> 
A53: CY | B53: 8 | C53: =_Health_Individual -> Einzelkranken | D53: =_Health_Individual -> Einzelkranken | N53: =IFERROR(IF(AND(_caution,$B53=11)," ",VLOOKUP($B53,NL_Default_Parameter!$C$59:$G$71,3,FALSE)*G53*(0.5/H53)^VLOOKUP($B53,NL_Default_Parameter!$C$59:$G$71,4,FALSE))," ") ->  | Q53: =IFERROR(VLOOKUP($B53,NL_Default_Parameter!$C$59:$I$71,IF(H53=0.5,4,IF(H53=1,5,IF(H53=2,6,IF(H53=5,7)))),FALSE)," ") -> 
A54: CY | B54: 9 | C54: =_Marine -> Transport | D54: =_Marine -> Transport | N54: =IFERROR(IF(AND(_caution,$B54=11)," ",VLOOKUP($B54,NL_Default_Parameter!$C$59:$G$71,3,FALSE)*G54*(0.5/H54)^VLOOKUP($B54,NL_Default_Parameter!$C$59:$G$71,4,FALSE))," ") ->  | Q54: =IFERROR(VLOOKUP($B54,NL_Default_Parameter!$C$59:$I$71,IF(H54=0.5,4,IF(H54=1,5,IF(H54=2,6,IF(H54=5,7)))),FALSE)," ") -> 
A55: CY | B55: 10 | C55: =_Aviation -> Luftfahrt | D55: =_Aviation -> Luftfahrt | N55: =IFERROR(IF(AND(_caution,$B55=11)," ",VLOOKUP($B55,NL_Default_Parameter!$C$59:$G$71,3,FALSE)*G55*(0.5/H55)^VLOOKUP($B55,NL_Default_Parameter!$C$59:$G$71,4,FALSE))," ") ->  | Q55: =IFERROR(VLOOKUP($B55,NL_Default_Parameter!$C$59:$I$71,IF(H55=0.5,4,IF(H55=1,5,IF(H55=2,6,IF(H55=5,7)))),FALSE)," ") -> 
A56: CY | B56: 11 | C56: =_CreditSurety -> Finanz und Kaution | D56: =_CreditSurety -> Finanz und Kaution | N56: =IFERROR(IF(AND(_caution,$B56=11)," ",VLOOKUP($B56,NL_Default_Parameter!$C$59:$G$71,3,FALSE)*G56*(0.5/H56)^VLOOKUP($B56,NL_Default_Parameter!$C$59:$G$71,4,FALSE))," ") ->  | Q56: =IFERROR(VLOOKUP($B56,NL_Default_Parameter!$C$59:$I$71,IF(H56=0.5,4,IF(H56=1,5,IF(H56=2,6,IF(H56=5,7)))),FALSE)," ") -> 
A57: CY | B57: 12 | C57: =_Legal -> Rechtsschutz | D57: =_Legal -> Rechtsschutz | N57: =IFERROR(IF(AND(_caution,$B57=11)," ",VLOOKUP($B57,NL_Default_Parameter!$C$59:$G$71,3,FALSE)*G57*(0.5/H57)^VLOOKUP($B57,NL_Default_Parameter!$C$59:$G$71,4,FALSE))," ") ->  | Q57: =IFERROR(VLOOKUP($B57,NL_Default_Parameter!$C$59:$I$71,IF(H57=0.5,4,IF(H57=1,5,IF(H57=2,6,IF(H57=5,7)))),FALSE)," ") -> 
A58: CY | B58: 13 | C58: =_Others -> Andere | D58: =_Others -> Andere | N58: =IFERROR(IF(AND(_caution,$B58=11)," ",VLOOKUP($B58,NL_Default_Parameter!$C$59:$G$71,3,FALSE)*G58*(0.5/H58)^VLOOKUP($B58,NL_Default_Parameter!$C$59:$G$71,4,FALSE))," ") ->  | Q58: =IFERROR(VLOOKUP($B58,NL_Default_Parameter!$C$59:$I$71,IF(H58=0.5,4,IF(H58=1,5,IF(H58=2,6,IF(H58=5,7)))),FALSE)," ") -> 
A59: CY | B59: Total | C59: =_All_LOBs -> Alle Branchen | E59: =SUM(E$44:E$58) -> 0 | F59: =SUM(F$44:F$58) -> 0 | L59: =SUM(L$44:L$58) -> 0 | S59: =SUM(S$44:S$58) -> 0
E62: URR
B63: =_number -> Nr. | C63: =_NL_LOB_default -> SST-Standardversicherungsbranche | D63: =_segment -> Segment | E63: =_Parameter_risk & " " & _CV -> Parameterrisiko Variationskoeffizient | F63: =_URR_disc_distr -> URR-Schadenverteilung, Risiko mit Diskonteffekt
F64: =_EX & " " & _million & " " & sst_curr -> Erwartungswert in Mio. CHF | G64: =_ES & " " & _million & " " & sst_curr -> Risiko (Expected Shortfall) in Mio. CHF
A65: URR | B65: 1 | C65: =_MTPL -> MFH | D65: =_MTPL -> MFH
A66: URR | B66: 2 | C66: =_MOD -> MFK | D66: =_MOD -> MFK
A67: URR | B67: 3a | C67: =_Fire_no_Elementar -> Sach ohne Elementarschadenpool | D67: Sach
A68: URR | B68: 3b | C68: =_ESP -> Elementarschadenpool | D68: =_ESP -> Elementarschadenpool
A69: URR | B69: 4 | C69: =_GL -> Haftpflicht | D69: =_GL -> Haftpflicht
A70: URR | B70: 5a | C70: =_AccMandatory_noAnnuities -> UVG, nicht verrentete Fälle | D70: =_AccMandatory_noAnnuities -> UVG, nicht verrentete Fälle
A71: URR | B71: 5b | C71: =_AccMandatory_Annuities -> UVG-Renten | D71: =_AccMandatory_Annuities -> UVG-Renten
A72: URR | B72: 6 | C72: =_AccOptional -> Unfall ohne UVG | D72: =_AccOptional -> Unfall ohne UVG
A73: URR | B73: 7 | C73: =_Health_Collective -> Kollektivtaggeld | D73: =_Health_Collective -> Kollektivtaggeld
A74: URR | B74: 8 | C74: =_Health_Individual -> Einzelkranken | D74: =_Health_Individual -> Einzelkranken
A75: URR | B75: 9 | C75: =_Marine -> Transport | D75: =_Marine -> Transport
A76: URR | B76: 10 | C76: =_Aviation -> Luftfahrt | D76: =_Aviation -> Luftfahrt
A77: URR | B77: 11 | C77: =_CreditSurety -> Finanz und Kaution | D77: =_CreditSurety -> Finanz und Kaution
A78: URR | B78: 12 | C78: =_Legal -> Rechtsschutz | D78: =_Legal -> Rechtsschutz
A79: URR | B79: 13 | C79: =_Others -> Andere | D79: =_Others -> Andere
A80: URR | B80: Total | C80: =_All_LOBs -> Alle Branchen | F80: =SUM(F$65:F$79) -> 0
E83: =VLOOKUP("T.10.01",Translation,IF(Language="DE",2,IF(Language="FR",3,4)),FALSE) -> Unverdiente Prämie per 31.12.2023 (betrifft Policen, deren Deckungsperiode bis zum 31.12.2023 begonnen hat, enthält auch noch nicht einbezahlte Prämien) | G83: =VLOOKUP("T.10.02",Translation,IF(Language="DE",2,IF(Language="FR",3,4)),FALSE) -> Geschriebene Prämie (betrifft Policen, deren Deckungsperiode zwischen dem 1.1.2024 dem 31.12.2024 beginnt, enthält auch noch nicht einbezahlte Prämien) | I83: =VLOOKUP("T.10.03",Translation,IF(Language="DE",2,IF(Language="FR",3,4)),FALSE) -> Unverdiente Prämie per 31.12.2024 (betrifft Policen, deren Deckungsperiode bis zum 31.12.2024 begonnen hat, enthält auch noch nicht einbezahlte Prämien) | K83: =VLOOKUP("T.10.04",Translation,IF(Language="DE",2,IF(Language="FR",3,4)),FALSE) -> Verdiente Prämie per 31.12.2024 | M83: =VLOOKUP("T.10.05",Translation,IF(Language="DE",2,IF(Language="FR",3,4)),FALSE) -> Betriebs- und Verwaltungskosten bezüglich der geschriebenen Prämie | O83: =_ExpectedIncWP -> Erwarteter aggregierter Schadenaufwand bezüglich geschriebener Prämie | Q83: =_ExpectedInc -> Erwarteter aggregierter Schadenaufwand bezüglich verdienter Prämie | S83: =_TotalLossURR -> Erwarteter aggregierter Schadenaufwand bezüglich unverdienter Prämie
B84: =_number -> Nr. | C84: =_NL_LOB_default -> SST-Standardversicherungsbranche | D84: =_segment -> Segment | E84: =_nominal & ", " & _gross & ", " & _undisc -> nominal, brutto, nicht diskontiert | F84: =_nominal & ", " & _net & ", " & _undisc -> nominal, netto, nicht diskontiert | G84: =_nominal & ", " & _gross & ", " & _undisc -> nominal, brutto, nicht diskontiert | H84: =_nominal & ", " & _net & ", " & _undisc -> nominal, netto, nicht diskontiert | I84: =_nominal & ", " & _gross & ", " & _undisc -> nominal, brutto, nicht diskontiert | J84: =_nominal & ", " & _net & ", " & _undisc -> nominal, netto, nicht diskontiert | K84: =_nominal & ", " & _gross & ", " & _undisc -> nominal, brutto, nicht diskontiert | L84: =_nominal & ", " & _net & ", " & _undisc -> nominal, netto, nicht diskontiert | M84: =_nominal & ", " & _gross & ", " & _undisc -> nominal, brutto, nicht diskontiert | N84: =_nominal & ", " & _net & ", " & _undisc -> nominal, netto, nicht diskontiert | O84: =_TotalLoss & " " & _nominal & ", " & _gross & ", " & _undisc -> Gesamtschadenaufwand nominal, brutto, nicht diskontiert | P84: =_TotalLoss & " " & _nominal & ", " & _net & ", " & _undisc -> Gesamtschadenaufwand nominal, netto, nicht diskontiert | Q84: =_TotalLoss & " " & _nominal & ", " & _gross & ", " & _undisc -> Gesamtschadenaufwand nominal, brutto, nicht diskontiert | R84: =_TotalLoss & " " & _nominal & ", " & _net & ", " & _undisc -> Gesamtschadenaufwand nominal, netto, nicht diskontiert | S84: =_nominal & ", " & _gross & ", " & _undisc -> nominal, brutto, nicht diskontiert | T84: =_nominal & ", " & _net & ", " & _undisc -> nominal, netto, nicht diskontiert
E85: =_million & " " & sst_curr -> in Mio. CHF | F85: in Mio. CHF | G85: in Mio. CHF | H85: in Mio. CHF | I85: in Mio. CHF | J85: in Mio. CHF | K85: in Mio. CHF | L85: in Mio. CHF | M85: in Mio. CHF | N85: in Mio. CHF | O85: in Mio. CHF | P85: in Mio. CHF | Q85: in Mio. CHF | R85: in Mio. CHF | S85: in Mio. CHF | T85: in Mio. CHF
A86: FI | B86: 1 | C86: =_MTPL -> MFH | D86: =_MTPL -> MFH
A87: FI | B87: 2 | C87: =_MOD -> MFK | D87: =_MOD -> MFK
A88: FI | B88: 3a | C88: =_Fire_no_Elementar -> Sach ohne Elementarschadenpool | D88: Sach
A89: FI | B89: 3b | C89: =_ESP -> Elementarschadenpool | D89: =_ESP -> Elementarschadenpool
A90: FI | B90: 4 | C90: =_GL -> Haftpflicht | D90: =_GL -> Haftpflicht
A91: FI | B91: 5a | C91: =_AccMandatory_noAnnuities -> UVG, nicht verrentete Fälle | D91: =_AccMandatory_noAnnuities -> UVG, nicht verrentete Fälle
A92: FI | B92: 5b | C92: =_AccMandatory_Annuities -> UVG-Renten | D92: =_AccMandatory_Annuities -> UVG-Renten
A93: FI | B93: 6 | C93: =_AccOptional -> Unfall ohne UVG | D93: =_AccOptional -> Unfall ohne UVG
A94: FI | B94: 7 | C94: =_Health_Collective -> Kollektivtaggeld | D94: =_Health_Collective -> Kollektivtaggeld
A95: FI | B95: 8 | C95: =_Health_Individual -> Einzelkranken | D95: =_Health_Individual -> Einzelkranken
A96: FI | B96: 9 | C96: =_Marine -> Transport | D96: =_Marine -> Transport
A97: FI | B97: 10 | C97: =_Aviation -> Luftfahrt | D97: =_Aviation -> Luftfahrt
A98: FI | B98: 11 | C98: =_CreditSurety -> Finanz und Kaution | D98: =_CreditSurety -> Finanz und Kaution
A99: FI | B99: 12 | C99: =_Legal -> Rechtsschutz | D99: =_Legal -> Rechtsschutz
A100: FI | B100: 13 | C100: =_Others -> Andere | D100: =_Others -> Andere
A101: FI | B101: Total | C101: =_All_LOBs -> Alle Branchen | E101: =SUM(E$86:E$100) -> 0 | F101: 0 | G101: 0 | H101: 0 | I101: 0 | J101: 0 | K101: 0 | L101: 0 | M101: 0 | N101: 0 | O101: 0 | P101: 0 | Q101: 0 | R101: 0 | S101: 0 | T101: 0
B103: =_IncPP_PY -> Benutzte inkrementelle Zahlungsmuster der vorjährigen Anfalljahre (PY = prior (accident) years, d.h. vor 2024)
E104: =_DevYr -> Abwicklungsjahr
B105: =_number -> Nr. | C105: =_NL_LOB_default -> SST-Standardversicherungsbranche | D105: =_segment -> Segment | E105: 0 | F105: 1 | G105: 2 | H105: 3 | I105: 4 | J105: 5 | K105: 6 | L105: 7 | M105: 8 | N105: 9 | O105: 10 | P105: 11 | Q105: 12 | R105: 13 | S105: 14 | T105: 15 | U105: 16 | V105: 17 | W105: 18 | X105: 19 | Y105: 20 | Z105: 21 | AA105: 22 | AB105: 23 | AC105: 24 | AD105: 25 | AE105: 26 | AF105: 27 | AG105: 28 | AH105: 29 | AI105: 30 | AJ105: 31 | AK105: 32 | AL105: 33 | AM105: 34 | AN105: 35 | AO105: 36 | AP105: 37 | AQ105: 38 | AR105: 39 | AS105: 40 | AT105: 41 | AU105: 42 | AV105: 43 | AW105: 44 | AX105: 45 | AY105: 46 | AZ105: 47 | BA105: 48 | BB105: 49 | BD105: Duration | BE105: =_PV_Factor -> Barwertfaktor | BF105: Weight_no_UVG | BG105: =_Inflation_Factor -> Inflationsfaktor (Gesamteffekt) | BH105: Lookup String
E106: =current_year -> 2024 | F106: =E106+1 -> 2025 | G106: 2026 | H106: 2027 | I106: 2028 | J106: 2029 | K106: 2030 | L106: 2031 | M106: 2032 | N106: 2033 | O106: 2034 | P106: 2035 | Q106: 2036 | R106: 2037 | S106: 2038 | T106: 2039 | U106: 2040 | V106: 2041 | W106: 2042 | X106: 2043 | Y106: 2044 | Z106: 2045 | AA106: 2046 | AB106: 2047 | AC106: 2048 | AD106: 2049 | AE106: 2050 | AF106: 2051 | AG106: 2052 | AH106: 2053 | AI106: 2054 | AJ106: 2055 | AK106: 2056 | AL106: =AK106+1 -> 2057 | AM106: 2058 | AN106: 2059 | AO106: 2060 | AP106: 2061 | AQ106: 2062 | AR106: 2063 | AS106: 2064 | AT106: 2065 | AU106: 2066 | AV106: 2067 | AW106: 2068 | AX106: 2069 | AY106: 2070 | AZ106: 2071 | BA106: 2072 | BB106: 2073 | BD106: [yr] | BE106: =_payments_in & sst_curr -> falls Zahlungen in CHF
A107: PY_PP | B107: 1 | C107: =_MTPL -> MFH | D107: =_MTPL -> MFH | BD107: =IF(E107>0,SUMPRODUCT(E107:BB107,$E$105:$BB$105)/SUM(E107:BB107)+1,0) -> 0 | BE107: =SUMPRODUCT(E107:BB107,discount_factors_sst_curr) -> 0 | BF107: 1 | BG107: =IFERROR(SUMPRODUCT(E107:BB107,OFFSET(Infl_factors,MATCH("CH_direct-p-"&BH107,Match_Infl_Segment,0),BG$14,1,50),discount_factors_sst_curr)/BE107,1) -> 1 | BH107: =IF(OR(LEFT($B107,2)="5a",LEFT($B107,2)="5b"),$B107,LEFT($B107,IF(ISTEXT($B107),MIN(IF(ISERROR(FIND({"_","a","b"},$B107)),"",FIND({"_","a","b"},$B107)))-1,LEN($B107)))*1) -> 1
A108: PY_PP | B108: 2 | C108: =_MOD -> MFK | D108: =_MOD -> MFK | BD108: 0 | BE108: 0 | BF108: 1 | BG108: 1 | BH108: =IF(OR(LEFT($B108,2)="5a",LEFT($B108,2)="5b"),$B108,LEFT($B108,IF(ISTEXT($B108),MIN(IF(ISERROR(FIND({"_","a","b"},$B108)),"",FIND({"_","a","b"},$B108)))-1,LEN($B108)))*1) -> 2
A109: PY_PP | B109: 3 | C109: =_Fire -> Sach | D109: =IF(IFERROR(VLOOKUP("3b",NL_CH_Direct_PY_Inputs,4,FALSE),0)>0,_Fire_no_Elementar,_Fire_with_Elementar) -> Sach inkl. Elementarschadenpool | BD109: 0 | BE109: 0 | BF109: 1 | BG109: 1 | BH109: =IF(OR(LEFT($B109,2)="5a",LEFT($B109,2)="5b"),$B109,LEFT($B109,IF(ISTEXT($B109),MIN(IF(ISERROR(FIND({"_","a","b"},$B109)),"",FIND({"_","a","b"},$B109)))-1,LEN($B109)))*1) -> 3
A110: PY_PP | B110: 3b | C110: =IF(IFERROR(VLOOKUP($B110,NL_CH_Direct_PY_Inputs,4,FALSE),0)>0,_ESP,_ESP_in_Parenthesis) -> (Elementarschadenpool) | D110: =IF(IFERROR(VLOOKUP($B110,NL_CH_Direct_PY_Inputs,4,FALSE),0)>0,_ESP,_ESP_in_Parenthesis) -> (Elementarschadenpool) | BD110: 0 | BE110: 0 | BF110: 1 | BG110: 1 | BH110: =IF(OR(LEFT($B110,2)="5a",LEFT($B110,2)="5b"),$B110,LEFT($B110,IF(ISTEXT($B110),MIN(IF(ISERROR(FIND({"_","a","b"},$B110)),"",FIND({"_","a","b"},$B110)))-1,LEN($B110)))*1) -> 3
A111: PY_PP | B111: 4 | C111: =_GL -> Haftpflicht | D111: =_GL -> Haftpflicht | BD111: 0 | BE111: 0 | BF111: 1 | BG111: 1 | BH111: =IF(OR(LEFT($B111,2)="5a",LEFT($B111,2)="5b"),$B111,LEFT($B111,IF(ISTEXT($B111),MIN(IF(ISERROR(FIND({"_","a","b"},$B111)),"",FIND({"_","a","b"},$B111)))-1,LEN($B111)))*1) -> 4
A112: PY_PP | B112: 5a | C112: =_AccMandatory_noAnnuities -> UVG, nicht verrentete Fälle | D112: =_AccMandatory_noAnnuities -> UVG, nicht verrentete Fälle | BD112: 0 | BE112: 0 | BF112: 0 | BG112: 1 | BH112: =IF(OR(LEFT($B112,2)="5a",LEFT($B112,2)="5b"),$B112,LEFT($B112,IF(ISTEXT($B112),MIN(IF(ISERROR(FIND({"_","a","b"},$B112)),"",FIND({"_","a","b"},$B112)))-1,LEN($B112)))*1) -> 5a
A113: PY_PP | B113: 5b | C113: =_AccMandatory_Annuities -> UVG-Renten | D113: =_AccMandatory_Annuities -> UVG-Renten | BD113: 0 | BE113: 0 | BF113: 0 | BG113: 1 | BH113: =IF(OR(LEFT($B113,2)="5a",LEFT($B113,2)="5b"),$B113,LEFT($B113,IF(ISTEXT($B113),MIN(IF(ISERROR(FIND({"_","a","b"},$B113)),"",FIND({"_","a","b"},$B113)))-1,LEN($B113)))*1) -> 5b
A114: PY_PP | B114: 6 | C114: =_AccOptional -> Unfall ohne UVG | D114: =_AccOptional -> Unfall ohne UVG | BD114: 0 | BE114: 0 | BF114: 1 | BG114: 1 | BH114: =IF(OR(LEFT($B114,2)="5a",LEFT($B114,2)="5b"),$B114,LEFT($B114,IF(ISTEXT($B114),MIN(IF(ISERROR(FIND({"_","a","b"},$B114)),"",FIND({"_","a","b"},$B114)))-1,LEN($B114)))*1) -> 6
A115: PY_PP | B115: 7 | C115: =_Health_Collective -> Kollektivtaggeld | D115: =_Health_Collective -> Kollektivtaggeld | BD115: 0 | BE115: 0 | BF115: 1 | BG115: 1 | BH115: =IF(OR(LEFT($B115,2)="5a",LEFT($B115,2)="5b"),$B115,LEFT($B115,IF(ISTEXT($B115),MIN(IF(ISERROR(FIND({"_","a","b"},$B115)),"",FIND({"_","a","b"},$B115)))-1,LEN($B115)))*1) -> 7
A116: PY_PP | B116: 8 | C116: =_Health_Individual -> Einzelkranken | D116: =_Health_Individual -> Einzelkranken | BD116: 0 | BE116: 0 | BF116: 1 | BG116: 1 | BH116: =IF(OR(LEFT($B116,2)="5a",LEFT($B116,2)="5b"),$B116,LEFT($B116,IF(ISTEXT($B116),MIN(IF(ISERROR(FIND({"_","a","b"},$B116)),"",FIND({"_","a","b"},$B116)))-1,LEN($B116)))*1) -> 8
A117: PY_PP | B117: 9 | C117: =_Marine -> Transport | D117: =_Marine -> Transport | BD117: 0 | BE117: 0 | BF117: 1 | BG117: 1 | BH117: =IF(OR(LEFT($B117,2)="5a",LEFT($B117,2)="5b"),$B117,LEFT($B117,IF(ISTEXT($B117),MIN(IF(ISERROR(FIND({"_","a","b"},$B117)),"",FIND({"_","a","b"},$B117)))-1,LEN($B117)))*1) -> 9
A118: PY_PP | B118: 10 | C118: =_Aviation -> Luftfahrt | D118: =_Aviation -> Luftfahrt | BD118: 0 | BE118: 0 | BF118: 1 | BG118: 1 | BH118: =IF(OR(LEFT($B118,2)="5a",LEFT($B118,2)="5b"),$B118,LEFT($B118,IF(ISTEXT($B118),MIN(IF(ISERROR(FIND({"_","a","b"},$B118)),"",FIND({"_","a","b"},$B118)))-1,LEN($B118)))*1) -> 10
A119: PY_PP | B119: 11 | C119: =_CreditSurety -> Finanz und Kaution | D119: =_CreditSurety -> Finanz und Kaution | BD119: 0 | BE119: 0 | BF119: 1 | BG119: 1 | BH119: =IF(OR(LEFT($B119,2)="5a",LEFT($B119,2)="5b"),$B119,LEFT($B119,IF(ISTEXT($B119),MIN(IF(ISERROR(FIND({"_","a","b"},$B119)),"",FIND({"_","a","b"},$B119)))-1,LEN($B119)))*1) -> 11
A120: PY_PP | B120: 12 | C120: =_Legal -> Rechtsschutz | D120: =_Legal -> Rechtsschutz | BD120: 0 | BE120: 0 | BF120: 1 | BG120: 1 | BH120: =IF(OR(LEFT($B120,2)="5a",LEFT($B120,2)="5b"),$B120,LEFT($B120,IF(ISTEXT($B120),MIN(IF(ISERROR(FIND({"_","a","b"},$B120)),"",FIND({"_","a","b"},$B120)))-1,LEN($B120)))*1) -> 12
A121: PY_PP | B121: 13 | C121: =_Others -> Andere | D121: =_Others -> Andere | BD121: 0 | BE121: 0 | BF121: 1 | BG121: 1 | BH121: =IF(OR(LEFT($B121,2)="5a",LEFT($B121,2)="5b"),$B121,LEFT($B121,IF(ISTEXT($B121),MIN(IF(ISERROR(FIND({"_","a","b"},$B121)),"",FIND({"_","a","b"},$B121)))-1,LEN($B121)))*1) -> 13
A122: PY_PP | B122: Total | C122: =_All_LOBs -> Alle Branchen | E122: =IFERROR(SUMPRODUCT(E$107:E$121,$G$23:$G$37)/SUM($G$23:$G$37),0) -> 0 | F122: 0 | G122: 0 | H122: 0 | I122: 0 | J122: 0 | K122: 0 | L122: 0 | M122: 0 | N122: 0 | O122: 0 | P122: 0 | Q122: 0 | R122: 0 | S122: 0 | T122: 0 | U122: 0 | V122: 0 | W122: 0 | X122: 0 | Y122: 0 | Z122: 0 | AA122: 0 | AB122: 0 | AC122: 0 | AD122: 0 | AE122: 0 | AF122: 0 | AG122: 0 | AH122: 0 | AI122: 0 | AJ122: 0 | AK122: =IFERROR(SUMPRODUCT(AK$107:AK$121,$G$23:$G$37)/SUM($G$23:$G$37),0) -> 0 | AL122: 0 | AM122: 0 | AN122: 0 | AO122: 0 | AP122: 0 | AQ122: 0 | AR122: 0 | AS122: 0 | AT122: 0 | AU122: 0 | AV122: 0 | AW122: 0 | AX122: 0 | AY122: 0 | AZ122: 0 | BA122: 0 | BB122: 0 | BD122: 0 | BE122: =IFERROR(SUMPRODUCT(BE$107:BE$121,$G$23:$G$37)/SUM($G$23:$G$37),0) -> 0
A123: PY_PP | B123: Total_ex_UVG | C123: =_All_LOBs & " ex. " & _AccMandatory -> Alle Branchen ex. UVG | E123: =IFERROR(SUMPRODUCT(E$107:E$121,$G$23:$G$37,$BF$107:$BF$121)/SUMPRODUCT($G$23:$G$37,$BF$107:$BF$121),0) -> 0 | F123: 0 | G123: 0 | H123: 0 | I123: 0 | J123: 0 | K123: 0 | L123: 0 | M123: 0 | N123: 0 | O123: 0 | P123: 0 | Q123: 0 | R123: 0 | S123: 0 | T123: 0 | U123: 0 | V123: 0 | W123: 0 | X123: 0 | Y123: 0 | Z123: 0 | AA123: 0 | AB123: 0 | AC123: 0 | AD123: 0 | AE123: 0 | AF123: 0 | AG123: 0 | AH123: 0 | AI123: 0 | AJ123: 0 | AK123: =IFERROR(SUMPRODUCT(AK$107:AK$121,$G$23:$G$37,$BF$107:$BF$121)/SUMPRODUCT($G$23:$G$37,$BF$107:$BF$121),0) -> 0 | AL123: 0 | AM123: 0 | AN123: 0 | AO123: 0 | AP123: 0 | AQ123: 0 | AR123: 0 | AS123: 0 | AT123: 0 | AU123: 0 | AV123: 0 | AW123: 0 | AX123: 0 | AY123: 0 | AZ123: 0 | BA123: 0 | BB123: 0 | BD123: 0 | BE123: =SUMPRODUCT(E123:BB123,discount_factors_sst_curr) -> 0
B125: =_IncPP_CY -> Benutzte inkrementelle Abwicklungsmuster des aktuellen Anfalljahres (CY = current (accident) year, d.h. 2024)
E126: =_DevYr -> Abwicklungsjahr
B127: =_number -> Nr. | C127: =_NL_LOB_default -> SST-Standardversicherungsbranche | D127: =_segment -> Segment | E127: 0 | F127: 1 | G127: 2 | H127: 3 | I127: 4 | J127: 5 | K127: 6 | L127: 7 | M127: 8 | N127: 9 | O127: 10 | P127: 11 | Q127: 12 | R127: 13 | S127: 14 | T127: 15 | U127: 16 | V127: 17 | W127: 18 | X127: 19 | Y127: 20 | Z127: 21 | AA127: 22 | AB127: 23 | AC127: 24 | AD127: 25 | AE127: 26 | AF127: 27 | AG127: 28 | AH127: 29 | AI127: 30 | AJ127: 31 | AK127: 32 | AL127: 33 | AM127: 34 | AN127: 35 | AO127: 36 | AP127: 37 | AQ127: 38 | AR127: 39 | AS127: 40 | AT127: 41 | AU127: 42 | AV127: 43 | AW127: 44 | AX127: 45 | AY127: 46 | AZ127: 47 | BA127: 48 | BB127: 49 | BD127: Duration | BE127: =_PV_Factor -> Barwertfaktor | BF127: =_Inflation_Factor -> Inflationsfaktor (Gesamteffekt) | BG127: Lookup String
E128: =current_year -> 2024 | F128: =E128+1 -> 2025 | G128: 2026 | H128: 2027 | I128: 2028 | J128: 2029 | K128: 2030 | L128: 2031 | M128: 2032 | N128: 2033 | O128: 2034 | P128: 2035 | Q128: 2036 | R128: 2037 | S128: 2038 | T128: 2039 | U128: 2040 | V128: 2041 | W128: 2042 | X128: 2043 | Y128: 2044 | Z128: 2045 | AA128: 2046 | AB128: 2047 | AC128: 2048 | AD128: 2049 | AE128: 2050 | AF128: 2051 | AG128: 2052 | AH128: 2053 | AI128: 2054 | AJ128: 2055 | AK128: 2056 | AL128: =AK128+1 -> 2057 | AM128: 2058 | AN128: 2059 | AO128: 2060 | AP128: 2061 | AQ128: 2062 | AR128: 2063 | AS128: 2064 | AT128: 2065 | AU128: 2066 | AV128: 2067 | AW128: 2068 | AX128: 2069 | AY128: 2070 | AZ128: 2071 | BA128: 2072 | BB128: 2073 | BD128: [yr] | BE128: =_payments_in & sst_curr -> falls Zahlungen in CHF
A129: CY_PP | B129: 1 | C129: =_MTPL -> MFH | D129: =_MTPL -> MFH | BD129: =IF(E129>0,SUMPRODUCT(E129:BB129,$E$127:$BB$127)/SUM(E129:BB129)+1,0) -> 0 | BE129: =SUMPRODUCT(E129:BB129,discount_factors_sst_curr) -> 0 | BF129: =IFERROR(SUMPRODUCT(E129:BB129,OFFSET(Infl_factors,MATCH("CH_direct-p-"&BG129,Match_Infl_Segment,0),BF$14,1,50),discount_factors_sst_curr)/BE129,1) -> 1 | BG129: =IF(OR(LEFT($B129,2)="5a",LEFT($B129,2)="5b"),$B129,LEFT($B129,IF(ISTEXT($B129),MIN(IF(ISERROR(FIND({"_","a","b"},$B129)),"",FIND({"_","a","b"},$B129)))-1,LEN($B129)))*1) -> 1
A130: CY_PP | B130: 2 | C130: =_MOD -> MFK | D130: =_MOD -> MFK | BD130: 0 | BE130: 0 | BF130: 1 | BG130: =IF(OR(LEFT($B130,2)="5a",LEFT($B130,2)="5b"),$B130,LEFT($B130,IF(ISTEXT($B130),MIN(IF(ISERROR(FIND({"_","a","b"},$B130)),"",FIND({"_","a","b"},$B130)))-1,LEN($B130)))*1) -> 2
A131: CY_PP | B131: 3a | C131: =_Fire_no_Elementar -> Sach ohne Elementarschadenpool | D131: Sach | BD131: 0 | BE131: 0 | BF131: 1 | BG131: =IF(OR(LEFT($B131,2)="5a",LEFT($B131,2)="5b"),$B131,LEFT($B131,IF(ISTEXT($B131),MIN(IF(ISERROR(FIND({"_","a","b"},$B131)),"",FIND({"_","a","b"},$B131)))-1,LEN($B131)))*1) -> 3
A132: CY_PP | B132: 3b | C132: =_ESP -> Elementarschadenpool | D132: =_ESP -> Elementarschadenpool | BD132: 0 | BE132: 0 | BF132: 1 | BG132: =IF(OR(LEFT($B132,2)="5a",LEFT($B132,2)="5b"),$B132,LEFT($B132,IF(ISTEXT($B132),MIN(IF(ISERROR(FIND({"_","a","b"},$B132)),"",FIND({"_","a","b"},$B132)))-1,LEN($B132)))*1) -> 3
A133: CY_PP | B133: 4 | C133: =_GL -> Haftpflicht | D133: =_GL -> Haftpflicht | BD133: 0 | BE133: 0 | BF133: 1 | BG133: =IF(OR(LEFT($B133,2)="5a",LEFT($B133,2)="5b"),$B133,LEFT($B133,IF(ISTEXT($B133),MIN(IF(ISERROR(FIND({"_","a","b"},$B133)),"",FIND({"_","a","b"},$B133)))-1,LEN($B133)))*1) -> 4
A134: CY_PP | B134: 5a | C134: =_AccMandatory_noAnnuities -> UVG, nicht verrentete Fälle | D134: =_AccMandatory_noAnnuities -> UVG, nicht verrentete Fälle | BD134: 0 | BE134: 0 | BF134: 1 | BG134: =IF(OR(LEFT($B134,2)="5a",LEFT($B134,2)="5b"),$B134,LEFT($B134,IF(ISTEXT($B134),MIN(IF(ISERROR(FIND({"_","a","b"},$B134)),"",FIND({"_","a","b"},$B134)))-1,LEN($B134)))*1) -> 5a
A135: CY_PP | B135: 5b | C135: =_AccMandatory_Annuities -> UVG-Renten | D135: =_AccMandatory_Annuities -> UVG-Renten | BD135: 0 | BE135: 0 | BF135: 1 | BG135: =IF(OR(LEFT($B135,2)="5a",LEFT($B135,2)="5b"),$B135,LEFT($B135,IF(ISTEXT($B135),MIN(IF(ISERROR(FIND({"_","a","b"},$B135)),"",FIND({"_","a","b"},$B135)))-1,LEN($B135)))*1) -> 5b
A136: CY_PP | B136: 6 | C136: =_AccOptional -> Unfall ohne UVG | D136: =_AccOptional -> Unfall ohne UVG | BD136: 0 | BE136: 0 | BF136: 1 | BG136: =IF(OR(LEFT($B136,2)="5a",LEFT($B136,2)="5b"),$B136,LEFT($B136,IF(ISTEXT($B136),MIN(IF(ISERROR(FIND({"_","a","b"},$B136)),"",FIND({"_","a","b"},$B136)))-1,LEN($B136)))*1) -> 6
A137: CY_PP | B137: 7 | C137: =_Health_Collective -> Kollektivtaggeld | D137: =_Health_Collective -> Kollektivtaggeld | BD137: 0 | BE137: 0 | BF137: 1 | BG137: =IF(OR(LEFT($B137,2)="5a",LEFT($B137,2)="5b"),$B137,LEFT($B137,IF(ISTEXT($B137),MIN(IF(ISERROR(FIND({"_","a","b"},$B137)),"",FIND({"_","a","b"},$B137)))-1,LEN($B137)))*1) -> 7
A138: CY_PP | B138: 8 | C138: =_Health_Individual -> Einzelkranken | D138: =_Health_Individual -> Einzelkranken | BD138: 0 | BE138: 0 | BF138: 1 | BG138: =IF(OR(LEFT($B138,2)="5a",LEFT($B138,2)="5b"),$B138,LEFT($B138,IF(ISTEXT($B138),MIN(IF(ISERROR(FIND({"_","a","b"},$B138)),"",FIND({"_","a","b"},$B138)))-1,LEN($B138)))*1) -> 8
A139: CY_PP | B139: 9 | C139: =_Marine -> Transport | D139: =_Marine -> Transport | BD139: 0 | BE139: 0 | BF139: 1 | BG139: =IF(OR(LEFT($B139,2)="5a",LEFT($B139,2)="5b"),$B139,LEFT($B139,IF(ISTEXT($B139),MIN(IF(ISERROR(FIND({"_","a","b"},$B139)),"",FIND({"_","a","b"},$B139)))-1,LEN($B139)))*1) -> 9
A140: CY_PP | B140: 10 | C140: =_Aviation -> Luftfahrt | D140: =_Aviation -> Luftfahrt | BD140: 0 | BE140: 0 | BF140: 1 | BG140: =IF(OR(LEFT($B140,2)="5a",LEFT($B140,2)="5b"),$B140,LEFT($B140,IF(ISTEXT($B140),MIN(IF(ISERROR(FIND({"_","a","b"},$B140)),"",FIND({"_","a","b"},$B140)))-1,LEN($B140)))*1) -> 10
A141: CY_PP | B141: 11 | C141: =_CreditSurety -> Finanz und Kaution | D141: =_CreditSurety -> Finanz und Kaution | BD141: 0 | BE141: 0 | BF141: 1 | BG141: =IF(OR(LEFT($B141,2)="5a",LEFT($B141,2)="5b"),$B141,LEFT($B141,IF(ISTEXT($B141),MIN(IF(ISERROR(FIND({"_","a","b"},$B141)),"",FIND({"_","a","b"},$B141)))-1,LEN($B141)))*1) -> 11
A142: CY_PP | B142: 12 | C142: =_Legal -> Rechtsschutz | D142: =_Legal -> Rechtsschutz | BD142: 0 | BE142: 0 | BF142: 1 | BG142: =IF(OR(LEFT($B142,2)="5a",LEFT($B142,2)="5b"),$B142,LEFT($B142,IF(ISTEXT($B142),MIN(IF(ISERROR(FIND({"_","a","b"},$B142)),"",FIND({"_","a","b"},$B142)))-1,LEN($B142)))*1) -> 12
A143: CY_PP | B143: 13 | C143: =_Others -> Andere | D143: =_Others -> Andere | BD143: 0 | BE143: 0 | BF143: 1 | BG143: =IF(OR(LEFT($B143,2)="5a",LEFT($B143,2)="5b"),$B143,LEFT($B143,IF(ISTEXT($B143),MIN(IF(ISERROR(FIND({"_","a","b"},$B143)),"",FIND({"_","a","b"},$B143)))-1,LEN($B143)))*1) -> 13
A144: CY_PP | B144: Total | C144: =_All_LOBs -> Alle Branchen | E144: =IFERROR(SUMPRODUCT(E$129:E$143,$R$86:$R$100)/SUM($R$86:$R$100),0) -> 0 | F144: 0 | G144: 0 | H144: 0 | I144: 0 | J144: 0 | K144: 0 | L144: 0 | M144: 0 | N144: 0 | O144: 0 | P144: 0 | Q144: 0 | R144: 0 | S144: 0 | T144: 0 | U144: 0 | V144: 0 | W144: 0 | X144: 0 | Y144: 0 | Z144: 0 | AA144: 0 | AB144: 0 | AC144: 0 | AD144: 0 | AE144: 0 | AF144: 0 | AG144: 0 | AH144: 0 | AI144: 0 | AJ144: 0 | AK144: =IFERROR(SUMPRODUCT(AK$129:AK$143,$R$86:$R$100)/SUM($R$86:$R$100),0) -> 0 | AL144: 0 | AM144: 0 | AN144: 0 | AO144: 0 | AP144: 0 | AQ144: 0 | AR144: 0 | AS144: 0 | AT144: 0 | AU144: 0 | AV144: 0 | AW144: 0 | AX144: 0 | AY144: 0 | AZ144: 0 | BA144: 0 | BB144: 0 | BD144: 0 | BE144: 0
B146: =_IncPP_URR_1yr -> Benutzte inkrementelle Abwicklungsmuster für ein zukünftiges Anfalljahr (URR = claims for unexpired risks in one future (accident) year, d.h. nach 2024)
E147: =_DevYr -> Abwicklungsjahr
B148: =_number -> Nr. | C148: =_NL_LOB_default -> SST-Standardversicherungsbranche | D148: =_segment -> Segment | E148: 0 | F148: 1 | G148: 2 | H148: 3 | I148: 4 | J148: 5 | K148: 6 | L148: 7 | M148: 8 | N148: 9 | O148: 10 | P148: 11 | Q148: 12 | R148: 13 | S148: 14 | T148: 15 | U148: 16 | V148: 17 | W148: 18 | X148: 19 | Y148: 20 | Z148: 21 | AA148: 22 | AB148: 23 | AC148: 24 | AD148: 25 | AE148: 26 | AF148: 27 | AG148: 28 | AH148: 29 | AI148: 30 | AJ148: 31 | AK148: 32 | AL148: 33 | AM148: 34 | AN148: 35 | AO148: 36 | AP148: 37 | AQ148: 38 | AR148: 39 | AS148: 40 | AT148: 41 | AU148: 42 | AV148: 43 | AW148: 44 | AX148: 45 | AY148: 46 | AZ148: 47 | BA148: 48 | BB148: 49 | BD148: Duration | BE148: =_PV_Factor -> Barwertfaktor | BF148: =_Inflation_Factor -> Inflationsfaktor (Gesamteffekt) | BG148: Lookup String
E149: =current_year -> 2024 | F149: =E149+1 -> 2025 | G149: 2026 | H149: 2027 | I149: 2028 | J149: 2029 | K149: 2030 | L149: 2031 | M149: 2032 | N149: 2033 | O149: 2034 | P149: 2035 | Q149: 2036 | R149: 2037 | S149: 2038 | T149: 2039 | U149: 2040 | V149: 2041 | W149: 2042 | X149: 2043 | Y149: 2044 | Z149: 2045 | AA149: 2046 | AB149: 2047 | AC149: 2048 | AD149: 2049 | AE149: 2050 | AF149: 2051 | AG149: 2052 | AH149: 2053 | AI149: 2054 | AJ149: 2055 | AK149: 2056 | AL149: =AK149+1 -> 2057 | AM149: 2058 | AN149: 2059 | AO149: 2060 | AP149: 2061 | AQ149: 2062 | AR149: 2063 | AS149: 2064 | AT149: 2065 | AU149: 2066 | AV149: 2067 | AW149: 2068 | AX149: 2069 | AY149: 2070 | AZ149: 2071 | BA149: 2072 | BB149: 2073 | BD149: [yr] | BE149: =_payments_in & sst_curr -> falls Zahlungen in CHF
A150: URR_1PP | B150: 1 | C150: =_MTPL -> MFH | D150: =_MTPL -> MFH | BD150: =IF(F150>0,SUMPRODUCT(F150:BB150,$F$148:$BB$148)/SUM(F150:BB150)+1,0) -> 0 | BE150: =SUMPRODUCT(E150:BB150,discount_factors_sst_curr) -> 0 | BF150: =IFERROR(SUMPRODUCT(E150:BB150,OFFSET(Infl_factors,MATCH("CH_direct-p-"&BG150,Match_Infl_Segment,0),BF$14,1,50),discount_factors_sst_curr)/BE150,1) -> 1 | BG150: =IF(OR(LEFT($B150,2)="5a",LEFT($B150,2)="5b"),$B150,LEFT($B150,IF(ISTEXT($B150),MIN(IF(ISERROR(FIND({"_","a","b"},$B150)),"",FIND({"_","a","b"},$B150)))-1,LEN($B150)))*1) -> 1
A151: URR_1PP | B151: 2 | C151: =_MOD -> MFK | D151: =_MOD -> MFK | BD151: 0 | BE151: 0 | BF151: 1 | BG151: =IF(OR(LEFT($B151,2)="5a",LEFT($B151,2)="5b"),$B151,LEFT($B151,IF(ISTEXT($B151),MIN(IF(ISERROR(FIND({"_","a","b"},$B151)),"",FIND({"_","a","b"},$B151)))-1,LEN($B151)))*1) -> 2
A152: URR_1PP | B152: 3a | C152: =_Fire_no_Elementar -> Sach ohne Elementarschadenpool | D152: Sach | BD152: 0 | BE152: 0 | BF152: 1 | BG152: =IF(OR(LEFT($B152,2)="5a",LEFT($B152,2)="5b"),$B152,LEFT($B152,IF(ISTEXT($B152),MIN(IF(ISERROR(FIND({"_","a","b"},$B152)),"",FIND({"_","a","b"},$B152)))-1,LEN($B152)))*1) -> 3
A153: URR_1PP | B153: 3b | C153: =_ESP -> Elementarschadenpool | D153: =_ESP -> Elementarschadenpool | BD153: 0 | BE153: 0 | BF153: 1 | BG153: =IF(OR(LEFT($B153,2)="5a",LEFT($B153,2)="5b"),$B153,LEFT($B153,IF(ISTEXT($B153),MIN(IF(ISERROR(FIND({"_","a","b"},$B153)),"",FIND({"_","a","b"},$B153)))-1,LEN($B153)))*1) -> 3
A154: URR_1PP | B154: 4 | C154: =_GL -> Haftpflicht | D154: =_GL -> Haftpflicht | BD154: 0 | BE154: 0 | BF154: 1 | BG154: =IF(OR(LEFT($B154,2)="5a",LEFT($B154,2)="5b"),$B154,LEFT($B154,IF(ISTEXT($B154),MIN(IF(ISERROR(FIND({"_","a","b"},$B154)),"",FIND({"_","a","b"},$B154)))-1,LEN($B154)))*1) -> 4
A155: URR_1PP | B155: 5a | C155: =_AccMandatory_noAnnuities -> UVG, nicht verrentete Fälle | D155: =_AccMandatory_noAnnuities -> UVG, nicht verrentete Fälle | BD155: 0 | BE155: 0 | BF155: 1 | BG155: =IF(OR(LEFT($B155,2)="5a",LEFT($B155,2)="5b"),$B155,LEFT($B155,IF(ISTEXT($B155),MIN(IF(ISERROR(FIND({"_","a","b"},$B155)),"",FIND({"_","a","b"},$B155)))-1,LEN($B155)))*1) -> 5a
A156: URR_1PP | B156: 5b | C156: =_AccMandatory_Annuities -> UVG-Renten | D156: =_AccMandatory_Annuities -> UVG-Renten | BD156: 0 | BE156: 0 | BF156: 1 | BG156: =IF(OR(LEFT($B156,2)="5a",LEFT($B156,2)="5b"),$B156,LEFT($B156,IF(ISTEXT($B156),MIN(IF(ISERROR(FIND({"_","a","b"},$B156)),"",FIND({"_","a","b"},$B156)))-1,LEN($B156)))*1) -> 5b
A157: URR_1PP | B157: 6 | C157: =_AccOptional -> Unfall ohne UVG | D157: =_AccOptional -> Unfall ohne UVG | BD157: 0 | BE157: 0 | BF157: 1 | BG157: =IF(OR(LEFT($B157,2)="5a",LEFT($B157,2)="5b"),$B157,LEFT($B157,IF(ISTEXT($B157),MIN(IF(ISERROR(FIND({"_","a","b"},$B157)),"",FIND({"_","a","b"},$B157)))-1,LEN($B157)))*1) -> 6
A158: URR_1PP | B158: 7 | C158: =_Health_Collective -> Kollektivtaggeld | D158: =_Health_Collective -> Kollektivtaggeld | BD158: 0 | BE158: 0 | BF158: 1 | BG158: =IF(OR(LEFT($B158,2)="5a",LEFT($B158,2)="5b"),$B158,LEFT($B158,IF(ISTEXT($B158),MIN(IF(ISERROR(FIND({"_","a","b"},$B158)),"",FIND({"_","a","b"},$B158)))-1,LEN($B158)))*1) -> 7
A159: URR_1PP | B159: 8 | C159: =_Health_Individual -> Einzelkranken | D159: =_Health_Individual -> Einzelkranken | BD159: 0 | BE159: 0 | BF159: 1 | BG159: =IF(OR(LEFT($B159,2)="5a",LEFT($B159,2)="5b"),$B159,LEFT($B159,IF(ISTEXT($B159),MIN(IF(ISERROR(FIND({"_","a","b"},$B159)),"",FIND({"_","a","b"},$B159)))-1,LEN($B159)))*1) -> 8
A160: URR_1PP | B160: 9 | C160: =_Marine -> Transport | D160: =_Marine -> Transport | BD160: 0 | BE160: 0 | BF160: 1 | BG160: =IF(OR(LEFT($B160,2)="5a",LEFT($B160,2)="5b"),$B160,LEFT($B160,IF(ISTEXT($B160),MIN(IF(ISERROR(FIND({"_","a","b"},$B160)),"",FIND({"_","a","b"},$B160)))-1,LEN($B160)))*1) -> 9
A161: URR_1PP | B161: 10 | C161: =_Aviation -> Luftfahrt | D161: =_Aviation -> Luftfahrt | BD161: 0 | BE161: 0 | BF161: 1 | BG161: =IF(OR(LEFT($B161,2)="5a",LEFT($B161,2)="5b"),$B161,LEFT($B161,IF(ISTEXT($B161),MIN(IF(ISERROR(FIND({"_","a","b"},$B161)),"",FIND({"_","a","b"},$B161)))-1,LEN($B161)))*1) -> 10
A162: URR_1PP | B162: 11 | C162: =_CreditSurety -> Finanz und Kaution | D162: =_CreditSurety -> Finanz und Kaution | BD162: 0 | BE162: 0 | BF162: 1 | BG162: =IF(OR(LEFT($B162,2)="5a",LEFT($B162,2)="5b"),$B162,LEFT($B162,IF(ISTEXT($B162),MIN(IF(ISERROR(FIND({"_","a","b"},$B162)),"",FIND({"_","a","b"},$B162)))-1,LEN($B162)))*1) -> 11
A163: URR_1PP | B163: 12 | C163: =_Legal -> Rechtsschutz | D163: =_Legal -> Rechtsschutz | BD163: 0 | BE163: 0 | BF163: 1 | BG163: =IF(OR(LEFT($B163,2)="5a",LEFT($B163,2)="5b"),$B163,LEFT($B163,IF(ISTEXT($B163),MIN(IF(ISERROR(FIND({"_","a","b"},$B163)),"",FIND({"_","a","b"},$B163)))-1,LEN($B163)))*1) -> 12
A164: URR_1PP | B164: 13 | C164: =_Others -> Andere | D164: =_Others -> Andere | BD164: 0 | BE164: 0 | BF164: 1 | BG164: =IF(OR(LEFT($B164,2)="5a",LEFT($B164,2)="5b"),$B164,LEFT($B164,IF(ISTEXT($B164),MIN(IF(ISERROR(FIND({"_","a","b"},$B164)),"",FIND({"_","a","b"},$B164)))-1,LEN($B164)))*1) -> 13
A165: URR_1PP | B165: Total | C165: =_All_LOBs -> Alle Branchen | F165: =IFERROR(SUMPRODUCT(F$150:F$164,$T$86:$T$100)/SUM($T$86:$T$100),0) -> 0 | G165: 0 | H165: 0 | I165: 0 | J165: 0 | K165: 0 | L165: 0 | M165: 0 | N165: 0 | O165: 0 | P165: 0 | Q165: 0 | R165: 0 | S165: 0 | T165: 0 | U165: 0 | V165: 0 | W165: 0 | X165: 0 | Y165: 0 | Z165: 0 | AA165: 0 | AB165: 0 | AC165: 0 | AD165: 0 | AE165: 0 | AF165: 0 | AG165: 0 | AH165: 0 | AI165: 0 | AJ165: 0 | AK165: 0 | AL165: =IFERROR(SUMPRODUCT(AL$150:AL$164,$T$86:$T$100)/SUM($T$86:$T$100),0) -> 0 | AM165: 0 | AN165: 0 | AO165: 0 | AP165: 0 | AQ165: 0 | AR165: 0 | AS165: 0 | AT165: 0 | AU165: 0 | AV165: 0 | AW165: 0 | AX165: 0 | AY165: 0 | AZ165: 0 | BA165: 0 | BB165: 0 | BD165: 0 | BE165: 0
B167: =_IncEP_URR -> Benutzte inkrementelle Earning Muster der zukünftgen Anfalljahre (URR = claims for unexpired risks in future (accident) years, d.h. nach 2024)
E168: =_DevYr -> Abwicklungsjahr
B169: =_number -> Nr. | C169: =_NL_LOB_default -> SST-Standardversicherungsbranche | D169: =_segment -> Segment | E169: 0 | F169: 1 | G169: 2 | H169: 3 | I169: 4 | J169: 5 | K169: 6 | L169: 7 | M169: 8 | N169: 9 | O169: 10
E170: =current_year -> 2024 | F170: =E170+1 -> 2025 | G170: 2026 | H170: 2027 | I170: 2028 | J170: 2029 | K170: 2030 | L170: 2031 | M170: 2032 | N170: 2033 | O170: 2034
A171: URR_EP | B171: 1 | C171: =_MTPL -> MFH | D171: =_MTPL -> MFH
A172: URR_EP | B172: 2 | C172: =_MOD -> MFK | D172: =_MOD -> MFK
A173: URR_EP | B173: 3a | C173: =_Fire_no_Elementar -> Sach ohne Elementarschadenpool | D173: Sach
A174: URR_EP | B174: 3b | C174: =_ESP -> Elementarschadenpool | D174: =_ESP -> Elementarschadenpool
A175: URR_EP | B175: 4 | C175: =_GL -> Haftpflicht | D175: =_GL -> Haftpflicht
A176: URR_EP | B176: 5a | C176: =_AccMandatory_noAnnuities -> UVG, nicht verrentete Fälle | D176: =_AccMandatory_noAnnuities -> UVG, nicht verrentete Fälle
A177: URR_EP | B177: 5b | C177: =_AccMandatory_Annuities -> UVG-Renten | D177: =_AccMandatory_Annuities -> UVG-Renten
A178: URR_EP | B178: 6 | C178: =_AccOptional -> Unfall ohne UVG | D178: =_AccOptional -> Unfall ohne UVG
A179: URR_EP | B179: 7 | C179: =_Health_Collective -> Kollektivtaggeld | D179: =_Health_Collective -> Kollektivtaggeld
A180: URR_EP | B180: 8 | C180: =_Health_Individual -> Einzelkranken | D180: =_Health_Individual -> Einzelkranken
A181: URR_EP | B181: 9 | C181: =_Marine -> Transport | D181: =_Marine -> Transport
A182: URR_EP | B182: 10 | C182: =_Aviation -> Luftfahrt | D182: =_Aviation -> Luftfahrt
A183: URR_EP | B183: 11 | C183: =_CreditSurety -> Finanz und Kaution | D183: =_CreditSurety -> Finanz und Kaution
A184: URR_EP | B184: 12 | C184: =_Legal -> Rechtsschutz | D184: =_Legal -> Rechtsschutz
A185: URR_EP | B185: 13 | C185: =_Others -> Andere | D185: =_Others -> Andere
A186: URR_EP | B186: Total | C186: =_All_LOBs -> Alle Branchen | F186: =IFERROR(SUMPRODUCT(F$171:F$185,$J$86:$J$100)/SUM($J$86:$J$100),0) -> 0 | G186: 0 | H186: 0 | I186: 0 | J186: 0 | K186: 0 | L186: 0 | M186: 0 | N186: 0 | O186: 0
B188: =_IncPP_URR -> Benutzte inkrementelle Abwicklungsmuster der zukünftgen Anfalljahre (URR = claims for unexpired risks in future (accident) years, d.h. nach 2024)
E189: =_DevYr -> Abwicklungsjahr
B190: =_number -> Nr. | C190: =_NL_LOB_default -> SST-Standardversicherungsbranche | D190: =_segment -> Segment | E190: 0 | F190: 1 | G190: 2 | H190: 3 | I190: 4 | J190: 5 | K190: 6 | L190: 7 | M190: 8 | N190: 9 | O190: 10 | P190: 11 | Q190: 12 | R190: 13 | S190: 14 | T190: 15 | U190: 16 | V190: 17 | W190: 18 | X190: 19 | Y190: 20 | Z190: 21 | AA190: 22 | AB190: 23 | AC190: 24 | AD190: 25 | AE190: 26 | AF190: 27 | AG190: 28 | AH190: 29 | AI190: 30 | AJ190: 31 | AK190: 32 | AL190: 33 | AM190: 34 | AN190: 35 | AO190: 36 | AP190: 37 | AQ190: 38 | AR190: 39 | AS190: 40 | AT190: 41 | AU190: 42 | AV190: 43 | AW190: 44 | AX190: 45 | AY190: 46 | AZ190: 47 | BA190: 48 | BB190: 49 | BD190: Duration | BE190: =_PV_Factor -> Barwertfaktor | BF190: =_Inflation_Factor -> Inflationsfaktor (Gesamteffekt) | BG190: Lookup String
E191: =current_year -> 2024 | F191: =E191+1 -> 2025 | G191: 2026 | H191: 2027 | I191: 2028 | J191: 2029 | K191: 2030 | L191: 2031 | M191: 2032 | N191: 2033 | O191: 2034 | P191: 2035 | Q191: 2036 | R191: 2037 | S191: 2038 | T191: 2039 | U191: 2040 | V191: 2041 | W191: 2042 | X191: 2043 | Y191: 2044 | Z191: 2045 | AA191: 2046 | AB191: 2047 | AC191: 2048 | AD191: 2049 | AE191: 2050 | AF191: 2051 | AG191: 2052 | AH191: 2053 | AI191: 2054 | AJ191: 2055 | AK191: 2056 | AL191: =AK191+1 -> 2057 | AM191: 2058 | AN191: 2059 | AO191: 2060 | AP191: 2061 | AQ191: 2062 | AR191: 2063 | AS191: 2064 | AT191: 2065 | AU191: 2066 | AV191: 2067 | AW191: 2068 | AX191: 2069 | AY191: 2070 | AZ191: 2071 | BA191: 2072 | BB191: 2073 | BD191: [yr] | BE191: =_payments_in & sst_curr -> falls Zahlungen in CHF
A192: URR_PP | B192: 1 | C192: =_MTPL -> MFH | D192: =_MTPL -> MFH | F192: =IFERROR( SUMPRODUCT( INDEX($F$171:F$171,N(IF({1},F$190-$F$190:F$190+1))),$F$150:F$150),0) -> 0 | G192: =IFERROR( SUMPRODUCT( INDEX($F$171:G$171,N(IF({1},G$190-$F$190:G$190+1))),$F$150:G$150),0) -> 0 | H192: =IFERROR( SUMPRODUCT( INDEX($F$171:H$171,N(IF({1},H$190-$F$190:H$190+1))),$F$150:H$150),0) -> 0 | I192: =IFERROR( SUMPRODUCT( INDEX($F$171:I$171,N(IF({1},I$190-$F$190:I$190+1))),$F$150:I$150),0) -> 0 | J192: =IFERROR( SUMPRODUCT( INDEX($F$171:J$171,N(IF({1},J$190-$F$190:J$190+1))),$F$150:J$150),0) -> 0 | K192: =IFERROR( SUMPRODUCT( INDEX($F$171:K$171,N(IF({1},K$190-$F$190:K$190+1))),$F$150:K$150),0) -> 0 | L192: =IFERROR( SUMPRODUCT( INDEX($F$171:L$171,N(IF({1},L$190-$F$190:L$190+1))),$F$150:L$150),0) -> 0 | M192: =IFERROR( SUMPRODUCT( INDEX($F$171:M$171,N(IF({1},M$190-$F$190:M$190+1))),$F$150:M$150),0) -> 0 | N192: =IFERROR( SUMPRODUCT( INDEX($F$171:N$171,N(IF({1},N$190-$F$190:N$190+1))),$F$150:N$150),0) -> 0 | O192: =IFERROR( SUMPRODUCT( INDEX($F$171:O$171,N(IF({1},O$190-$F$190:O$190+1))),$F$150:O$150),0) -> 0 | P192: =IFERROR( SUMPRODUCT( INDEX($F$171:P$171,N(IF({1},P$190-$F$190:P$190+1))),$F$150:P$150),0) -> 0 | Q192: =IFERROR( SUMPRODUCT( INDEX($F$171:Q$171,N(IF({1},Q$190-$F$190:Q$190+1))),$F$150:Q$150),0) -> 0 | R192: =IFERROR( SUMPRODUCT( INDEX($F$171:R$171,N(IF({1},R$190-$F$190:R$190+1))),$F$150:R$150),0) -> 0 | S192: =IFERROR( SUMPRODUCT( INDEX($F$171:S$171,N(IF({1},S$190-$F$190:S$190+1))),$F$150:S$150),0) -> 0 | T192: =IFERROR( SUMPRODUCT( INDEX($F$171:T$171,N(IF({1},T$190-$F$190:T$190+1))),$F$150:T$150),0) -> 0 | U192: =IFERROR( SUMPRODUCT( INDEX($F$171:U$171,N(IF({1},U$190-$F$190:U$190+1))),$F$150:U$150),0) -> 0 | V192: =IFERROR( SUMPRODUCT( INDEX($F$171:V$171,N(IF({1},V$190-$F$190:V$190+1))),$F$150:V$150),0) -> 0 | W192: =IFERROR( SUMPRODUCT( INDEX($F$171:W$171,N(IF({1},W$190-$F$190:W$190+1))),$F$150:W$150),0) -> 0 | X192: =IFERROR( SUMPRODUCT( INDEX($F$171:X$171,N(IF({1},X$190-$F$190:X$190+1))),$F$150:X$150),0) -> 0 | Y192: =IFERROR( SUMPRODUCT( INDEX($F$171:Y$171,N(IF({1},Y$190-$F$190:Y$190+1))),$F$150:Y$150),0) -> 0 | Z192: =IFERROR( SUMPRODUCT( INDEX($F$171:Z$171,N(IF({1},Z$190-$F$190:Z$190+1))),$F$150:Z$150),0) -> 0 | AA192: =IFERROR( SUMPRODUCT( INDEX($F$171:AA$171,N(IF({1},AA$190-$F$190:AA$190+1))),$F$150:AA$150),0) -> 0 | AB192: =IFERROR( SUMPRODUCT( INDEX($F$171:AB$171,N(IF({1},AB$190-$F$190:AB$190+1))),$F$150:AB$150),0) -> 0 | AC192: =IFERROR( SUMPRODUCT( INDEX($F$171:AC$171,N(IF({1},AC$190-$F$190:AC$190+1))),$F$150:AC$150),0) -> 0 | AD192: =IFERROR( SUMPRODUCT( INDEX($F$171:AD$171,N(IF({1},AD$190-$F$190:AD$190+1))),$F$150:AD$150),0) -> 0 | AE192: =IFERROR( SUMPRODUCT( INDEX($F$171:AE$171,N(IF({1},AE$190-$F$190:AE$190+1))),$F$150:AE$150),0) -> 0 | AF192: =IFERROR( SUMPRODUCT( INDEX($F$171:AF$171,N(IF({1},AF$190-$F$190:AF$190+1))),$F$150:AF$150),0) -> 0 | AG192: =IFERROR( SUMPRODUCT( INDEX($F$171:AG$171,N(IF({1},AG$190-$F$190:AG$190+1))),$F$150:AG$150),0) -> 0 | AH192: =IFERROR( SUMPRODUCT( INDEX($F$171:AH$171,N(IF({1},AH$190-$F$190:AH$190+1))),$F$150:AH$150),0) -> 0 | AI192: =IFERROR( SUMPRODUCT( INDEX($F$171:AI$171,N(IF({1},AI$190-$F$190:AI$190+1))),$F$150:AI$150),0) -> 0 | AJ192: =IFERROR( SUMPRODUCT( INDEX($F$171:AJ$171,N(IF({1},AJ$190-$F$190:AJ$190+1))),$F$150:AJ$150),0) -> 0 | AK192: =IFERROR( SUMPRODUCT( INDEX($F$171:AK$171,N(IF({1},AK$190-$F$190:AK$190+1))),$F$150:AK$150),0) -> 0 | AL192: =IFERROR( SUMPRODUCT( INDEX($F$171:AL$171,N(IF({1},AL$190-$F$190:AL$190+1))),$F$150:AL$150),0) -> 0 | AM192: =IFERROR( SUMPRODUCT( INDEX($F$171:AM$171,N(IF({1},AM$190-$F$190:AM$190+1))),$F$150:AM$150),0) -> 0 | AN192: =IFERROR( SUMPRODUCT( INDEX($F$171:AN$171,N(IF({1},AN$190-$F$190:AN$190+1))),$F$150:AN$150),0) -> 0 | AO192: =IFERROR( SUMPRODUCT( INDEX($F$171:AO$171,N(IF({1},AO$190-$F$190:AO$190+1))),$F$150:AO$150),0) -> 0 | AP192: =IFERROR( SUMPRODUCT( INDEX($F$171:AP$171,N(IF({1},AP$190-$F$190:AP$190+1))),$F$150:AP$150),0) -> 0 | AQ192: =IFERROR( SUMPRODUCT( INDEX($F$171:AQ$171,N(IF({1},AQ$190-$F$190:AQ$190+1))),$F$150:AQ$150),0) -> 0 | AR192: =IFERROR( SUMPRODUCT( INDEX($F$171:AR$171,N(IF({1},AR$190-$F$190:AR$190+1))),$F$150:AR$150),0) -> 0 | AS192: =IFERROR( SUMPRODUCT( INDEX($F$171:AS$171,N(IF({1},AS$190-$F$190:AS$190+1))),$F$150:AS$150),0) -> 0 | AT192: =IFERROR( SUMPRODUCT( INDEX($F$171:AT$171,N(IF({1},AT$190-$F$190:AT$190+1))),$F$150:AT$150),0) -> 0 | AU192: =IFERROR( SUMPRODUCT( INDEX($F$171:AU$171,N(IF({1},AU$190-$F$190:AU$190+1))),$F$150:AU$150),0) -> 0 | AV192: =IFERROR( SUMPRODUCT( INDEX($F$171:AV$171,N(IF({1},AV$190-$F$190:AV$190+1))),$F$150:AV$150),0) -> 0 | AW192: =IFERROR( SUMPRODUCT( INDEX($F$171:AW$171,N(IF({1},AW$190-$F$190:AW$190+1))),$F$150:AW$150),0) -> 0 | AX192: =IFERROR( SUMPRODUCT( INDEX($F$171:AX$171,N(IF({1},AX$190-$F$190:AX$190+1))),$F$150:AX$150),0) -> 0 | AY192: =IFERROR( SUMPRODUCT( INDEX($F$171:AY$171,N(IF({1},AY$190-$F$190:AY$190+1))),$F$150:AY$150),0) -> 0 | AZ192: =IFERROR( SUMPRODUCT( INDEX($F$171:AZ$171,N(IF({1},AZ$190-$F$190:AZ$190+1))),$F$150:AZ$150),0) -> 0 | BA192: =IFERROR( SUMPRODUCT( INDEX($F$171:BA$171,N(IF({1},BA$190-$F$190:BA$190+1))),$F$150:BA$150),0) -> 0 | BB192: =IF(SUM($F192:$BA192)=0,0,1-SUM($F192:$BA192)) -> 0 | BD192: =IF(F192>0,SUMPRODUCT(F192:BB192,$F$190:$BB$190)/SUM(F192:BB192)+1,0) -> 0 | BE192: =SUMPRODUCT(E192:BB192,discount_factors_sst_curr) -> 0 | BF192: =IFERROR(SUMPRODUCT(E192:BB192,OFFSET(Infl_factors,MATCH("CH_direct-p-"&BG192,Match_Infl_Segment,0),BF$14,1,50),discount_factors_sst_curr)/BE192,1) -> 1 | BG192: =IF(OR(LEFT($B192,2)="5a",LEFT($B192,2)="5b"),$B192,LEFT($B192,IF(ISTEXT($B192),MIN(IF(ISERROR(FIND({"_","a","b"},$B192)),"",FIND({"_","a","b"},$B192)))-1,LEN($B192)))*1) -> 1
A193: URR_PP | B193: 2 | C193: =_MOD -> MFK | D193: =_MOD -> MFK | F193: =IFERROR( SUMPRODUCT( INDEX($F$172:F$172,N(IF({1},F$190-$F$190:F$190+1))),$F$151:F$151),0) -> 0 | G193: =IFERROR( SUMPRODUCT( INDEX($F$172:G$172,N(IF({1},G$190-$F$190:G$190+1))),$F$151:G$151),0) -> 0 | H193: =IFERROR( SUMPRODUCT( INDEX($F$172:H$172,N(IF({1},H$190-$F$190:H$190+1))),$F$151:H$151),0) -> 0 | I193: =IFERROR( SUMPRODUCT( INDEX($F$172:I$172,N(IF({1},I$190-$F$190:I$190+1))),$F$151:I$151),0) -> 0 | J193: =IFERROR( SUMPRODUCT( INDEX($F$172:J$172,N(IF({1},J$190-$F$190:J$190+1))),$F$151:J$151),0) -> 0 | K193: =IFERROR( SUMPRODUCT( INDEX($F$172:K$172,N(IF({1},K$190-$F$190:K$190+1))),$F$151:K$151),0) -> 0 | L193: =IFERROR( SUMPRODUCT( INDEX($F$172:L$172,N(IF({1},L$190-$F$190:L$190+1))),$F$151:L$151),0) -> 0 | M193: =IFERROR( SUMPRODUCT( INDEX($F$172:M$172,N(IF({1},M$190-$F$190:M$190+1))),$F$151:M$151),0) -> 0 | N193: =IFERROR( SUMPRODUCT( INDEX($F$172:N$172,N(IF({1},N$190-$F$190:N$190+1))),$F$151:N$151),0) -> 0 | O193: =IFERROR( SUMPRODUCT( INDEX($F$172:O$172,N(IF({1},O$190-$F$190:O$190+1))),$F$151:O$151),0) -> 0 | P193: =IFERROR( SUMPRODUCT( INDEX($F$172:P$172,N(IF({1},P$190-$F$190:P$190+1))),$F$151:P$151),0) -> 0 | Q193: =IFERROR( SUMPRODUCT( INDEX($F$172:Q$172,N(IF({1},Q$190-$F$190:Q$190+1))),$F$151:Q$151),0) -> 0 | R193: =IFERROR( SUMPRODUCT( INDEX($F$172:R$172,N(IF({1},R$190-$F$190:R$190+1))),$F$151:R$151),0) -> 0 | S193: =IFERROR( SUMPRODUCT( INDEX($F$172:S$172,N(IF({1},S$190-$F$190:S$190+1))),$F$151:S$151),0) -> 0 | T193: =IFERROR( SUMPRODUCT( INDEX($F$172:T$172,N(IF({1},T$190-$F$190:T$190+1))),$F$151:T$151),0) -> 0 | U193: =IFERROR( SUMPRODUCT( INDEX($F$172:U$172,N(IF({1},U$190-$F$190:U$190+1))),$F$151:U$151),0) -> 0 | V193: =IFERROR( SUMPRODUCT( INDEX($F$172:V$172,N(IF({1},V$190-$F$190:V$190+1))),$F$151:V$151),0) -> 0 | W193: =IFERROR( SUMPRODUCT( INDEX($F$172:W$172,N(IF({1},W$190-$F$190:W$190+1))),$F$151:W$151),0) -> 0 | X193: =IFERROR( SUMPRODUCT( INDEX($F$172:X$172,N(IF({1},X$190-$F$190:X$190+1))),$F$151:X$151),0) -> 0 | Y193: =IFERROR( SUMPRODUCT( INDEX($F$172:Y$172,N(IF({1},Y$190-$F$190:Y$190+1))),$F$151:Y$151),0) -> 0 | Z193: =IFERROR( SUMPRODUCT( INDEX($F$172:Z$172,N(IF({1},Z$190-$F$190:Z$190+1))),$F$151:Z$151),0) -> 0 | AA193: =IFERROR( SUMPRODUCT( INDEX($F$172:AA$172,N(IF({1},AA$190-$F$190:AA$190+1))),$F$151:AA$151),0) -> 0 | AB193: =IFERROR( SUMPRODUCT( INDEX($F$172:AB$172,N(IF({1},AB$190-$F$190:AB$190+1))),$F$151:AB$151),0) -> 0 | AC193: =IFERROR( SUMPRODUCT( INDEX($F$172:AC$172,N(IF({1},AC$190-$F$190:AC$190+1))),$F$151:AC$151),0) -> 0 | AD193: =IFERROR( SUMPRODUCT( INDEX($F$172:AD$172,N(IF({1},AD$190-$F$190:AD$190+1))),$F$151:AD$151),0) -> 0 | AE193: =IFERROR( SUMPRODUCT( INDEX($F$172:AE$172,N(IF({1},AE$190-$F$190:AE$190+1))),$F$151:AE$151),0) -> 0 | AF193: =IFERROR( SUMPRODUCT( INDEX($F$172:AF$172,N(IF({1},AF$190-$F$190:AF$190+1))),$F$151:AF$151),0) -> 0 | AG193: =IFERROR( SUMPRODUCT( INDEX($F$172:AG$172,N(IF({1},AG$190-$F$190:AG$190+1))),$F$151:AG$151),0) -> 0 | AH193: =IFERROR( SUMPRODUCT( INDEX($F$172:AH$172,N(IF({1},AH$190-$F$190:AH$190+1))),$F$151:AH$151),0) -> 0 | AI193: =IFERROR( SUMPRODUCT( INDEX($F$172:AI$172,N(IF({1},AI$190-$F$190:AI$190+1))),$F$151:AI$151),0) -> 0 | AJ193: =IFERROR( SUMPRODUCT( INDEX($F$172:AJ$172,N(IF({1},AJ$190-$F$190:AJ$190+1))),$F$151:AJ$151),0) -> 0 | AK193: =IFERROR( SUMPRODUCT( INDEX($F$172:AK$172,N(IF({1},AK$190-$F$190:AK$190+1))),$F$151:AK$151),0) -> 0 | AL193: =IFERROR( SUMPRODUCT( INDEX($F$172:AL$172,N(IF({1},AL$190-$F$190:AL$190+1))),$F$151:AL$151),0) -> 0 | AM193: =IFERROR( SUMPRODUCT( INDEX($F$172:AM$172,N(IF({1},AM$190-$F$190:AM$190+1))),$F$151:AM$151),0) -> 0 | AN193: =IFERROR( SUMPRODUCT( INDEX($F$172:AN$172,N(IF({1},AN$190-$F$190:AN$190+1))),$F$151:AN$151),0) -> 0 | AO193: =IFERROR( SUMPRODUCT( INDEX($F$172:AO$172,N(IF({1},AO$190-$F$190:AO$190+1))),$F$151:AO$151),0) -> 0 | AP193: =IFERROR( SUMPRODUCT( INDEX($F$172:AP$172,N(IF({1},AP$190-$F$190:AP$190+1))),$F$151:AP$151),0) -> 0 | AQ193: =IFERROR( SUMPRODUCT( INDEX($F$172:AQ$172,N(IF({1},AQ$190-$F$190:AQ$190+1))),$F$151:AQ$151),0) -> 0 | AR193: =IFERROR( SUMPRODUCT( INDEX($F$172:AR$172,N(IF({1},AR$190-$F$190:AR$190+1))),$F$151:AR$151),0) -> 0 | AS193: =IFERROR( SUMPRODUCT( INDEX($F$172:AS$172,N(IF({1},AS$190-$F$190:AS$190+1))),$F$151:AS$151),0) -> 0 | AT193: =IFERROR( SUMPRODUCT( INDEX($F$172:AT$172,N(IF({1},AT$190-$F$190:AT$190+1))),$F$151:AT$151),0) -> 0 | AU193: =IFERROR( SUMPRODUCT( INDEX($F$172:AU$172,N(IF({1},AU$190-$F$190:AU$190+1))),$F$151:AU$151),0) -> 0 | AV193: =IFERROR( SUMPRODUCT( INDEX($F$172:AV$172,N(IF({1},AV$190-$F$190:AV$190+1))),$F$151:AV$151),0) -> 0 | AW193: =IFERROR( SUMPRODUCT( INDEX($F$172:AW$172,N(IF({1},AW$190-$F$190:AW$190+1))),$F$151:AW$151),0) -> 0 | AX193: =IFERROR( SUMPRODUCT( INDEX($F$172:AX$172,N(IF({1},AX$190-$F$190:AX$190+1))),$F$151:AX$151),0) -> 0 | AY193: =IFERROR( SUMPRODUCT( INDEX($F$172:AY$172,N(IF({1},AY$190-$F$190:AY$190+1))),$F$151:AY$151),0) -> 0 | AZ193: =IFERROR( SUMPRODUCT( INDEX($F$172:AZ$172,N(IF({1},AZ$190-$F$190:AZ$190+1))),$F$151:AZ$151),0) -> 0 | BA193: =IFERROR( SUMPRODUCT( INDEX($F$172:BA$172,N(IF({1},BA$190-$F$190:BA$190+1))),$F$151:BA$151),0) -> 0 | BB193: 0 | BD193: 0 | BE193: 0 | BF193: 1 | BG193: =IF(OR(LEFT($B193,2)="5a",LEFT($B193,2)="5b"),$B193,LEFT($B193,IF(ISTEXT($B193),MIN(IF(ISERROR(FIND({"_","a","b"},$B193)),"",FIND({"_","a","b"},$B193)))-1,LEN($B193)))*1) -> 2
A194: URR_PP | B194: 3a | C194: =_Fire_no_Elementar -> Sach ohne Elementarschadenpool | D194: Sach | F194: =IFERROR( SUMPRODUCT( INDEX($F$173:F$173,N(IF({1},F$190-$F$190:F$190+1))),$F$152:F$152),0) -> 0 | G194: =IFERROR( SUMPRODUCT( INDEX($F$173:G$173,N(IF({1},G$190-$F$190:G$190+1))),$F$152:G$152),0) -> 0 | H194: =IFERROR( SUMPRODUCT( INDEX($F$173:H$173,N(IF({1},H$190-$F$190:H$190+1))),$F$152:H$152),0) -> 0 | I194: =IFERROR( SUMPRODUCT( INDEX($F$173:I$173,N(IF({1},I$190-$F$190:I$190+1))),$F$152:I$152),0) -> 0 | J194: =IFERROR( SUMPRODUCT( INDEX($F$173:J$173,N(IF({1},J$190-$F$190:J$190+1))),$F$152:J$152),0) -> 0 | K194: =IFERROR( SUMPRODUCT( INDEX($F$173:K$173,N(IF({1},K$190-$F$190:K$190+1))),$F$152:K$152),0) -> 0 | L194: =IFERROR( SUMPRODUCT( INDEX($F$173:L$173,N(IF({1},L$190-$F$190:L$190+1))),$F$152:L$152),0) -> 0 | M194: =IFERROR( SUMPRODUCT( INDEX($F$173:M$173,N(IF({1},M$190-$F$190:M$190+1))),$F$152:M$152),0) -> 0 | N194: =IFERROR( SUMPRODUCT( INDEX($F$173:N$173,N(IF({1},N$190-$F$190:N$190+1))),$F$152:N$152),0) -> 0 | O194: =IFERROR( SUMPRODUCT( INDEX($F$173:O$173,N(IF({1},O$190-$F$190:O$190+1))),$F$152:O$152),0) -> 0 | P194: =IFERROR( SUMPRODUCT( INDEX($F$173:P$173,N(IF({1},P$190-$F$190:P$190+1))),$F$152:P$152),0) -> 0 | Q194: =IFERROR( SUMPRODUCT( INDEX($F$173:Q$173,N(IF({1},Q$190-$F$190:Q$190+1))),$F$152:Q$152),0) -> 0 | R194: =IFERROR( SUMPRODUCT( INDEX($F$173:R$173,N(IF({1},R$190-$F$190:R$190+1))),$F$152:R$152),0) -> 0 | S194: =IFERROR( SUMPRODUCT( INDEX($F$173:S$173,N(IF({1},S$190-$F$190:S$190+1))),$F$152:S$152),0) -> 0 | T194: =IFERROR( SUMPRODUCT( INDEX($F$173:T$173,N(IF({1},T$190-$F$190:T$190+1))),$F$152:T$152),0) -> 0 | U194: =IFERROR( SUMPRODUCT( INDEX($F$173:U$173,N(IF({1},U$190-$F$190:U$190+1))),$F$152:U$152),0) -> 0 | V194: =IFERROR( SUMPRODUCT( INDEX($F$173:V$173,N(IF({1},V$190-$F$190:V$190+1))),$F$152:V$152),0) -> 0 | W194: =IFERROR( SUMPRODUCT( INDEX($F$173:W$173,N(IF({1},W$190-$F$190:W$190+1))),$F$152:W$152),0) -> 0 | X194: =IFERROR( SUMPRODUCT( INDEX($F$173:X$173,N(IF({1},X$190-$F$190:X$190+1))),$F$152:X$152),0) -> 0 | Y194: =IFERROR( SUMPRODUCT( INDEX($F$173:Y$173,N(IF({1},Y$190-$F$190:Y$190+1))),$F$152:Y$152),0) -> 0 | Z194: =IFERROR( SUMPRODUCT( INDEX($F$173:Z$173,N(IF({1},Z$190-$F$190:Z$190+1))),$F$152:Z$152),0) -> 0 | AA194: =IFERROR( SUMPRODUCT( INDEX($F$173:AA$173,N(IF({1},AA$190-$F$190:AA$190+1))),$F$152:AA$152),0) -> 0 | AB194: =IFERROR( SUMPRODUCT( INDEX($F$173:AB$173,N(IF({1},AB$190-$F$190:AB$190+1))),$F$152:AB$152),0) -> 0 | AC194: =IFERROR( SUMPRODUCT( INDEX($F$173:AC$173,N(IF({1},AC$190-$F$190:AC$190+1))),$F$152:AC$152),0) -> 0 | AD194: =IFERROR( SUMPRODUCT( INDEX($F$173:AD$173,N(IF({1},AD$190-$F$190:AD$190+1))),$F$152:AD$152),0) -> 0 | AE194: =IFERROR( SUMPRODUCT( INDEX($F$173:AE$173,N(IF({1},AE$190-$F$190:AE$190+1))),$F$152:AE$152),0) -> 0 | AF194: =IFERROR( SUMPRODUCT( INDEX($F$173:AF$173,N(IF({1},AF$190-$F$190:AF$190+1))),$F$152:AF$152),0) -> 0 | AG194: =IFERROR( SUMPRODUCT( INDEX($F$173:AG$173,N(IF({1},AG$190-$F$190:AG$190+1))),$F$152:AG$152),0) -> 0 | AH194: =IFERROR( SUMPRODUCT( INDEX($F$173:AH$173,N(IF({1},AH$190-$F$190:AH$190+1))),$F$152:AH$152),0) -> 0 | AI194: =IFERROR( SUMPRODUCT( INDEX($F$173:AI$173,N(IF({1},AI$190-$F$190:AI$190+1))),$F$152:AI$152),0) -> 0 | AJ194: =IFERROR( SUMPRODUCT( INDEX($F$173:AJ$173,N(IF({1},AJ$190-$F$190:AJ$190+1))),$F$152:AJ$152),0) -> 0 | AK194: =IFERROR( SUMPRODUCT( INDEX($F$173:AK$173,N(IF({1},AK$190-$F$190:AK$190+1))),$F$152:AK$152),0) -> 0 | AL194: =IFERROR( SUMPRODUCT( INDEX($F$173:AL$173,N(IF({1},AL$190-$F$190:AL$190+1))),$F$152:AL$152),0) -> 0 | AM194: =IFERROR( SUMPRODUCT( INDEX($F$173:AM$173,N(IF({1},AM$190-$F$190:AM$190+1))),$F$152:AM$152),0) -> 0 | AN194: =IFERROR( SUMPRODUCT( INDEX($F$173:AN$173,N(IF({1},AN$190-$F$190:AN$190+1))),$F$152:AN$152),0) -> 0 | AO194: =IFERROR( SUMPRODUCT( INDEX($F$173:AO$173,N(IF({1},AO$190-$F$190:AO$190+1))),$F$152:AO$152),0) -> 0 | AP194: =IFERROR( SUMPRODUCT( INDEX($F$173:AP$173,N(IF({1},AP$190-$F$190:AP$190+1))),$F$152:AP$152),0) -> 0 | AQ194: =IFERROR( SUMPRODUCT( INDEX($F$173:AQ$173,N(IF({1},AQ$190-$F$190:AQ$190+1))),$F$152:AQ$152),0) -> 0 | AR194: =IFERROR( SUMPRODUCT( INDEX($F$173:AR$173,N(IF({1},AR$190-$F$190:AR$190+1))),$F$152:AR$152),0) -> 0 | AS194: =IFERROR( SUMPRODUCT( INDEX($F$173:AS$173,N(IF({1},AS$190-$F$190:AS$190+1))),$F$152:AS$152),0) -> 0 | AT194: =IFERROR( SUMPRODUCT( INDEX($F$173:AT$173,N(IF({1},AT$190-$F$190:AT$190+1))),$F$152:AT$152),0) -> 0 | AU194: =IFERROR( SUMPRODUCT( INDEX($F$173:AU$173,N(IF({1},AU$190-$F$190:AU$190+1))),$F$152:AU$152),0) -> 0 | AV194: =IFERROR( SUMPRODUCT( INDEX($F$173:AV$173,N(IF({1},AV$190-$F$190:AV$190+1))),$F$152:AV$152),0) -> 0 | AW194: =IFERROR( SUMPRODUCT( INDEX($F$173:AW$173,N(IF({1},AW$190-$F$190:AW$190+1))),$F$152:AW$152),0) -> 0 | AX194: =IFERROR( SUMPRODUCT( INDEX($F$173:AX$173,N(IF({1},AX$190-$F$190:AX$190+1))),$F$152:AX$152),0) -> 0 | AY194: =IFERROR( SUMPRODUCT( INDEX($F$173:AY$173,N(IF({1},AY$190-$F$190:AY$190+1))),$F$152:AY$152),0) -> 0 | AZ194: =IFERROR( SUMPRODUCT( INDEX($F$173:AZ$173,N(IF({1},AZ$190-$F$190:AZ$190+1))),$F$152:AZ$152),0) -> 0 | BA194: =IFERROR( SUMPRODUCT( INDEX($F$173:BA$173,N(IF({1},BA$190-$F$190:BA$190+1))),$F$152:BA$152),0) -> 0 | BB194: 0 | BD194: 0 | BE194: 0 | BF194: 1 | BG194: =IF(OR(LEFT($B194,2)="5a",LEFT($B194,2)="5b"),$B194,LEFT($B194,IF(ISTEXT($B194),MIN(IF(ISERROR(FIND({"_","a","b"},$B194)),"",FIND({"_","a","b"},$B194)))-1,LEN($B194)))*1) -> 3
A195: URR_PP | B195: 3b | C195: =_ESP -> Elementarschadenpool | D195: =_ESP -> Elementarschadenpool | F195: =IFERROR( SUMPRODUCT( INDEX($F$174:F$174,N(IF({1},F$190-$F$190:F$190+1))),$F$153:F$153),0) -> 0 | G195: =IFERROR( SUMPRODUCT( INDEX($F$174:G$174,N(IF({1},G$190-$F$190:G$190+1))),$F$153:G$153),0) -> 0 | H195: =IFERROR( SUMPRODUCT( INDEX($F$174:H$174,N(IF({1},H$190-$F$190:H$190+1))),$F$153:H$153),0) -> 0 | I195: =IFERROR( SUMPRODUCT( INDEX($F$174:I$174,N(IF({1},I$190-$F$190:I$190+1))),$F$153:I$153),0) -> 0 | J195: =IFERROR( SUMPRODUCT( INDEX($F$174:J$174,N(IF({1},J$190-$F$190:J$190+1))),$F$153:J$153),0) -> 0 | K195: =IFERROR( SUMPRODUCT( INDEX($F$174:K$174,N(IF({1},K$190-$F$190:K$190+1))),$F$153:K$153),0) -> 0 | L195: =IFERROR( SUMPRODUCT( INDEX($F$174:L$174,N(IF({1},L$190-$F$190:L$190+1))),$F$153:L$153),0) -> 0 | M195: =IFERROR( SUMPRODUCT( INDEX($F$174:M$174,N(IF({1},M$190-$F$190:M$190+1))),$F$153:M$153),0) -> 0 | N195: =IFERROR( SUMPRODUCT( INDEX($F$174:N$174,N(IF({1},N$190-$F$190:N$190+1))),$F$153:N$153),0) -> 0 | O195: =IFERROR( SUMPRODUCT( INDEX($F$174:O$174,N(IF({1},O$190-$F$190:O$190+1))),$F$153:O$153),0) -> 0 | P195: =IFERROR( SUMPRODUCT( INDEX($F$174:P$174,N(IF({1},P$190-$F$190:P$190+1))),$F$153:P$153),0) -> 0 | Q195: =IFERROR( SUMPRODUCT( INDEX($F$174:Q$174,N(IF({1},Q$190-$F$190:Q$190+1))),$F$153:Q$153),0) -> 0 | R195: =IFERROR( SUMPRODUCT( INDEX($F$174:R$174,N(IF({1},R$190-$F$190:R$190+1))),$F$153:R$153),0) -> 0 | S195: =IFERROR( SUMPRODUCT( INDEX($F$174:S$174,N(IF({1},S$190-$F$190:S$190+1))),$F$153:S$153),0) -> 0 | T195: =IFERROR( SUMPRODUCT( INDEX($F$174:T$174,N(IF({1},T$190-$F$190:T$190+1))),$F$153:T$153),0) -> 0 | U195: =IFERROR( SUMPRODUCT( INDEX($F$174:U$174,N(IF({1},U$190-$F$190:U$190+1))),$F$153:U$153),0) -> 0 | V195: =IFERROR( SUMPRODUCT( INDEX($F$174:V$174,N(IF({1},V$190-$F$190:V$190+1))),$F$153:V$153),0) -> 0 | W195: =IFERROR( SUMPRODUCT( INDEX($F$174:W$174,N(IF({1},W$190-$F$190:W$190+1))),$F$153:W$153),0) -> 0 | X195: =IFERROR( SUMPRODUCT( INDEX($F$174:X$174,N(IF({1},X$190-$F$190:X$190+1))),$F$153:X$153),0) -> 0 | Y195: =IFERROR( SUMPRODUCT( INDEX($F$174:Y$174,N(IF({1},Y$190-$F$190:Y$190+1))),$F$153:Y$153),0) -> 0 | Z195: =IFERROR( SUMPRODUCT( INDEX($F$174:Z$174,N(IF({1},Z$190-$F$190:Z$190+1))),$F$153:Z$153),0) -> 0 | AA195: =IFERROR( SUMPRODUCT( INDEX($F$174:AA$174,N(IF({1},AA$190-$F$190:AA$190+1))),$F$153:AA$153),0) -> 0 | AB195: =IFERROR( SUMPRODUCT( INDEX($F$174:AB$174,N(IF({1},AB$190-$F$190:AB$190+1))),$F$153:AB$153),0) -> 0 | AC195: =IFERROR( SUMPRODUCT( INDEX($F$174:AC$174,N(IF({1},AC$190-$F$190:AC$190+1))),$F$153:AC$153),0) -> 0 | AD195: =IFERROR( SUMPRODUCT( INDEX($F$174:AD$174,N(IF({1},AD$190-$F$190:AD$190+1))),$F$153:AD$153),0) -> 0 | AE195: =IFERROR( SUMPRODUCT( INDEX($F$174:AE$174,N(IF({1},AE$190-$F$190:AE$190+1))),$F$153:AE$153),0) -> 0 | AF195: =IFERROR( SUMPRODUCT( INDEX($F$174:AF$174,N(IF({1},AF$190-$F$190:AF$190+1))),$F$153:AF$153),0) -> 0 | AG195: =IFERROR( SUMPRODUCT( INDEX($F$174:AG$174,N(IF({1},AG$190-$F$190:AG$190+1))),$F$153:AG$153),0) -> 0 | AH195: =IFERROR( SUMPRODUCT( INDEX($F$174:AH$174,N(IF({1},AH$190-$F$190:AH$190+1))),$F$153:AH$153),0) -> 0 | AI195: =IFERROR( SUMPRODUCT( INDEX($F$174:AI$174,N(IF({1},AI$190-$F$190:AI$190+1))),$F$153:AI$153),0) -> 0 | AJ195: =IFERROR( SUMPRODUCT( INDEX($F$174:AJ$174,N(IF({1},AJ$190-$F$190:AJ$190+1))),$F$153:AJ$153),0) -> 0 | AK195: =IFERROR( SUMPRODUCT( INDEX($F$174:AK$174,N(IF({1},AK$190-$F$190:AK$190+1))),$F$153:AK$153),0) -> 0 | AL195: =IFERROR( SUMPRODUCT( INDEX($F$174:AL$174,N(IF({1},AL$190-$F$190:AL$190+1))),$F$153:AL$153),0) -> 0 | AM195: =IFERROR( SUMPRODUCT( INDEX($F$174:AM$174,N(IF({1},AM$190-$F$190:AM$190+1))),$F$153:AM$153),0) -> 0 | AN195: =IFERROR( SUMPRODUCT( INDEX($F$174:AN$174,N(IF({1},AN$190-$F$190:AN$190+1))),$F$153:AN$153),0) -> 0 | AO195: =IFERROR( SUMPRODUCT( INDEX($F$174:AO$174,N(IF({1},AO$190-$F$190:AO$190+1))),$F$153:AO$153),0) -> 0 | AP195: =IFERROR( SUMPRODUCT( INDEX($F$174:AP$174,N(IF({1},AP$190-$F$190:AP$190+1))),$F$153:AP$153),0) -> 0 | AQ195: =IFERROR( SUMPRODUCT( INDEX($F$174:AQ$174,N(IF({1},AQ$190-$F$190:AQ$190+1))),$F$153:AQ$153),0) -> 0 | AR195: =IFERROR( SUMPRODUCT( INDEX($F$174:AR$174,N(IF({1},AR$190-$F$190:AR$190+1))),$F$153:AR$153),0) -> 0 | AS195: =IFERROR( SUMPRODUCT( INDEX($F$174:AS$174,N(IF({1},AS$190-$F$190:AS$190+1))),$F$153:AS$153),0) -> 0 | AT195: =IFERROR( SUMPRODUCT( INDEX($F$174:AT$174,N(IF({1},AT$190-$F$190:AT$190+1))),$F$153:AT$153),0) -> 0 | AU195: =IFERROR( SUMPRODUCT( INDEX($F$174:AU$174,N(IF({1},AU$190-$F$190:AU$190+1))),$F$153:AU$153),0) -> 0 | AV195: =IFERROR( SUMPRODUCT( INDEX($F$174:AV$174,N(IF({1},AV$190-$F$190:AV$190+1))),$F$153:AV$153),0) -> 0 | AW195: =IFERROR( SUMPRODUCT( INDEX($F$174:AW$174,N(IF({1},AW$190-$F$190:AW$190+1))),$F$153:AW$153),0) -> 0 | AX195: =IFERROR( SUMPRODUCT( INDEX($F$174:AX$174,N(IF({1},AX$190-$F$190:AX$190+1))),$F$153:AX$153),0) -> 0 | AY195: =IFERROR( SUMPRODUCT( INDEX($F$174:AY$174,N(IF({1},AY$190-$F$190:AY$190+1))),$F$153:AY$153),0) -> 0 | AZ195: =IFERROR( SUMPRODUCT( INDEX($F$174:AZ$174,N(IF({1},AZ$190-$F$190:AZ$190+1))),$F$153:AZ$153),0) -> 0 | BA195: =IFERROR( SUMPRODUCT( INDEX($F$174:BA$174,N(IF({1},BA$190-$F$190:BA$190+1))),$F$153:BA$153),0) -> 0 | BB195: 0 | BD195: 0 | BE195: 0 | BF195: 1 | BG195: =IF(OR(LEFT($B195,2)="5a",LEFT($B195,2)="5b"),$B195,LEFT($B195,IF(ISTEXT($B195),MIN(IF(ISERROR(FIND({"_","a","b"},$B195)),"",FIND({"_","a","b"},$B195)))-1,LEN($B195)))*1) -> 3
A196: URR_PP | B196: 4 | C196: =_GL -> Haftpflicht | D196: =_GL -> Haftpflicht | F196: =IFERROR( SUMPRODUCT( INDEX($F$175:F$175,N(IF({1},F$190-$F$190:F$190+1))),$F$154:F$154),0) -> 0 | G196: =IFERROR( SUMPRODUCT( INDEX($F$175:G$175,N(IF({1},G$190-$F$190:G$190+1))),$F$154:G$154),0) -> 0 | H196: =IFERROR( SUMPRODUCT( INDEX($F$175:H$175,N(IF({1},H$190-$F$190:H$190+1))),$F$154:H$154),0) -> 0 | I196: =IFERROR( SUMPRODUCT( INDEX($F$175:I$175,N(IF({1},I$190-$F$190:I$190+1))),$F$154:I$154),0) -> 0 | J196: =IFERROR( SUMPRODUCT( INDEX($F$175:J$175,N(IF({1},J$190-$F$190:J$190+1))),$F$154:J$154),0) -> 0 | K196: =IFERROR( SUMPRODUCT( INDEX($F$175:K$175,N(IF({1},K$190-$F$190:K$190+1))),$F$154:K$154),0) -> 0 | L196: =IFERROR( SUMPRODUCT( INDEX($F$175:L$175,N(IF({1},L$190-$F$190:L$190+1))),$F$154:L$154),0) -> 0 | M196: =IFERROR( SUMPRODUCT( INDEX($F$175:M$175,N(IF({1},M$190-$F$190:M$190+1))),$F$154:M$154),0) -> 0 | N196: =IFERROR( SUMPRODUCT( INDEX($F$175:N$175,N(IF({1},N$190-$F$190:N$190+1))),$F$154:N$154),0) -> 0 | O196: =IFERROR( SUMPRODUCT( INDEX($F$175:O$175,N(IF({1},O$190-$F$190:O$190+1))),$F$154:O$154),0) -> 0 | P196: =IFERROR( SUMPRODUCT( INDEX($F$175:P$175,N(IF({1},P$190-$F$190:P$190+1))),$F$154:P$154),0) -> 0 | Q196: =IFERROR( SUMPRODUCT( INDEX($F$175:Q$175,N(IF({1},Q$190-$F$190:Q$190+1))),$F$154:Q$154),0) -> 0 | R196: =IFERROR( SUMPRODUCT( INDEX($F$175:R$175,N(IF({1},R$190-$F$190:R$190+1))),$F$154:R$154),0) -> 0 | S196: =IFERROR( SUMPRODUCT( INDEX($F$175:S$175,N(IF({1},S$190-$F$190:S$190+1))),$F$154:S$154),0) -> 0 | T196: =IFERROR( SUMPRODUCT( INDEX($F$175:T$175,N(IF({1},T$190-$F$190:T$190+1))),$F$154:T$154),0) -> 0 | U196: =IFERROR( SUMPRODUCT( INDEX($F$175:U$175,N(IF({1},U$190-$F$190:U$190+1))),$F$154:U$154),0) -> 0 | V196: =IFERROR( SUMPRODUCT( INDEX($F$175:V$175,N(IF({1},V$190-$F$190:V$190+1))),$F$154:V$154),0) -> 0 | W196: =IFERROR( SUMPRODUCT( INDEX($F$175:W$175,N(IF({1},W$190-$F$190:W$190+1))),$F$154:W$154),0) -> 0 | X196: =IFERROR( SUMPRODUCT( INDEX($F$175:X$175,N(IF({1},X$190-$F$190:X$190+1))),$F$154:X$154),0) -> 0 | Y196: =IFERROR( SUMPRODUCT( INDEX($F$175:Y$175,N(IF({1},Y$190-$F$190:Y$190+1))),$F$154:Y$154),0) -> 0 | Z196: =IFERROR( SUMPRODUCT( INDEX($F$175:Z$175,N(IF({1},Z$190-$F$190:Z$190+1))),$F$154:Z$154),0) -> 0 | AA196: =IFERROR( SUMPRODUCT( INDEX($F$175:AA$175,N(IF({1},AA$190-$F$190:AA$190+1))),$F$154:AA$154),0) -> 0 | AB196: =IFERROR( SUMPRODUCT( INDEX($F$175:AB$175,N(IF({1},AB$190-$F$190:AB$190+1))),$F$154:AB$154),0) -> 0 | AC196: =IFERROR( SUMPRODUCT( INDEX($F$175:AC$175,N(IF({1},AC$190-$F$190:AC$190+1))),$F$154:AC$154),0) -> 0 | AD196: =IFERROR( SUMPRODUCT( INDEX($F$175:AD$175,N(IF({1},AD$190-$F$190:AD$190+1))),$F$154:AD$154),0) -> 0 | AE196: =IFERROR( SUMPRODUCT( INDEX($F$175:AE$175,N(IF({1},AE$190-$F$190:AE$190+1))),$F$154:AE$154),0) -> 0 | AF196: =IFERROR( SUMPRODUCT( INDEX($F$175:AF$175,N(IF({1},AF$190-$F$190:AF$190+1))),$F$154:AF$154),0) -> 0 | AG196: =IFERROR( SUMPRODUCT( INDEX($F$175:AG$175,N(IF({1},AG$190-$F$190:AG$190+1))),$F$154:AG$154),0) -> 0 | AH196: =IFERROR( SUMPRODUCT( INDEX($F$175:AH$175,N(IF({1},AH$190-$F$190:AH$190+1))),$F$154:AH$154),0) -> 0 | AI196: =IFERROR( SUMPRODUCT( INDEX($F$175:AI$175,N(IF({1},AI$190-$F$190:AI$190+1))),$F$154:AI$154),0) -> 0 | AJ196: =IFERROR( SUMPRODUCT( INDEX($F$175:AJ$175,N(IF({1},AJ$190-$F$190:AJ$190+1))),$F$154:AJ$154),0) -> 0 | AK196: =IFERROR( SUMPRODUCT( INDEX($F$175:AK$175,N(IF({1},AK$190-$F$190:AK$190+1))),$F$154:AK$154),0) -> 0 | AL196: =IFERROR( SUMPRODUCT( INDEX($F$175:AL$175,N(IF({1},AL$190-$F$190:AL$190+1))),$F$154:AL$154),0) -> 0 | AM196: =IFERROR( SUMPRODUCT( INDEX($F$175:AM$175,N(IF({1},AM$190-$F$190:AM$190+1))),$F$154:AM$154),0) -> 0 | AN196: =IFERROR( SUMPRODUCT( INDEX($F$175:AN$175,N(IF({1},AN$190-$F$190:AN$190+1))),$F$154:AN$154),0) -> 0 | AO196: =IFERROR( SUMPRODUCT( INDEX($F$175:AO$175,N(IF({1},AO$190-$F$190:AO$190+1))),$F$154:AO$154),0) -> 0 | AP196: =IFERROR( SUMPRODUCT( INDEX($F$175:AP$175,N(IF({1},AP$190-$F$190:AP$190+1))),$F$154:AP$154),0) -> 0 | AQ196: =IFERROR( SUMPRODUCT( INDEX($F$175:AQ$175,N(IF({1},AQ$190-$F$190:AQ$190+1))),$F$154:AQ$154),0) -> 0 | AR196: =IFERROR( SUMPRODUCT( INDEX($F$175:AR$175,N(IF({1},AR$190-$F$190:AR$190+1))),$F$154:AR$154),0) -> 0 | AS196: =IFERROR( SUMPRODUCT( INDEX($F$175:AS$175,N(IF({1},AS$190-$F$190:AS$190+1))),$F$154:AS$154),0) -> 0 | AT196: =IFERROR( SUMPRODUCT( INDEX($F$175:AT$175,N(IF({1},AT$190-$F$190:AT$190+1))),$F$154:AT$154),0) -> 0 | AU196: =IFERROR( SUMPRODUCT( INDEX($F$175:AU$175,N(IF({1},AU$190-$F$190:AU$190+1))),$F$154:AU$154),0) -> 0 | AV196: =IFERROR( SUMPRODUCT( INDEX($F$175:AV$175,N(IF({1},AV$190-$F$190:AV$190+1))),$F$154:AV$154),0) -> 0 | AW196: =IFERROR( SUMPRODUCT( INDEX($F$175:AW$175,N(IF({1},AW$190-$F$190:AW$190+1))),$F$154:AW$154),0) -> 0 | AX196: =IFERROR( SUMPRODUCT( INDEX($F$175:AX$175,N(IF({1},AX$190-$F$190:AX$190+1))),$F$154:AX$154),0) -> 0 | AY196: =IFERROR( SUMPRODUCT( INDEX($F$175:AY$175,N(IF({1},AY$190-$F$190:AY$190+1))),$F$154:AY$154),0) -> 0 | AZ196: =IFERROR( SUMPRODUCT( INDEX($F$175:AZ$175,N(IF({1},AZ$190-$F$190:AZ$190+1))),$F$154:AZ$154),0) -> 0 | BA196: =IFERROR( SUMPRODUCT( INDEX($F$175:BA$175,N(IF({1},BA$190-$F$190:BA$190+1))),$F$154:BA$154),0) -> 0 | BB196: 0 | BD196: 0 | BE196: 0 | BF196: 1 | BG196: =IF(OR(LEFT($B196,2)="5a",LEFT($B196,2)="5b"),$B196,LEFT($B196,IF(ISTEXT($B196),MIN(IF(ISERROR(FIND({"_","a","b"},$B196)),"",FIND({"_","a","b"},$B196)))-1,LEN($B196)))*1) -> 4
A197: URR_PP | B197: 5a | C197: =_AccMandatory_noAnnuities -> UVG, nicht verrentete Fälle | D197: =_AccMandatory_noAnnuities -> UVG, nicht verrentete Fälle | F197: =IFERROR( SUMPRODUCT( INDEX($F$176:F$176,N(IF({1},F$190-$F$190:F$190+1))),$F$155:F$155),0) -> 0 | G197: =IFERROR( SUMPRODUCT( INDEX($F$176:G$176,N(IF({1},G$190-$F$190:G$190+1))),$F$155:G$155),0) -> 0 | H197: =IFERROR( SUMPRODUCT( INDEX($F$176:H$176,N(IF({1},H$190-$F$190:H$190+1))),$F$155:H$155),0) -> 0 | I197: =IFERROR( SUMPRODUCT( INDEX($F$176:I$176,N(IF({1},I$190-$F$190:I$190+1))),$F$155:I$155),0) -> 0 | J197: =IFERROR( SUMPRODUCT( INDEX($F$176:J$176,N(IF({1},J$190-$F$190:J$190+1))),$F$155:J$155),0) -> 0 | K197: =IFERROR( SUMPRODUCT( INDEX($F$176:K$176,N(IF({1},K$190-$F$190:K$190+1))),$F$155:K$155),0) -> 0 | L197: =IFERROR( SUMPRODUCT( INDEX($F$176:L$176,N(IF({1},L$190-$F$190:L$190+1))),$F$155:L$155),0) -> 0 | M197: =IFERROR( SUMPRODUCT( INDEX($F$176:M$176,N(IF({1},M$190-$F$190:M$190+1))),$F$155:M$155),0) -> 0 | N197: =IFERROR( SUMPRODUCT( INDEX($F$176:N$176,N(IF({1},N$190-$F$190:N$190+1))),$F$155:N$155),0) -> 0 | O197: =IFERROR( SUMPRODUCT( INDEX($F$176:O$176,N(IF({1},O$190-$F$190:O$190+1))),$F$155:O$155),0) -> 0 | P197: =IFERROR( SUMPRODUCT( INDEX($F$176:P$176,N(IF({1},P$190-$F$190:P$190+1))),$F$155:P$155),0) -> 0 | Q197: =IFERROR( SUMPRODUCT( INDEX($F$176:Q$176,N(IF({1},Q$190-$F$190:Q$190+1))),$F$155:Q$155),0) -> 0 | R197: =IFERROR( SUMPRODUCT( INDEX($F$176:R$176,N(IF({1},R$190-$F$190:R$190+1))),$F$155:R$155),0) -> 0 | S197: =IFERROR( SUMPRODUCT( INDEX($F$176:S$176,N(IF({1},S$190-$F$190:S$190+1))),$F$155:S$155),0) -> 0 | T197: =IFERROR( SUMPRODUCT( INDEX($F$176:T$176,N(IF({1},T$190-$F$190:T$190+1))),$F$155:T$155),0) -> 0 | U197: =IFERROR( SUMPRODUCT( INDEX($F$176:U$176,N(IF({1},U$190-$F$190:U$190+1))),$F$155:U$155),0) -> 0 | V197: =IFERROR( SUMPRODUCT( INDEX($F$176:V$176,N(IF({1},V$190-$F$190:V$190+1))),$F$155:V$155),0) -> 0 | W197: =IFERROR( SUMPRODUCT( INDEX($F$176:W$176,N(IF({1},W$190-$F$190:W$190+1))),$F$155:W$155),0) -> 0 | X197: =IFERROR( SUMPRODUCT( INDEX($F$176:X$176,N(IF({1},X$190-$F$190:X$190+1))),$F$155:X$155),0) -> 0 | Y197: =IFERROR( SUMPRODUCT( INDEX($F$176:Y$176,N(IF({1},Y$190-$F$190:Y$190+1))),$F$155:Y$155),0) -> 0 | Z197: =IFERROR( SUMPRODUCT( INDEX($F$176:Z$176,N(IF({1},Z$190-$F$190:Z$190+1))),$F$155:Z$155),0) -> 0 | AA197: =IFERROR( SUMPRODUCT( INDEX($F$176:AA$176,N(IF({1},AA$190-$F$190:AA$190+1))),$F$155:AA$155),0) -> 0 | AB197: =IFERROR( SUMPRODUCT( INDEX($F$176:AB$176,N(IF({1},AB$190-$F$190:AB$190+1))),$F$155:AB$155),0) -> 0 | AC197: =IFERROR( SUMPRODUCT( INDEX($F$176:AC$176,N(IF({1},AC$190-$F$190:AC$190+1))),$F$155:AC$155),0) -> 0 | AD197: =IFERROR( SUMPRODUCT( INDEX($F$176:AD$176,N(IF({1},AD$190-$F$190:AD$190+1))),$F$155:AD$155),0) -> 0 | AE197: =IFERROR( SUMPRODUCT( INDEX($F$176:AE$176,N(IF({1},AE$190-$F$190:AE$190+1))),$F$155:AE$155),0) -> 0 | AF197: =IFERROR( SUMPRODUCT( INDEX($F$176:AF$176,N(IF({1},AF$190-$F$190:AF$190+1))),$F$155:AF$155),0) -> 0 | AG197: =IFERROR( SUMPRODUCT( INDEX($F$176:AG$176,N(IF({1},AG$190-$F$190:AG$190+1))),$F$155:AG$155),0) -> 0 | AH197: =IFERROR( SUMPRODUCT( INDEX($F$176:AH$176,N(IF({1},AH$190-$F$190:AH$190+1))),$F$155:AH$155),0) -> 0 | AI197: =IFERROR( SUMPRODUCT( INDEX($F$176:AI$176,N(IF({1},AI$190-$F$190:AI$190+1))),$F$155:AI$155),0) -> 0 | AJ197: =IFERROR( SUMPRODUCT( INDEX($F$176:AJ$176,N(IF({1},AJ$190-$F$190:AJ$190+1))),$F$155:AJ$155),0) -> 0 | AK197: =IFERROR( SUMPRODUCT( INDEX($F$176:AK$176,N(IF({1},AK$190-$F$190:AK$190+1))),$F$155:AK$155),0) -> 0 | AL197: =IFERROR( SUMPRODUCT( INDEX($F$176:AL$176,N(IF({1},AL$190-$F$190:AL$190+1))),$F$155:AL$155),0) -> 0 | AM197: =IFERROR( SUMPRODUCT( INDEX($F$176:AM$176,N(IF({1},AM$190-$F$190:AM$190+1))),$F$155:AM$155),0) -> 0 | AN197: =IFERROR( SUMPRODUCT( INDEX($F$176:AN$176,N(IF({1},AN$190-$F$190:AN$190+1))),$F$155:AN$155),0) -> 0 | AO197: =IFERROR( SUMPRODUCT( INDEX($F$176:AO$176,N(IF({1},AO$190-$F$190:AO$190+1))),$F$155:AO$155),0) -> 0 | AP197: =IFERROR( SUMPRODUCT( INDEX($F$176:AP$176,N(IF({1},AP$190-$F$190:AP$190+1))),$F$155:AP$155),0) -> 0 | AQ197: =IFERROR( SUMPRODUCT( INDEX($F$176:AQ$176,N(IF({1},AQ$190-$F$190:AQ$190+1))),$F$155:AQ$155),0) -> 0 | AR197: =IFERROR( SUMPRODUCT( INDEX($F$176:AR$176,N(IF({1},AR$190-$F$190:AR$190+1))),$F$155:AR$155),0) -> 0 | AS197: =IFERROR( SUMPRODUCT( INDEX($F$176:AS$176,N(IF({1},AS$190-$F$190:AS$190+1))),$F$155:AS$155),0) -> 0 | AT197: =IFERROR( SUMPRODUCT( INDEX($F$176:AT$176,N(IF({1},AT$190-$F$190:AT$190+1))),$F$155:AT$155),0) -> 0 | AU197: =IFERROR( SUMPRODUCT( INDEX($F$176:AU$176,N(IF({1},AU$190-$F$190:AU$190+1))),$F$155:AU$155),0) -> 0 | AV197: =IFERROR( SUMPRODUCT( INDEX($F$176:AV$176,N(IF({1},AV$190-$F$190:AV$190+1))),$F$155:AV$155),0) -> 0 | AW197: =IFERROR( SUMPRODUCT( INDEX($F$176:AW$176,N(IF({1},AW$190-$F$190:AW$190+1))),$F$155:AW$155),0) -> 0 | AX197: =IFERROR( SUMPRODUCT( INDEX($F$176:AX$176,N(IF({1},AX$190-$F$190:AX$190+1))),$F$155:AX$155),0) -> 0 | AY197: =IFERROR( SUMPRODUCT( INDEX($F$176:AY$176,N(IF({1},AY$190-$F$190:AY$190+1))),$F$155:AY$155),0) -> 0 | AZ197: =IFERROR( SUMPRODUCT( INDEX($F$176:AZ$176,N(IF({1},AZ$190-$F$190:AZ$190+1))),$F$155:AZ$155),0) -> 0 | BA197: =IFERROR( SUMPRODUCT( INDEX($F$176:BA$176,N(IF({1},BA$190-$F$190:BA$190+1))),$F$155:BA$155),0) -> 0 | BB197: 0 | BD197: 0 | BE197: 0 | BF197: 1 | BG197: =IF(OR(LEFT($B197,2)="5a",LEFT($B197,2)="5b"),$B197,LEFT($B197,IF(ISTEXT($B197),MIN(IF(ISERROR(FIND({"_","a","b"},$B197)),"",FIND({"_","a","b"},$B197)))-1,LEN($B197)))*1) -> 5a
A198: URR_PP | B198: 5b | C198: =_AccMandatory_Annuities -> UVG-Renten | D198: =_AccMandatory_Annuities -> UVG-Renten | F198: =IFERROR( SUMPRODUCT( INDEX($F$177:F$177,N(IF({1},F$190-$F$190:F$190+1))),$F$156:F$156),0) -> 0 | G198: =IFERROR( SUMPRODUCT( INDEX($F$177:G$177,N(IF({1},G$190-$F$190:G$190+1))),$F$156:G$156),0) -> 0 | H198: =IFERROR( SUMPRODUCT( INDEX($F$177:H$177,N(IF({1},H$190-$F$190:H$190+1))),$F$156:H$156),0) -> 0 | I198: =IFERROR( SUMPRODUCT( INDEX($F$177:I$177,N(IF({1},I$190-$F$190:I$190+1))),$F$156:I$156),0) -> 0 | J198: =IFERROR( SUMPRODUCT( INDEX($F$177:J$177,N(IF({1},J$190-$F$190:J$190+1))),$F$156:J$156),0) -> 0 | K198: =IFERROR( SUMPRODUCT( INDEX($F$177:K$177,N(IF({1},K$190-$F$190:K$190+1))),$F$156:K$156),0) -> 0 | L198: =IFERROR( SUMPRODUCT( INDEX($F$177:L$177,N(IF({1},L$190-$F$190:L$190+1))),$F$156:L$156),0) -> 0 | M198: =IFERROR( SUMPRODUCT( INDEX($F$177:M$177,N(IF({1},M$190-$F$190:M$190+1))),$F$156:M$156),0) -> 0 | N198: =IFERROR( SUMPRODUCT( INDEX($F$177:N$177,N(IF({1},N$190-$F$190:N$190+1))),$F$156:N$156),0) -> 0 | O198: =IFERROR( SUMPRODUCT( INDEX($F$177:O$177,N(IF({1},O$190-$F$190:O$190+1))),$F$156:O$156),0) -> 0 | P198: =IFERROR( SUMPRODUCT( INDEX($F$177:P$177,N(IF({1},P$190-$F$190:P$190+1))),$F$156:P$156),0) -> 0 | Q198: =IFERROR( SUMPRODUCT( INDEX($F$177:Q$177,N(IF({1},Q$190-$F$190:Q$190+1))),$F$156:Q$156),0) -> 0 | R198: =IFERROR( SUMPRODUCT( INDEX($F$177:R$177,N(IF({1},R$190-$F$190:R$190+1))),$F$156:R$156),0) -> 0 | S198: =IFERROR( SUMPRODUCT( INDEX($F$177:S$177,N(IF({1},S$190-$F$190:S$190+1))),$F$156:S$156),0) -> 0 | T198: =IFERROR( SUMPRODUCT( INDEX($F$177:T$177,N(IF({1},T$190-$F$190:T$190+1))),$F$156:T$156),0) -> 0 | U198: =IFERROR( SUMPRODUCT( INDEX($F$177:U$177,N(IF({1},U$190-$F$190:U$190+1))),$F$156:U$156),0) -> 0 | V198: =IFERROR( SUMPRODUCT( INDEX($F$177:V$177,N(IF({1},V$190-$F$190:V$190+1))),$F$156:V$156),0) -> 0 | W198: =IFERROR( SUMPRODUCT( INDEX($F$177:W$177,N(IF({1},W$190-$F$190:W$190+1))),$F$156:W$156),0) -> 0 | X198: =IFERROR( SUMPRODUCT( INDEX($F$177:X$177,N(IF({1},X$190-$F$190:X$190+1))),$F$156:X$156),0) -> 0 | Y198: =IFERROR( SUMPRODUCT( INDEX($F$177:Y$177,N(IF({1},Y$190-$F$190:Y$190+1))),$F$156:Y$156),0) -> 0 | Z198: =IFERROR( SUMPRODUCT( INDEX($F$177:Z$177,N(IF({1},Z$190-$F$190:Z$190+1))),$F$156:Z$156),0) -> 0 | AA198: =IFERROR( SUMPRODUCT( INDEX($F$177:AA$177,N(IF({1},AA$190-$F$190:AA$190+1))),$F$156:AA$156),0) -> 0 | AB198: =IFERROR( SUMPRODUCT( INDEX($F$177:AB$177,N(IF({1},AB$190-$F$190:AB$190+1))),$F$156:AB$156),0) -> 0 | AC198: =IFERROR( SUMPRODUCT( INDEX($F$177:AC$177,N(IF({1},AC$190-$F$190:AC$190+1))),$F$156:AC$156),0) -> 0 | AD198: =IFERROR( SUMPRODUCT( INDEX($F$177:AD$177,N(IF({1},AD$190-$F$190:AD$190+1))),$F$156:AD$156),0) -> 0 | AE198: =IFERROR( SUMPRODUCT( INDEX($F$177:AE$177,N(IF({1},AE$190-$F$190:AE$190+1))),$F$156:AE$156),0) -> 0 | AF198: =IFERROR( SUMPRODUCT( INDEX($F$177:AF$177,N(IF({1},AF$190-$F$190:AF$190+1))),$F$156:AF$156),0) -> 0 | AG198: =IFERROR( SUMPRODUCT( INDEX($F$177:AG$177,N(IF({1},AG$190-$F$190:AG$190+1))),$F$156:AG$156),0) -> 0 | AH198: =IFERROR( SUMPRODUCT( INDEX($F$177:AH$177,N(IF({1},AH$190-$F$190:AH$190+1))),$F$156:AH$156),0) -> 0 | AI198: =IFERROR( SUMPRODUCT( INDEX($F$177:AI$177,N(IF({1},AI$190-$F$190:AI$190+1))),$F$156:AI$156),0) -> 0 | AJ198: =IFERROR( SUMPRODUCT( INDEX($F$177:AJ$177,N(IF({1},AJ$190-$F$190:AJ$190+1))),$F$156:AJ$156),0) -> 0 | AK198: =IFERROR( SUMPRODUCT( INDEX($F$177:AK$177,N(IF({1},AK$190-$F$190:AK$190+1))),$F$156:AK$156),0) -> 0 | AL198: =IFERROR( SUMPRODUCT( INDEX($F$177:AL$177,N(IF({1},AL$190-$F$190:AL$190+1))),$F$156:AL$156),0) -> 0 | AM198: =IFERROR( SUMPRODUCT( INDEX($F$177:AM$177,N(IF({1},AM$190-$F$190:AM$190+1))),$F$156:AM$156),0) -> 0 | AN198: =IFERROR( SUMPRODUCT( INDEX($F$177:AN$177,N(IF({1},AN$190-$F$190:AN$190+1))),$F$156:AN$156),0) -> 0 | AO198: =IFERROR( SUMPRODUCT( INDEX($F$177:AO$177,N(IF({1},AO$190-$F$190:AO$190+1))),$F$156:AO$156),0) -> 0 | AP198: =IFERROR( SUMPRODUCT( INDEX($F$177:AP$177,N(IF({1},AP$190-$F$190:AP$190+1))),$F$156:AP$156),0) -> 0 | AQ198: =IFERROR( SUMPRODUCT( INDEX($F$177:AQ$177,N(IF({1},AQ$190-$F$190:AQ$190+1))),$F$156:AQ$156),0) -> 0 | AR198: =IFERROR( SUMPRODUCT( INDEX($F$177:AR$177,N(IF({1},AR$190-$F$190:AR$190+1))),$F$156:AR$156),0) -> 0 | AS198: =IFERROR( SUMPRODUCT( INDEX($F$177:AS$177,N(IF({1},AS$190-$F$190:AS$190+1))),$F$156:AS$156),0) -> 0 | AT198: =IFERROR( SUMPRODUCT( INDEX($F$177:AT$177,N(IF({1},AT$190-$F$190:AT$190+1))),$F$156:AT$156),0) -> 0 | AU198: =IFERROR( SUMPRODUCT( INDEX($F$177:AU$177,N(IF({1},AU$190-$F$190:AU$190+1))),$F$156:AU$156),0) -> 0 | AV198: =IFERROR( SUMPRODUCT( INDEX($F$177:AV$177,N(IF({1},AV$190-$F$190:AV$190+1))),$F$156:AV$156),0) -> 0 | AW198: =IFERROR( SUMPRODUCT( INDEX($F$177:AW$177,N(IF({1},AW$190-$F$190:AW$190+1))),$F$156:AW$156),0) -> 0 | AX198: =IFERROR( SUMPRODUCT( INDEX($F$177:AX$177,N(IF({1},AX$190-$F$190:AX$190+1))),$F$156:AX$156),0) -> 0 | AY198: =IFERROR( SUMPRODUCT( INDEX($F$177:AY$177,N(IF({1},AY$190-$F$190:AY$190+1))),$F$156:AY$156),0) -> 0 | AZ198: =IFERROR( SUMPRODUCT( INDEX($F$177:AZ$177,N(IF({1},AZ$190-$F$190:AZ$190+1))),$F$156:AZ$156),0) -> 0 | BA198: =IFERROR( SUMPRODUCT( INDEX($F$177:BA$177,N(IF({1},BA$190-$F$190:BA$190+1))),$F$156:BA$156),0) -> 0 | BB198: 0 | BD198: 0 | BE198: 0 | BF198: 1 | BG198: =IF(OR(LEFT($B198,2)="5a",LEFT($B198,2)="5b"),$B198,LEFT($B198,IF(ISTEXT($B198),MIN(IF(ISERROR(FIND({"_","a","b"},$B198)),"",FIND({"_","a","b"},$B198)))-1,LEN($B198)))*1) -> 5b
A199: URR_PP | B199: 6 | C199: =_AccOptional -> Unfall ohne UVG | D199: =_AccOptional -> Unfall ohne UVG | F199: =IFERROR( SUMPRODUCT( INDEX($F$178:F$178,N(IF({1},F$190-$F$190:F$190+1))),$F$157:F$157),0) -> 0 | G199: =IFERROR( SUMPRODUCT( INDEX($F$178:G$178,N(IF({1},G$190-$F$190:G$190+1))),$F$157:G$157),0) -> 0 | H199: =IFERROR( SUMPRODUCT( INDEX($F$178:H$178,N(IF({1},H$190-$F$190:H$190+1))),$F$157:H$157),0) -> 0 | I199: =IFERROR( SUMPRODUCT( INDEX($F$178:I$178,N(IF({1},I$190-$F$190:I$190+1))),$F$157:I$157),0) -> 0 | J199: =IFERROR( SUMPRODUCT( INDEX($F$178:J$178,N(IF({1},J$190-$F$190:J$190+1))),$F$157:J$157),0) -> 0 | K199: =IFERROR( SUMPRODUCT( INDEX($F$178:K$178,N(IF({1},K$190-$F$190:K$190+1))),$F$157:K$157),0) -> 0 | L199: =IFERROR( SUMPRODUCT( INDEX($F$178:L$178,N(IF({1},L$190-$F$190:L$190+1))),$F$157:L$157),0) -> 0 | M199: =IFERROR( SUMPRODUCT( INDEX($F$178:M$178,N(IF({1},M$190-$F$190:M$190+1))),$F$157:M$157),0) -> 0 | N199: =IFERROR( SUMPRODUCT( INDEX($F$178:N$178,N(IF({1},N$190-$F$190:N$190+1))),$F$157:N$157),0) -> 0 | O199: =IFERROR( SUMPRODUCT( INDEX($F$178:O$178,N(IF({1},O$190-$F$190:O$190+1))),$F$157:O$157),0) -> 0 | P199: =IFERROR( SUMPRODUCT( INDEX($F$178:P$178,N(IF({1},P$190-$F$190:P$190+1))),$F$157:P$157),0) -> 0 | Q199: =IFERROR( SUMPRODUCT( INDEX($F$178:Q$178,N(IF({1},Q$190-$F$190:Q$190+1))),$F$157:Q$157),0) -> 0 | R199: =IFERROR( SUMPRODUCT( INDEX($F$178:R$178,N(IF({1},R$190-$F$190:R$190+1))),$F$157:R$157),0) -> 0 | S199: =IFERROR( SUMPRODUCT( INDEX($F$178:S$178,N(IF({1},S$190-$F$190:S$190+1))),$F$157:S$157),0) -> 0 | T199: =IFERROR( SUMPRODUCT( INDEX($F$178:T$178,N(IF({1},T$190-$F$190:T$190+1))),$F$157:T$157),0) -> 0 | U199: =IFERROR( SUMPRODUCT( INDEX($F$178:U$178,N(IF({1},U$190-$F$190:U$190+1))),$F$157:U$157),0) -> 0 | V199: =IFERROR( SUMPRODUCT( INDEX($F$178:V$178,N(IF({1},V$190-$F$190:V$190+1))),$F$157:V$157),0) -> 0 | W199: =IFERROR( SUMPRODUCT( INDEX($F$178:W$178,N(IF({1},W$190-$F$190:W$190+1))),$F$157:W$157),0) -> 0 | X199: =IFERROR( SUMPRODUCT( INDEX($F$178:X$178,N(IF({1},X$190-$F$190:X$190+1))),$F$157:X$157),0) -> 0 | Y199: =IFERROR( SUMPRODUCT( INDEX($F$178:Y$178,N(IF({1},Y$190-$F$190:Y$190+1))),$F$157:Y$157),0) -> 0 | Z199: =IFERROR( SUMPRODUCT( INDEX($F$178:Z$178,N(IF({1},Z$190-$F$190:Z$190+1))),$F$157:Z$157),0) -> 0 | AA199: =IFERROR( SUMPRODUCT( INDEX($F$178:AA$178,N(IF({1},AA$190-$F$190:AA$190+1))),$F$157:AA$157),0) -> 0 | AB199: =IFERROR( SUMPRODUCT( INDEX($F$178:AB$178,N(IF({1},AB$190-$F$190:AB$190+1))),$F$157:AB$157),0) -> 0 | AC199: =IFERROR( SUMPRODUCT( INDEX($F$178:AC$178,N(IF({1},AC$190-$F$190:AC$190+1))),$F$157:AC$157),0) -> 0 | AD199: =IFERROR( SUMPRODUCT( INDEX($F$178:AD$178,N(IF({1},AD$190-$F$190:AD$190+1))),$F$157:AD$157),0) -> 0 | AE199: =IFERROR( SUMPRODUCT( INDEX($F$178:AE$178,N(IF({1},AE$190-$F$190:AE$190+1))),$F$157:AE$157),0) -> 0 | AF199: =IFERROR( SUMPRODUCT( INDEX($F$178:AF$178,N(IF({1},AF$190-$F$190:AF$190+1))),$F$157:AF$157),0) -> 0 | AG199: =IFERROR( SUMPRODUCT( INDEX($F$178:AG$178,N(IF({1},AG$190-$F$190:AG$190+1))),$F$157:AG$157),0) -> 0 | AH199: =IFERROR( SUMPRODUCT( INDEX($F$178:AH$178,N(IF({1},AH$190-$F$190:AH$190+1))),$F$157:AH$157),0) -> 0 | AI199: =IFERROR( SUMPRODUCT( INDEX($F$178:AI$178,N(IF({1},AI$190-$F$190:AI$190+1))),$F$157:AI$157),0) -> 0 | AJ199: =IFERROR( SUMPRODUCT( INDEX($F$178:AJ$178,N(IF({1},AJ$190-$F$190:AJ$190+1))),$F$157:AJ$157),0) -> 0 | AK199: =IFERROR( SUMPRODUCT( INDEX($F$178:AK$178,N(IF({1},AK$190-$F$190:AK$190+1))),$F$157:AK$157),0) -> 0 | AL199: =IFERROR( SUMPRODUCT( INDEX($F$178:AL$178,N(IF({1},AL$190-$F$190:AL$190+1))),$F$157:AL$157),0) -> 0 | AM199: =IFERROR( SUMPRODUCT( INDEX($F$178:AM$178,N(IF({1},AM$190-$F$190:AM$190+1))),$F$157:AM$157),0) -> 0 | AN199: =IFERROR( SUMPRODUCT( INDEX($F$178:AN$178,N(IF({1},AN$190-$F$190:AN$190+1))),$F$157:AN$157),0) -> 0 | AO199: =IFERROR( SUMPRODUCT( INDEX($F$178:AO$178,N(IF({1},AO$190-$F$190:AO$190+1))),$F$157:AO$157),0) -> 0 | AP199: =IFERROR( SUMPRODUCT( INDEX($F$178:AP$178,N(IF({1},AP$190-$F$190:AP$190+1))),$F$157:AP$157),0) -> 0 | AQ199: =IFERROR( SUMPRODUCT( INDEX($F$178:AQ$178,N(IF({1},AQ$190-$F$190:AQ$190+1))),$F$157:AQ$157),0) -> 0 | AR199: =IFERROR( SUMPRODUCT( INDEX($F$178:AR$178,N(IF({1},AR$190-$F$190:AR$190+1))),$F$157:AR$157),0) -> 0 | AS199: =IFERROR( SUMPRODUCT( INDEX($F$178:AS$178,N(IF({1},AS$190-$F$190:AS$190+1))),$F$157:AS$157),0) -> 0 | AT199: =IFERROR( SUMPRODUCT( INDEX($F$178:AT$178,N(IF({1},AT$190-$F$190:AT$190+1))),$F$157:AT$157),0) -> 0 | AU199: =IFERROR( SUMPRODUCT( INDEX($F$178:AU$178,N(IF({1},AU$190-$F$190:AU$190+1))),$F$157:AU$157),0) -> 0 | AV199: =IFERROR( SUMPRODUCT( INDEX($F$178:AV$178,N(IF({1},AV$190-$F$190:AV$190+1))),$F$157:AV$157),0) -> 0 | AW199: =IFERROR( SUMPRODUCT( INDEX($F$178:AW$178,N(IF({1},AW$190-$F$190:AW$190+1))),$F$157:AW$157),0) -> 0 | AX199: =IFERROR( SUMPRODUCT( INDEX($F$178:AX$178,N(IF({1},AX$190-$F$190:AX$190+1))),$F$157:AX$157),0) -> 0 | AY199: =IFERROR( SUMPRODUCT( INDEX($F$178:AY$178,N(IF({1},AY$190-$F$190:AY$190+1))),$F$157:AY$157),0) -> 0 | AZ199: =IFERROR( SUMPRODUCT( INDEX($F$178:AZ$178,N(IF({1},AZ$190-$F$190:AZ$190+1))),$F$157:AZ$157),0) -> 0 | BA199: =IFERROR( SUMPRODUCT( INDEX($F$178:BA$178,N(IF({1},BA$190-$F$190:BA$190+1))),$F$157:BA$157),0) -> 0 | BB199: 0 | BD199: 0 | BE199: 0 | BF199: 1 | BG199: =IF(OR(LEFT($B199,2)="5a",LEFT($B199,2)="5b"),$B199,LEFT($B199,IF(ISTEXT($B199),MIN(IF(ISERROR(FIND({"_","a","b"},$B199)),"",FIND({"_","a","b"},$B199)))-1,LEN($B199)))*1) -> 6
A200: URR_PP | B200: 7 | C200: =_Health_Collective -> Kollektivtaggeld | D200: =_Health_Collective -> Kollektivtaggeld | F200: =IFERROR( SUMPRODUCT( INDEX($F$179:F$179,N(IF({1},F$190-$F$190:F$190+1))),$F$158:F$158),0) -> 0 | G200: =IFERROR( SUMPRODUCT( INDEX($F$179:G$179,N(IF({1},G$190-$F$190:G$190+1))),$F$158:G$158),0) -> 0 | H200: =IFERROR( SUMPRODUCT( INDEX($F$179:H$179,N(IF({1},H$190-$F$190:H$190+1))),$F$158:H$158),0) -> 0 | I200: =IFERROR( SUMPRODUCT( INDEX($F$179:I$179,N(IF({1},I$190-$F$190:I$190+1))),$F$158:I$158),0) -> 0 | J200: =IFERROR( SUMPRODUCT( INDEX($F$179:J$179,N(IF({1},J$190-$F$190:J$190+1))),$F$158:J$158),0) -> 0 | K200: =IFERROR( SUMPRODUCT( INDEX($F$179:K$179,N(IF({1},K$190-$F$190:K$190+1))),$F$158:K$158),0) -> 0 | L200: =IFERROR( SUMPRODUCT( INDEX($F$179:L$179,N(IF({1},L$190-$F$190:L$190+1))),$F$158:L$158),0) -> 0 | M200: =IFERROR( SUMPRODUCT( INDEX($F$179:M$179,N(IF({1},M$190-$F$190:M$190+1))),$F$158:M$158),0) -> 0 | N200: =IFERROR( SUMPRODUCT( INDEX($F$179:N$179,N(IF({1},N$190-$F$190:N$190+1))),$F$158:N$158),0) -> 0 | O200: =IFERROR( SUMPRODUCT( INDEX($F$179:O$179,N(IF({1},O$190-$F$190:O$190+1))),$F$158:O$158),0) -> 0 | P200: =IFERROR( SUMPRODUCT( INDEX($F$179:P$179,N(IF({1},P$190-$F$190:P$190+1))),$F$158:P$158),0) -> 0 | Q200: =IFERROR( SUMPRODUCT( INDEX($F$179:Q$179,N(IF({1},Q$190-$F$190:Q$190+1))),$F$158:Q$158),0) -> 0 | R200: =IFERROR( SUMPRODUCT( INDEX($F$179:R$179,N(IF({1},R$190-$F$190:R$190+1))),$F$158:R$158),0) -> 0 | S200: =IFERROR( SUMPRODUCT( INDEX($F$179:S$179,N(IF({1},S$190-$F$190:S$190+1))),$F$158:S$158),0) -> 0 | T200: =IFERROR( SUMPRODUCT( INDEX($F$179:T$179,N(IF({1},T$190-$F$190:T$190+1))),$F$158:T$158),0) -> 0 | U200: =IFERROR( SUMPRODUCT( INDEX($F$179:U$179,N(IF({1},U$190-$F$190:U$190+1))),$F$158:U$158),0) -> 0 | V200: =IFERROR( SUMPRODUCT( INDEX($F$179:V$179,N(IF({1},V$190-$F$190:V$190+1))),$F$158:V$158),0) -> 0 | W200: =IFERROR( SUMPRODUCT( INDEX($F$179:W$179,N(IF({1},W$190-$F$190:W$190+1))),$F$158:W$158),0) -> 0 | X200: =IFERROR( SUMPRODUCT( INDEX($F$179:X$179,N(IF({1},X$190-$F$190:X$190+1))),$F$158:X$158),0) -> 0 | Y200: =IFERROR( SUMPRODUCT( INDEX($F$179:Y$179,N(IF({1},Y$190-$F$190:Y$190+1))),$F$158:Y$158),0) -> 0 | Z200: =IFERROR( SUMPRODUCT( INDEX($F$179:Z$179,N(IF({1},Z$190-$F$190:Z$190+1))),$F$158:Z$158),0) -> 0 | AA200: =IFERROR( SUMPRODUCT( INDEX($F$179:AA$179,N(IF({1},AA$190-$F$190:AA$190+1))),$F$158:AA$158),0) -> 0 | AB200: =IFERROR( SUMPRODUCT( INDEX($F$179:AB$179,N(IF({1},AB$190-$F$190:AB$190+1))),$F$158:AB$158),0) -> 0 | AC200: =IFERROR( SUMPRODUCT( INDEX($F$179:AC$179,N(IF({1},AC$190-$F$190:AC$190+1))),$F$158:AC$158),0) -> 0 | AD200: =IFERROR( SUMPRODUCT( INDEX($F$179:AD$179,N(IF({1},AD$190-$F$190:AD$190+1))),$F$158:AD$158),0) -> 0 | AE200: =IFERROR( SUMPRODUCT( INDEX($F$179:AE$179,N(IF({1},AE$190-$F$190:AE$190+1))),$F$158:AE$158),0) -> 0 | AF200: =IFERROR( SUMPRODUCT( INDEX($F$179:AF$179,N(IF({1},AF$190-$F$190:AF$190+1))),$F$158:AF$158),0) -> 0 | AG200: =IFERROR( SUMPRODUCT( INDEX($F$179:AG$179,N(IF({1},AG$190-$F$190:AG$190+1))),$F$158:AG$158),0) -> 0 | AH200: =IFERROR( SUMPRODUCT( INDEX($F$179:AH$179,N(IF({1},AH$190-$F$190:AH$190+1))),$F$158:AH$158),0) -> 0 | AI200: =IFERROR( SUMPRODUCT( INDEX($F$179:AI$179,N(IF({1},AI$190-$F$190:AI$190+1))),$F$158:AI$158),0) -> 0 | AJ200: =IFERROR( SUMPRODUCT( INDEX($F$179:AJ$179,N(IF({1},AJ$190-$F$190:AJ$190+1))),$F$158:AJ$158),0) -> 0 | AK200: =IFERROR( SUMPRODUCT( INDEX($F$179:AK$179,N(IF({1},AK$190-$F$190:AK$190+1))),$F$158:AK$158),0) -> 0 | AL200: =IFERROR( SUMPRODUCT( INDEX($F$179:AL$179,N(IF({1},AL$190-$F$190:AL$190+1))),$F$158:AL$158),0) -> 0 | AM200: =IFERROR( SUMPRODUCT( INDEX($F$179:AM$179,N(IF({1},AM$190-$F$190:AM$190+1))),$F$158:AM$158),0) -> 0 | AN200: =IFERROR( SUMPRODUCT( INDEX($F$179:AN$179,N(IF({1},AN$190-$F$190:AN$190+1))),$F$158:AN$158),0) -> 0 | AO200: =IFERROR( SUMPRODUCT( INDEX($F$179:AO$179,N(IF({1},AO$190-$F$190:AO$190+1))),$F$158:AO$158),0) -> 0 | AP200: =IFERROR( SUMPRODUCT( INDEX($F$179:AP$179,N(IF({1},AP$190-$F$190:AP$190+1))),$F$158:AP$158),0) -> 0 | AQ200: =IFERROR( SUMPRODUCT( INDEX($F$179:AQ$179,N(IF({1},AQ$190-$F$190:AQ$190+1))),$F$158:AQ$158),0) -> 0 | AR200: =IFERROR( SUMPRODUCT( INDEX($F$179:AR$179,N(IF({1},AR$190-$F$190:AR$190+1))),$F$158:AR$158),0) -> 0 | AS200: =IFERROR( SUMPRODUCT( INDEX($F$179:AS$179,N(IF({1},AS$190-$F$190:AS$190+1))),$F$158:AS$158),0) -> 0 | AT200: =IFERROR( SUMPRODUCT( INDEX($F$179:AT$179,N(IF({1},AT$190-$F$190:AT$190+1))),$F$158:AT$158),0) -> 0 | AU200: =IFERROR( SUMPRODUCT( INDEX($F$179:AU$179,N(IF({1},AU$190-$F$190:AU$190+1))),$F$158:AU$158),0) -> 0 | AV200: =IFERROR( SUMPRODUCT( INDEX($F$179:AV$179,N(IF({1},AV$190-$F$190:AV$190+1))),$F$158:AV$158),0) -> 0 | AW200: =IFERROR( SUMPRODUCT( INDEX($F$179:AW$179,N(IF({1},AW$190-$F$190:AW$190+1))),$F$158:AW$158),0) -> 0 | AX200: =IFERROR( SUMPRODUCT( INDEX($F$179:AX$179,N(IF({1},AX$190-$F$190:AX$190+1))),$F$158:AX$158),0) -> 0 | AY200: =IFERROR( SUMPRODUCT( INDEX($F$179:AY$179,N(IF({1},AY$190-$F$190:AY$190+1))),$F$158:AY$158),0) -> 0 | AZ200: =IFERROR( SUMPRODUCT( INDEX($F$179:AZ$179,N(IF({1},AZ$190-$F$190:AZ$190+1))),$F$158:AZ$158),0) -> 0 | BA200: =IFERROR( SUMPRODUCT( INDEX($F$179:BA$179,N(IF({1},BA$190-$F$190:BA$190+1))),$F$158:BA$158),0) -> 0 | BB200: 0 | BD200: 0 | BE200: 0 | BF200: 1 | BG200: =IF(OR(LEFT($B200,2)="5a",LEFT($B200,2)="5b"),$B200,LEFT($B200,IF(ISTEXT($B200),MIN(IF(ISERROR(FIND({"_","a","b"},$B200)),"",FIND({"_","a","b"},$B200)))-1,LEN($B200)))*1) -> 7
A201: URR_PP | B201: 8 | C201: =_Health_Individual -> Einzelkranken | D201: =_Health_Individual -> Einzelkranken | F201: =IFERROR( SUMPRODUCT( INDEX($F$180:F$180,N(IF({1},F$190-$F$190:F$190+1))),$F$159:F$159),0) -> 0 | G201: =IFERROR( SUMPRODUCT( INDEX($F$180:G$180,N(IF({1},G$190-$F$190:G$190+1))),$F$159:G$159),0) -> 0 | H201: =IFERROR( SUMPRODUCT( INDEX($F$180:H$180,N(IF({1},H$190-$F$190:H$190+1))),$F$159:H$159),0) -> 0 | I201: =IFERROR( SUMPRODUCT( INDEX($F$180:I$180,N(IF({1},I$190-$F$190:I$190+1))),$F$159:I$159),0) -> 0 | J201: =IFERROR( SUMPRODUCT( INDEX($F$180:J$180,N(IF({1},J$190-$F$190:J$190+1))),$F$159:J$159),0) -> 0 | K201: =IFERROR( SUMPRODUCT( INDEX($F$180:K$180,N(IF({1},K$190-$F$190:K$190+1))),$F$159:K$159),0) -> 0 | L201: =IFERROR( SUMPRODUCT( INDEX($F$180:L$180,N(IF({1},L$190-$F$190:L$190+1))),$F$159:L$159),0) -> 0 | M201: =IFERROR( SUMPRODUCT( INDEX($F$180:M$180,N(IF({1},M$190-$F$190:M$190+1))),$F$159:M$159),0) -> 0 | N201: =IFERROR( SUMPRODUCT( INDEX($F$180:N$180,N(IF({1},N$190-$F$190:N$190+1))),$F$159:N$159),0) -> 0 | O201: =IFERROR( SUMPRODUCT( INDEX($F$180:O$180,N(IF({1},O$190-$F$190:O$190+1))),$F$159:O$159),0) -> 0 | P201: =IFERROR( SUMPRODUCT( INDEX($F$180:P$180,N(IF({1},P$190-$F$190:P$190+1))),$F$159:P$159),0) -> 0 | Q201: =IFERROR( SUMPRODUCT( INDEX($F$180:Q$180,N(IF({1},Q$190-$F$190:Q$190+1))),$F$159:Q$159),0) -> 0 | R201: =IFERROR( SUMPRODUCT( INDEX($F$180:R$180,N(IF({1},R$190-$F$190:R$190+1))),$F$159:R$159),0) -> 0 | S201: =IFERROR( SUMPRODUCT( INDEX($F$180:S$180,N(IF({1},S$190-$F$190:S$190+1))),$F$159:S$159),0) -> 0 | T201: =IFERROR( SUMPRODUCT( INDEX($F$180:T$180,N(IF({1},T$190-$F$190:T$190+1))),$F$159:T$159),0) -> 0 | U201: =IFERROR( SUMPRODUCT( INDEX($F$180:U$180,N(IF({1},U$190-$F$190:U$190+1))),$F$159:U$159),0) -> 0 | V201: =IFERROR( SUMPRODUCT( INDEX($F$180:V$180,N(IF({1},V$190-$F$190:V$190+1))),$F$159:V$159),0) -> 0 | W201: =IFERROR( SUMPRODUCT( INDEX($F$180:W$180,N(IF({1},W$190-$F$190:W$190+1))),$F$159:W$159),0) -> 0 | X201: =IFERROR( SUMPRODUCT( INDEX($F$180:X$180,N(IF({1},X$190-$F$190:X$190+1))),$F$159:X$159),0) -> 0 | Y201: =IFERROR( SUMPRODUCT( INDEX($F$180:Y$180,N(IF({1},Y$190-$F$190:Y$190+1))),$F$159:Y$159),0) -> 0 | Z201: =IFERROR( SUMPRODUCT( INDEX($F$180:Z$180,N(IF({1},Z$190-$F$190:Z$190+1))),$F$159:Z$159),0) -> 0 | AA201: =IFERROR( SUMPRODUCT( INDEX($F$180:AA$180,N(IF({1},AA$190-$F$190:AA$190+1))),$F$159:AA$159),0) -> 0 | AB201: =IFERROR( SUMPRODUCT( INDEX($F$180:AB$180,N(IF({1},AB$190-$F$190:AB$190+1))),$F$159:AB$159),0) -> 0 | AC201: =IFERROR( SUMPRODUCT( INDEX($F$180:AC$180,N(IF({1},AC$190-$F$190:AC$190+1))),$F$159:AC$159),0) -> 0 | AD201: =IFERROR( SUMPRODUCT( INDEX($F$180:AD$180,N(IF({1},AD$190-$F$190:AD$190+1))),$F$159:AD$159),0) -> 0 | AE201: =IFERROR( SUMPRODUCT( INDEX($F$180:AE$180,N(IF({1},AE$190-$F$190:AE$190+1))),$F$159:AE$159),0) -> 0 | AF201: =IFERROR( SUMPRODUCT( INDEX($F$180:AF$180,N(IF({1},AF$190-$F$190:AF$190+1))),$F$159:AF$159),0) -> 0 | AG201: =IFERROR( SUMPRODUCT( INDEX($F$180:AG$180,N(IF({1},AG$190-$F$190:AG$190+1))),$F$159:AG$159),0) -> 0 | AH201: =IFERROR( SUMPRODUCT( INDEX($F$180:AH$180,N(IF({1},AH$190-$F$190:AH$190+1))),$F$159:AH$159),0) -> 0 | AI201: =IFERROR( SUMPRODUCT( INDEX($F$180:AI$180,N(IF({1},AI$190-$F$190:AI$190+1))),$F$159:AI$159),0) -> 0 | AJ201: =IFERROR( SUMPRODUCT( INDEX($F$180:AJ$180,N(IF({1},AJ$190-$F$190:AJ$190+1))),$F$159:AJ$159),0) -> 0 | AK201: =IFERROR( SUMPRODUCT( INDEX($F$180:AK$180,N(IF({1},AK$190-$F$190:AK$190+1))),$F$159:AK$159),0) -> 0 | AL201: =IFERROR( SUMPRODUCT( INDEX($F$180:AL$180,N(IF({1},AL$190-$F$190:AL$190+1))),$F$159:AL$159),0) -> 0 | AM201: =IFERROR( SUMPRODUCT( INDEX($F$180:AM$180,N(IF({1},AM$190-$F$190:AM$190+1))),$F$159:AM$159),0) -> 0 | AN201: =IFERROR( SUMPRODUCT( INDEX($F$180:AN$180,N(IF({1},AN$190-$F$190:AN$190+1))),$F$159:AN$159),0) -> 0 | AO201: =IFERROR( SUMPRODUCT( INDEX($F$180:AO$180,N(IF({1},AO$190-$F$190:AO$190+1))),$F$159:AO$159),0) -> 0 | AP201: =IFERROR( SUMPRODUCT( INDEX($F$180:AP$180,N(IF({1},AP$190-$F$190:AP$190+1))),$F$159:AP$159),0) -> 0 | AQ201: =IFERROR( SUMPRODUCT( INDEX($F$180:AQ$180,N(IF({1},AQ$190-$F$190:AQ$190+1))),$F$159:AQ$159),0) -> 0 | AR201: =IFERROR( SUMPRODUCT( INDEX($F$180:AR$180,N(IF({1},AR$190-$F$190:AR$190+1))),$F$159:AR$159),0) -> 0 | AS201: =IFERROR( SUMPRODUCT( INDEX($F$180:AS$180,N(IF({1},AS$190-$F$190:AS$190+1))),$F$159:AS$159),0) -> 0 | AT201: =IFERROR( SUMPRODUCT( INDEX($F$180:AT$180,N(IF({1},AT$190-$F$190:AT$190+1))),$F$159:AT$159),0) -> 0 | AU201: =IFERROR( SUMPRODUCT( INDEX($F$180:AU$180,N(IF({1},AU$190-$F$190:AU$190+1))),$F$159:AU$159),0) -> 0 | AV201: =IFERROR( SUMPRODUCT( INDEX($F$180:AV$180,N(IF({1},AV$190-$F$190:AV$190+1))),$F$159:AV$159),0) -> 0 | AW201: =IFERROR( SUMPRODUCT( INDEX($F$180:AW$180,N(IF({1},AW$190-$F$190:AW$190+1))),$F$159:AW$159),0) -> 0 | AX201: =IFERROR( SUMPRODUCT( INDEX($F$180:AX$180,N(IF({1},AX$190-$F$190:AX$190+1))),$F$159:AX$159),0) -> 0 | AY201: =IFERROR( SUMPRODUCT( INDEX($F$180:AY$180,N(IF({1},AY$190-$F$190:AY$190+1))),$F$159:AY$159),0) -> 0 | AZ201: =IFERROR( SUMPRODUCT( INDEX($F$180:AZ$180,N(IF({1},AZ$190-$F$190:AZ$190+1))),$F$159:AZ$159),0) -> 0 | BA201: =IFERROR( SUMPRODUCT( INDEX($F$180:BA$180,N(IF({1},BA$190-$F$190:BA$190+1))),$F$159:BA$159),0) -> 0 | BB201: 0 | BD201: 0 | BE201: 0 | BF201: 1 | BG201: =IF(OR(LEFT($B201,2)="5a",LEFT($B201,2)="5b"),$B201,LEFT($B201,IF(ISTEXT($B201),MIN(IF(ISERROR(FIND({"_","a","b"},$B201)),"",FIND({"_","a","b"},$B201)))-1,LEN($B201)))*1) -> 8
A202: URR_PP | B202: 9 | C202: =_Marine -> Transport | D202: =_Marine -> Transport | F202: =IFERROR( SUMPRODUCT( INDEX($F$181:F$181,N(IF({1},F$190-$F$190:F$190+1))),$F$160:F$160),0) -> 0 | G202: =IFERROR( SUMPRODUCT( INDEX($F$181:G$181,N(IF({1},G$190-$F$190:G$190+1))),$F$160:G$160),0) -> 0 | H202: =IFERROR( SUMPRODUCT( INDEX($F$181:H$181,N(IF({1},H$190-$F$190:H$190+1))),$F$160:H$160),0) -> 0 | I202: =IFERROR( SUMPRODUCT( INDEX($F$181:I$181,N(IF({1},I$190-$F$190:I$190+1))),$F$160:I$160),0) -> 0 | J202: =IFERROR( SUMPRODUCT( INDEX($F$181:J$181,N(IF({1},J$190-$F$190:J$190+1))),$F$160:J$160),0) -> 0 | K202: =IFERROR( SUMPRODUCT( INDEX($F$181:K$181,N(IF({1},K$190-$F$190:K$190+1))),$F$160:K$160),0) -> 0 | L202: =IFERROR( SUMPRODUCT( INDEX($F$181:L$181,N(IF({1},L$190-$F$190:L$190+1))),$F$160:L$160),0) -> 0 | M202: =IFERROR( SUMPRODUCT( INDEX($F$181:M$181,N(IF({1},M$190-$F$190:M$190+1))),$F$160:M$160),0) -> 0 | N202: =IFERROR( SUMPRODUCT( INDEX($F$181:N$181,N(IF({1},N$190-$F$190:N$190+1))),$F$160:N$160),0) -> 0 | O202: =IFERROR( SUMPRODUCT( INDEX($F$181:O$181,N(IF({1},O$190-$F$190:O$190+1))),$F$160:O$160),0) -> 0 | P202: =IFERROR( SUMPRODUCT( INDEX($F$181:P$181,N(IF({1},P$190-$F$190:P$190+1))),$F$160:P$160),0) -> 0 | Q202: =IFERROR( SUMPRODUCT( INDEX($F$181:Q$181,N(IF({1},Q$190-$F$190:Q$190+1))),$F$160:Q$160),0) -> 0 | R202: =IFERROR( SUMPRODUCT( INDEX($F$181:R$181,N(IF({1},R$190-$F$190:R$190+1))),$F$160:R$160),0) -> 0 | S202: =IFERROR( SUMPRODUCT( INDEX($F$181:S$181,N(IF({1},S$190-$F$190:S$190+1))),$F$160:S$160),0) -> 0 | T202: =IFERROR( SUMPRODUCT( INDEX($F$181:T$181,N(IF({1},T$190-$F$190:T$190+1))),$F$160:T$160),0) -> 0 | U202: =IFERROR( SUMPRODUCT( INDEX($F$181:U$181,N(IF({1},U$190-$F$190:U$190+1))),$F$160:U$160),0) -> 0 | V202: =IFERROR( SUMPRODUCT( INDEX($F$181:V$181,N(IF({1},V$190-$F$190:V$190+1))),$F$160:V$160),0) -> 0 | W202: =IFERROR( SUMPRODUCT( INDEX($F$181:W$181,N(IF({1},W$190-$F$190:W$190+1))),$F$160:W$160),0) -> 0 | X202: =IFERROR( SUMPRODUCT( INDEX($F$181:X$181,N(IF({1},X$190-$F$190:X$190+1))),$F$160:X$160),0) -> 0 | Y202: =IFERROR( SUMPRODUCT( INDEX($F$181:Y$181,N(IF({1},Y$190-$F$190:Y$190+1))),$F$160:Y$160),0) -> 0 | Z202: =IFERROR( SUMPRODUCT( INDEX($F$181:Z$181,N(IF({1},Z$190-$F$190:Z$190+1))),$F$160:Z$160),0) -> 0 | AA202: =IFERROR( SUMPRODUCT( INDEX($F$181:AA$181,N(IF({1},AA$190-$F$190:AA$190+1))),$F$160:AA$160),0) -> 0 | AB202: =IFERROR( SUMPRODUCT( INDEX($F$181:AB$181,N(IF({1},AB$190-$F$190:AB$190+1))),$F$160:AB$160),0) -> 0 | AC202: =IFERROR( SUMPRODUCT( INDEX($F$181:AC$181,N(IF({1},AC$190-$F$190:AC$190+1))),$F$160:AC$160),0) -> 0 | AD202: =IFERROR( SUMPRODUCT( INDEX($F$181:AD$181,N(IF({1},AD$190-$F$190:AD$190+1))),$F$160:AD$160),0) -> 0 | AE202: =IFERROR( SUMPRODUCT( INDEX($F$181:AE$181,N(IF({1},AE$190-$F$190:AE$190+1))),$F$160:AE$160),0) -> 0 | AF202: =IFERROR( SUMPRODUCT( INDEX($F$181:AF$181,N(IF({1},AF$190-$F$190:AF$190+1))),$F$160:AF$160),0) -> 0 | AG202: =IFERROR( SUMPRODUCT( INDEX($F$181:AG$181,N(IF({1},AG$190-$F$190:AG$190+1))),$F$160:AG$160),0) -> 0 | AH202: =IFERROR( SUMPRODUCT( INDEX($F$181:AH$181,N(IF({1},AH$190-$F$190:AH$190+1))),$F$160:AH$160),0) -> 0 | AI202: =IFERROR( SUMPRODUCT( INDEX($F$181:AI$181,N(IF({1},AI$190-$F$190:AI$190+1))),$F$160:AI$160),0) -> 0 | AJ202: =IFERROR( SUMPRODUCT( INDEX($F$181:AJ$181,N(IF({1},AJ$190-$F$190:AJ$190+1))),$F$160:AJ$160),0) -> 0 | AK202: =IFERROR( SUMPRODUCT( INDEX($F$181:AK$181,N(IF({1},AK$190-$F$190:AK$190+1))),$F$160:AK$160),0) -> 0 | AL202: =IFERROR( SUMPRODUCT( INDEX($F$181:AL$181,N(IF({1},AL$190-$F$190:AL$190+1))),$F$160:AL$160),0) -> 0 | AM202: =IFERROR( SUMPRODUCT( INDEX($F$181:AM$181,N(IF({1},AM$190-$F$190:AM$190+1))),$F$160:AM$160),0) -> 0 | AN202: =IFERROR( SUMPRODUCT( INDEX($F$181:AN$181,N(IF({1},AN$190-$F$190:AN$190+1))),$F$160:AN$160),0) -> 0 | AO202: =IFERROR( SUMPRODUCT( INDEX($F$181:AO$181,N(IF({1},AO$190-$F$190:AO$190+1))),$F$160:AO$160),0) -> 0 | AP202: =IFERROR( SUMPRODUCT( INDEX($F$181:AP$181,N(IF({1},AP$190-$F$190:AP$190+1))),$F$160:AP$160),0) -> 0 | AQ202: =IFERROR( SUMPRODUCT( INDEX($F$181:AQ$181,N(IF({1},AQ$190-$F$190:AQ$190+1))),$F$160:AQ$160),0) -> 0 | AR202: =IFERROR( SUMPRODUCT( INDEX($F$181:AR$181,N(IF({1},AR$190-$F$190:AR$190+1))),$F$160:AR$160),0) -> 0 | AS202: =IFERROR( SUMPRODUCT( INDEX($F$181:AS$181,N(IF({1},AS$190-$F$190:AS$190+1))),$F$160:AS$160),0) -> 0 | AT202: =IFERROR( SUMPRODUCT( INDEX($F$181:AT$181,N(IF({1},AT$190-$F$190:AT$190+1))),$F$160:AT$160),0) -> 0 | AU202: =IFERROR( SUMPRODUCT( INDEX($F$181:AU$181,N(IF({1},AU$190-$F$190:AU$190+1))),$F$160:AU$160),0) -> 0 | AV202: =IFERROR( SUMPRODUCT( INDEX($F$181:AV$181,N(IF({1},AV$190-$F$190:AV$190+1))),$F$160:AV$160),0) -> 0 | AW202: =IFERROR( SUMPRODUCT( INDEX($F$181:AW$181,N(IF({1},AW$190-$F$190:AW$190+1))),$F$160:AW$160),0) -> 0 | AX202: =IFERROR( SUMPRODUCT( INDEX($F$181:AX$181,N(IF({1},AX$190-$F$190:AX$190+1))),$F$160:AX$160),0) -> 0 | AY202: =IFERROR( SUMPRODUCT( INDEX($F$181:AY$181,N(IF({1},AY$190-$F$190:AY$190+1))),$F$160:AY$160),0) -> 0 | AZ202: =IFERROR( SUMPRODUCT( INDEX($F$181:AZ$181,N(IF({1},AZ$190-$F$190:AZ$190+1))),$F$160:AZ$160),0) -> 0 | BA202: =IFERROR( SUMPRODUCT( INDEX($F$181:BA$181,N(IF({1},BA$190-$F$190:BA$190+1))),$F$160:BA$160),0) -> 0 | BB202: 0 | BD202: 0 | BE202: 0 | BF202: 1 | BG202: =IF(OR(LEFT($B202,2)="5a",LEFT($B202,2)="5b"),$B202,LEFT($B202,IF(ISTEXT($B202),MIN(IF(ISERROR(FIND({"_","a","b"},$B202)),"",FIND({"_","a","b"},$B202)))-1,LEN($B202)))*1) -> 9
A203: URR_PP | B203: 10 | C203: =_Aviation -> Luftfahrt | D203: =_Aviation -> Luftfahrt | F203: =IFERROR( SUMPRODUCT( INDEX($F$182:F$182,N(IF({1},F$190-$F$190:F$190+1))),$F$161:F$161),0) -> 0 | G203: =IFERROR( SUMPRODUCT( INDEX($F$182:G$182,N(IF({1},G$190-$F$190:G$190+1))),$F$161:G$161),0) -> 0 | H203: =IFERROR( SUMPRODUCT( INDEX($F$182:H$182,N(IF({1},H$190-$F$190:H$190+1))),$F$161:H$161),0) -> 0 | I203: =IFERROR( SUMPRODUCT( INDEX($F$182:I$182,N(IF({1},I$190-$F$190:I$190+1))),$F$161:I$161),0) -> 0 | J203: =IFERROR( SUMPRODUCT( INDEX($F$182:J$182,N(IF({1},J$190-$F$190:J$190+1))),$F$161:J$161),0) -> 0 | K203: =IFERROR( SUMPRODUCT( INDEX($F$182:K$182,N(IF({1},K$190-$F$190:K$190+1))),$F$161:K$161),0) -> 0 | L203: =IFERROR( SUMPRODUCT( INDEX($F$182:L$182,N(IF({1},L$190-$F$190:L$190+1))),$F$161:L$161),0) -> 0 | M203: =IFERROR( SUMPRODUCT( INDEX($F$182:M$182,N(IF({1},M$190-$F$190:M$190+1))),$F$161:M$161),0) -> 0 | N203: =IFERROR( SUMPRODUCT( INDEX($F$182:N$182,N(IF({1},N$190-$F$190:N$190+1))),$F$161:N$161),0) -> 0 | O203: =IFERROR( SUMPRODUCT( INDEX($F$182:O$182,N(IF({1},O$190-$F$190:O$190+1))),$F$161:O$161),0) -> 0 | P203: =IFERROR( SUMPRODUCT( INDEX($F$182:P$182,N(IF({1},P$190-$F$190:P$190+1))),$F$161:P$161),0) -> 0 | Q203: =IFERROR( SUMPRODUCT( INDEX($F$182:Q$182,N(IF({1},Q$190-$F$190:Q$190+1))),$F$161:Q$161),0) -> 0 | R203: =IFERROR( SUMPRODUCT( INDEX($F$182:R$182,N(IF({1},R$190-$F$190:R$190+1))),$F$161:R$161),0) -> 0 | S203: =IFERROR( SUMPRODUCT( INDEX($F$182:S$182,N(IF({1},S$190-$F$190:S$190+1))),$F$161:S$161),0) -> 0 | T203: =IFERROR( SUMPRODUCT( INDEX($F$182:T$182,N(IF({1},T$190-$F$190:T$190+1))),$F$161:T$161),0) -> 0 | U203: =IFERROR( SUMPRODUCT( INDEX($F$182:U$182,N(IF({1},U$190-$F$190:U$190+1))),$F$161:U$161),0) -> 0 | V203: =IFERROR( SUMPRODUCT( INDEX($F$182:V$182,N(IF({1},V$190-$F$190:V$190+1))),$F$161:V$161),0) -> 0 | W203: =IFERROR( SUMPRODUCT( INDEX($F$182:W$182,N(IF({1},W$190-$F$190:W$190+1))),$F$161:W$161),0) -> 0 | X203: =IFERROR( SUMPRODUCT( INDEX($F$182:X$182,N(IF({1},X$190-$F$190:X$190+1))),$F$161:X$161),0) -> 0 | Y203: =IFERROR( SUMPRODUCT( INDEX($F$182:Y$182,N(IF({1},Y$190-$F$190:Y$190+1))),$F$161:Y$161),0) -> 0 | Z203: =IFERROR( SUMPRODUCT( INDEX($F$182:Z$182,N(IF({1},Z$190-$F$190:Z$190+1))),$F$161:Z$161),0) -> 0 | AA203: =IFERROR( SUMPRODUCT( INDEX($F$182:AA$182,N(IF({1},AA$190-$F$190:AA$190+1))),$F$161:AA$161),0) -> 0 | AB203: =IFERROR( SUMPRODUCT( INDEX($F$182:AB$182,N(IF({1},AB$190-$F$190:AB$190+1))),$F$161:AB$161),0) -> 0 | AC203: =IFERROR( SUMPRODUCT( INDEX($F$182:AC$182,N(IF({1},AC$190-$F$190:AC$190+1))),$F$161:AC$161),0) -> 0 | AD203: =IFERROR( SUMPRODUCT( INDEX($F$182:AD$182,N(IF({1},AD$190-$F$190:AD$190+1))),$F$161:AD$161),0) -> 0 | AE203: =IFERROR( SUMPRODUCT( INDEX($F$182:AE$182,N(IF({1},AE$190-$F$190:AE$190+1))),$F$161:AE$161),0) -> 0 | AF203: =IFERROR( SUMPRODUCT( INDEX($F$182:AF$182,N(IF({1},AF$190-$F$190:AF$190+1))),$F$161:AF$161),0) -> 0 | AG203: =IFERROR( SUMPRODUCT( INDEX($F$182:AG$182,N(IF({1},AG$190-$F$190:AG$190+1))),$F$161:AG$161),0) -> 0 | AH203: =IFERROR( SUMPRODUCT( INDEX($F$182:AH$182,N(IF({1},AH$190-$F$190:AH$190+1))),$F$161:AH$161),0) -> 0 | AI203: =IFERROR( SUMPRODUCT( INDEX($F$182:AI$182,N(IF({1},AI$190-$F$190:AI$190+1))),$F$161:AI$161),0) -> 0 | AJ203: =IFERROR( SUMPRODUCT( INDEX($F$182:AJ$182,N(IF({1},AJ$190-$F$190:AJ$190+1))),$F$161:AJ$161),0) -> 0 | AK203: =IFERROR( SUMPRODUCT( INDEX($F$182:AK$182,N(IF({1},AK$190-$F$190:AK$190+1))),$F$161:AK$161),0) -> 0 | AL203: =IFERROR( SUMPRODUCT( INDEX($F$182:AL$182,N(IF({1},AL$190-$F$190:AL$190+1))),$F$161:AL$161),0) -> 0 | AM203: =IFERROR( SUMPRODUCT( INDEX($F$182:AM$182,N(IF({1},AM$190-$F$190:AM$190+1))),$F$161:AM$161),0) -> 0 | AN203: =IFERROR( SUMPRODUCT( INDEX($F$182:AN$182,N(IF({1},AN$190-$F$190:AN$190+1))),$F$161:AN$161),0) -> 0 | AO203: =IFERROR( SUMPRODUCT( INDEX($F$182:AO$182,N(IF({1},AO$190-$F$190:AO$190+1))),$F$161:AO$161),0) -> 0 | AP203: =IFERROR( SUMPRODUCT( INDEX($F$182:AP$182,N(IF({1},AP$190-$F$190:AP$190+1))),$F$161:AP$161),0) -> 0 | AQ203: =IFERROR( SUMPRODUCT( INDEX($F$182:AQ$182,N(IF({1},AQ$190-$F$190:AQ$190+1))),$F$161:AQ$161),0) -> 0 | AR203: =IFERROR( SUMPRODUCT( INDEX($F$182:AR$182,N(IF({1},AR$190-$F$190:AR$190+1))),$F$161:AR$161),0) -> 0 | AS203: =IFERROR( SUMPRODUCT( INDEX($F$182:AS$182,N(IF({1},AS$190-$F$190:AS$190+1))),$F$161:AS$161),0) -> 0 | AT203: =IFERROR( SUMPRODUCT( INDEX($F$182:AT$182,N(IF({1},AT$190-$F$190:AT$190+1))),$F$161:AT$161),0) -> 0 | AU203: =IFERROR( SUMPRODUCT( INDEX($F$182:AU$182,N(IF({1},AU$190-$F$190:AU$190+1))),$F$161:AU$161),0) -> 0 | AV203: =IFERROR( SUMPRODUCT( INDEX($F$182:AV$182,N(IF({1},AV$190-$F$190:AV$190+1))),$F$161:AV$161),0) -> 0 | AW203: =IFERROR( SUMPRODUCT( INDEX($F$182:AW$182,N(IF({1},AW$190-$F$190:AW$190+1))),$F$161:AW$161),0) -> 0 | AX203: =IFERROR( SUMPRODUCT( INDEX($F$182:AX$182,N(IF({1},AX$190-$F$190:AX$190+1))),$F$161:AX$161),0) -> 0 | AY203: =IFERROR( SUMPRODUCT( INDEX($F$182:AY$182,N(IF({1},AY$190-$F$190:AY$190+1))),$F$161:AY$161),0) -> 0 | AZ203: =IFERROR( SUMPRODUCT( INDEX($F$182:AZ$182,N(IF({1},AZ$190-$F$190:AZ$190+1))),$F$161:AZ$161),0) -> 0 | BA203: =IFERROR( SUMPRODUCT( INDEX($F$182:BA$182,N(IF({1},BA$190-$F$190:BA$190+1))),$F$161:BA$161),0) -> 0 | BB203: 0 | BD203: 0 | BE203: 0 | BF203: 1 | BG203: =IF(OR(LEFT($B203,2)="5a",LEFT($B203,2)="5b"),$B203,LEFT($B203,IF(ISTEXT($B203),MIN(IF(ISERROR(FIND({"_","a","b"},$B203)),"",FIND({"_","a","b"},$B203)))-1,LEN($B203)))*1) -> 10
A204: URR_PP | B204: 11 | C204: =_CreditSurety -> Finanz und Kaution | D204: =_CreditSurety -> Finanz und Kaution | F204: =IFERROR( SUMPRODUCT( INDEX($F$183:F$183,N(IF({1},F$190-$F$190:F$190+1))),$F$162:F$162),0) -> 0 | G204: =IFERROR( SUMPRODUCT( INDEX($F$183:G$183,N(IF({1},G$190-$F$190:G$190+1))),$F$162:G$162),0) -> 0 | H204: =IFERROR( SUMPRODUCT( INDEX($F$183:H$183,N(IF({1},H$190-$F$190:H$190+1))),$F$162:H$162),0) -> 0 | I204: =IFERROR( SUMPRODUCT( INDEX($F$183:I$183,N(IF({1},I$190-$F$190:I$190+1))),$F$162:I$162),0) -> 0 | J204: =IFERROR( SUMPRODUCT( INDEX($F$183:J$183,N(IF({1},J$190-$F$190:J$190+1))),$F$162:J$162),0) -> 0 | K204: =IFERROR( SUMPRODUCT( INDEX($F$183:K$183,N(IF({1},K$190-$F$190:K$190+1))),$F$162:K$162),0) -> 0 | L204: =IFERROR( SUMPRODUCT( INDEX($F$183:L$183,N(IF({1},L$190-$F$190:L$190+1))),$F$162:L$162),0) -> 0 | M204: =IFERROR( SUMPRODUCT( INDEX($F$183:M$183,N(IF({1},M$190-$F$190:M$190+1))),$F$162:M$162),0) -> 0 | N204: =IFERROR( SUMPRODUCT( INDEX($F$183:N$183,N(IF({1},N$190-$F$190:N$190+1))),$F$162:N$162),0) -> 0 | O204: =IFERROR( SUMPRODUCT( INDEX($F$183:O$183,N(IF({1},O$190-$F$190:O$190+1))),$F$162:O$162),0) -> 0 | P204: =IFERROR( SUMPRODUCT( INDEX($F$183:P$183,N(IF({1},P$190-$F$190:P$190+1))),$F$162:P$162),0) -> 0 | Q204: =IFERROR( SUMPRODUCT( INDEX($F$183:Q$183,N(IF({1},Q$190-$F$190:Q$190+1))),$F$162:Q$162),0) -> 0 | R204: =IFERROR( SUMPRODUCT( INDEX($F$183:R$183,N(IF({1},R$190-$F$190:R$190+1))),$F$162:R$162),0) -> 0 | S204: =IFERROR( SUMPRODUCT( INDEX($F$183:S$183,N(IF({1},S$190-$F$190:S$190+1))),$F$162:S$162),0) -> 0 | T204: =IFERROR( SUMPRODUCT( INDEX($F$183:T$183,N(IF({1},T$190-$F$190:T$190+1))),$F$162:T$162),0) -> 0 | U204: =IFERROR( SUMPRODUCT( INDEX($F$183:U$183,N(IF({1},U$190-$F$190:U$190+1))),$F$162:U$162),0) -> 0 | V204: =IFERROR( SUMPRODUCT( INDEX($F$183:V$183,N(IF({1},V$190-$F$190:V$190+1))),$F$162:V$162),0) -> 0 | W204: =IFERROR( SUMPRODUCT( INDEX($F$183:W$183,N(IF({1},W$190-$F$190:W$190+1))),$F$162:W$162),0) -> 0 | X204: =IFERROR( SUMPRODUCT( INDEX($F$183:X$183,N(IF({1},X$190-$F$190:X$190+1))),$F$162:X$162),0) -> 0 | Y204: =IFERROR( SUMPRODUCT( INDEX($F$183:Y$183,N(IF({1},Y$190-$F$190:Y$190+1))),$F$162:Y$162),0) -> 0 | Z204: =IFERROR( SUMPRODUCT( INDEX($F$183:Z$183,N(IF({1},Z$190-$F$190:Z$190+1))),$F$162:Z$162),0) -> 0 | AA204: =IFERROR( SUMPRODUCT( INDEX($F$183:AA$183,N(IF({1},AA$190-$F$190:AA$190+1))),$F$162:AA$162),0) -> 0 | AB204: =IFERROR( SUMPRODUCT( INDEX($F$183:AB$183,N(IF({1},AB$190-$F$190:AB$190+1))),$F$162:AB$162),0) -> 0 | AC204: =IFERROR( SUMPRODUCT( INDEX($F$183:AC$183,N(IF({1},AC$190-$F$190:AC$190+1))),$F$162:AC$162),0) -> 0 | AD204: =IFERROR( SUMPRODUCT( INDEX($F$183:AD$183,N(IF({1},AD$190-$F$190:AD$190+1))),$F$162:AD$162),0) -> 0 | AE204: =IFERROR( SUMPRODUCT( INDEX($F$183:AE$183,N(IF({1},AE$190-$F$190:AE$190+1))),$F$162:AE$162),0) -> 0 | AF204: =IFERROR( SUMPRODUCT( INDEX($F$183:AF$183,N(IF({1},AF$190-$F$190:AF$190+1))),$F$162:AF$162),0) -> 0 | AG204: =IFERROR( SUMPRODUCT( INDEX($F$183:AG$183,N(IF({1},AG$190-$F$190:AG$190+1))),$F$162:AG$162),0) -> 0 | AH204: =IFERROR( SUMPRODUCT( INDEX($F$183:AH$183,N(IF({1},AH$190-$F$190:AH$190+1))),$F$162:AH$162),0) -> 0 | AI204: =IFERROR( SUMPRODUCT( INDEX($F$183:AI$183,N(IF({1},AI$190-$F$190:AI$190+1))),$F$162:AI$162),0) -> 0 | AJ204: =IFERROR( SUMPRODUCT( INDEX($F$183:AJ$183,N(IF({1},AJ$190-$F$190:AJ$190+1))),$F$162:AJ$162),0) -> 0 | AK204: =IFERROR( SUMPRODUCT( INDEX($F$183:AK$183,N(IF({1},AK$190-$F$190:AK$190+1))),$F$162:AK$162),0) -> 0 | AL204: =IFERROR( SUMPRODUCT( INDEX($F$183:AL$183,N(IF({1},AL$190-$F$190:AL$190+1))),$F$162:AL$162),0) -> 0 | AM204: =IFERROR( SUMPRODUCT( INDEX($F$183:AM$183,N(IF({1},AM$190-$F$190:AM$190+1))),$F$162:AM$162),0) -> 0 | AN204: =IFERROR( SUMPRODUCT( INDEX($F$183:AN$183,N(IF({1},AN$190-$F$190:AN$190+1))),$F$162:AN$162),0) -> 0 | AO204: =IFERROR( SUMPRODUCT( INDEX($F$183:AO$183,N(IF({1},AO$190-$F$190:AO$190+1))),$F$162:AO$162),0) -> 0 | AP204: =IFERROR( SUMPRODUCT( INDEX($F$183:AP$183,N(IF({1},AP$190-$F$190:AP$190+1))),$F$162:AP$162),0) -> 0 | AQ204: =IFERROR( SUMPRODUCT( INDEX($F$183:AQ$183,N(IF({1},AQ$190-$F$190:AQ$190+1))),$F$162:AQ$162),0) -> 0 | AR204: =IFERROR( SUMPRODUCT( INDEX($F$183:AR$183,N(IF({1},AR$190-$F$190:AR$190+1))),$F$162:AR$162),0) -> 0 | AS204: =IFERROR( SUMPRODUCT( INDEX($F$183:AS$183,N(IF({1},AS$190-$F$190:AS$190+1))),$F$162:AS$162),0) -> 0 | AT204: =IFERROR( SUMPRODUCT( INDEX($F$183:AT$183,N(IF({1},AT$190-$F$190:AT$190+1))),$F$162:AT$162),0) -> 0 | AU204: =IFERROR( SUMPRODUCT( INDEX($F$183:AU$183,N(IF({1},AU$190-$F$190:AU$190+1))),$F$162:AU$162),0) -> 0 | AV204: =IFERROR( SUMPRODUCT( INDEX($F$183:AV$183,N(IF({1},AV$190-$F$190:AV$190+1))),$F$162:AV$162),0) -> 0 | AW204: =IFERROR( SUMPRODUCT( INDEX($F$183:AW$183,N(IF({1},AW$190-$F$190:AW$190+1))),$F$162:AW$162),0) -> 0 | AX204: =IFERROR( SUMPRODUCT( INDEX($F$183:AX$183,N(IF({1},AX$190-$F$190:AX$190+1))),$F$162:AX$162),0) -> 0 | AY204: =IFERROR( SUMPRODUCT( INDEX($F$183:AY$183,N(IF({1},AY$190-$F$190:AY$190+1))),$F$162:AY$162),0) -> 0 | AZ204: =IFERROR( SUMPRODUCT( INDEX($F$183:AZ$183,N(IF({1},AZ$190-$F$190:AZ$190+1))),$F$162:AZ$162),0) -> 0 | BA204: =IFERROR( SUMPRODUCT( INDEX($F$183:BA$183,N(IF({1},BA$190-$F$190:BA$190+1))),$F$162:BA$162),0) -> 0 | BB204: 0 | BD204: 0 | BE204: 0 | BF204: 1 | BG204: =IF(OR(LEFT($B204,2)="5a",LEFT($B204,2)="5b"),$B204,LEFT($B204,IF(ISTEXT($B204),MIN(IF(ISERROR(FIND({"_","a","b"},$B204)),"",FIND({"_","a","b"},$B204)))-1,LEN($B204)))*1) -> 11
